{"text_format":"1","workbook":"xlsx","n_sheets":10,"sheets":["Accueil","Indicateurs","MTBF","Préventif","Enregistrements interventions","Commandes","Achats","Contacts","Stock","Planning inter"],"not_rendered":{"charts":1,"images":2,"macros":1,"external_links":0,"defined_names":4,"comments":1,"pivot_tables":0},"unopened":[],"bounds":{"document_bytes":16777216,"sheet_cells":100000,"rows_first":2000,"rows_last":500,"rows_between":2000,"halvings":0,"cell_chars":16384,"cell_head_chars":4096},"cells_cut":0,"cells_raw":0,"read":"whole","date_system":"1900"}

{"sheet":"Accueil","index":0,"n_rows":22,"n_cols":8,"rows_kept":22,"cut":false,"hidden":false,"merged":[[0,0,3,4],[19,0,22,4]]}
["Actions :"]
[]
[]
[]
[]
[]
[]
[]
[]
[]
[]
[]
[]
[]
[]
[]
[]
[]
[]
["Raccourcis :"]
[]
[null,null,null,null,null,null,null,"  "]

{"sheet":"Indicateurs","index":1,"n_rows":48,"n_cols":24,"rows_kept":48,"cut":false,"hidden":false,"merged":[[27,15,28,16],[29,21,31,22],[27,21,28,22],[27,13,28,14],[29,23,31,24],[26,1,26,24],[29,11,31,12],[29,13,31,14],[29,15,31,16],[29,17,31,18],[29,19,31,20],[29,1,31,2],[29,3,31,4],[29,5,31,6],[29,7,31,8],[29,9,31,10],[27,1,28,2],[27,3,28,4],[27,17,28,18],[27,19,28,20],[27,23,28,24],[23,9,25,10],[23,11,25,12],[23,13,25,14],[21,1,22,2],[21,3,22,4],[21,5,22,6],[21,7,22,8],[21,9,22,10],[21,11,22,12],[21,13,22,14],[93,3,93,4],[94,3,94,4],[95,3,95,4],[96,3,96,4],[97,3,97,4],[98,3,98,4],[99,3,99,4],[100,3,100,4],[1,2,1,4],[39,0,41,12],[43,0,44,4],[1,10,1,12],[11,8,15,12],[11,0,15,4],[20,0,31,0],[27,7,28,8],[27,9,28,10],[27,11,28,12],[27,5,28,6],[20,1,20,14],[23,1,25,2],[23,3,25,4],[23,5,25,6],[23,7,25,8],[101,3,101,4],[102,3,102,4],[103,3,103,4],[104,3,104,4],[105,3,105,4],[106,3,106,4],[107,3,107,4],[108,3,108,4],[109,3,109,4],[110,3,110,4],[111,3,111,4],[112,3,112,4],[113,3,113,4],[114,3,114,4],[115,3,115,4],[116,3,116,4],[117,3,117,4],[118,3,118,4],[119,3,119,4],[120,3,120,4],[121,3,121,4],[122,3,122,4],[123,3,123,4],[124,3,124,4],[125,3,125,4],[126,3,126,4],[127,3,127,4],[128,3,128,4],[129,3,129,4],[130,3,130,4],[131,3,131,4],[132,3,132,4],[133,3,133,4],[134,3,134,4],[135,3,135,4],[136,3,136,4],[137,3,137,4],[138,3,138,4],[139,3,139,4],[140,3,140,4],[141,3,141,4],[142,3,142,4],[143,3,143,4],[144,3,144,4],[145,3,145,4],[146,3,146,4],[147,3,147,4],[148,3,148,4],[149,3,149,4],[150,3,150,4],[151,3,151,4],[152,3,152,4],[153,3,153,4],[154,3,154,4],[155,3,155,4],[156,3,156,4],[157,3,157,4],[158,3,158,4],[159,3,159,4],[160,3,160,4],[161,3,161,4],[162,3,162,4],[163,3,163,4],[164,3,164,4],[165,3,165,4],[166,3,166,4],[167,3,167,4],[168,3,168,4],[169,3,169,4],[170,3,170,4],[171,3,171,4],[172,3,172,4],[173,3,173,4],[174,3,174,4],[175,3,175,4],[176,3,176,4],[177,3,177,4],[178,3,178,4],[179,3,179,4],[180,3,180,4],[181,3,181,4],[182,3,182,4],[183,3,183,4],[184,3,184,4],[185,3,185,4],[186,3,186,4],[187,3,187,4],[188,3,188,4],[189,3,189,4],[190,3,190,4],[191,3,191,4],[192,3,192,4],[193,3,193,4],[194,3,194,4],[195,3,195,4],[196,3,196,4],[197,3,197,4],[198,3,198,4],[199,3,199,4],[200,3,200,4],[201,3,201,4],[202,3,202,4],[203,3,203,4],[204,3,204,4],[205,3,205,4],[206,3,206,4],[207,3,207,4],[208,3,208,4],[209,3,209,4],[210,3,210,4],[211,3,211,4],[212,3,212,4],[213,3,213,4],[214,3,214,4],[215,3,215,4],[216,3,216,4],[217,3,217,4],[218,3,218,4],[219,3,219,4],[220,3,220,4],[221,3,221,4],[222,3,222,4],[223,3,223,4],[224,3,224,4],[225,3,225,4],[226,3,226,4],[227,3,227,4],[228,3,228,4],[229,3,229,4],[230,3,230,4],[231,3,231,4],[232,3,232,4],[233,3,233,4],[234,3,234,4],[235,3,235,4],[236,3,236,4],[237,3,237,4],[238,3,238,4],[239,3,239,4],[240,3,240,4],[241,3,241,4],[242,3,242,4],[243,3,243,4],[244,3,244,4],[245,3,245,4],[246,3,246,4],[247,3,247,4],[248,3,248,4],[249,3,249,4],[250,3,250,4],[251,3,251,4],[252,3,252,4],[253,3,253,4],[254,3,254,4],[255,3,255,4],[256,3,256,4],[257,3,257,4],[258,3,258,4],[259,3,259,4],[260,3,260,4],[261,3,261,4],[262,3,262,4],[263,3,263,4],[264,3,264,4],[265,3,265,4],[266,3,266,4],[267,3,267,4],[268,3,268,4],[269,3,269,4],[270,3,270,4],[271,3,271,4],[272,3,272,4],[273,3,273,4],[274,3,274,4],[275,3,275,4],[276,3,276,4],[277,3,277,4],[278,3,278,4],[279,3,279,4],[280,3,280,4],[281,3,281,4],[282,3,282,4],[283,3,283,4],[284,3,284,4],[285,3,285,4],[286,3,286,4],[287,3,287,4],[288,3,288,4],[289,3,289,4],[290,3,290,4],[291,3,291,4],[292,3,292,4],[293,3,293,4],[294,3,294,4],[295,3,295,4],[296,3,296,4],[297,3,297,4],[298,3,298,4],[299,3,299,4],[300,3,300,4],[301,3,301,4],[302,3,302,4],[303,3,303,4],[304,3,304,4],[305,3,305,4],[306,3,306,4],[307,3,307,4],[308,3,308,4],[309,3,309,4],[310,3,310,4],[311,3,311,4],[312,3,312,4],[313,3,313,4],[314,3,314,4],[315,3,315,4],[316,3,316,4],[317,3,317,4],[318,3,318,4],[319,3,319,4],[320,3,320,4],[321,3,321,4],[322,3,322,4],[323,3,323,4],[324,3,324,4],[325,3,325,4],[326,3,326,4],[327,3,327,4],[328,3,328,4],[329,3,329,4],[330,3,330,4],[331,3,331,4],[332,3,332,4],[333,3,333,4],[334,3,334,4],[335,3,335,4],[336,3,336,4],[337,3,337,4],[338,3,338,4],[339,3,339,4],[340,3,340,4],[341,3,341,4],[342,3,342,4],[343,3,343,4],[344,3,344,4],[345,3,345,4],[346,3,346,4],[347,3,347,4],[348,3,348,4],[349,3,349,4],[350,3,350,4],[351,3,351,4],[352,3,352,4]]}
[]
["Taux de préventif","=",{"$f":"B5/(B5+B4)","v":0.94458438287153657},null,null,null,null,null,"Taux  de réalisation du préventif","=",0.98136645962732916]
[]
["Opérations Correctives :",44]
["Opérations Préventives :",750,null,null,null,null,null,null,"Préventif à faire",3]
[null,null,null,null,null,null,null,null,"Préventif fait",158]
[]
[]
[]
[]
[]
["Permet d'évaluer la pertinence du plan de maintenance.Si le plan de préventif est pertinent, si on augmente le préventif, le curractif est sensé baisser.  Si ça n'est pas le cas le plan n'est pas pertinent et est à modifier",null,null,null,null,null,null,null,"Permet de suivre la réalisation du plan de maintenance, en relation avec l'objectif fixé par le Gérant"]
[]
[]
[]
[]
[]
[]
[]
[]
["Temps d'intervention interne et externe (h)",2013]
[null,"Juin",null,"Juillet",null,"Août",null,"Septembre",null,"Octobre",null,"Novembre",null,"Décembre"]
[]
[null,12.583333333333334,null,0,null,0,null,0,null,5.0666666666666664,null,0,null,0]
[]
[]
[null,2014]
[null,"Janvier",null,"Février",null,"Mars",null,"Avril",null,"Mai",null,"Juin",null,"Juillet",null,"Août",null,"Septembre",null,"Octobre",null,"Novembre",null,"Décembre"]
[]
[null,0,null,9,null,0,null,0,null,0,null,0,null,0,null,0,null,0,null,0,null,0,null,0]
[]
[]
[]
[]
[]
[]
[]
[]
[]
["Tableau de bord maintenance"]
[]
[]
[]
["Objectif : 100% du taux de préventif"]
[]
[]
[null,"Août","Septembre","Octobre","Novembre","Décembre","Janvier","Février","Mars","Avril","Mai","Juin","Juillet","Août","Septembre"]
["Taux de préventif (%)",97,97,99,96,98,95]

{"sheet":"MTBF","index":2,"n_rows":42,"n_cols":7,"rows_kept":42,"cut":false,"hidden":false,"merged":[[0,6,0,12],[1,6,4,12]]}
[null,"Date de mise en service GMAO","Nombre de Curatif sur la machine","MTBF (jours)",null,null,"Mean Time Between Failure"]
["Presse AMOS","2013-06-06",{"$f":"COUNTIFS('Enregistrements interventions'!B:B,MTBF!A2,'Enregistrements interventions'!C:C,\"Curatif\")","v":1},{"$f":"IF(C2=0,\"\",(TODAY()-B2)/C2)","v":259},null,null,"Temps moyen entre deux interventions, permet d'adapter le plan de maintenance préventif, si on se rend compte que notre organe lache avant notre préventif \n\n= MTBF plus faible que la fréquence de remplacement"]
["Filtre PALL","2013-06-06",{"$f":"COUNTIFS('Enregistrements interventions'!B:B,MTBF!A3,'Enregistrements interventions'!C:C,\"Curatif\")","v":0},{"$f":"IF(C3=0,\"\",(TODAY()-B3)/C3)","v":""}]
["Laveuse","2013-06-06",{"$f":"COUNTIFS('Enregistrements interventions'!B:B,MTBF!A4,'Enregistrements interventions'!C:C,\"Curatif\")","v":5},51.8]
["Presse BUCHER","2013-06-06",{"$f":"COUNTIFS('Enregistrements interventions'!B:B,MTBF!A5,'Enregistrements interventions'!C:C,\"Curatif\")","v":6},43.166666666666664]
["Centrifugeuse","2013-06-06",{"$f":"COUNTIFS('Enregistrements interventions'!B:B,MTBF!A6,'Enregistrements interventions'!C:C,\"Curatif\")","v":0},""]
["Insectocuteurs","2013-06-06",{"$f":"COUNTIFS('Enregistrements interventions'!B:B,MTBF!A7,'Enregistrements interventions'!C:C,\"Curatif\")","v":0},""]
["Pompe evac eaux usées","2013-06-06",{"$f":"COUNTIFS('Enregistrements interventions'!B:B,MTBF!A8,'Enregistrements interventions'!C:C,\"Curatif\")","v":0},""]
["Pompe Schneider","2013-06-06",{"$f":"COUNTIFS('Enregistrements interventions'!B:B,MTBF!A9,'Enregistrements interventions'!C:C,\"Curatif\")","v":0},""]
["Pompe Liverani","2013-06-06",{"$f":"COUNTIFS('Enregistrements interventions'!B:B,MTBF!A10,'Enregistrements interventions'!C:C,\"Curatif\")","v":0},""]
["Pompe Liverani avec panneau elec","2013-06-06",{"$f":"COUNTIFS('Enregistrements interventions'!B:B,MTBF!A11,'Enregistrements interventions'!C:C,\"Curatif\")","v":0},""]
["Flash-Pasteurisateur","2013-06-06",{"$f":"COUNTIFS('Enregistrements interventions'!B:B,MTBF!A12,'Enregistrements interventions'!C:C,\"Curatif\")","v":0},""]
["Pompe Lucne","2013-06-06",{"$f":"COUNTIFS('Enregistrements interventions'!B:B,MTBF!A13,'Enregistrements interventions'!C:C,\"Curatif\")","v":0},""]
["Dépaletiseur","2013-06-06",{"$f":"COUNTIFS('Enregistrements interventions'!B:B,MTBF!A14,'Enregistrements interventions'!C:C,\"Curatif\")","v":0},""]
["Rinceuse","2013-06-06",{"$f":"COUNTIFS('Enregistrements interventions'!B:B,MTBF!A15,'Enregistrements interventions'!C:C,\"Curatif\")","v":0},""]
["Saturateur","2013-06-06",{"$f":"COUNTIFS('Enregistrements interventions'!B:B,MTBF!A16,'Enregistrements interventions'!C:C,\"Curatif\")","v":0},""]
["Echangeur intérieur","2013-06-06",{"$f":"COUNTIFS('Enregistrements interventions'!B:B,MTBF!A17,'Enregistrements interventions'!C:C,\"Curatif\")","v":1},259]
["Tireuse","2013-06-06",{"$f":"COUNTIFS('Enregistrements interventions'!B:B,MTBF!A18,'Enregistrements interventions'!C:C,\"Curatif\")","v":5},51.8]
["Boucheuse / museleuse","2013-06-06",{"$f":"COUNTIFS('Enregistrements interventions'!B:B,MTBF!A19,'Enregistrements interventions'!C:C,\"Curatif\")","v":20},12.95]
["Distributeur bouchons","2013-06-06",{"$f":"COUNTIFS('Enregistrements interventions'!B:B,MTBF!A20,'Enregistrements interventions'!C:C,\"Curatif\")","v":0},""]
["Pasteurisateur","2013-06-06",{"$f":"COUNTIFS('Enregistrements interventions'!B:B,MTBF!A21,'Enregistrements interventions'!C:C,\"Curatif\")","v":0},""]
["Etiqueteuse conpart","2013-06-06",{"$f":"COUNTIFS('Enregistrements interventions'!B:B,MTBF!A22,'Enregistrements interventions'!C:C,\"Curatif\")","v":1},259]
["Imprimante Linx","2013-06-06",{"$f":"COUNTIFS('Enregistrements interventions'!B:B,MTBF!A23,'Enregistrements interventions'!C:C,\"Curatif\")","v":0},""]
["Etiqueteuse adhésive","2013-06-06",{"$f":"COUNTIFS('Enregistrements interventions'!B:B,MTBF!A24,'Enregistrements interventions'!C:C,\"Curatif\")","v":0},""]
["Table d'accumulation","2013-06-06",{"$f":"COUNTIFS('Enregistrements interventions'!B:B,MTBF!A25,'Enregistrements interventions'!C:C,\"Curatif\")","v":0},""]
["TRIO","2013-06-06",{"$f":"COUNTIFS('Enregistrements interventions'!B:B,MTBF!A26,'Enregistrements interventions'!C:C,\"Curatif\")","v":0},""]
["Scotcheuse à cartons","2013-06-06",{"$f":"COUNTIFS('Enregistrements interventions'!B:B,MTBF!A27,'Enregistrements interventions'!C:C,\"Curatif\")","v":0},""]
["Tiflex","2013-06-06",{"$f":"COUNTIFS('Enregistrements interventions'!B:B,MTBF!A28,'Enregistrements interventions'!C:C,\"Curatif\")","v":0},""]
["Filmeuse","2013-06-06",{"$f":"COUNTIFS('Enregistrements interventions'!B:B,MTBF!A29,'Enregistrements interventions'!C:C,\"Curatif\")","v":1},259]
["Echangeur extérieur","2013-06-06",{"$f":"COUNTIFS('Enregistrements interventions'!B:B,MTBF!A30,'Enregistrements interventions'!C:C,\"Curatif\")","v":0},""]
["Convoyeurs","2013-06-06",{"$f":"COUNTIFS('Enregistrements interventions'!B:B,MTBF!A31,'Enregistrements interventions'!C:C,\"Curatif\")","v":0},""]
["MEAD","2013-06-06",{"$f":"COUNTIFS('Enregistrements interventions'!B:B,MTBF!A32,'Enregistrements interventions'!C:C,\"Curatif\")","v":1},259]
["Chariot  Clark","2013-06-06",{"$f":"COUNTIFS('Enregistrements interventions'!B:B,MTBF!A33,'Enregistrements interventions'!C:C,\"Curatif\")","v":0},""]
["Tire-palette elec","2013-06-06",{"$f":"COUNTIFS('Enregistrements interventions'!B:B,MTBF!A34,'Enregistrements interventions'!C:C,\"Curatif\")","v":2},129.5]
["Karcher","2013-06-06",{"$f":"COUNTIFS('Enregistrements interventions'!B:B,MTBF!A35,'Enregistrements interventions'!C:C,\"Curatif\")","v":0},""]
["Chariot mitsubishi","2013-06-06",{"$f":"COUNTIFS('Enregistrements interventions'!B:B,MTBF!A36,'Enregistrements interventions'!C:C,\"Curatif\")","v":1},259]
["Compresseur ","2013-06-06",{"$f":"COUNTIFS('Enregistrements interventions'!B:B,MTBF!A37,'Enregistrements interventions'!C:C,\"Curatif\")","v":0},""]
["Structure","2013-06-06",{"$f":"COUNTIFS('Enregistrements interventions'!B:B,MTBF!A38,'Enregistrements interventions'!C:C,\"Curatif\")","v":2},129.5]
["Insectocuteur E1","2013-06-06",{"$f":"COUNTIFS('Enregistrements interventions'!B:B,MTBF!A39,'Enregistrements interventions'!C:C,\"Curatif\")","v":0},""]
["Insectocuteur E2","2013-06-06",{"$f":"COUNTIFS('Enregistrements interventions'!B:B,MTBF!A40,'Enregistrements interventions'!C:C,\"Curatif\")","v":0},""]
["Insectocuteur C1","2013-06-06",{"$f":"COUNTIFS('Enregistrements interventions'!B:B,MTBF!A41,'Enregistrements interventions'!C:C,\"Curatif\")","v":0},""]
["Insectocuteur P1","2013-06-06",{"$f":"COUNTIFS('Enregistrements interventions'!B:B,MTBF!A42,'Enregistrements interventions'!C:C,\"Curatif\")","v":0},""]

{"sheet":"Préventif","index":3,"n_rows":170,"n_cols":24,"rows_kept":170,"cut":false,"hidden":false,"merged":[[167,9,167,10],[168,9,168,10],[169,9,169,10],[5,9,5,10],[155,9,155,10],[156,9,156,10],[157,9,157,10],[158,9,158,10],[159,9,159,10],[160,9,160,10],[161,9,161,10],[162,9,162,10],[163,9,163,10],[146,9,146,10],[147,9,147,10],[148,9,148,10],[149,9,149,10],[150,9,150,10],[151,9,151,10],[152,9,152,10],[153,9,153,10],[154,9,154,10],[136,9,136,10],[137,9,137,10],[138,9,138,10],[139,9,139,10],[140,9,140,10],[141,9,141,10],[143,9,143,10],[144,9,144,10],[145,9,145,10],[118,9,118,10],[119,9,119,10],[120,9,120,10],[121,9,121,10],[122,9,122,10],[123,9,123,10],[124,9,124,10],[125,9,125,10],[126,9,126,10],[106,9,106,10],[107,9,107,10],[108,9,108,10],[109,9,109,10],[111,9,111,10],[112,9,112,10],[113,9,113,10],[114,9,114,10],[115,9,115,10],[97,9,97,10],[98,9,98,10],[99,9,99,10],[100,9,100,10],[101,9,101,10],[102,9,102,10],[103,9,103,10],[104,9,104,10],[105,9,105,10],[88,9,88,10],[89,9,89,10],[90,9,90,10],[91,9,91,10],[92,9,92,10],[93,9,93,10],[94,9,94,10],[95,9,95,10],[96,9,96,10],[79,9,79,10],[80,9,80,10],[81,9,81,10],[82,9,82,10],[83,9,83,10],[84,9,84,10],[85,9,85,10],[86,9,86,10],[87,9,87,10],[70,9,70,10],[71,9,71,10],[72,9,72,10],[73,9,73,10],[74,9,74,10],[75,9,75,10],[76,9,76,10],[77,9,77,10],[78,9,78,10],[61,9,61,10],[62,9,62,10],[63,9,63,10],[64,9,64,10],[65,9,65,10],[66,9,66,10],[67,9,67,10],[68,9,68,10],[69,9,69,10],[52,9,52,10],[53,9,53,10],[54,9,54,10],[55,9,55,10],[56,9,56,10],[57,9,57,10],[58,9,58,10],[59,9,59,10],[60,9,60,10],[34,9,34,10],[35,9,35,10],[36,9,36,10],[37,9,37,10],[38,9,38,10],[39,9,39,10],[40,9,40,10],[41,9,41,10],[42,9,42,10],[25,9,25,10],[26,9,26,10],[27,9,27,10],[28,9,28,10],[29,9,29,10],[30,9,30,10],[31,9,31,10],[32,9,32,10],[33,9,33,10],[16,9,16,10],[17,9,17,10],[18,9,18,10],[19,9,19,10],[20,9,20,10],[21,9,21,10],[22,9,22,10],[23,9,23,10],[24,9,24,10],[7,9,7,10],[8,9,8,10],[9,9,9,10],[10,9,10,10],[11,9,11,10],[12,9,12,10],[13,9,13,10],[14,9,14,10],[15,9,15,10],[153,12,153,13],[154,12,154,13],[155,12,155,13],[156,12,156,13],[157,12,157,13],[158,12,158,13],[144,12,144,13],[145,12,145,13],[146,12,146,13],[147,12,147,13],[148,12,148,13],[149,12,149,13],[150,12,150,13],[151,12,151,13],[152,12,152,13],[169,12,169,13],[162,12,162,13],[163,12,163,13],[164,12,164,13],[165,12,165,13],[166,12,166,13],[159,12,159,13],[160,12,160,13],[161,12,161,13],[168,12,168,13],[164,9,164,10],[165,9,165,10],[166,9,166,10],[143,12,143,13],[112,12,112,13],[113,12,113,13],[114,12,114,13],[115,12,115,13],[116,12,116,13],[117,12,117,13],[130,12,130,13],[131,12,131,13],[132,12,132,13],[129,12,129,13],[126,12,126,13],[142,1,142,13],[120,12,120,13],[121,12,121,13],[122,12,122,13],[123,12,123,13],[124,12,124,13],[116,9,116,10],[117,9,117,10],[125,12,125,13],[108,12,108,13],[109,12,109,13],[92,12,92,13],[93,12,93,13],[94,12,94,13],[95,12,95,13],[96,12,96,13],[97,12,97,13],[98,12,98,13],[99,12,99,13],[100,12,100,13],[90,12,90,13],[91,12,91,13],[101,12,101,13],[102,12,102,13],[103,12,103,13],[104,12,104,13],[105,12,105,13],[106,12,106,13],[107,12,107,13],[68,12,68,13],[69,12,69,13],[70,12,70,13],[71,12,71,13],[72,12,72,13],[73,12,73,13],[111,12,111,13],[74,12,74,13],[75,12,75,13],[76,12,76,13],[77,12,77,13],[78,12,78,13],[79,12,79,13],[80,12,80,13],[81,12,81,13],[82,12,82,13],[110,1,110,13],[83,12,83,13],[84,12,84,13],[85,12,85,13],[86,12,86,13],[87,12,87,13],[88,12,88,13],[89,12,89,13],[59,12,59,13],[60,12,60,13],[61,12,61,13],[62,12,62,13],[63,12,63,13],[64,12,64,13],[65,12,65,13],[66,12,66,13],[67,12,67,13],[38,12,38,13],[39,12,39,13],[40,12,40,13],[41,12,41,13],[42,12,42,13],[43,12,43,13],[44,12,44,13],[45,12,45,13],[46,12,46,13],[31,12,31,13],[32,12,32,13],[33,12,33,13],[34,12,34,13],[35,12,35,13],[36,12,36,13],[37,12,37,13],[22,12,22,13],[23,12,23,13],[24,12,24,13],[25,12,25,13],[29,12,29,13],[30,12,30,13],[5,12,5,13],[7,12,7,13],[8,12,8,13],[9,12,9,13],[10,12,10,13],[11,12,11,13],[26,12,26,13],[27,12,27,13],[28,12,28,13],[12,12,12,13],[13,12,13,13],[15,12,15,13],[16,12,16,13],[18,12,18,13],[19,12,19,13],[20,12,20,13],[21,12,21,13],[17,12,17,13],[14,12,14,13],[1,0,5,0],[6,1,6,13],[118,12,118,13],[119,12,119,13],[0,2,0,10],[143,0,165,0],[127,9,127,10],[128,9,128,10],[129,9,129,10],[130,9,130,10],[131,9,131,10],[132,9,132,10],[133,9,133,10],[134,9,134,10],[135,9,135,10],[126,0,141,0],[133,12,133,13],[134,12,134,13],[135,12,135,13],[136,12,136,13],[137,12,137,13],[138,12,138,13],[139,12,139,13],[140,12,140,13],[141,12,141,13],[128,12,128,13],[127,12,127,13],[43,9,43,10],[44,9,44,10],[45,9,45,10],[46,9,46,10],[47,9,47,10],[48,9,48,10],[49,9,49,10],[50,9,50,10],[51,9,51,10],[47,12,47,13],[48,12,48,13],[49,12,49,13],[50,12,50,13],[51,12,51,13],[52,12,52,13],[53,12,53,13],[54,12,54,13],[55,12,55,13],[56,12,56,13],[57,12,57,13],[58,12,58,13]]}
["Date :",{"$f":"INT(NOW())","v":"2014-02-20"},null,null,null,null,null,null,null,null,null,null,null,null,null,null,null,null,null,null,null,null,null,"Presse AMOS"]
[null,null,null,null,null,null,null,null,null,null,null,null,null,null,null,null,null,null,null,null,null,null,null,"Filtre PALL"]
[null,null,null,null,null,null,null,null,null,null,null,null,null,null,null,null,null,null,null,null,null,null,null,"Laveuse"]
[null,null,null,null,null,null,null,null,null,null,null,null,null,null,null,null,null,null,null,null,null,null,null,"Presse BUCHER"]
[null,null,null,null,null,null,null,null,null,null,null,null,null,null,null,null,null,null,null,null,null,null,null,"Centrifugeuse"]
[null,"Machine","Action","Détails","Dernière intervention","Fréquence ( jours)","Prochaine intervention","Écart",null,"Commentaires",null,null,"Temps associé (minutes)",null,null,null,null,null,null,null,null,null,null,"Insectocuteurs"]
["Embouteillage",null,null,null,null,null,null,null,null,null,null,null,null,null,null,null,null,null,null,null,null,null,null,"Pompe evac eaux usées"]
[null,"Tireuse","Glissement tige cylindre","- Glissement tige cylindre  élévateur bouteilles.\n - Vérifier que le glissement de la tige du cylindre élévateur de bouteilles glisse correctement.","2014-02-13",7,{"$f":"E8+F8","v":"2014-02-20"},{"$f":"G8-$B$1","v":0},null,null,null,"Ok",7,null,null,null,null,null,null,null,null,null,null,"Pompe Schneider"]
[null,"Tireuse","Contrôles","Contrôler l'état d'usure des joints du cylindre et l'efficacité du circuit pneumatique.","2014-02-13",7,{"$f":"E9+F9","v":"2014-02-20"},{"$f":"G9-$B$1","v":0},null,null,null,"Ok",15,null,null,null,null,null,null,null,null,null,null,"Pompe Liverani"]
[null,"Tireuse","Vérifier synchronisation","Contrôler la mise en phase de tout les outillages","2014-02-03",30,"2014-03-05",13,null,null,null,"Ok",10,null,null,null,null,null,null,null,null,null,null,"Pompe Liverani avec panneau elec"]
[null,"Tireuse","Vérification auditive","Contrôler en démarrant et en arrêtant la machine plusieurs fois sans bouteilles, l'éventuelle présence de bruits anormaux, jeux et vibration des composants de la motorisation","2014-02-03",30,"2014-03-05",13,null,null,null,"Ok",5,null,null,null,null,null,null,null,null,null,null,"Flash-Pasteurisateur"]
[null,"Tireuse","Contrôles des joints de la motorisation","En cas de bruit ou d'usure il est nécessaire de remplacer les joints","2014-02-03",90,"2014-05-04",73,null,null,null,"Ok",null,null,null,null,null,null,null,null,null,null,null,"Pompe Lucne"]
[null,"Tireuse","Branchements électriques","contrôler et nettoyer tout les branchements et si nécessaire remplacer les parties usées","2013-11-25",90,"2014-02-23",3,"Illustration",null,null,"Ok",7,null,null,null,null,null,null,null,null,null,null,"Dépaletiseur"]
[null,"Tireuse","Infiltration d'eau","Vérifier qu'il n'y ai pas d'infiltration d'eau","2013-11-25",90,"2014-02-23",3,"Illustration",null,null,"Ok",3,null,null,null,null,null,null,null,null,null,null,"Rinceuse"]
[null,"Tireuse","Contrôles des joints des becs","Contrôle des joints des 12 becs, changement si nécessaire","2013-10-29",270,"2014-07-26",156,"Illustration",null,null,null,1020,null,null,null,null,null,null,null,null,null,null,"Saturateur"]
[null,"Tireuse","Soupapes de remplissage","Démonter complètement les soupapes de remplissage (en toutes leurs parties), en vérifier l'état d'usure et éventuellement les remplacer ( Cf chap 10.8) . Verifier l'état d'usure des joints et vérifier l'efficacité des ressorts","2013-11-25",180,"2014-05-24",93,"Illustration",null,null,"Ok",50,null,null,null,null,null,null,null,null,null,null,"Echangeur intérieur"]
[null,"Tireuse","Contrôles des organes de mouvement","Contrôler les réducteurs et organes de mouvement.","2013-06-05",730,"2015-06-05",470,"Illustration",null,null,"Ok",10,null,null,null,null,null,null,null,null,null,null,"Tireuse"]
[null,"Tireuse","Contrôle","Contrôle du serrage des canules","2014-01-13",60,"2014-03-14",22,null,null,null,"Ok",10,null,null,null,null,null,null,null,null,null,null,"Boucheuse / museleuse"]
[null,"Tireuse","Installation electrique","Contrôle des urgences :\n- Verifier qu'en appuyant sur le poussoir d'urgence la machine s'arrete\n- Si la machine ne s'arrete pas il faut l'arreter en coupant l'alimentation et tout de suite chercher la cause du défaut.\n- Verifier avec la machine arretée que les urgences ( etoile, guichets...) sont fonctionnantes, il faut que sur le tableau les voyants rouges soient allumés\n- Vérifier avec la machine arretée, que les photocellules sont fonctionnantes; il faut que sur le tableau le voyant clignotant s'allume","2014-02-13",7,"2014-02-20",0,null,null,null,"Ok",2,null,null,null,null,null,null,null,null,null,null,"Distributeur bouchons"]
[null,"Tireuse","Graissage","1 point graissage dessus cloche\n12 sur les rouleaux dans carter\n4 sur arbre de rotation en quart de tour                                                         \n        Graisse LUZOL AL                                                                                                                              ","2014-02-14",30,"2014-03-16",24,null,null,null,"Ok",25,null,null,null,null,null,null,null,null,null,null,"Pasteurisateur"]
[null,"Boucheuse / Museleuse","Entretien des mâchoires","Sortir le bloc machoire\n Passer un coup de jet d'air pour enlever la poussière de bouchon                                              \nDémonter les machoires  \nLes tremper dans de l'eau chaude, afin quelles soient bien propres. \nLes remonter\nLes graisser avec de la graisse alimentaire           ","2014-02-03",15,"2014-02-18",-2,null,null,null,"Ok",20,null,null,null,null,null,null,null,null,null,null,"Etiqueteuse conpart"]
[null,"Boucheuse / Museleuse","Entretien machine"," Vérifier la tension des chaînes d'entraînement,  elles doivent-être bien tendues.                                                                - Vérifier le niveau d'huile dans le réservoir de la pompe, puis pomper quelques coups afin de lubrifier les axes de guidage, chaînes, couronnes.    \n- Remplir les huileurs afin de chasser l'huile précedente    \n- Graisser tout les point de graissage sur le haut de la machine (1  derrière piston boucheuse et 3 à droite du muselage)                           Graisse LUZOL AL","2014-02-13",7,"2014-02-20",0,null,null,null,"Ok",10,null,null,null,null,null,null,null,null,null,null,"Imprimante Linx"]
[null,"Boucheuse / Museleuse","Changement graisse","- Remplacer la graisse du vérin mécanique de réglage en hauteur du groupe, par l'intermédiaire de son graisseur.","2013-06-05",365,"2014-06-05",105,"Illustration",null,null,"Ok",7,null,null,null,null,null,null,null,null,null,null,"Etiqueteuse adhésive"]
[null,"Dépaletiseur","Lubrification","Cf documentation Table 6-A pos. 3","2014-02-13",30,"2014-03-15",23,null,null,null,"Ok",7,null,null,null,null,null,null,null,null,null,null,"Table d'accumulation"]
[null,"Dépaletiseur","Contrôle d'extension","Tension de chaine","2013-06-06",365,"2014-06-06",106,"Illustration",null,null,"Ok",2,null,null,null,null,null,null,null,null,null,null,"TRIO"]
[null,"Dépaletiseur","Graissage","Graissage des engrenages en AIRA / Graisse LUZOL AL","2013-12-02",90,"2014-03-02",10,"Illustration",null,null,"Ok",2,null,null,null,null,null,null,null,null,null,null,"Scotcheuse à cartons"]
[null,"Dépaletiseur","Purge condensation du circuit pneumatique","Cf documentation table 6-B pos.8","2014-02-13",30,"2014-03-15",23,null,null,null,"Ok",1,null,null,null,null,null,null,null,null,null,null,"Tiflex"]
[null,"Dépaletiseur","Graissage des supports","Cf documentation table 6-B pos.4-5-6-7 / Graisse LUZOL AL","2013-12-02",90,"2014-03-02",10,"Illustration",null,null,"Ok",7,null,null,null,null,null,null,null,null,null,null,"Filmeuse"]
[null,"Dépaletiseur","Nettoyage","Nettoyage et niveau sonore du moteur asynchrone","2013-12-02",180,"2014-05-31",100,"Illustration",null,null,"Ok",3,null,null,null,null,null,null,null,null,null,null,"Echangeur extérieur"]
[null,"Dépaletiseur","Nettoyage"," Nettoyage et niveau sonore du moteur frein","2013-12-02",180,"2014-05-31",100,"Illustration",null,null,"Ok",3,null,null,null,null,null,null,null,null,null,null,"Convoyeurs"]
[null,"Dépaletiseur","Contrôle","Contrôle  d'espace d'arrêt","2013-12-02",180,"2014-05-31",100,"Illustration",null,null,"Ok",2,null,null,null,null,null,null,null,null,null,null,"MEAD"]
[null,"Dépaletiseur","Nettoyage et contrôle","Nettoyage et contrôle  des cellules photoélectriques et cataphotes","2014-02-13",30,"2014-03-15",23,null,null,null,"Ok",1,null,null,null,null,null,null,null,null,null,null,"Chariot  Clark"]
[null,"Dépaletiseur","Graissage","Graissage tapis / Graisse LUZOL AL","2014-02-13",30,"2014-03-15",23,null,null,null,"Ok",2,null,null,null,null,null,null,null,null,null,null,"Tire-palette elec"]
[null,"Rinceuse","Graissage","2 points de graissage sur l'axe central\n1  point graissage sur vis d'entrée                                                                                Graisse LUZOL AL","2014-02-13",30,"2014-03-15",23,null,null,null,"Ok",4,null,null,null,null,null,null,null,null,null,null,"Karcher"]
[null,"TRIO","Nettoyage","- Enlever la poussière des cellules photoélectriques et des cataphotes avec un chiffon doux et sec en prenant soin de ne pas modifier leur orientation.","2014-02-13",30,"2014-03-15",23,null,null,null,"Ok",3,null,null,null,null,null,null,null,null,null,null,"Chariot mitsubishi"]
[null,"TRIO","Contrôle huile"," Contrôler le niveau d'huile dans le filtre graisseur du système pneumatique.","2014-02-13",7,"2014-02-20",0,null,null,null,"Ok",1,null,null,null,null,null,null,null,null,null,null,"Compresseur "]
[null,"TRIO","Lubrification","Lubrification des points ( 2 par lettre) A B C D  F ,Graisse LUZOL AL  + 4 points de graissage guide repère F","2013-11-25",130,"2014-04-04",43,"Illustration",null,null,"Ok",20,null,null,null,null,null,null,null,null,null,null,"Structure"]
[null,"TRIO","Contrôler condensant","Contrôler la présence de condensant dans le filtre régulateur R1 et s'il le faut le démonter","2014-02-13",7,"2014-02-20",0,null,null,null,"Ok",2,null,null,null,null,null,null,null,null,null,null,"Insectocuteurs"]
[null,"Tiflex","Contrôle","Contrôler le filtre à air changer si nécessaire :\n- Déclipsez la grille d'aération située sur le côté de l'unité centrale\n- Enlevez la grille et le filtre usagé\n- Remplacez ce dernier par un filtre neuf\n- Replacez la grille en la clipsant  \n- Nettoyage tête d'impression","2014-01-13",30,"2014-02-12",-8,null,null,null,"Ok",5,null,null,null,null,null,null,null,null,null,null,"Insectocuteur E1"]
[null,"Convoyeurs","Graissage","36 points de graissage / Graisse LUZOL AL","2014-02-13",30,"2014-03-15",23,null,null,null,"Ok",20,null,null,null,null,null,null,null,null,null,null,"Insectocuteur E2"]
[null,"Linx","Nettoyage","- Têtes d'impression\n- filtre à air\n- armoire de l'imprimante","2014-02-03",15,"2014-02-18",-2,null,null,null,"Ok",15,null,null,null,null,null,null,null,null,null,null,"Insectocuteur C1"]
[null,"Linx","Contrôle","-Vidange machine\n- Changement filtre à air si nécessaire ( non netoyable)","2014-01-13",90,"2014-04-13",52,null,"A remettre a 365 voir notice ou SAV",null,"Ok",null,null,null,null,null,null,null,null,null,null,null,"Insectocuteur P1"]
[null,"Etiqueteuse","Graissage","Changement de l'huile du bain du corps central poste d'étiquetage","2013-06-05",365,"2014-06-05",105,"Illustration"," ",null,"Ok"]
[null,"Etiqueteuse","Graissage","- Graisser avec graisseur les engrenages VIS (graisse graphitée) Graisse Minerva Type G2","2014-02-03",30,"2014-03-05",13,null,null,null,"Ok",2]
[null,"Etiqueteuse","Lubrification","- Lubrifier les têtes par les trous. (en début de prod en utlisant de l'huile pour guide de coulissement) ","2014-02-03",15,"2014-02-18",-2,null,null,null,"Ok",4]
[null,"Etiqueteuse","Graissage","- Graisser les supports rouleaux à colle en utilisant de la graisse minérale pour roulement D47 / Graisse KF KP 2 K-30","2014-01-13",40,"2014-02-22",2,null,null,null,"Ok",2]
[null,"Etiqueteuse","Graissage","Graisser par graisseur les supports plat carrousel avec de la graisse minéral pour coussinets / Graisse KF KP 2 K-30","2014-01-13",40,"2014-02-22",2,null,null,null,"Ok",8]
[null,"Etiqueteuse","Graissage","Graisser avec graisseur les supports plats carrousel étiqueteuse avec de la graisse minérale pour roulement / Graisse KF KP 2 K-30","2014-01-13",40,"2014-02-22",2,null,null,null,"Ok",2]
[null,"Etiqueteuse","Graissage","Graisser par graisseur avec graisse minéral le support carrousel tetes étiquteuse / Graisse KF KP 2 K-30","2014-01-13",40,"2014-02-22",2,null,null,null,"Ok",2]
[null,"Etiqueteuse","Graissage","Graisser le supports rouleau pinces et rouleau collage avec de la graisse minérale pour roulement / Graisse KF KP 2 K-30","2014-01-13",40,"2014-02-22",2,null,null,null,"Ok",2]
[null,"Etiqueteuse","Graissage","- Graisser l'étoile plie bande en \"U\" avec de la graisse minerale / Graisse KF KP 2 K-30","2014-01-13",40,"2014-02-22",2,null,null,null,"Ok",2]
[null,"Etiqueteuse","Graissage","- Graisser le disque came soulevement têtes avec de la graisse graphitee Indicateurs - Graisse Minerva Type G2","2014-02-03",15,"2014-02-18",-2,null,null,null,"Ok",3]
[null,"Etiqueteuse","Graissage","- Graisser le plat de rotation croix de malte pour carroussel avec de la graisse graphitee - Graisse Minerva Type G2","2014-02-03",15,"2014-02-18",-2,null,null,null,"Ok",3]
[null,"Etiqueteuse","Graissage","Lubrifier le support pour étoile d'entrée et étoile de sortie / Graisse LUZOL AL","2014-02-03",40,"2014-03-15",23,null,null,null,"Ok",10]
[null,"Etiqueteuse","Graissage","Lubrifier avec un pinceau les engrenages situés à l'intérieur du chassis / / Graisse KF KP 2 K-30","2014-02-03",15,"2014-02-18",-2,null,null,null,"Ok",3]
[null,"Etiqueteuse","Graissage","Graisser par graisseurs avec graisse minérale pour roulement l'engrenage central (dans le cassis) / Graisse KF KP 2 K-30","2014-02-03",15,"2014-02-18",-2,null,null,null,"Ok",3]
[null,"Etiqueteuse","Contrôle","- Contrôler le niveau d'huile. Dévisser le bouchon situé sur la plaque supérieur de la came, et verser l'huile à l'intérieur","2013-06-06",365,"2014-06-06",106,"Illustration",null,null,"Ok",12]
[null,"Etiqueteuse","Graissage","Graisser par graisseur la butée de l'arbre central (dans le chassis) avec de la graisse minérale pour roulements / Graisse KF KP 2 K-30","2014-01-13",40,"2014-02-22",2,null,null,null,"Ok",3]
[null,"Etiqueteuse","Graissage","Graisser avec un pinceaula vis de réglage des inclinaisons avec de la graisse graphitée - Graisse Minerva Type G2","2014-02-03",15,"2014-02-18",-2,null,null,null,"Ok",2]
[null,"Etiqueteuse","Contrôle","Came de rotation plats : Contrôler le niveau d'huile du poste d'étiquettage grace a l'indicateur de niveau. Controler les deux cuves soit celle supérieure pour la rotation des couteaux que celle inférieure. ","2013-06-05",365,"2014-06-05",105,"Illustration",null,null,"Ok",10]
[null,"Etiqueteuse","Contrôle","Support arbres couteaux controler le temoin de niveau d'huile coté du tambour l'huile doit être remplacer tout les 6 mois","2013-12-13",{"$f":"183","v":183},"2014-06-14",114,"Illustration",null,null,"Ok",2]
[null,"Alimentation Bouchon","Contrôle","- Vérification des sécurités\n- Etat générale de la machine.","2013-06-05",365,"2014-06-05",105,"Illustration",null,null,"Ok",3]
[null,"Alimentation Bouchon","Contrôle","- Contrôler la jauge d'huile dans la coupe du régulateur de pression.","2014-02-14",60,"2014-04-15",54,null,null,null,"Ok",10]
[null,"Alimentation Bouchon","Lubrification ","Lubrification des points 261 - 281 - 262","2014-01-22",45,"2014-03-08",16,null," ",null,"Ok",5]
[null,"Pompe DEPA","Contrôle","Contrôle visuel","2014-02-14",7,"2014-02-21",1,null," ",null,"Ok",2]
[null,"Pompe DEPA","Contrôle ","Contrôle des pièces d'usure et remplacement si besoin.","2014-01-22",45,"2014-03-08",16,null," ",null,"Ok",15]
[null,"Pompe DEPA","Contrôle "," Collecteur / chambre de pompe type DH-PT/-TL ","2014-01-22",45,"2014-03-08",16,null," ",null,"Ok",15]
[null,"Pompe DEPA","Contrôle ","Contrôle Tirant, Collier de serrage type DL-PT/-TL ","2014-01-22",45,"2014-03-08",16,null," ",null,"Ok",15]
[null,"Pompe DEPA","Contrôle ","Contrôle des Tirant et collier de serrage type PM avec sièges PTFE","2014-01-22",45,"2014-03-08",16,null," ",null,"Ok",15]
[null,"Etiqueteuse adhésive","Contrôle ","Contrôle visuel afin de relever d'éventuel endommagements , usures, altérations ou relachement de vis.","2014-02-13",30,"2014-03-15",23,null," ",null,"Ok",5]
[null,"Etiqueteuse adhésive","Contrôle ","Contrôle du réseau pneumatique vérifier qu'il n'y ai pas de fuites. ( tubes, raccords, cylindres et valves)","2014-02-13",7,{"$f":"E71+F71","v":"2014-02-20"},0,null," ",null,"Ok",5]
[null,"Etiqueteuse adhésive","Nettoyage","Nettoyage du rouleau du blocage bouteille","2013-12-02",180,{"$f":"E72+F72","v":"2014-05-31"},100,"Illustration"," ",null,"Ok",2]
[null,"Etiqueteuse adhésive","Contrôle ","Verifier le niveau d'huile dans le lubrificateur du  régleur de pression","2014-02-06",120,"2014-06-06",{"$f":"G73-$B$1","v":106},null," ",null,"Ok",1]
[null,"Etiqueteuse adhésive","Vidange","Effectuer la vidange de la condensation du filtre d'air pneumatique","2014-01-22",30,"2014-02-21",1,null," ",null,"Ok",1]
[null,"MEAD","Nettoyage","Nettoyer les tôles de protection inférieures","2014-02-14",45,"2014-03-31",39,null," ",null,"Ok",20]
[null,"MEAD","Nettoyage","Nettoyer l'afficheur avec une éponge humide et savonneuse, un liquide vaisselle, une lessive liquide, des produits à vitres du commerce","2014-02-06",20,"2014-02-26",6,null," ",null,"Ok",3]
[null,"MEAD","Graissage","Lubrification coté non opérateur / Graisse LUZOL AL","2014-01-22",45,"2014-03-08",16,null," ",null,"Ok",15]
[null,"MEAD","Graissage","Lubrification coté opérateur / Graisse LUZOL AL","2014-01-22",45,"2014-03-08",16,null," ",null,"Ok",15]
[null,"MEAD","Contrôle","Contrôler l'état du moteur (visuel)","2014-02-06",15,"2014-02-21",1,null," ",null,"Ok",1]
[null,"MEAD","Contrôle","Contrôler les connections électrique du moteur (visuel et manuel)","2013-06-05",365,"2014-06-05",105,"Illustration"," ",null,"Ok",1]
[null,"MEAD","Contrôle","Contrôler les roulements (manuel absence de bruit)","2013-06-05",365,"2014-06-05",105,"Illustration"," ",null,"Ok",5]
[null,"MEAD","Contrôle","Contrôler l'éfficacité des dispositifs de sécurité (portes, arrêts d'urgence) ","2014-02-13",7,"2014-02-20",0,null," ",null,"Ok",4]
[null,"MEAD","Contrôle","Contrôler l'efficacité du système de graissage (visuel et manuel)","2013-06-05",365,"2014-06-05",105,"Illustration"," ",null,"Ok",8]
[null,"MEAD","Contrôle","Contrôler le système venturi (si nécessaire, le changer)","2013-06-05",365,"2014-06-05",105,"Illustration"," ",null,"Ok",3]
[null,"MEAD","Contrôle","Contrôler l'état général du convoyeur entrée (manuel et visuel)","2013-06-05",365,"2014-06-05",105,"Illustration"," ",null,"Ok",1]
[null,"MEAD","Contrôle","Contrôler l'état des étoiles (pas endommagées ou cassées)","2013-06-05",365,"2014-06-05",105,"Illustration"," ",null,"Ok",1]
[null,"MEAD","Contrôle","Contrôler l'état général du magasin (pas endommagées ou cassées) ","2014-02-03",60,"2014-04-04",43,null," ",null,"Ok",1]
[null,"MEAD","Contrôle","Contrôler létat général du dépileur","2014-02-03",60,"2014-04-04",43,null," ",null,"Ok",1]
[null,"MEAD","Contrôle","Contrôler le régalge du dépileur et des chaînes carton","2014-02-03",60,"2014-04-04",43,null," ",null,"Ok",5]
[null,"MEAD","Contrôle","Contrôler létat général des ventouses du dépileur ","2014-02-03",60,"2014-04-04",43,null," ",null,"Ok",2]
[null,"MEAD","Remplacement","Remplacement des ventouses du dépileur","2013-06-05",365,"2014-06-05",105,"Illustration"," ",null,"Ok"]
[null,"MEAD","Contrôle","Contrôler létat général des taqets des courroies des chaines carton ","2013-06-05",365,"2014-06-05",105,"Illustration"," ",null,"Ok",20]
[null,"MEAD","Contrôle","Contrôler les roulements du dépileur en contact avec la came","2013-06-05",365,"2014-06-05",105,"Illustration"," ",null,"Ok",15]
[null,"MEAD","Contrôle","Contrôler la tension correcte des courroies des chaines cartons","2013-06-05",365,"2014-06-05",105,"Illustration"," ",null,"Ok",10]
[null,"MEAD","Contrôle","Contrôler l'état des galets de la came dépileur, remplacer si nécessaire","2013-06-05",365,"2014-06-05",105,"Illustration"," ",null,"Ok",10]
[null,"MEAD","Huilage","Déposer un voile d'huile sur les guides mécaniques ","2013-06-05",365,"2014-06-05",105,"Illustration"," ",null,"Ok",10]
[null,"MEAD","Contrôle","Contrôler létat général des paliers, roulements, guidages etc…","2013-06-05",365,"2014-06-05",105,"Illustration"," ",null,"Ok",15]
[null,"MEAD","Contrôle","Contrôler létat général des tables de repli","2013-06-05",365,"2014-06-05",105,"Illustration"," ",null,"Ok",15]
[null,"MEAD","Contrôle","Contrôler létat général des chaines à barres","2013-06-05",365,"2014-06-05",105,"Illustration"," ",null,"Ok"]
[null,"MEAD","Contrôle","Contrôler létat général du poste de fermeture et des doigts des roues de fermeture","2013-06-05",365,"2014-06-05",105,"Illustration"," ",null,"Ok"]
[null,"MEAD","Contrôle","Contrôler létat général des rouleaux de sortie","2013-06-05",365,"2014-06-05",105,"Illustration"," ",null,"Ok"]
[null,"MEAD","Contrôle","Contrôler létat des galets en contact avec les cames","2013-06-05",365,"2014-06-05",105,"Illustration"," ",null,"Ok"]
[null,"MEAD","Contrôle","Contrôler la tension correcte des chaînes ","2013-06-05",365,"2014-06-05",105,"Illustration"," ",null,"Ok"]
[null,"MEAD","Contrôle","Contrôler les blocs de fermetures et les galets du poste fermeture, changer si nécessaire","2013-06-05",365,"2014-06-05",105,"Illustration"," ",null,"Ok"]
[null,"Pasteurisateur","Contrôle"," Filtre gaz : Démonter les 6 vis du couvercle et nettoyer le tamis circulaire en feutrine à l'air comprimé","2013-09-02",365,"2014-09-02",194,"Illustration"," ",null,"Ok"]
[null,"Pasteurisateur","Contrôle","Grille accroche flamme : Démonter la tête du bruleur, devisser les press-étoupes, sortir la grille, débrancher les connecteurs, vérifier l'écartement des électrodes ( Cf notice d'instruction p14) et la propreté de la grille. Si nécessaire la nettoyer à l'eau caude + dégraissant puis la souffler","2014-02-03",183,"2014-08-05",166,null," ",null,"Ok",40]
[null,"Pasteurisateur","Contrôle  et nettoyage","Nettoyage du Pasteurisateur                                                              \n           Serpentin : Contrôle visuel de sa surface et du fond de la cuve. Si nécessaire, le nettoyer. Si dépôts en fond de cuve le nettoyer? Il doit toujours y avoir une circulation de liquide entre sa surface et le liquide à chauffer                                                                                                                                           -  Filtre à verre : Les démonter afin d'éliminer le verre","2014-02-03",90,"2014-05-04",73,null,"heure 2000",null,"Ok",360]
[null,"Pasteurisateur","Contrôle","Filtres à airs (x2) : Démonter la cloche (noire) de protection et nettoyer le filtre : a) carton à l'air comprimé b) à mailles métalliques à l'eau chaude + dégraissant","2014-02-03",14,"2014-02-17",-3,null,null,null,"Ok",7]
[null,"Insectocuteur emb ","Changement lampe","Changement lampe","2013-11-27",365,"2014-11-27",280,"Illustration",null,null,"Ok"]
[null,"Tapis sortie TRIO","Graissage","4 points de graissage / Graisse LUZOL AL","2014-02-03",30,"2014-03-05",13,null,null,null,"OK",3]
["Traitement des jus"]
[null,"Bucher","Graissage","Cf schéma : point 1 :  2 graisseurs Graisse pour coussinet a friction Graisse LUZOL AL","2014-01-13",250,"2014-09-20",{"$f":"G112-$B$1","v":212},null,"a remettre  a 7",null,"Ok",3]
[null,"Bucher","vidange","Cf schéma : point 2 : carter de la vis d'évacuation de marc 0.5 kg ARAL Q75 ou chevron GR grease 00","2013-06-19",365,"2014-06-19",119,"Illustration",null,null,"Ok",3]
[null,"Bucher","Graissage","Cf schéma : point 3 :Graisseur stauffer graisse pour roulement à billes Graisse LUZOL AL","2013-12-13",250,"2014-08-20",181,"Illustration","id",null,"Ok",3]
[null,"Bucher","Graissage","Cf schéma : point 4 :2 graisseurs Chevron FM grease II","2013-12-13",250,"2014-08-20",181,"Illustration","id",null,"Ok",3]
[null,"Bucher","Graissage","Cf schéma : point 6 :  Pulveriser couronne Klüber-Spray","2013-12-13",250,"2014-08-20",181,"Illustration","id",null,"Ok",10]
[null,"Bucher","vidange","Cf schéma : point 7 : Carter de la rotation 41. d'huile Esso Spartan EP 320","2013-10-02",200,"2014-04-20",59,"Illustration",null,null,"Ok",10]
[null,"Bucher","Graissage","Cf schéma : point 8 : 2 graisseurs Graisse pour coussinet a friction / Graisse LUZOL AL","2013-12-13",250,"2014-08-20",181,"Illustration","id",null,"Ok",3]
[null,"Bucher","Graissage","Cf schéma : point 9 : Chaine pour coussiners à friction Graisse LUZOL AL","2013-12-13",250,"2014-08-20",181,"Illustration","id",null,"Ok",3]
[null,"Bucher","Graissage","Hydraulique 500 l d'huile hydraulique 4-5° E- Nuto H 68 ESSO","2014-01-22",183,"2014-07-24",154,null,null,null,"Ok"]
[null,"Bucher","Huilage","Interrupteur de fin de course : 2-3 gouttes","2013-12-13",250,"2014-08-20",181,"Illustration","id 15",null,"Ok",1]
[null,"Bucher","Nettoyage","Nettoyer le filre à huile dans du pétrole et souffler à l'air comprimé","2013-12-13",250,"2014-08-20",181,"Illustration","id 15",null,"Ok",10]
[null,"Presse AMOS","Graissage","Graisseurs / Graisse LUZOL AL","2013-12-13",250,"2014-08-20",181,"Illustration","id",null,"Ok",15]
[null,"Presse AMOS","Vérification","Vérification du circuit pneumatique et différents éléments pneumatiques ( fuites)","2014-02-13",30,"2014-03-15",23,null,null,null,"Ok",20]
[null,"Laveuse","Graissage","Graisseurs / Graisse LUZOL AL","2013-12-13",250,"2014-08-20",181,"Illustration","id",null,"Ok",15]
[null,"Macérateur","contrôle","vérifier la rapeuse ( couteaux et grilles )avant et après la saison","2014-01-22",105,"2014-05-07",76,null,null,null,"Ok",8]
[null,"Insectocuteur TTJ","Changement lampe","Changement lampe","2013-11-27",365,"2014-11-27",280,"Illustration",null,null,"Ok"]
[null,"Filtre PALL","Contrôle","vérification cablage alimentation et état général","2014-02-13",30,"2014-03-15",23,null,null,null,"Ok",10]
[null,"Filtre PALL","Filtre","Changement fitre Ultipor GF Plus AB3GFHZ7WJ","2013-09-23",365,"2014-09-23",215,"Illustration",null,null,"Ok",10]
[null,"Filtre PALL","Crépine","Nettoyage crépine","2014-02-13",30,{"$f":"E130+F130","v":"2014-03-15"},{"$f":"G130-$B$1","v":23},null,null,null,"Ok",10]
[null,"Centrifugeuse","Contrôle","Contrôle visuel et niveau d'huile","2014-02-13",30,"2014-03-15",23,null,null,null,"Ok",10]
[null,"Echangeur refroidissement jus","Contrôle","Contrôle de l'intégrité de l'échangeur afin d'éviter toute fuite d'eau glycolée","2013-06-25",365,"2014-06-25",125,"Illustration",null,null,"Ok"]
[null,"Filtre padovan","Graissage et Contrôle"," point de graissage Graisse LUZOL AL                                                                             et contrôle de l'état général","2014-02-14",30,{"$f":"E133+F133","v":"2014-03-16"},24,null,null,null,"Ok",5]
[null,"Flash pasteurisateur","Contrôle","Contrôle des dispositifs de sécurité","2013-08-27",365,"2014-08-27",188,"Illustration",null,null,"Ok",3]
[null,"Presse AMOS","Contrôle","Contrôle des dispositifs de sécurité","2013-08-27",365,"2014-08-27",188,"Illustration",null,null,"Ok",3]
[null,"Bucher","Contrôle","Contrôle des dispositifs de sécurité","2013-08-27",365,"2014-08-27",188,"Illustration",null,null,"Ok",3]
[null,"Laveuse","Contrôle","Contrôle des dispositifs de sécurité","2013-08-27",365,"2014-08-27",188,"Illustration",null,null,"Ok",3]
[null,"Macérateur","Contrôle","Contrôle des dispositifs de sécurité","2013-08-27",365,"2014-08-27",188,"Illustration",null,null,"Ok",3]
[null,"Entrée pilerie","Contrôle","Contrôle des dispositifs de sécurité","2013-08-27",365,"2014-08-27",188,"Illustration",null,null,"Ok",3]
[null,"Parc à pommes","Contrôle","Contrôle des dispositifs de sécurité","2013-08-27",365,"2014-08-27",188,"Illustration",null,null,"Ok",3]
[null,"Automate SIEMENS","Contrôle","Contrôle des dispositifs de sécurité","2013-08-27",365,"2014-08-27",188,"Illustration",null,null,"Ok",3]
[null,"Macérateur","Contrôle","Contrôle des dispositifs de sécurité (Verifier que quand la porte de la rappe est ouverte -> arret)","2013-08-27",365,"2014-08-27",188,"Illustration",null,null,"Ok",3]
["Général"]
[null,"Compresseur","Séparateur huile - eau","- Verifier la clarté de l'eau avec le dispositif en photo jointe , si plus trouble que la partie basse, changer le filtre  'Enregistrements interventions","2014-02-13",7,{"$f":"E144+F144","v":"2014-02-20"},0,null,null,null,"Ok",2]
[null,"Compresseur","Entretien général","Lot C : Cartouche de filtre à huile cartouche de filtre à air","2014-02-06",180,{"$f":"E145+F145","v":"2014-08-05"},166,null,null,null,"Ok"]
[null,"Compresseur","Entretien général","Lot D : Séparateur d'huile fin","2013-06-24",360,"2014-06-19",119,"Illustration",null,null,"Ok"]
[null,"Compresseur","Entretien général","Lot E : Pièce d'usure","2013-06-24",720,"2015-06-14",479,"Illustration",null,null,"Ok"]
[null,"Compresseur","Entretien général","Lot V : Jeu de courroies crantées (recommandation)","2013-06-24",1080,"2016-06-08",839,"Illustration",null,null,"Ok"]
[null,"Compresseur","Remplacement","Remplacement de la cartouche du filtre à air (Ref: kit CK2076-1)","2014-02-06",180,"2014-08-05",166,null,null,null,"Ok"]
[null,"Compresseur","Remplacement","Remplacement de la cartouche filtre à huile (Ref: kit CK2076-1)","2014-02-06",180,"2014-08-05",166,null,null,null,"Ok"]
[null,"Compresseur","Nettoyer / Remplacer","Nettoyer / Remplacer le feutre de filtre d'entrée d'air de refroidissement","2014-02-06",180,"2014-08-05",166,null,null,null,"Ok"]
[null,"Compresseur","Vérification","Verifier / Resserer les bornes du coffret électrique.\nVérifier le branchement du transfo d'alimentation","2013-06-24",360,"2014-06-19",119,"Illustration",null,null,"Ok"]
[null,"Compresseur","Vérification","Vérifier et resserrer toutes les fixations vissées","2013-06-24",360,"2014-06-19",119,"Illustration",null,null,"Ok"]
[null,"Compresseur","Vérification","Entretien/nettoyage général","2013-06-24",360,"2014-06-19",119,"Illustration",null,null,"Ok"]
[null,"Compresseur","Vidange","Vidange","2013-06-24",360,"2014-06-19",119,"Illustration",null,null,"Ok"]
[null,"Compresseur","Remplacement","Remplacement du séparateur d'huile fin (ref:A10533574)","2013-06-24",360,"2014-06-19",119,"Illustration",null,null,"Ok"]
[null,"Compresseur","Test fonctionnement","Soupape de sûreté / Test de fonctionnement au moins 1 x par an","2013-06-24",360,"2014-06-19",119,"Illustration",null,null,"Ok"]
[null,"Compresseur","Remplacement","Remplacement des cartouches de lubrification","2013-06-24",360,"2014-06-19",119,"Illustration",null,null,"Ok"]
[null,"Compresseur","Remplacement","Remplacement du jeu de courroies (ne remplacer les courroies que par jeu complet)","2013-06-24",{"$f":"6*180","v":1080},"2016-06-08",839,"Illustration",null,null,"Ok"]
[null,"Compresseur","Sécheur d'air","-Nettoyage général","2014-02-03",15,"2014-02-18",-2,null,null,null,"Ok",7]
[null,"Tire-palette Jung","Entretien","Entretien par OUEST Atlantique","2014-02-03",180,"2014-08-02",163,null,null,null,"Ok"]
[null,"Tire-palette Jung","Niveau d'eau batterie","Vérifer le niveau d'eau de la batterie","2014-02-13",7,"2014-02-20",0,null,null,null,"Ok",2]
[null,"Chariot élevateur Jung","Entretien","Entretien par OUEST Atlantique","2013-09-04",180,"2014-03-03",11,"Illustration",null,null,"Ok"]
[null,"Tire-palette à bras","Contrôle","Contrôler l'état général","2014-02-13",30,"2014-03-15",23,null,null,null,"Ok",2]
[null,"Karcher",null,"Verification des joints pistolet","2013-10-14",90,"2014-01-12",-39,"Illustration",null,null,"Ok",10]
[null,"Chariot élevateur Still","Entretien","Entretien par OUEST Atlantique","2013-09-01",1000,"2016-05-28",828,"Illustration",null,null,"Ok"]
[null,"Conformité électrique","Site ","SOCOTEC - Conformité électrique","2013-09-23",365,"2014-09-23",215,"Illustration",null,null,"Ok"]
[null,"Insectocuteurs","Changement lampe","Changement lampe","2013-11-26",365,"2014-11-26",279,"Illustration",null,null,"Ok"]
[null,"Insectocuteurs","Nettoyage","Nettoyage des insectocuteurs + prise de photos","2013-12-21",182,"2014-06-21",121,"Illustration",null,null,"Ok"]
[null,"Echangeurs","Ligne et TTJ","Contrôle des alarmes pression glycol de l'échangeur de la ligne et de l'échangeur tubulaire pilerie.\nTester l'alarme en ouvrant la vanne de vidange du glycol.","2013-06-01",180,"2013-11-28",-84,"Illustration",null,null,"Ok"]

{"sheet":"Enregistrements interventions","index":4,"n_rows":2556,"n_cols":44,"rows_kept":2556,"cut":false,"hidden":false,"merged":[[810,8,810,13],[810,14,810,19],[703,8,704,13],[703,14,704,19],[719,8,719,13],[719,14,719,19],[729,8,729,13],[729,14,729,19],[730,8,730,13],[730,14,730,19],[753,8,753,13],[753,14,753,19],[762,8,762,13],[762,14,762,19],[763,8,763,13],[763,14,763,19],[774,8,774,13],[774,14,774,19],[801,8,801,13],[801,14,801,19],[802,8,802,13],[802,14,802,19],[803,8,803,13],[803,14,803,19],[804,8,804,13],[804,14,804,19],[805,8,805,13],[805,14,805,19],[806,8,806,13],[806,14,806,19],[807,8,807,13],[807,14,807,19],[2509,20,2509,25],[2510,20,2510,25],[2525,20,2525,25],[2511,20,2511,25],[2512,20,2512,25],[2513,20,2513,25],[2514,20,2514,25],[2515,20,2515,25],[2516,20,2516,25],[2517,20,2517,25],[2518,20,2518,25],[2519,20,2519,25],[2520,20,2520,25],[2521,20,2521,25],[2522,20,2522,25],[2545,20,2545,25],[2523,20,2523,25],[2524,20,2524,25],[2546,20,2546,25],[2547,20,2547,25],[2548,20,2548,25],[2549,20,2549,25],[2550,20,2550,25],[2551,20,2551,25],[2552,20,2552,25],[2553,20,2553,25],[2554,20,2554,25],[2555,20,2555,25],[2526,20,2526,25],[2527,20,2527,25],[2528,20,2528,25],[2529,20,2529,25],[2530,20,2530,25],[2531,20,2531,25],[2532,20,2532,25],[2533,20,2533,25],[2534,20,2534,25],[2535,20,2535,25],[2536,20,2536,25],[2537,20,2537,25],[2538,20,2538,25],[2539,20,2539,25],[2540,20,2540,25],[2541,20,2541,25],[2542,20,2542,25],[2544,20,2544,25],[2543,20,2543,25],[2492,20,2492,25],[2493,20,2493,25],[2495,20,2495,25],[2496,20,2496,25],[2497,20,2497,25],[2498,20,2498,25],[2499,20,2499,25],[2500,20,2500,25],[2501,20,2501,25],[2502,20,2502,25],[2503,20,2503,25],[2504,20,2504,25],[2505,20,2505,25],[2506,20,2506,25],[2507,20,2507,25],[2508,20,2508,25],[2494,20,2494,25],[2475,20,2475,25],[2476,20,2476,25],[2491,20,2491,25],[2477,20,2477,25],[2478,20,2478,25],[2479,20,2479,25],[2480,20,2480,25],[2481,20,2481,25],[2482,20,2482,25],[2483,20,2483,25],[2484,20,2484,25],[2485,20,2485,25],[2486,20,2486,25],[2487,20,2487,25],[2488,20,2488,25],[2489,20,2489,25],[2490,20,2490,25],[2458,20,2458,25],[2459,20,2459,25],[2461,20,2461,25],[2462,20,2462,25],[2463,20,2463,25],[2464,20,2464,25],[2465,20,2465,25],[2466,20,2466,25],[2467,20,2467,25],[2468,20,2468,25],[2469,20,2469,25],[2470,20,2470,25],[2471,20,2471,25],[2472,20,2472,25],[2473,20,2473,25],[2474,20,2474,25],[2460,20,2460,25],[2441,20,2441,25],[2442,20,2442,25],[2457,20,2457,25],[2443,20,2443,25],[2444,20,2444,25],[2445,20,2445,25],[2446,20,2446,25],[2447,20,2447,25],[2448,20,2448,25],[2449,20,2449,25],[2450,20,2450,25],[2451,20,2451,25],[2452,20,2452,25],[2453,20,2453,25],[2454,20,2454,25],[2455,20,2455,25],[2456,20,2456,25],[2424,20,2424,25],[2425,20,2425,25],[2427,20,2427,25],[2428,20,2428,25],[2429,20,2429,25],[2430,20,2430,25],[2431,20,2431,25],[2432,20,2432,25],[2433,20,2433,25],[2434,20,2434,25],[2435,20,2435,25],[2436,20,2436,25],[2437,20,2437,25],[2438,20,2438,25],[2439,20,2439,25],[2440,20,2440,25],[2426,20,2426,25],[2407,20,2407,25],[2408,20,2408,25],[2423,20,2423,25],[2409,20,2409,25],[2410,20,2410,25],[2411,20,2411,25],[2412,20,2412,25],[2413,20,2413,25],[2414,20,2414,25],[2415,20,2415,25],[2416,20,2416,25],[2417,20,2417,25],[2418,20,2418,25],[2419,20,2419,25],[2420,20,2420,25],[2421,20,2421,25],[2422,20,2422,25],[2390,20,2390,25],[2391,20,2391,25],[2393,20,2393,25],[2394,20,2394,25],[2395,20,2395,25],[2396,20,2396,25],[2397,20,2397,25],[2398,20,2398,25],[2399,20,2399,25],[2400,20,2400,25],[2401,20,2401,25],[2402,20,2402,25],[2403,20,2403,25],[2404,20,2404,25],[2405,20,2405,25],[2406,20,2406,25],[2392,20,2392,25],[2373,20,2373,25],[2374,20,2374,25],[2389,20,2389,25],[2375,20,2375,25],[2376,20,2376,25],[2377,20,2377,25],[2378,20,2378,25],[2379,20,2379,25],[2380,20,2380,25],[2381,20,2381,25],[2382,20,2382,25],[2383,20,2383,25],[2384,20,2384,25],[2385,20,2385,25],[2386,20,2386,25],[2387,20,2387,25],[2388,20,2388,25],[2356,20,2356,25],[2357,20,2357,25],[2359,20,2359,25],[2360,20,2360,25],[2361,20,2361,25],[2362,20,2362,25],[2363,20,2363,25],[2364,20,2364,25],[2365,20,2365,25],[2366,20,2366,25],[2367,20,2367,25],[2368,20,2368,25],[2369,20,2369,25],[2370,20,2370,25],[2371,20,2371,25],[2372,20,2372,25],[2358,20,2358,25],[2339,20,2339,25],[2340,20,2340,25],[2355,20,2355,25],[2341,20,2341,25],[2342,20,2342,25],[2343,20,2343,25],[2344,20,2344,25],[2345,20,2345,25],[2346,20,2346,25],[2347,20,2347,25],[2348,20,2348,25],[2349,20,2349,25],[2350,20,2350,25],[2351,20,2351,25],[2352,20,2352,25],[2353,20,2353,25],[2354,20,2354,25],[2322,20,2322,25],[2323,20,2323,25],[2325,20,2325,25],[2326,20,2326,25],[2327,20,2327,25],[2328,20,2328,25],[2329,20,2329,25],[2330,20,2330,25],[2331,20,2331,25],[2332,20,2332,25],[2333,20,2333,25],[2334,20,2334,25],[2335,20,2335,25],[2336,20,2336,25],[2337,20,2337,25],[2338,20,2338,25],[2324,20,2324,25],[2305,20,2305,25],[2306,20,2306,25],[2321,20,2321,25],[2307,20,2307,25],[2308,20,2308,25],[2309,20,2309,25],[2310,20,2310,25],[2311,20,2311,25],[2312,20,2312,25],[2313,20,2313,25],[2314,20,2314,25],[2315,20,2315,25],[2316,20,2316,25],[2317,20,2317,25],[2318,20,2318,25],[2319,20,2319,25],[2320,20,2320,25],[2288,20,2288,25],[2289,20,2289,25],[2291,20,2291,25],[2292,20,2292,25],[2293,20,2293,25],[2294,20,2294,25],[2295,20,2295,25],[2296,20,2296,25],[2297,20,2297,25],[2298,20,2298,25],[2299,20,2299,25],[2300,20,2300,25],[2301,20,2301,25],[2302,20,2302,25],[2303,20,2303,25],[2304,20,2304,25],[2290,20,2290,25],[2271,20,2271,25],[2272,20,2272,25],[2287,20,2287,25],[2273,20,2273,25],[2274,20,2274,25],[2275,20,2275,25],[2276,20,2276,25],[2277,20,2277,25],[2278,20,2278,25],[2279,20,2279,25],[2280,20,2280,25],[2281,20,2281,25],[2282,20,2282,25],[2283,20,2283,25],[2284,20,2284,25],[2285,20,2285,25],[2286,20,2286,25],[2254,20,2254,25],[2255,20,2255,25],[2257,20,2257,25],[2258,20,2258,25],[2259,20,2259,25],[2260,20,2260,25],[2261,20,2261,25],[2262,20,2262,25],[2263,20,2263,25],[2264,20,2264,25],[2265,20,2265,25],[2266,20,2266,25],[2267,20,2267,25],[2268,20,2268,25],[2269,20,2269,25],[2270,20,2270,25],[2256,20,2256,25],[2237,20,2237,25],[2238,20,2238,25],[2253,20,2253,25],[2239,20,2239,25],[2240,20,2240,25],[2241,20,2241,25],[2242,20,2242,25],[2243,20,2243,25],[2244,20,2244,25],[2245,20,2245,25],[2246,20,2246,25],[2247,20,2247,25],[2248,20,2248,25],[2249,20,2249,25],[2250,20,2250,25],[2251,20,2251,25],[2252,20,2252,25],[2220,20,2220,25],[2221,20,2221,25],[2223,20,2223,25],[2224,20,2224,25],[2225,20,2225,25],[2226,20,2226,25],[2227,20,2227,25],[2228,20,2228,25],[2229,20,2229,25],[2230,20,2230,25],[2231,20,2231,25],[2232,20,2232,25],[2233,20,2233,25],[2234,20,2234,25],[2235,20,2235,25],[2236,20,2236,25],[2222,20,2222,25],[2203,20,2203,25],[2204,20,2204,25],[2219,20,2219,25],[2205,20,2205,25],[2206,20,2206,25],[2207,20,2207,25],[2208,20,2208,25],[2209,20,2209,25],[2210,20,2210,25],[2211,20,2211,25],[2212,20,2212,25],[2213,20,2213,25],[2214,20,2214,25],[2215,20,2215,25],[2216,20,2216,25],[2217,20,2217,25],[2218,20,2218,25],[2186,20,2186,25],[2187,20,2187,25],[2189,20,2189,25],[2190,20,2190,25],[2191,20,2191,25],[2192,20,2192,25],[2193,20,2193,25],[2194,20,2194,25],[2195,20,2195,25],[2196,20,2196,25],[2197,20,2197,25],[2198,20,2198,25],[2199,20,2199,25],[2200,20,2200,25],[2201,20,2201,25],[2202,20,2202,25],[2188,20,2188,25],[2169,20,2169,25],[2170,20,2170,25],[2185,20,2185,25],[2171,20,2171,25],[2172,20,2172,25],[2173,20,2173,25],[2174,20,2174,25],[2175,20,2175,25],[2176,20,2176,25],[2177,20,2177,25],[2178,20,2178,25],[2179,20,2179,25],[2180,20,2180,25],[2181,20,2181,25],[2182,20,2182,25],[2183,20,2183,25],[2184,20,2184,25],[2152,20,2152,25],[2153,20,2153,25],[2155,20,2155,25],[2156,20,2156,25],[2157,20,2157,25],[2158,20,2158,25],[2159,20,2159,25],[2160,20,2160,25],[2161,20,2161,25],[2162,20,2162,25],[2163,20,2163,25],[2164,20,2164,25],[2165,20,2165,25],[2166,20,2166,25],[2167,20,2167,25],[2168,20,2168,25],[2154,20,2154,25],[2135,20,2135,25],[2136,20,2136,25],[2151,20,2151,25],[2137,20,2137,25],[2138,20,2138,25],[2139,20,2139,25],[2140,20,2140,25],[2141,20,2141,25],[2142,20,2142,25],[2143,20,2143,25],[2144,20,2144,25],[2145,20,2145,25],[2146,20,2146,25],[2147,20,2147,25],[2148,20,2148,25],[2149,20,2149,25],[2150,20,2150,25],[2118,20,2118,25],[2119,20,2119,25],[2121,20,2121,25],[2122,20,2122,25],[2123,20,2123,25],[2124,20,2124,25],[2125,20,2125,25],[2126,20,2126,25],[2127,20,2127,25],[2128,20,2128,25],[2129,20,2129,25],[2130,20,2130,25],[2131,20,2131,25],[2132,20,2132,25],[2133,20,2133,25],[2134,20,2134,25],[2120,20,2120,25],[2101,20,2101,25],[2102,20,2102,25],[2117,20,2117,25],[2103,20,2103,25],[2104,20,2104,25],[2105,20,2105,25],[2106,20,2106,25],[2107,20,2107,25],[2108,20,2108,25],[2109,20,2109,25],[2110,20,2110,25],[2111,20,2111,25],[2112,20,2112,25],[2113,20,2113,25],[2114,20,2114,25],[2115,20,2115,25],[2116,20,2116,25],[2084,20,2084,25],[2085,20,2085,25],[2087,20,2087,25],[2088,20,2088,25],[2089,20,2089,25],[2090,20,2090,25],[2091,20,2091,25],[2092,20,2092,25],[2093,20,2093,25],[2094,20,2094,25],[2095,20,2095,25],[2096,20,2096,25],[2097,20,2097,25],[2098,20,2098,25],[2099,20,2099,25],[2100,20,2100,25],[2086,20,2086,25],[2054,20,2054,25],[2055,20,2055,25],[2056,20,2056,25],[2057,20,2057,25],[2058,20,2058,25],[2059,20,2059,25],[2060,20,2060,25],[2061,20,2061,25],[2062,20,2062,25],[2063,20,2063,25],[2064,20,2064,25],[2065,20,2065,25],[2066,20,2066,25],[2067,20,2067,25],[2068,20,2068,25],[2083,20,2083,25],[2069,20,2069,25],[2070,20,2070,25],[2071,20,2071,25],[2072,20,2072,25],[2073,20,2073,25],[2074,20,2074,25],[2075,20,2075,25],[2076,20,2076,25],[2077,20,2077,25],[2078,20,2078,25],[2079,20,2079,25],[2080,20,2080,25],[2081,20,2081,25],[2082,20,2082,25],[2036,20,2036,25],[2037,20,2037,25],[2038,20,2038,25],[2039,20,2039,25],[2040,20,2040,25],[2041,20,2041,25],[2042,20,2042,25],[2043,20,2043,25],[2044,20,2044,25],[2045,20,2045,25],[2046,20,2046,25],[2047,20,2047,25],[2048,20,2048,25],[2049,20,2049,25],[2050,20,2050,25],[2051,20,2051,25],[2053,20,2053,25],[2005,20,2005,25],[2006,20,2006,25],[2007,20,2007,25],[2008,20,2008,25],[2009,20,2009,25],[2010,20,2010,25],[2011,20,2011,25],[2012,20,2012,25],[2013,20,2013,25],[2014,20,2014,25],[2015,20,2015,25],[2016,20,2016,25],[2017,20,2017,25],[2052,20,2052,25],[2018,20,2018,25],[2019,20,2019,25],[2020,20,2020,25],[2021,20,2021,25],[2022,20,2022,25],[2023,20,2023,25],[2024,20,2024,25],[2025,20,2025,25],[2026,20,2026,25],[2027,20,2027,25],[2028,20,2028,25],[2029,20,2029,25],[2030,20,2030,25],[2031,20,2031,25],[2032,20,2032,25],[2033,20,2033,25],[2034,20,2034,25],[2035,20,2035,25],[1988,20,1988,25],[1989,20,1989,25],[1990,20,1990,25],[1991,20,1991,25],[1992,20,1992,25],[1993,20,1993,25],[1994,20,1994,25],[1995,20,1995,25],[1996,20,1996,25],[1997,20,1997,25],[1998,20,1998,25],[1999,20,1999,25],[2000,20,2000,25],[2001,20,2001,25],[2002,20,2002,25],[2003,20,2003,25],[2004,20,2004,25],[1971,20,1971,25],[1972,20,1972,25],[1973,20,1973,25],[1974,20,1974,25],[1975,20,1975,25],[1976,20,1976,25],[1977,20,1977,25],[1978,20,1978,25],[1979,20,1979,25],[1980,20,1980,25],[1981,20,1981,25],[1982,20,1982,25],[1983,20,1983,25],[1984,20,1984,25],[1985,20,1985,25],[1986,20,1986,25],[1987,20,1987,25],[1954,20,1954,25],[1955,20,1955,25],[1956,20,1956,25],[1957,20,1957,25],[1958,20,1958,25],[1959,20,1959,25],[1960,20,1960,25],[1961,20,1961,25],[1962,20,1962,25],[1963,20,1963,25],[1964,20,1964,25],[1965,20,1965,25],[1966,20,1966,25],[1967,20,1967,25],[1968,20,1968,25],[1969,20,1969,25],[1970,20,1970,25],[1937,20,1937,25],[1938,20,1938,25],[1939,20,1939,25],[1940,20,1940,25],[1941,20,1941,25],[1942,20,1942,25],[1943,20,1943,25],[1944,20,1944,25],[1945,20,1945,25],[1946,20,1946,25],[1947,20,1947,25],[1948,20,1948,25],[1949,20,1949,25],[1950,20,1950,25],[1951,20,1951,25],[1952,20,1952,25],[1953,20,1953,25],[1920,20,1920,25],[1921,20,1921,25],[1922,20,1922,25],[1923,20,1923,25],[1924,20,1924,25],[1925,20,1925,25],[1926,20,1926,25],[1927,20,1927,25],[1928,20,1928,25],[1929,20,1929,25],[1930,20,1930,25],[1931,20,1931,25],[1932,20,1932,25],[1933,20,1933,25],[1934,20,1934,25],[1935,20,1935,25],[1936,20,1936,25],[1903,20,1903,25],[1904,20,1904,25],[1905,20,1905,25],[1906,20,1906,25],[1907,20,1907,25],[1908,20,1908,25],[1909,20,1909,25],[1910,20,1910,25],[1911,20,1911,25],[1912,20,1912,25],[1913,20,1913,25],[1914,20,1914,25],[1915,20,1915,25],[1916,20,1916,25],[1917,20,1917,25],[1918,20,1918,25],[1919,20,1919,25],[1886,20,1886,25],[1887,20,1887,25],[1888,20,1888,25],[1889,20,1889,25],[1890,20,1890,25],[1891,20,1891,25],[1892,20,1892,25],[1893,20,1893,25],[1894,20,1894,25],[1895,20,1895,25],[1896,20,1896,25],[1897,20,1897,25],[1898,20,1898,25],[1899,20,1899,25],[1900,20,1900,25],[1901,20,1901,25],[1902,20,1902,25],[1869,20,1869,25],[1870,20,1870,25],[1871,20,1871,25],[1872,20,1872,25],[1873,20,1873,25],[1874,20,1874,25],[1875,20,1875,25],[1876,20,1876,25],[1877,20,1877,25],[1878,20,1878,25],[1879,20,1879,25],[1880,20,1880,25],[1881,20,1881,25],[1882,20,1882,25],[1883,20,1883,25],[1884,20,1884,25],[1885,20,1885,25],[1852,20,1852,25],[1853,20,1853,25],[1854,20,1854,25],[1855,20,1855,25],[1856,20,1856,25],[1857,20,1857,25],[1858,20,1858,25],[1859,20,1859,25],[1860,20,1860,25],[1861,20,1861,25],[1862,20,1862,25],[1863,20,1863,25],[1864,20,1864,25],[1865,20,1865,25],[1866,20,1866,25],[1867,20,1867,25],[1868,20,1868,25],[1835,20,1835,25],[1836,20,1836,25],[1837,20,1837,25],[1838,20,1838,25],[1839,20,1839,25],[1840,20,1840,25],[1841,20,1841,25],[1842,20,1842,25],[1843,20,1843,25],[1844,20,1844,25],[1845,20,1845,25],[1846,20,1846,25],[1847,20,1847,25],[1848,20,1848,25],[1849,20,1849,25],[1850,20,1850,25],[1851,20,1851,25],[1818,20,1818,25],[1819,20,1819,25],[1820,20,1820,25],[1821,20,1821,25],[1822,20,1822,25],[1823,20,1823,25],[1824,20,1824,25],[1825,20,1825,25],[1826,20,1826,25],[1827,20,1827,25],[1828,20,1828,25],[1829,20,1829,25],[1830,20,1830,25],[1831,20,1831,25],[1832,20,1832,25],[1833,20,1833,25],[1834,20,1834,25],[1801,20,1801,25],[1802,20,1802,25],[1803,20,1803,25],[1804,20,1804,25],[1805,20,1805,25],[1806,20,1806,25],[1807,20,1807,25],[1808,20,1808,25],[1809,20,1809,25],[1810,20,1810,25],[1811,20,1811,25],[1812,20,1812,25],[1813,20,1813,25],[1814,20,1814,25],[1815,20,1815,25],[1816,20,1816,25],[1817,20,1817,25],[1784,20,1784,25],[1785,20,1785,25],[1786,20,1786,25],[1787,20,1787,25],[1788,20,1788,25],[1789,20,1789,25],[1790,20,1790,25],[1791,20,1791,25],[1792,20,1792,25],[1793,20,1793,25],[1794,20,1794,25],[1795,20,1795,25],[1796,20,1796,25],[1797,20,1797,25],[1798,20,1798,25],[1799,20,1799,25],[1800,20,1800,25],[1767,20,1767,25],[1768,20,1768,25],[1769,20,1769,25],[1770,20,1770,25],[1771,20,1771,25],[1772,20,1772,25],[1773,20,1773,25],[1774,20,1774,25],[1775,20,1775,25],[1776,20,1776,25],[1777,20,1777,25],[1778,20,1778,25],[1779,20,1779,25],[1780,20,1780,25],[1781,20,1781,25],[1782,20,1782,25],[1783,20,1783,25],[1750,20,1750,25],[1751,20,1751,25],[1752,20,1752,25],[1753,20,1753,25],[1754,20,1754,25],[1755,20,1755,25],[1756,20,1756,25],[1757,20,1757,25],[1758,20,1758,25],[1759,20,1759,25],[1760,20,1760,25],[1761,20,1761,25],[1762,20,1762,25],[1763,20,1763,25],[1764,20,1764,25],[1765,20,1765,25],[1766,20,1766,25],[1733,20,1733,25],[1734,20,1734,25],[1735,20,1735,25],[1736,20,1736,25],[1737,20,1737,25],[1738,20,1738,25],[1739,20,1739,25],[1740,20,1740,25],[1741,20,1741,25],[1742,20,1742,25],[1743,20,1743,25],[1744,20,1744,25],[1745,20,1745,25],[1746,20,1746,25],[1747,20,1747,25],[1748,20,1748,25],[1749,20,1749,25],[1716,20,1716,25],[1717,20,1717,25],[1718,20,1718,25],[1719,20,1719,25],[1720,20,1720,25],[1721,20,1721,25],[1722,20,1722,25],[1723,20,1723,25],[1724,20,1724,25],[1725,20,1725,25],[1726,20,1726,25],[1727,20,1727,25],[1728,20,1728,25],[1729,20,1729,25],[1730,20,1730,25],[1731,20,1731,25],[1732,20,1732,25],[1699,20,1699,25],[1700,20,1700,25],[1701,20,1701,25],[1702,20,1702,25],[1703,20,1703,25],[1704,20,1704,25],[1705,20,1705,25],[1706,20,1706,25],[1707,20,1707,25],[1708,20,1708,25],[1709,20,1709,25],[1710,20,1710,25],[1711,20,1711,25],[1712,20,1712,25],[1713,20,1713,25],[1714,20,1714,25],[1715,20,1715,25],[1682,20,1682,25],[1683,20,1683,25],[1684,20,1684,25],[1685,20,1685,25],[1686,20,1686,25],[1687,20,1687,25],[1688,20,1688,25],[1689,20,1689,25],[1690,20,1690,25],[1691,20,1691,25],[1692,20,1692,25],[1693,20,1693,25],[1694,20,1694,25],[1695,20,1695,25],[1696,20,1696,25],[1697,20,1697,25],[1698,20,1698,25],[1665,20,1665,25],[1666,20,1666,25],[1667,20,1667,25],[1668,20,1668,25],[1669,20,1669,25],[1670,20,1670,25],[1671,20,1671,25],[1672,20,1672,25],[1673,20,1673,25],[1674,20,1674,25],[1675,20,1675,25],[1676,20,1676,25],[1677,20,1677,25],[1678,20,1678,25],[1679,20,1679,25],[1680,20,1680,25],[1681,20,1681,25],[1648,20,1648,25],[1649,20,1649,25],[1650,20,1650,25],[1651,20,1651,25],[1652,20,1652,25],[1653,20,1653,25],[1654,20,1654,25],[1655,20,1655,25],[1656,20,1656,25],[1657,20,1657,25],[1658,20,1658,25],[1659,20,1659,25],[1660,20,1660,25],[1661,20,1661,25],[1662,20,1662,25],[1663,20,1663,25],[1664,20,1664,25],[1631,20,1631,25],[1632,20,1632,25],[1633,20,1633,25],[1634,20,1634,25],[1635,20,1635,25],[1636,20,1636,25],[1637,20,1637,25],[1638,20,1638,25],[1639,20,1639,25],[1640,20,1640,25],[1641,20,1641,25],[1642,20,1642,25],[1643,20,1643,25],[1644,20,1644,25],[1645,20,1645,25],[1646,20,1646,25],[1647,20,1647,25],[1614,20,1614,25],[1615,20,1615,25],[1616,20,1616,25],[1617,20,1617,25],[1618,20,1618,25],[1619,20,1619,25],[1620,20,1620,25],[1621,20,1621,25],[1622,20,1622,25],[1623,20,1623,25],[1624,20,1624,25],[1625,20,1625,25],[1626,20,1626,25],[1627,20,1627,25],[1628,20,1628,25],[1629,20,1629,25],[1630,20,1630,25],[1597,20,1597,25],[1598,20,1598,25],[1599,20,1599,25],[1600,20,1600,25],[1601,20,1601,25],[1602,20,1602,25],[1603,20,1603,25],[1604,20,1604,25],[1605,20,1605,25],[1606,20,1606,25],[1607,20,1607,25],[1608,20,1608,25],[1609,20,1609,25],[1610,20,1610,25],[1611,20,1611,25],[1612,20,1612,25],[1613,20,1613,25],[1580,20,1580,25],[1581,20,1581,25],[1582,20,1582,25],[1583,20,1583,25],[1584,20,1584,25],[1585,20,1585,25],[1586,20,1586,25],[1587,20,1587,25],[1588,20,1588,25]],"merged_total":7651,"flags":["merged_cut"]}
["Opérateur","Machine","Préventif / Curatif","Organes","Date","Durée d'intervention (min)","Heure début intervention","Heure fin intervention","Détails de l'intervention",null,null,null,null,null,"Commentaires",null,null,null,null,null,"Coûts",null,"Liste des machines","Choix",null,null,null,"Presse AMOS"]
["MP","Bucher","Curatif","fin de course info poussee","2013-06-06",15,null,null,"changement du fin course",null,null,null,null,null,"a recommander pour stock",null,null,null,null,null,null,null,null,null,null,null,null,"Filtre PALL",null,null,"Curatif"]
["MP","Tireuse","Préventif","NA","2013-06-06",null,null,null,null,null,null,null,null,null,"Début du préventif suivant listing onglet Préventif",null,null,null,null,null,null,null,null,null,null,null,null,"Laveuse",null,null,"Préventif"]
["MP","Tireuse","Préventif","NA","2013-06-06",null,null,null,null,null,null,null,null,null,"Début du préventif suivant listing onglet Préventif",null,null,null,null,null,null,null,null,null,null,null,null,"Presse BUCHER",null,null,"Structure"]
["MP","Dépaletiseur","Préventif","NA","2013-06-06",null,null,null,null,null,null,null,null,null,"Début du préventif suivant listing onglet Préventif",null,null,null,null,null,null,null,null,null,null,null,null,"Centrifugeuse",null,null,"Externe"]
["MP","Rinceuse","Préventif","NA","2013-06-06",null,null,null,null,null,null,null,null,null,"Début du préventif suivant listing onglet Préventif",null,null,null,null,null,null,null,null,null,null,null,null,"Insectocuteurs"]
["MP","MEAD","Préventif","NA","2013-06-06",null,null,null,null,null,null,null,null,null,"Début du préventif suivant listing onglet Préventif",null,null,null,null,null,null,null,null,null,null,null,null,"Macérateur"]
["MP","Etiquetteuse","Préventif","NA","2013-06-06",null,null,null,null,null,null,null,null,null,"Début du préventif suivant listing onglet Préventif",null,null,null,null,null,null,null,null,null,null,null,null,"Pompe evac eaux usées"]
["MP","Etiquetteuse adhésive","Préventif","NA","2013-06-06",null,null,null,null,null,null,null,null,null,"Début du préventif suivant listing onglet Préventif",null,null,null,null,null,null,null,null,null,null,null,null,"Pompe Schneider"]
["MP","Boucheuse / Museleuse","Préventif","NA","2013-06-06",null,null,null,null,null,null,null,null,null,"Début du préventif suivant listing onglet Préventif",null,null,null,null,null,null,null,null,null,null,null,null,"Pompe Liverani"]
["MP","Pompe DEPA","Préventif","NA","2013-06-06",null,null,null,null,null,null,null,null,null,"Début du préventif suivant listing onglet Préventif",null,null,null,null,null,null,null,null,null,null,null,null,"Pompe Liverani avec panneau elec"]
["MP","Alimentation Bouchon","Préventif","NA","2013-06-06",null,null,null,null,null,null,null,null,null,"Début du préventif suivant listing onglet Préventif",null,null,null,null,null,null,null,null,null,null,null,null,"Flash-Pasteurisateur"]
["MP","Tiflex","Préventif","NA","2013-06-06",null,null,null,null,null,null,null,null,null,"Début du préventif suivant listing onglet Préventif",null,null,null,null,null,null,null,null,null,null,null,null,"Pompe Lucne"]
["MP","Linx","Préventif","NA","2013-06-06",null,null,null,null,null,null,null,null,null,"Début du préventif suivant listing onglet Préventif",null,null,null,null,null,null,null,null,null,null,null,null,"Dépaletiseur"]
["MP","Convoyeurs","Préventif","NA","2013-06-06",null,null,null,null,null,null,null,null,null,"Début du préventif suivant listing onglet Préventif",null,null,null,null,null,null,null,null,null,null,null,null,"Rinceuse"]
["MP","MEAD","Préventif","NA","2013-06-12",null,null,null,"Action preventive suivant listing 7 jours",null,null,null,null,null,null,null,null,null,null,null,null,null,null,null,null,null,null,"Saturateur"]
["MP","Boucheuse / Museleuse","Curatif","Etoiles","2013-06-11",30,null,null,"Recentrage des étoiles de transport et réglage de la tension de la courroie",null,null,null,null,null,null,null,null,null,null,null,null,null,null,null,null,null,null,"Echangeur intérieur"]
["MP","Boucheuse / Museleuse","Curatif","Clavette muselage","2013-06-12",15,null,null,"Changement de la clavette",null,null,null,null,null,null,null,null,null,null,null,40.049999999999997,null,null,null,null,null,null,"Tireuse"]
["MP","Tireuse","Curatif","Electro-vanne ","2013-06-12T13:38:20",210,null,null,"Recherche de panne\nChangement de l'electro vanne de contre pression",null,null,null,null,null,null,null,null,null,null,null,null,null,null,null,null,null,null,"Boucheuse / museleuse"]
["MP","Insectocuteurs","Structure","NA","2013-06-12",15,null,null,"Nettoyage et prise de photo avant nettoyage",null,null,null,null,null,null,null,null,null,null,null,null,null,null,null,null,null,null,"Distributeur bouchons"]
["MP","Tireuse","Préventif","NA","2013-06-14T13:20:31.090",10,null,null,"- Glissement tige cylindre  élévateur bouteilles.\n - Vérifier que le glissement de la tige du cylindre élévateur de bouteilles glisse correctement.",null,null,null,null,null,null,null,null,null,null,null,null,null,null,null,null,null,null,"Pasteurisateur",null,null,null,"Pasteurisateur","Etiqueteuse conpart","Imprimante Linx","Etiqueteuse adhésive","Table d'accumulation","TRIO","Scotcheuse à cartons","Tiflex","Filmeuse","Echangeur extérieur","Convoyeurs","Insectocuteur TTJ","MEAD"]
["MP","Tireuse","Préventif","NA","2013-06-14",null,null,null,"Contrôler l'état d'usure des joints du cylindre et l'efficacité du circuit pneumatique",null,null,null,null,null,null,null,null,null,null,null,null,null,null,null,null,null,null,"Etiqueteuse conpart"]
["MP","Tireuse","Préventif","NA","2013-06-14",15,null,null,"Contrôle installation électrique",null,null,null,null,null,null,null,null,null,null,null,null,null,null,null,null,null,null,"Imprimante Linx"]
["MP","Boucheuse / Museleuse","Préventif","NA","2013-06-14",null,null,null,"Entretien machine",null,null,null,null,null,null,null,null,null,null,null,null,null,null,null,null,null,null,"Etiqueteuse adhésive"]
["MP","Boucheuse / Museleuse","Préventif","NA","2013-06-14",20,null,null,"Entretien des machoires",null,null,null,null,null,null,null,null,null,null,null,null,null,null,null,null,null,null,"Table d'accumulation"]
["MP","Linx","Préventif","NA","2013-06-14",20,null,null,"- Têtes d'impression\n- filtre à air\n- armoire de l'imprimante",null,null,null,null,null,null,null,null,null,null,null,null,null,null,null,null,null,null,"TRIO"]
["MP","Insectocuteurs","Structure","NA","2013-06-14",15,null,null,"Nettoyage et prise de photo avant nettoyage",null,null,null,null,null,null,null,null,null,null,null,null,null,null,null,null,null,null,"Scotcheuse à cartons"]
["MP","TRIO","Préventif","NA","2013-06-14",10,null,null,"Graissage et virification du niveau d'huile dans le filtre et du condensat",null,null,null,null,null,null,null,null,null,null,null,null,null,null,null,null,null,null,"Tiflex"]
["MP","Boucheuse / Museleuse","Préventif",null,"2013-06-18T14:03:07.990",5,null,null," Vérifier la tension des chaînes d'entraînement,  elles doivent-être bien tendues.                                                                - Vérifier le niveau d'huile dans le réservoir de la pompe, puis pomper quelques coups afin de lubrifier les axes de guidage, chaînes, couronnes.    \n- Remplir les huileurs afin de chasser l'huile précedente    \n- Graisser tout les point de graissage sur le haut de la machine (1  derrière piston boucheuse et 3 à droite du museulage)",null,null,null,null,null,null,null,null,null,null,null,null,null,null,null,null,null,null,"Filmeuse"]
["MP","Boucheuse / Museleuse","Préventif",null,"2013-06-18T14:03:30.710",20,null,null,"Sortir le bloc machoire\n Passer un coup de jet d'air pour enlever la poussière de bouchon                                              \nDémonter les machoires  \nLes tremper dans de l'eau chaude, afin quelles soient bien propres. \nLes remonter\nLes graisser avec de la graisse alimentaire           ",null,null,null,null,null,null,null,null,null,null,null,null,null,null,null,null,null,null,"Echangeur extérieur"]
["MP","Tire-palette Jung","Préventif",null,"2013-06-18T14:04:01.880",null,null,null,"Vérifer le niveau d'eau de la batterie",null,null,null,null,null,null,null,null,null,null,null,null,null,null,null,null,null,null,"Convoyeurs"]
["MP","Linx","Préventif",null,"2013-06-18T14:04:27.750",null,null,null,"- Têtes d'impression\n- filtre à air\n- armoire de l'imprimante",null,null,null,null,null,null,null,null,null,null,null,null,null,null,null,null,null,null,"MEAD"]
["MP","Etiqueteuse","Préventif",null,"2013-06-18T14:26:19.820",5,null,null,"- Graisser le plat de rotation croix de malte pour carroussel avec de la graisse graphitee",null,null,null,null,null,null,null,null,null,null,null,null,null,null,null,null,null,null,"Chariot  Clark"]
["MP","Etiqueteuse","Préventif",null,"2013-06-18T14:26:39.940",10,null,null,"Lubrifier avec un pinceau les engrenages situés à l'intérieur du chassis",null,null,null,null,null,null,null,null,null,null,null,null,null,null,null,null,null,null,"Tire-palette elec"]
["MP","Etiqueteuse","Préventif",null,"2013-06-18T14:28:14.270",10,null,null,"Graisser par graisseurs avec graisse minérale pour roulement l'engrenage central (dans le cassis)",null,null,null,null,null,null,null,null,null,null,null,null,null,null,null,null,null,null,"Karcher"]
["MP","Etiqueteuse","Préventif",null,"2013-06-18T14:28:30.320",null,null,null,"Graisser avec un pinceaula vis de réglage des inclinaisons avec de la graisse graphitée",null,null,null,null,null,null,null,null,null,null,null,null,null,null,null,null,null,null,"Chariot mitsubishi"]
["MP","Pompe DEPA","Préventif",null,"2013-06-18T14:28:53.050",null,null,null,"Contrôle visuel",null,null,null,null,null,null,null,null,null,null,null,null,null,null,null,null,null,null,"Compresseur "]
["MP","Etiqueteuse adhésive","Préventif",null,"2013-06-18T14:29:06.600",null,null,null,"Contrôle du réseau pneumatique vérifier qu'il n'y ai pas de fuites. ( tubes, raccords, cylindres et valves)"]
["MP","MEAD","Préventif",null,"2013-06-18T14:29:33.390",null,null,null,"Nettoyer l'afficheur avec une éponge humide et savonneuse, un liquide vaisselle, une lessive liquide, des produits à vitres du commerce",null,null,null,null,null,null,null,null,null,null,null,null,null,null,null,null,null,null,"Structure"]
["MP","MEAD","Préventif",null,"2013-06-18T14:29:47.430",null,null,null,"Contrôler l'état du moteur (visuel)"]
["MP","MEAD","Préventif",null,"2013-06-18T14:30:02.910",null,null,null,"Contrôler l'état général du magasin (pas endommagées ou cassées) "]
["MP","MEAD","Préventif",null,"2013-06-18T14:30:11.220",null,null,null,"Contrôler le régalge du dépileur et des chaînes carton"]
["MP","MEAD","Préventif",null,"2013-06-18T14:30:18.770",null,null,null,"Contrôler le régalge du dépileur et des chaînes carton"]
["MP","MEAD","Préventif",null,"2013-06-18T14:30:26.280",null,null,null,"Contrôler létat général des ventouses du dépileur "]
["MP","Compresseur","Préventif",null,"2013-06-18T14:30:52.760",null,null,null,"- Purger l'eau de condensation de réservoir d'huile                                                                        - Contrôler le niveau de l'huile                              \n - Nettoyer le panneau filtrant"]
["MP","Tireuse","Curatif","Pompe à vide","2013-06-18",90,null,null,"Remplacement de la pompe à vide"]
["MP","Compresseur","Préventif",null,"2013-06-19T08:25:01.100",null,null,null,"- Verifier la clarté de l'eau, sinon changer le filtre                                                                    - Purger l'eau                            \n-Vérifier les flexibles"]
["MP","Compresseur","Préventif",null,"2013-06-19T08:25:12.990",null,null,null,"Suivant planning de maintenance toutes les 2000H"]
["MP","Compresseur","Préventif",null,"2013-06-19T08:25:28.280",null,null,null,"-Nettoyage général"]
["MP","Bucher","Préventif",null,"2013-06-06",null,null,null,"Cf schéma : point 1 :  2 graisseurs Graisse pour coussinet a friction"]
["MP","Bucher","Préventif",null,"2013-06-06",null,null,null,"Cf schéma : point 2 : carter de la vis d'évacuation de marc 0.5 kg ARAL Q75 ou chevron GR grease 00"]
["MP","Bucher","Préventif",null,"2013-06-06",null,null,null,"Cf schéma : point 3 :Graisseur stauffer graisse pour roulement à billes"]
["MP","Bucher","Préventif",null,"2013-06-06",null,null,null,"Cf schéma : point 4 :2 graisseurs Chevron FM grease II"]
["MP","Bucher","Préventif",null,"2013-06-06",null,null,null,"Cf schéma : point 8 : 2 graisseurs Graisse pour coussinet a friction"]
["MP","Bucher","Préventif",null,"2013-06-06",null,null,null,"Cf schéma : point 9 : Chaine pour coussiners à friction"]
["MP","Bucher","Préventif",null,"2013-06-06",null,null,null,"Interrupteur de fin de course : 2-3 gouttes"]
["MP","Bucher","Préventif",null,"2013-06-06",null,null,null,"Nettoyer le filre à huile dans du pétrole et souffler à l'air comprimé"]
["MP","Presse AMOS","Préventif",null,"2013-06-06",null,null,null,"Graisseurs"]
["ZYK Omar STE MWV France","MEAD","Curatif","Etoiles","2013-06-20",240,null,null,"Remplacement des étoiles et du pignon moteur                                  Réglage des étoiles et du variateur de fréquence                            Essai",null,null,null,null,null,"Travaux ultérieurs à effectuer"]
["MP","Compresseur","Préventif",null,"2013-06-20T13:04:59.540",null,null,null,"Remplacement de la cartouche du filtre à air"]
["ZYK Omar","MEAD","Préventif",null,"2013-06-20T13:05:26.650",null,null,null,"Contrôler l'état du moteur (visuel)"]
["MP","Laveuse","Préventif",null,"2013-06-20T13:08:48.430",null,null,null,"Graissage"]
["MP","Macérateur","Préventif",null,"2013-06-20T13:10:09.740",null,null,null,"vérifier la rapeuse ( couteaux et grilles )avant et après la saison",null,null,null,null,null,"En commande"]
["MP","TRIO","Préventif",null,"2013-06-24T13:15:10.540",null,null,null," Contrôler le niveau d'huile dans le filtre graisseur du système pneumatique."]
["MP","TRIO","Préventif",null,"2013-06-24T13:15:21.710",null,null,null,"4 graisseurs sur formage carton et 2 sur prise bouteilles"]
["MP","TRIO","Préventif",null,"2013-06-24T13:15:31.070",null,null,null,"Contrôler la présence de condensant dans le filtre régulateur R1 et s'il le faut le démonter"]
["MP","Pasteurisateur","Préventif",null,"2013-06-24",null,null,null,"Filtre air : Démonter la cloche (rouge) de protection et nettoyer le filtre : a) carton à l'air comprimé b) à mailles métalliques à l'eau chaude + dégraissant"]
["Chaplain","Compresseur","Préventif",null,"2013-04-12",null,null,null,"Remplacement de la cartouche filtre à huile (Ref: kit CK2076-1)",null,null,null,null,null,"Mise en service"]
["Chaplain","Compresseur","Préventif",null,"2013-04-12",null,null,null,"Remplacement de la cartouche du filtre à air (Ref: kit CK2076-1)",null,null,null,null,null,"Mise en service"]
["Chaplain","Compresseur","Préventif",null,"2013-04-12",null,null,null,"Remplacement de la cartouche du filtre à air (Ref: kit CK2076-1)",null,null,null,null,null,"Mise en service"]
["Chaplain","Compresseur","Préventif",null,"2013-04-12",null,null,null,"Lot V : Jeu de courroies crantées (recommandation)",null,null,null,null,null,"Mise en service"]
["Chaplain","Compresseur","Préventif",null,"2013-04-12",null,null,null,"Lot E : Pièce d'usure",null,null,null,null,null,"Mise en service"]
["Chaplain","Compresseur","Préventif",null,"2013-04-12",null,null,null,"Lot D : Séparateur d'huile fin",null,null,null,null,null,"Mise en service"]
["Chaplain","Compresseur","Préventif",null,"2013-04-12",null,null,null,"Lot D : Séparateur d'huile fin",null,null,null,null,null,"Mise en service"]
["Chaplain","Compresseur","Préventif",null,"2013-04-12",null,null,null,"Lot C : Cartouche de filtre à huile cartouche de filtre à air",null,null,null,null,null,"Mise en service"]
["Chaplain","Compresseur","Préventif",null,"2013-04-12",null,null,null,"Nettoyer / Remplacer le feutre de filtre d'entrée d'air de refroidissement",null,null,null,null,null,"Mise en service"]
["Chaplain","Compresseur","Préventif",null,"2013-04-12",null,null,null,"Verifier / Resserer les bornes du coffret électrique.\nVérifier le branchement du transfo d'alimentation",null,null,null,null,null,"Mise en service"]
["Chaplain","Compresseur","Préventif",null,"2013-04-12",null,null,null,"Vérifier et resserrer toutes les fixations vissées",null,null,null,null,null,"Mise en service"]
["Chaplain","Compresseur","Préventif",null,"2013-04-12",null,null,null,"Entretien/nettoyage général",null,null,null,null,null,"Mise en service"]
["Chaplain","Compresseur","Préventif",null,"2013-04-12",null,null,null,"Vidange",null,null,null,null,null,"Mise en service"]
["Chaplain","Compresseur","Préventif",null,"2013-04-12",null,null,null,"Remplacement du séparateur d'huile fin (ref:A10533574)",null,null,null,null,null,"Mise en service"]
["Chaplain","Compresseur","Préventif",null,"2013-04-12",null,null,null,"Soupape de sûreté / Test de fonctionnement au moins 1 x par an",null,null,null,null,null,"Mise en service"]
["Chaplain","Compresseur","Préventif",null,"2013-04-12",null,null,null,"Remplacement des cartouches de lubrification",null,null,null,null,null,"Mise en service"]
["Chaplain","Compresseur","Préventif",null,"2013-04-12",null,null,null,"Remplacement du jeu de courroies (ne remplacer les courroies que par jeu complet)",null,null,null,null,null,"Mise en service"]
["MP","Tiflex","Préventif",null,"2013-06-25T08:44:02.410",null,null,null,"Contrôler le filtre à air changer si nécessaire :\n- Déclipsez la grille d'aération située sur le côté de l'unité centrale\n- Enlevez la grille et le filtre usagé\n- Remplacez ce dernier par un filtre neuf\n- Replacez la grille en la clipsant",null,null,null,null,null,"En commande"]
["Chaplain","Compresseur","Préventif",null,"2013-04-12",null,null,null,"Remplacement de la cartouche du filtre à air (Ref: kit CK2076-1)"]
["Ouest Atlantique","Tire-palette Jung","Préventif",null,"2013-06-25T08:45:06.390",null,null,null,"Entretien par OUEST Atlantique"]
["MP","Tireuse","Préventif",null,"2013-06-25T13:55:45.580",null,null,null,"Contrôler l'état d'usure des joints du cylindre et l'efficacité du circuit pneumatique."]
["MP","Tireuse","Préventif",null,"2013-06-25T13:56:08.960",null,null,null,"- Glissement tige cylindre  élévateur bouteilles.\n - Vérifier que le glissement de la tige du cylindre élévateur de bouteilles glisse correctement."]
["MP","Tireuse","Préventif",null,"2013-06-25T13:56:33.390",null,null,null,"Contrôle des urgences :\n- Verifier qu'en appuyant sur le poussoir d'urgence la machine s'arrete\n- Si la machine ne s'arrete pas il faut l'arreter en coupant l'alimentation et tout de suite chercher la cause du défaut.\n- Verifier avec la machine arretée que les urgences ( etoile, guichets...) sont fonctionnantes, il faut que sur le tableau les voyants rouges soient allumés\n- Vérifier avec la machine arretée, que les photocellules sont fonctionnantes; il faut que sur le tableau le voyant clignotant s'allume"]
["MP","MEAD","Préventif",null,"2013-06-25T13:57:22.620",null,null,null,"Contrôler l'éfficacité des dispositifs de sécurité (portes, arrêts d'urgence) "]
["MP","MEAD","Préventif",null,"2013-06-25T13:57:42.300",null,null,null,"Contrôler létat général du dépileur"]
["MP","MEAD","Préventif",null,"2013-06-25T13:58:04.620",null,null,null,"Contrôler létat général des ventouses du dépileur "]
["MP","MEAD","Préventif",null,"2013-06-25T13:58:13.620",null,null,null,"Contrôler l'état général du magasin (pas endommagées ou cassées) "]
["MP","MEAD","Préventif",null,"2013-06-25T13:58:22.590",null,null,null,"Nettoyer l'afficheur avec une éponge humide et savonneuse, un liquide vaisselle, une lessive liquide, des produits à vitres du commerce"]
["MP","Pompe DEPA","Préventif",null,"2013-06-25T13:58:34.300",null,null,null,"Contrôle visuel"]
["MP","MEAD","Préventif",null,"2013-06-25T13:58:54.420",null,null,null,"Contrôler le régalge du dépileur et des chaînes carton"]
["MP","Etiqueteuse","Préventif",null,"2013-06-25T14:38:41.100",null,null,null,"- Lubrifier les têtes par les trous. (en début de prod en utlisant de l'huile pour guide de coulissement)"]
["MP","Boucheuse / Museleuse","Préventif",null,"2013-06-25T14:39:06.160",null,null,null,"Sortir le bloc machoire\n Passer un coup de jet d'air pour enlever la poussière de bouchon                                              \nDémonter les machoires  \nLes tremper dans de l'eau chaude, afin quelles soient bien propres. \nLes remonter\nLes graisser avec de la graisse alimentaire           "]
["MP","Etiqueteuse","Préventif",null,"2013-06-25T14:39:21.530",null,null,null,"- Graisser avec graisseur les engrenages VIS (graisse graphitée)"]
["MP","Echangeur refroidissement jus","Préventif",null,"2013-06-25T14:47:48.070",null,null,null,"Contrôle de l'intégrité de l'échangeur afin d'éviter toute fuite d'eau glycolée",null,null,null,null,null,"A voir avec Joseph"]
["MP","Filtre padovan","Préventif",null,"2013-06-25T14:48:05.970",null,null,null,"Contrôle",null,null,null,null,null,"A voir avec Joseph"]
["MP","Linx","Préventif",null,"2013-06-25T14:55:57.330",null,null,null,"- Têtes d'impression\n- filtre à air\n- armoire de l'imprimante"]
["MP","Boucheuse / Museleuse","Préventif",null,"2013-06-25T14:56:12.240",null,null,null," Vérifier la tension des chaînes d'entraînement,  elles doivent-être bien tendues.                                                                - Vérifier le niveau d'huile dans le réservoir de la pompe, puis pomper quelques coups afin de lubrifier les axes de guidage, chaînes, couronnes.    \n- Remplir les huileurs afin de chasser l'huile précedente    \n- Graisser tout les point de graissage sur le haut de la machine (1  derrière piston boucheuse et 3 à droite du museulage)"]
["MP","Etiqueteuse adhésive","Préventif",null,"2013-06-25T14:57:20.890",null,null,null,"Contrôle du réseau pneumatique vérifier qu'il n'y ai pas de fuites. ( tubes, raccords, cylindres et valves)"]
["MP","Tire-palette Jung","Préventif",null,"2013-06-25T14:58:23.560",null,null,null,"Vérifer le niveau d'eau de la batterie"]
["MP","Pasteurisateur","Préventif",null,"2013-06-25T15:35:23.300",null,null,null,"Grille accroche flamme : Démonter la tête du bruleur, devisser les press-étoupes, sortir la grille, débrancher les connecteurs, vérifier l'écartement des électrodes ( Cf notice d'instruction p14) et la propreté de la grille. Si nécessaire la nettoyer à l'eau caude + dégraissant puis la souffler"]
["MP","Tireuse","Préventif",null,"2013-06-28T16:23:14.530",null,null,null,"Contrôle des urgences :\n- Verifier qu'en appuyant sur le poussoir d'urgence la machine s'arrete\n- Si la machine ne s'arrete pas il faut l'arreter en coupant l'alimentation et tout de suite chercher la cause du défaut.\n- Verifier avec la machine arretée que les urgences ( etoile, guichets...) sont fonctionnantes, il faut que sur le tableau les voyants rouges soient allumés\n- Vérifier avec la machine arretée, que les photocellules sont fonctionnantes; il faut que sur le tableau le voyant clignotant s'allume"]
["MP","Tireuse","Préventif",null,"2013-07-01T13:38:40.670",null,null,null,"Contrôle des urgences :\n- Verifier qu'en appuyant sur le poussoir d'urgence la machine s'arrete\n- Si la machine ne s'arrete pas il faut l'arreter en coupant l'alimentation et tout de suite chercher la cause du défaut.\n- Verifier avec la machine arretée que les urgences ( etoile, guichets...) sont fonctionnantes, il faut que sur le tableau les voyants rouges soient allumés\n- Vérifier avec la machine arretée, que les photocellules sont fonctionnantes; il faut que sur le tableau le voyant clignotant s'allume"]
["MP","Etiqueteuse","Préventif",null,"2013-07-01T13:39:17.310",null,null,null,"- Graisser le plat de rotation croix de malte pour carroussel avec de la graisse graphitee",null,null,null,null,null,"Utilisation d'une graisse standard"]
["MP","Etiqueteuse","Préventif",null,"2013-07-01T13:39:56.060",null,null,null,"Graisser par graisseurs avec graisse minérale pour roulement l'engrenage central (dans le cassis)"]
["MP","Etiqueteuse","Préventif",null,"2013-07-01T13:40:10.500",null,null,null,"Lubrifier avec un pinceau les engrenages situés à l'intérieur du chassis"]
["MP","Etiqueteuse","Préventif",null,"2013-07-01T13:40:19.560",null,null,null,"Graisser avec un pinceaula vis de réglage des inclinaisons avec de la graisse graphitée",null,null,null,null,null,"Utilisation d'une graisse standard"]
["MP","MEAD","Préventif",null,"2013-07-01T13:40:54.430",null,null,null,"Contrôler l'état du moteur (visuel)"]
["MP","Pompe DEPA","Préventif",null,"2013-07-02T08:11:11.320",null,null,null,"Contrôle visuel"]
["MP","Tire-palette Jung","Préventif",null,"2013-07-02T08:11:34.160",null,null,null,"Entretien par OUEST Atlantique"]
["MP","TRIO","Préventif",null,"2013-07-02T08:11:51.160",null,null,null,"Contrôler la présence de condensant dans le filtre régulateur R1 et s'il le faut le démonter"]
["MP","TRIO","Préventif",null,"2013-07-02T08:12:00.410",null,null,null," Contrôler le niveau d'huile dans le filtre graisseur du système pneumatique."]
["MP","TRIO","Préventif",null,"2013-07-02T08:12:05.870",null,null,null,"4 graisseurs sur formage carton et 2 sur prise bouteilles"]
["MP","Boucheuse / Museleuse","Préventif",null,"2013-07-02T08:12:32.900",null,null,null," Vérifier la tension des chaînes d'entraînement,  elles doivent-être bien tendues.                                                                - Vérifier le niveau d'huile dans le réservoir de la pompe, puis pomper quelques coups afin de lubrifier les axes de guidage, chaînes, couronnes.    \n- Remplir les huileurs afin de chasser l'huile précedente    \n- Graisser tout les point de graissage sur le haut de la machine (1  derrière piston boucheuse et 3 à droite du museulage)"]
["JJ","Laveuse","Curatif","Tapis","2013-07-01",null,null,null,"Repositionnement du tapis ( décalage sur les croix d'entrainement)"]
["MC","Pasteurisateur","Préventif",null,"2013-07-08T17:28:37.660",null,null,null,"Filtre air : Démonter la cloche (rouge) de protection et nettoyer le filtre : a) carton à l'air comprimé b) à mailles métalliques à l'eau chaude + dégraissant"]
["MP","Tireuse","Préventif",null,"2013-07-02T13:54:25.060",null,null,null,"- Glissement tige cylindre  élévateur bouteilles.\n - Vérifier que le glissement de la tige du cylindre élévateur de bouteilles glisse correctement."]
["MP","Tireuse","Préventif",null,"2013-07-02T13:54:39.060",null,null,null,"Contrôler en démarrant et en arrêtant la machine plusieurs fois sans bouteilles, l'éventuelle présence de bruits anormaux, jeux et vibration des composants de la motorisation"]
["MP","Tireuse","Préventif",null,"2013-07-02T13:55:00.490",null,null,null,"Nettoyer et lubrifier tout les convoyeurs"]
["MP","Tireuse","Préventif",null,"2013-07-02T13:55:10.350",null,null,null,"Contrôle des urgences :\n- Verifier qu'en appuyant sur le poussoir d'urgence la machine s'arrete\n- Si la machine ne s'arrete pas il faut l'arreter en coupant l'alimentation et tout de suite chercher la cause du défaut.\n- Verifier avec la machine arretée que les urgences ( etoile, guichets...) sont fonctionnantes, il faut que sur le tableau les voyants rouges soient allumés\n- Vérifier avec la machine arretée, que les photocellules sont fonctionnantes; il faut que sur le tableau le voyant clignotant s'allume"]
["MP","Dépaletiseur","Préventif",null,"2013-07-02T13:55:44.450",null,null,null,"Cf documentation table 6-B pos.8"]
["MP","Dépaletiseur","Préventif",null,"2013-07-02T13:55:51.890",null,null,null,"Cf documentation Table 6-A pos. 3"]
["MP","Dépaletiseur","Préventif",null,"2013-07-02T13:56:01.200",null,null,null,"Nettoyage et contrôle  des cellules photoélectriques et cataphotes"]
["MP","Dépaletiseur","Préventif",null,"2013-07-02T13:56:10.010",null,null,null,"Graissage tapis"]
["MP","Rinceuse","Préventif",null,"2013-07-02T13:56:18.660",null,null,null,"2 points de graissage sur l'axe central\n1 point graissage sur vis d'entrée"]
["MP","TRIO","Préventif",null,"2013-07-02T13:56:29.620",null,null,null,"- Enlever la poussière des cellules photoélectriques et des cataphotes avec un chiffon doux et sec en prenant soin de ne pas modifier leur orientation."]
["MP","Etiqueteuse adhésive","Préventif",null,"2013-07-02T13:57:06.230",null,null,null,"Contrôle du réseau pneumatique vérifier qu'il n'y ai pas de fuites. ( tubes, raccords, cylindres et valves)"]
["MP","Tire-palette Jung","Préventif",null,"2013-07-03T08:21:18.750",null,null,null,"Entretien par OUEST Atlantique"]
["MP","Tire-palette Jung","Préventif",null,"2013-07-03T08:21:30.370",null,null,null,"Entretien par OUEST Atlantique"]
["MP","MEAD","Préventif",null,"2013-07-03T08:21:45.390",null,null,null,"Nettoyer l'afficheur avec une éponge humide et savonneuse, un liquide vaisselle, une lessive liquide, des produits à vitres du commerce"]
["MP","MEAD","Préventif",null,"2013-07-03T08:21:51.410",null,null,null,"Contrôler l'éfficacité des dispositifs de sécurité (portes, arrêts d'urgence) "]
["MP","MEAD","Préventif",null,"2013-07-03T08:22:00.650",null,null,null,"Contrôler l'état général du magasin (pas endommagées ou cassées) "]
["MP","MEAD","Préventif",null,"2013-07-03T08:22:06.720",null,null,null,"Contrôler létat général du dépileur"]
["MP","MEAD","Préventif",null,"2013-07-03T08:22:12.390",null,null,null,"Contrôler le régalge du dépileur et des chaînes carton"]
["MP","MEAD","Préventif",null,"2013-07-03T08:22:18.290",null,null,null,"Contrôler létat général des ventouses du dépileur "]
["MP","Compresseur","Préventif",null,"2013-07-03T08:22:36.040",null,null,null,"- Verifier la clarté de l'eau avec le dispositif en photo jointe , si plus trouble que la partie basse, changer le filtre  \n - Purger l'eau                            \n-Vérifier les flexibles"]
["MP","Compresseur","Préventif",null,"2013-07-03T08:22:47.010",null,null,null,"-Nettoyage général"]
["MP","Tire-palette Jung","Préventif",null,"2013-07-03T08:22:53.700",null,null,null,"Vérifer le niveau d'eau de la batterie"]
["MP","Linx","Préventif",null,"2013-07-03T08:24:02.350",null,null,null,"- Têtes d'impression\n- filtre à air\n- armoire de l'imprimante"]
["MP","Tireuse","Préventif",null,"2013-07-03T09:56:49.610",null,null,null,"Contrôle des urgences :\n- Verifier qu'en appuyant sur le poussoir d'urgence la machine s'arrete\n- Si la machine ne s'arrete pas il faut l'arreter en coupant l'alimentation et tout de suite chercher la cause du défaut.\n- Verifier avec la machine arretée que les urgences ( etoile, guichets...) sont fonctionnantes, il faut que sur le tableau les voyants rouges soient allumés\n- Vérifier avec la machine arretée, que les photocellules sont fonctionnantes; il faut que sur le tableau le voyant clignotant s'allume"]
["MP","Tireuse","Préventif",null,"2013-07-03T09:57:40.820",null,null,null,"1 point graissage dessus cloche\n12 sur les rouleaux dans carter\n4 sur arbre de rotation en quart de tour                                                                                                                                         "]
["MP","Etiqueteuse","Préventif",null,"2013-07-03T09:59:39.180",null,null,null,"- Lubrifier les têtes par les trous. (en début de prod en utlisant de l'huile pour guide de coulissement)"]
["MP","Tire-palette à bras","Préventif",null,"2013-07-04T13:48:28.680",null,null,null,"Contrôler l'état général"]
["MP","MEAD","Préventif",null,"2013-07-04T13:49:01.970",null,null,null,"Nettoyer les tôles de protection inférieures"]
["MP","MEAD","Préventif",null,"2013-07-04T13:49:13.960",null,null,null,"Lubrification coté non opérateur"]
["MP","Etiqueteuse adhésive","Préventif",null,"2013-07-04T13:49:23.450",null,null,null,"Effectuer la vidange de la condensation du filtre d'air pneumatique"]
["MP","MEAD","Préventif",null,"2013-07-04T13:49:30.430",null,null,null,"Lubrification coté opérateur"]
["MP","Compresseur","Préventif",null,"2013-07-04T13:49:49.230",null,null,null,"-Nettoyage général"]
["MP","Compresseur","Préventif",null,"2013-07-04T13:49:57.040",null,null,null,"-Nettoyage général"]
["MP","Tireuse","Préventif",null,"2013-07-04T13:50:08.340",null,null,null,"Contrôle des urgences :\n- Verifier qu'en appuyant sur le poussoir d'urgence la machine s'arrete\n- Si la machine ne s'arrete pas il faut l'arreter en coupant l'alimentation et tout de suite chercher la cause du défaut.\n- Verifier avec la machine arretée que les urgences ( etoile, guichets...) sont fonctionnantes, il faut que sur le tableau les voyants rouges soient allumés\n- Vérifier avec la machine arretée, que les photocellules sont fonctionnantes; il faut que sur le tableau le voyant clignotant s'allume"]
["MC","Pasteurisateur","Préventif",null,"2013-07-08",null,null,null,"Filtres à verres - nettoyage des buses des bacs 1 et 6 + nettoyage au Galor du tapis et des buses"]
["MP","Tireuse","Préventif",null,"2013-07-15",null,null,null,"Contrôler l'état d'usure des joints du cylindre et l'efficacité du circuit pneumatique."]
["MP","Tireuse","Préventif",null,"2013-07-15",null,null,null,"Contrôler la mise en phase de tout les outillages"]
["MP","Tireuse","Préventif",null,"2013-07-15",null,null,null,"- Glissement tige cylindre  élévateur bouteilles.\n - Vérifier que le glissement de la tige du cylindre élévateur de bouteilles glisse correctement."]
["MP","Tireuse","Préventif",null,"2013-07-15",null,null,null,"Contrôle du serrage des canules"]
["MP","Tireuse","Préventif",null,"2013-07-15",null,null,null,"Contrôle des urgences :\n- Verifier qu'en appuyant sur le poussoir d'urgence la machine s'arrete\n- Si la machine ne s'arrete pas il faut l'arreter en coupant l'alimentation et tout de suite chercher la cause du défaut.\n- Verifier avec la machine arretée que les urgences ( etoile, guichets...) sont fonctionnantes, il faut que sur le tableau les voyants rouges soient allumés\n- Vérifier avec la machine arretée, que les photocellules sont fonctionnantes; il faut que sur le tableau le voyant clignotant s'allume"]
["MP","Boucheuse / Museleuse","Préventif",null,"2013-07-15",null,null,null," Vérifier la tension des chaînes d'entraînement,  elles doivent-être bien tendues.                                                                - Vérifier le niveau d'huile dans le réservoir de la pompe, puis pomper quelques coups afin de lubrifier les axes de guidage, chaînes, couronnes.    \n- Remplir les huileurs afin de chasser l'huile précedente    \n- Graisser tout les point de graissage sur le haut de la machine (1  derrière piston boucheuse et 3 à droite du museulage)"]
["MP","Boucheuse / Museleuse","Préventif",null,"2013-07-15",null,null,null,"Sortir le bloc machoire\n Passer un coup de jet d'air pour enlever la poussière de bouchon                                              \nDémonter les machoires  \nLes tremper dans de l'eau chaude, afin quelles soient bien propres. \nLes remonter\nLes graisser avec de la graisse alimentaire           ",null,null,null,null,null,"Non effectuée suite à une seule journée de fonctionnement depuis le dernier contrôle"]
["MP","Linx","Préventif",null,"2013-07-15",null,null,null,"- Têtes d'impression\n- filtre à air\n- armoire de l'imprimante"]
["MP","Etiqueteuse","Préventif",null,"2013-07-15",null,null,null,"- Graisser avec graisseur les engrenages VIS (graisse graphitée)"]
["MP","Etiqueteuse","Préventif",null,"2013-07-15",null,null,null,"- Lubrifier les têtes par les trous. (en début de prod en utlisant de l'huile pour guide de coulissement)"]
["MP","Etiqueteuse","Préventif",null,"2013-07-15",null,null,null,"- Graisser le disque came soulevement têtes avec de la graisse graphitee"]
["MP","Etiqueteuse","Préventif",null,"2013-07-15",null,null,null,"Graisser avec un pinceaula vis de réglage des inclinaisons avec de la graisse graphitée"]
["MP","Pompe DEPA","Préventif",null,"2013-07-15",null,null,null,"Contrôle visuel"]
["MP","Etiqueteuse adhésive","Préventif",null,"2013-07-15",null,null,null,"Contrôle du réseau pneumatique vérifier qu'il n'y ai pas de fuites. ( tubes, raccords, cylindres et valves)"]
["MP","Etiqueteuse adhésive","Préventif",null,"2013-07-15",null,null,null,"Contrôle visuel afin de relever d'éventuel endommagements , usures, altérations ou relachement de vis."]
["MP","Pompe DEPA","Préventif",null,"2013-07-15",null,null,null,"Contrôle Tirant, Collier de serrage type DL-PT/-TL "]
["MP","Pompe DEPA","Préventif",null,"2013-07-15",null,null,null,"Contrôle des Tirant et collier de serrage type PM avec sièges PTFE"]
["MP","Pompe DEPA","Préventif",null,"2013-07-15",null,null,null," Collecteur / chambre de pompe type DH-PT/-TL "]
["MP","Pompe DEPA","Préventif",null,"2013-07-15",null,null,null,"Contrôle des pièces d'usure et remplacement si besoin."]
["MP","MEAD","Préventif",null,"2013-07-15",null,null,null,"Nettoyer l'afficheur avec une éponge humide et savonneuse, un liquide vaisselle, une lessive liquide, des produits à vitres du commerce"]
["MP","MEAD","Préventif",null,"2013-07-15",null,null,null,"Contrôler l'état du moteur (visuel)"]
["MP","MEAD","Préventif",null,"2013-07-15",null,null,null,"Contrôler l'éfficacité des dispositifs de sécurité (portes, arrêts d'urgence) "]
["MP","MEAD","Préventif",null,"2013-07-15",null,null,null,"Contrôler l'état général du magasin (pas endommagées ou cassées) "]
["MP","MEAD","Préventif",null,"2013-07-15",null,null,null,"Contrôler létat général du dépileur"]
["MP","MEAD","Préventif",null,"2013-07-15",null,null,null,"Contrôler le régalge du dépileur et des chaînes carton"]
["MP","MEAD","Préventif",null,"2013-07-15",null,null,null,"Contrôler létat général des ventouses du dépileur "]
["JJ","Filtre PALL","Préventif",null,"2013-07-15",null,null,null,"Contrôle de la sécurité ( arret d'urgence) , contrôle du système électrique et de l'état général."]
["JJ","Centrifugeuse","Préventif",null,"2013-07-15",null,null,null,"Contrôle visuel et niveau d'huile"]
["MP","Etiqueteuse","Préventif",null,"2013-07-15",null,null,null,"Lubrifier avec un pinceau les engrenages situés à l'intérieur du chassis"]
["MP","Etiqueteuse","Préventif",null,"2013-07-15",null,null,null,"Lubrifier le support pour étoile d'entrée et étoile de sortie "]
["MP","Etiqueteuse","Préventif",null,"2013-07-15",null,null,null,"- Graisser le plat de rotation croix de malte pour carroussel avec de la graisse graphitee"]
["MP","TRIO","Préventif",null,"2013-07-16",null,null,null," Contrôler le niveau d'huile dans le filtre graisseur du système pneumatique."]
["MP","TRIO","Préventif",null,"2013-07-16",null,null,null,"4 graisseurs sur formage carton et 2 sur prise bouteilles"]
["MP","TRIO","Préventif",null,"2013-07-16",null,null,null,"Contrôler la présence de condensant dans le filtre régulateur R1 et s'il le faut le démonter"]
["MP","TRIO","Préventif",null,"2013-07-16",null,null,null,"Graisseur le guide de l'entonnoir centreur (Cf TAB 15)"]
["MP","Convoyeurs","Préventif",null,"2013-07-16",null,null,null,"39 points de graissage"]
["MP","Etiqueteuse","Préventif",null,"2013-07-16",null,null,null,"Graisser par graisseur la butée de l'arbre central (dans le chassis) avec de la graisse minérale pour roulements"]
["MP","Etiqueteuse","Préventif",null,"2013-07-16",null,null,null,"Graisser par graisseurs avec graisse minérale pour roulement l'engrenage central (dans le cassis)"]
["MP","Etiqueteuse","Préventif",null,"2013-07-16",null,null,null,"- Graisser l'étoile plie bande en \"U\" avec de la graisse minerale"]
["MP","Etiqueteuse","Préventif",null,"2013-07-16",null,null,null,"Graisser le supports rouleau pinces et rouleau collage avec de la graisse minérale pour roulement"]
["MP","Etiqueteuse","Préventif",null,"2013-07-16",null,null,null,"Graisser par graisseur avec graisse minéral le support carrousel tetes étiquteuse"]
["MP","Etiqueteuse","Préventif",null,"2013-07-16",null,null,null,"Graisser avec graisseur les supports plats carrousel étiqueteuse avec de la graisse minérale pour roulement"]
["MP","Etiqueteuse","Préventif",null,"2013-07-16",null,null,null,"Graisser par grassieur les supports plat carrousel avec de la graisse minéral pour coussinets"]
["MP","Etiqueteuse","Préventif",null,"2013-07-16",null,null,null,"- Graisser les supports rouleaux à colle en utilisant de la graisse minérale pour roulement"]
["MP","Tire-palette Jung","Préventif",null,"2013-07-16",null,null,null,"Vérifer le niveau d'eau de la batterie"]
["MP","Karcher","Préventif",null,"2013-07-16",null,null,null,"Verification des joints pistolet"]
["MP","Compresseur","Préventif",null,"2013-07-16",null,null,null,"- Verifier la clarté de l'eau avec le dispositif en photo jointe , si plus trouble que la partie basse, changer le filtre  \n - Purger l'eau                            \n-Vérifier les flexibles"]
["MC","Pasteurisateur","Préventif",null,"2013-07-16",null,null,null,"Nettoyage du Pasteurisateur                                                              \n           Serpentin : Contrôle visuel de sa surface et du fond de la cuve. Si nécessaire, le nettoyer. Si dépôts en fond de cuve le nettoyer? Il doit toujours y avoir une circulation de liquide entre sa surface et le liquide à chauffer"]
["MP","TRIO","Préventif",null,"2013-07-16",null,null,null,"Lubrification des points ( 2 par lettre) A B C D  F , lubrifiant conseillé : KLUBER TRIBOSTAR 2 EP ou équivalent  + 4 points de graissage guide repère F"]
["MP","Alimentation Bouchon","Préventif",null,"2013-07-16",null,null,null,"Lubrification des points 261 - 281 - 262"]
["MP","Bucher","Curatif","Element filtrant","2013-07-16",null,null,null,"Echange d'un élément filtrant"]
["MP","Bucher","Préventif",null,"2013-07-05",null,null,null,"Hydraulique 270/l. D'huile hydraulique 4-5° E- Nuto H 68 ESSO",null,null,null,null,null,"Envoie d'échantillon d'huile à TTA lubrifiant. l'huile n'est pas à changer mais à filtrer. Cf certificat en commentaire"]
["MP","Laveuse","Curatif","Rouleaux","2013-07-17",null,null,null,"Remplacement de 6 embouts de rouleaux de convoyage"]
["MP","Tireuse","Préventif",null,"2013-07-22",null,null,null,"- Glissement tige cylindre  élévateur bouteilles.\n - Vérifier que le glissement de la tige du cylindre élévateur de bouteilles glisse correctement."]
["MP","Tireuse","Préventif",null,"2013-07-22",null,null,null,"Contrôler l'état d'usure des joints du cylindre et l'efficacité du circuit pneumatique."]
["MP","Tireuse","Préventif",null,"2013-07-22",null,null,null,"Contrôle des urgences :\n- Verifier qu'en appuyant sur le poussoir d'urgence la machine s'arrete\n- Si la machine ne s'arrete pas il faut l'arreter en coupant l'alimentation et tout de suite chercher la cause du défaut.\n- Verifier avec la machine arretée que les urgences ( etoile, guichets...) sont fonctionnantes, il faut que sur le tableau les voyants rouges soient allumés\n- Vérifier avec la machine arretée, que les photocellules sont fonctionnantes; il faut que sur le tableau le voyant clignotant s'allume"]
["MP","Boucheuse / Museleuse","Préventif",null,"2013-07-22",null,null,null," Vérifier la tension des chaînes d'entraînement,  elles doivent-être bien tendues.                                                                - Vérifier le niveau d'huile dans le réservoir de la pompe, puis pomper quelques coups afin de lubrifier les axes de guidage, chaînes, couronnes.    \n- Remplir les huileurs afin de chasser l'huile précedente    \n- Graisser tout les point de graissage sur le haut de la machine (1  derrière piston boucheuse et 3 à droite du museulage)"]
["MP","TRIO","Préventif",null,"2013-07-22",null,null,null,"Contrôler la présence de condensant dans le filtre régulateur R1 et s'il le faut le démonter"]
["MP","Etiqueteuse","Préventif",null,"2013-07-22",null,null,null,"- Lubrifier les têtes par les trous. (en début de prod en utlisant de l'huile pour guide de coulissement)"]
["MP","Tire-palette Jung","Préventif",null,"2013-07-22",null,null,null,"Vérifer le niveau d'eau de la batterie"]
["MP","Tireuse","Préventif",null,"2013-07-24",null,null,null,"Contrôle des urgences :\n- Verifier qu'en appuyant sur le poussoir d'urgence la machine s'arrete\n- Si la machine ne s'arrete pas il faut l'arreter en coupant l'alimentation et tout de suite chercher la cause du défaut.\n- Verifier avec la machine arretée que les urgences ( etoile, guichets...) sont fonctionnantes, il faut que sur le tableau les voyants rouges soient allumés\n- Vérifier avec la machine arretée, que les photocellules sont fonctionnantes; il faut que sur le tableau le voyant clignotant s'allume"]
["MP","MEAD","Préventif",null,"2013-07-26",null,null,null,"Contrôler l'état général du magasin (pas endommagées ou cassées) "]
["MP","MEAD","Préventif",null,"2013-07-26",null,null,null,"Contrôler létat général du dépileur"]
["MP","MEAD","Préventif",null,"2013-07-26",null,null,null,"Contrôler le régalge du dépileur et des chaînes carton"]
["MP","MEAD","Préventif",null,"2013-07-26",null,null,null,"Contrôler létat général des ventouses du dépileur "]
["MP","Linx","Préventif",null,"2013-07-26",null,null,null,"- Têtes d'impression\n- filtre à air\n- armoire de l'imprimante"]
["MP","TRIO","Préventif",null,"2013-07-26",null,null,null," Contrôler le niveau d'huile dans le filtre graisseur du système pneumatique."]
["MP","Tireuse","Préventif",null,"2013-07-26",null,null,null,"Contrôle des urgences :\n- Verifier qu'en appuyant sur le poussoir d'urgence la machine s'arrete\n- Si la machine ne s'arrete pas il faut l'arreter en coupant l'alimentation et tout de suite chercher la cause du défaut.\n- Verifier avec la machine arretée que les urgences ( etoile, guichets...) sont fonctionnantes, il faut que sur le tableau les voyants rouges soient allumés\n- Vérifier avec la machine arretée, que les photocellules sont fonctionnantes; il faut que sur le tableau le voyant clignotant s'allume"]
["MP","Boucheuse / Museleuse","Préventif",null,"2013-07-26",null,null,null,"Sortir le bloc machoire\n Passer un coup de jet d'air pour enlever la poussière de bouchon                                              \nDémonter les machoires  \nLes tremper dans de l'eau chaude, afin quelles soient bien propres. \nLes remonter\nLes graisser avec de la graisse alimentaire           "]
["MP","Etiqueteuse","Préventif",null,"2013-07-26",null,null,null,"- Graisser le disque came soulevement têtes avec de la graisse graphitee"]
["MP","Etiqueteuse","Préventif",null,"2013-07-26",null,null,null,"- Graisser le plat de rotation croix de malte pour carroussel avec de la graisse graphitee"]
["MP","Etiqueteuse","Préventif",null,"2013-07-26",null,null,null,"Lubrifier avec un pinceau les engrenages situés à l'intérieur du chassis"]
["MP","Etiqueteuse","Préventif",null,"2013-07-26",null,null,null,"Graisser par graisseurs avec graisse minérale pour roulement l'engrenage central (dans le cassis)"]
["MP","Etiqueteuse","Préventif",null,"2013-07-26",null,null,null,"Graisser avec un pinceaula vis de réglage des inclinaisons avec de la graisse graphitée"]
["MP","Pompe DEPA","Préventif",null,"2013-07-26",null,null,null,"Contrôle visuel"]
["MP","Etiqueteuse adhésive","Préventif",null,"2013-07-26",null,null,null,"Contrôle du réseau pneumatique vérifier qu'il n'y ai pas de fuites. ( tubes, raccords, cylindres et valves)"]
["MP","MEAD","Préventif",null,"2013-07-26",null,null,null,"Nettoyer l'afficheur avec une éponge humide et savonneuse, un liquide vaisselle, une lessive liquide, des produits à vitres du commerce"]
["MP","MEAD","Préventif",null,"2013-07-26",null,null,null,"Contrôler l'état du moteur (visuel)"]
["MP","MEAD","Préventif",null,"2013-07-26",null,null,null,"Contrôler l'éfficacité des dispositifs de sécurité (portes, arrêts d'urgence) "]
["MP","Pasteurisateur","Préventif",null,"2013-07-26",null,null,null,"Filtres à airs (x2) : Démonter la cloche (noire) de protection et nettoyer le filtre : a) carton à l'air comprimé b) à mailles métalliques à l'eau chaude + dégraissant"]
["MP","Compresseur","Préventif",null,"2013-07-26",null,null,null,"- Verifier la clarté de l'eau avec le dispositif en photo jointe , si plus trouble que la partie basse, changer le filtre  \n - Purger l'eau                            \n-Vérifier les flexibles"]
["MP","Compresseur","Préventif",null,"2013-07-26",null,null,null,"-Nettoyage général"]
["MP - JJ","Filmeuse","Curatif","Palier","2013-07-26",null,null,null,"Changement du palier plateau",null,null,null,null,null,"Achat supplémentaire d'un extracteur ",null,null,null,null,null,215.63]
["MP","Tireuse","Préventif",null,"2013-07-30",null,null,null,"- Glissement tige cylindre  élévateur bouteilles.\n - Vérifier que le glissement de la tige du cylindre élévateur de bouteilles glisse correctement."]
["MP","Tireuse","Préventif",null,"2013-07-30",null,null,null,"Contrôler l'état d'usure des joints du cylindre et l'efficacité du circuit pneumatique."]
["MP","Tireuse","Préventif",null,"2013-07-30",null,null,null,"En cas de bruit ou d'usure il est nécessaire de remplacer les joints"]
["MP","Tireuse","Préventif",null,"2013-07-30",null,null,null,"Contrôler en démarrant et en arrêtant la machine plusieurs fois sans bouteilles, l'éventuelle présence de bruits anormaux, jeux et vibration des composants de la motorisation"]
["MP","Tireuse","Préventif",null,"2013-07-30",null,null,null,"Nettoyer et lubrifier tout les convoyeurs"]
["MP","Tireuse","Préventif",null,"2013-07-30",null,null,null,"Contrôle des urgences :\n- Verifier qu'en appuyant sur le poussoir d'urgence la machine s'arrete\n- Si la machine ne s'arrete pas il faut l'arreter en coupant l'alimentation et tout de suite chercher la cause du défaut.\n- Verifier avec la machine arretée que les urgences ( etoile, guichets...) sont fonctionnantes, il faut que sur le tableau les voyants rouges soient allumés\n- Vérifier avec la machine arretée, que les photocellules sont fonctionnantes; il faut que sur le tableau le voyant clignotant s'allume"]
["MP","Tireuse","Préventif",null,"2013-07-30",null,null,null,"1 point graissage dessus cloche\n12 sur les rouleaux dans carter\n4 sur arbre de rotation en quart de tour                                                                                                                                         "]
["MP","Boucheuse / Museleuse","Préventif",null,"2013-07-30",null,null,null," Vérifier la tension des chaînes d'entraînement,  elles doivent-être bien tendues.                                                                - Vérifier le niveau d'huile dans le réservoir de la pompe, puis pomper quelques coups afin de lubrifier les axes de guidage, chaînes, couronnes.    \n- Remplir les huileurs afin de chasser l'huile précedente    \n- Graisser tout les point de graissage sur le haut de la machine (1  derrière piston boucheuse et 3 à droite du museulage)"]
["MP","Dépaletiseur","Préventif",null,"2013-07-30",null,null,null,"Cf documentation Table 6-A pos. 3"]
["MP","Dépaletiseur","Préventif",null,"2013-07-30",null,null,null,"Cf documentation table 6-B pos.8"]
["MP","Rinceuse","Préventif",null,"2013-07-30",null,null,null,"2 points de graissage sur l'axe central\n1 point graissage sur vis d'entrée"]
["MP","Dépaletiseur","Préventif",null,"2013-07-30",null,null,null,"Graissage tapis"]
["MP","Dépaletiseur","Préventif",null,"2013-07-30",null,null,null,"Nettoyage et contrôle  des cellules photoélectriques et cataphotes"]
["MP","TRIO","Préventif",null,"2013-07-30",null,null,null,"- Enlever la poussière des cellules photoélectriques et des cataphotes avec un chiffon doux et sec en prenant soin de ne pas modifier leur orientation."]
["MP","TRIO","Préventif",null,"2013-07-30",null,null,null,"Contrôler la présence de condensant dans le filtre régulateur R1 et s'il le faut le démonter"]
["MP","TRIO","Préventif",null,"2013-07-30",null,null,null," Contrôler le niveau d'huile dans le filtre graisseur du système pneumatique."]
["MP","Convoyeurs","Préventif",null,"2013-07-30",null,null,null,"36 points de graissage"]
["MP","Etiqueteuse","Préventif",null,"2013-07-30",null,null,null,"- Lubrifier les têtes par les trous. (en début de prod en utlisant de l'huile pour guide de coulissement)"]
["MP","Tire-palette Jung","Préventif",null,"2013-07-30",null,null,null,"Vérifer le niveau d'eau de la batterie"]
["MP","Laveuse","Curatif","Guide","2013-07-31",null,null,null,"Remise en état du guide gauche tapis"]
["DG","Tireuse","Préventif",null,"2013-08-06",null,null,null,"Contrôle des urgences :\n- Verifier qu'en appuyant sur le poussoir d'urgence la machine s'arrete\n- Si la machine ne s'arrete pas il faut l'arreter en coupant l'alimentation et tout de suite chercher la cause du défaut.\n- Verifier avec la machine arretée que les urgences ( etoile, guichets...) sont fonctionnantes, il faut que sur le tableau les voyants rouges soient allumés\n- Vérifier avec la machine arretée, que les photocellules sont fonctionnantes; il faut que sur le tableau le voyant clignotant s'allume"]
["MP","Tireuse","Préventif",null,"2013-08-07",null,null,null,"- Glissement tige cylindre  élévateur bouteilles.\n - Vérifier que le glissement de la tige du cylindre élévateur de bouteilles glisse correctement."]
["MP","Tireuse","Préventif",null,"2013-08-07",null,null,null,"Contrôler l'état d'usure des joints du cylindre et l'efficacité du circuit pneumatique."]
["MP","Tireuse","Préventif",null,"2013-08-07",null,null,null,"Contrôle des urgences :\n- Verifier qu'en appuyant sur le poussoir d'urgence la machine s'arrete\n- Si la machine ne s'arrete pas il faut l'arreter en coupant l'alimentation et tout de suite chercher la cause du défaut.\n- Verifier avec la machine arretée que les urgences ( etoile, guichets...) sont fonctionnantes, il faut que sur le tableau les voyants rouges soient allumés\n- Vérifier avec la machine arretée, que les photocellules sont fonctionnantes; il faut que sur le tableau le voyant clignotant s'allume"]
["MP","Boucheuse / Museleuse","Préventif",null,"2013-08-07",null,null,null,"Sortir le bloc machoire\n Passer un coup de jet d'air pour enlever la poussière de bouchon                                              \nDémonter les machoires  \nLes tremper dans de l'eau chaude, afin quelles soient bien propres. \nLes remonter\nLes graisser avec de la graisse alimentaire           "]
["MP","Boucheuse / Museleuse","Préventif",null,"2013-08-07",null,null,null," Vérifier la tension des chaînes d'entraînement,  elles doivent-être bien tendues.                                                                - Vérifier le niveau d'huile dans le réservoir de la pompe, puis pomper quelques coups afin de lubrifier les axes de guidage, chaînes, couronnes.    \n- Remplir les huileurs afin de chasser l'huile précedente    \n- Graisser tout les point de graissage sur le haut de la machine (1  derrière piston boucheuse et 3 à droite du museulage)"]
["MP","TRIO","Préventif",null,"2013-08-07",null,null,null," Contrôler le niveau d'huile dans le filtre graisseur du système pneumatique."]
["MP","TRIO","Préventif",null,"2013-08-07",null,null,null,"Contrôler la présence de condensant dans le filtre régulateur R1 et s'il le faut le démonter"]
["MP","Linx","Préventif",null,"2013-08-07",null,null,null,"- Têtes d'impression\n- filtre à air\n- armoire de l'imprimante"]
["MP","Etiqueteuse","Préventif",null,"2013-08-07",null,null,null,"- Graisser avec graisseur les engrenages VIS (graisse graphitée)"]
["MP","Etiqueteuse","Préventif",null,"2013-08-07",null,null,null,"- Lubrifier les têtes par les trous. (en début de prod en utlisant de l'huile pour guide de coulissement)"]
["MP","Etiqueteuse","Préventif",null,"2013-08-07",null,null,null,"- Graisser le disque came soulevement têtes avec de la graisse graphitee"]
["MP","Etiqueteuse","Préventif",null,"2013-08-07",null,null,null,"- Graisser le plat de rotation croix de malte pour carroussel avec de la graisse graphitee"]
["MP","Etiqueteuse","Préventif",null,"2013-08-07",null,null,null,"Lubrifier avec un pinceau les engrenages situés à l'intérieur du chassis"]
["MP","Etiqueteuse","Préventif",null,"2013-08-07",null,null,null,"Graisser par graisseurs avec graisse minérale pour roulement l'engrenage central (dans le cassis)"]
["MP","Etiqueteuse","Préventif",null,"2013-08-07",null,null,null,"Graisser avec un pinceaula vis de réglage des inclinaisons avec de la graisse graphitée"]
["MP","Alimentation Bouchon","Préventif",null,"2013-08-07",null,null,null,"- Contrôler la jauge d'huile dans la coupe du régulateur de pression."]
["MP","Pompe DEPA","Préventif",null,"2013-08-07",null,null,null,"Contrôle visuel"]
["MP","Etiqueteuse adhésive","Préventif",null,"2013-08-07",null,null,null,"Contrôle du réseau pneumatique vérifier qu'il n'y ai pas de fuites. ( tubes, raccords, cylindres et valves)"]
["MP","Etiqueteuse adhésive","Préventif",null,"2013-08-07",null,null,null,"Effectuer la vidange de la condensation du filtre d'air pneumatique"]
["MP","Tire-palette Jung","Préventif",null,"2013-08-07",null,null,null,"Vérifer le niveau d'eau de la batterie"]
["MP","Tire-palette à bras","Préventif",null,"2013-08-07",null,null,null,"Contrôler l'état général"]
["MP","MEAD","Préventif",null,"2013-08-07",null,null,null,"Contrôler létat général des ventouses du dépileur "]
["MP","MEAD","Préventif",null,"2013-08-07",null,null,null,"Contrôler le régalge du dépileur et des chaînes carton"]
["MP","MEAD","Préventif",null,"2013-08-07",null,null,null,"Contrôler létat général du dépileur"]
["MP","MEAD","Préventif",null,"2013-08-07",null,null,null,"Contrôler l'état général du magasin (pas endommagées ou cassées) "]
["MP","MEAD","Préventif",null,"2013-08-07",null,null,null,"Contrôler l'éfficacité des dispositifs de sécurité (portes, arrêts d'urgence) "]
["MP","MEAD","Préventif",null,"2013-08-07",null,null,null,"Contrôler l'état du moteur (visuel)"]
["MP","MEAD","Préventif",null,"2013-08-07",null,null,null,"Lubrification coté opérateur"]
["MP","MEAD","Préventif",null,"2013-08-07",null,null,null,"Lubrification coté non opérateur"]
["MP","MEAD","Préventif",null,"2013-08-07",null,null,null,"Nettoyer l'afficheur avec une éponge humide et savonneuse, un liquide vaisselle, une lessive liquide, des produits à vitres du commerce"]
["MP","MEAD","Préventif",null,"2013-08-07",null,null,null,"Nettoyer les tôles de protection inférieures"]
["MP","Compresseur","Préventif",null,"2013-08-13",null,null,null,"- Verifier la clarté de l'eau avec le dispositif en photo jointe , si plus trouble que la partie basse, changer le filtre  \n - Purger l'eau                            \n-Vérifier les flexibles"]
["MP","Pasteurisateur","Préventif",null,"2013-08-13",null,null,null,"Filtres à airs (x2) : Démonter la cloche (noire) de protection et nettoyer le filtre : a) carton à l'air comprimé b) à mailles métalliques à l'eau chaude + dégraissant"]
["MP","MEAD","Préventif",null,"2013-08-13",null,null,null,"Contrôler l'état général du magasin (pas endommagées ou cassées) "]
["MP","MEAD","Préventif",null,"2013-08-13",null,null,null,"Contrôler létat général du dépileur"]
["MP","MEAD","Préventif",null,"2013-08-13",null,null,null,"Contrôler le régalge du dépileur et des chaînes carton"]
["MP","MEAD","Préventif",null,"2013-08-13",null,null,null,"Contrôler létat général des ventouses du dépileur "]
["MP","MEAD","Préventif",null,"2013-08-13",null,null,null,"Contrôler l'état du moteur (visuel)"]
["MP","MEAD","Préventif",null,"2013-08-13",null,null,null,"Nettoyer l'afficheur avec une éponge humide et savonneuse, un liquide vaisselle, une lessive liquide, des produits à vitres du commerce"]
["MP","Etiqueteuse adhésive","Préventif",null,"2013-08-13",null,null,null,"Contrôle du réseau pneumatique vérifier qu'il n'y ai pas de fuites. ( tubes, raccords, cylindres et valves)"]
["MP","Etiqueteuse adhésive","Préventif",null,"2013-08-13",null,null,null,"Contrôle visuel afin de relever d'éventuel endommagements , usures, altérations ou relachement de vis."]
["MP","Pompe DEPA","Préventif",null,"2013-08-13",null,null,null,"Contrôle des Tirant et collier de serrage type PM avec sièges PTFE"]
["MP","Pompe DEPA","Préventif",null,"2013-08-13",null,null,null," Collecteur / chambre de pompe type DH-PT/-TL "]
["MP","Pompe DEPA","Préventif",null,"2013-08-13",null,null,null,"Contrôle Tirant, Collier de serrage type DL-PT/-TL "]
["MP","Pompe DEPA","Préventif",null,"2013-08-13",null,null,null,"Contrôle visuel"]
["MP","Pompe DEPA","Préventif",null,"2013-08-13",null,null,null,"Contrôle des pièces d'usure et remplacement si besoin."]
["MP","Convoyeurs","Préventif",null,"2013-08-13",null,null,null,"36 points de graissage"]
["MP","Linx","Préventif",null,"2013-08-13",null,null,null,"- Têtes d'impression\n- filtre à air\n- armoire de l'imprimante"]
["MP","TRIO","Préventif",null,"2013-08-13",null,null,null," Contrôler le niveau d'huile dans le filtre graisseur du système pneumatique."]
["MP","TRIO","Préventif",null,"2013-08-13",null,null,null,"Contrôler la présence de condensant dans le filtre régulateur R1 et s'il le faut le démonter"]
["MP","Tireuse","Préventif",null,"2013-08-13",null,null,null,"Contrôle des urgences :\n- Verifier qu'en appuyant sur le poussoir d'urgence la machine s'arrete\n- Si la machine ne s'arrete pas il faut l'arreter en coupant l'alimentation et tout de suite chercher la cause du défaut.\n- Verifier avec la machine arretée que les urgences ( etoile, guichets...) sont fonctionnantes, il faut que sur le tableau les voyants rouges soient allumés\n- Vérifier avec la machine arretée, que les photocellules sont fonctionnantes; il faut que sur le tableau le voyant clignotant s'allume"]
["MP","Boucheuse / Museleuse","Préventif",null,"2013-08-13",null,null,null,"Sortir le bloc machoire\n Passer un coup de jet d'air pour enlever la poussière de bouchon                                              \nDémonter les machoires  \nLes tremper dans de l'eau chaude, afin quelles soient bien propres. \nLes remonter\nLes graisser avec de la graisse alimentaire           "]
["MP","Boucheuse / Museleuse","Préventif",null,"2013-08-13",null,null,null," Vérifier la tension des chaînes d'entraînement,  elles doivent-être bien tendues.                                                                - Vérifier le niveau d'huile dans le réservoir de la pompe, puis pomper quelques coups afin de lubrifier les axes de guidage, chaînes, couronnes.    \n- Remplir les huileurs afin de chasser l'huile précedente    \n- Graisser tout les point de graissage sur le haut de la machine (1  derrière piston boucheuse et 3 à droite du museulage)"]
["T2C","Structure","Curatif",null,"2013-08-01",null,null,null,"Remplacement tuyauterie souple en rigide inox circuit d'eau chaude embouteillage - Colmatage des différentes fuites circuit d'eau batiment"]
["T2c","Echangeur intérieur","Curatif","Echangeur pilerie","2013-08-02",null,null,null,"Recherche de la fuite - réparation par soudure"]
["MP","Boucheuse / museleuse","Curatif","Protection","2013-08-13",null,null,null,"Achat et pose d'un plexiglas de protection arrière machine",null,null,null,null,null,"Achat d'un plexiglas et de supports inox",null,null,null,null,null,194.22]
["MP","Etiqueteuse","Préventif",null,"2013-08-19",null,null,null,"- Lubrifier les têtes par les trous. (en début de prod en utlisant de l'huile pour guide de coulissement)"]
["MP","Etiqueteuse","Préventif",null,"2013-08-19",null,null,null,"- Graisser le disque came soulevement têtes avec de la graisse graphitee"]
["MP","Etiqueteuse","Préventif",null,"2013-08-19",null,null,null,"- Graisser le plat de rotation croix de malte pour carroussel avec de la graisse graphitee"]
["MP","Etiqueteuse","Préventif",null,"2013-08-19",null,null,null,"Lubrifier avec un pinceau les engrenages situés à l'intérieur du chassis"]
["MP","Etiqueteuse","Préventif",null,"2013-08-19",null,null,null,"Graisser par graisseurs avec graisse minérale pour roulement l'engrenage central (dans le cassis)"]
["MP","Etiqueteuse","Préventif",null,"2013-08-19",null,null,null,"Graisser avec un pinceaula vis de réglage des inclinaisons avec de la graisse graphitée"]
["MP","Tire-palette Jung","Préventif",null,"2013-08-19",null,null,null,"Vérifer le niveau d'eau de la batterie"]
["MP","Tapis sortie TRIO","Préventif",null,"2013-08-19",null,null,null,"4 points de graissage"]
["MP","TRIO","Préventif",null,"2013-08-19"," ",null,null," Contrôler le niveau d'huile dans le filtre graisseur du système pneumatique."]
["MP","TRIO","Préventif",null,"2013-08-19",null,null,null,"Contrôler la présence de condensant dans le filtre régulateur R1 et s'il le faut le démonter"]
["MP","Compresseur","Préventif",null,"2013-08-23",null,null,null,"-Nettoyage général"]
["MP","Compresseur","Préventif",null,"2013-08-23",null,null,null,"- Verifier la clarté de l'eau avec le dispositif en photo jointe , si plus trouble que la partie basse, changer le filtre  'Enregistrements interventions'!344:344"]
["MP","MEAD","Préventif",null,"2013-08-23",null,null,null,"Contrôler létat général des ventouses du dépileur "]
["MP","MEAD","Préventif",null,"2013-08-23",null,null,null,"Contrôler le régalge du dépileur et des chaînes carton"]
["MP","MEAD","Préventif",null,"2013-08-23",null,null,null,"Contrôler létat général du dépileur"]
["MP","MEAD","Préventif",null,"2013-08-23",null,null,null,"Contrôler l'état général du magasin (pas endommagées ou cassées) "]
["MP","MEAD","Préventif",null,"2013-08-23",null,null,null,"Contrôler l'éfficacité des dispositifs de sécurité (portes, arrêts d'urgence) "]
["MP","MEAD","Préventif",null,"2013-08-23",null,null,null,"Contrôler l'état du moteur (visuel)"]
["MP","Etiqueteuse adhésive","Préventif",null,"2013-08-23",null,null,null,"Contrôle du réseau pneumatique vérifier qu'il n'y ai pas de fuites. ( tubes, raccords, cylindres et valves)"]
["MP","Pompe DEPA","Préventif",null,"2013-08-23",null,null,null,"Contrôle visuel"]
["MP","Etiqueteuse","Préventif",null,"2013-08-23",null,null,null,"Lubrifier le support pour étoile d'entrée et étoile de sortie "]
["MP","TRIO","Préventif",null,"2013-08-23",null,null,null," Contrôler le niveau d'huile dans le filtre graisseur du système pneumatique."]
["MP","Boucheuse / Museleuse","Préventif",null,"2013-08-23",null,null,null," Vérifier la tension des chaînes d'entraînement,  elles doivent-être bien tendues.                                                                - Vérifier le niveau d'huile dans le réservoir de la pompe, puis pomper quelques coups afin de lubrifier les axes de guidage, chaînes, couronnes.    \n- Remplir les huileurs afin de chasser l'huile précedente    \n- Graisser tout les point de graissage sur le haut de la machine (1  derrière piston boucheuse et 3 à droite du museulage)"]
["MP","Tireuse","Préventif",null,"2013-08-23",null,null,null,"Contrôle des urgences :\n- Verifier qu'en appuyant sur le poussoir d'urgence la machine s'arrete\n- Si la machine ne s'arrete pas il faut l'arreter en coupant l'alimentation et tout de suite chercher la cause du défaut.\n- Verifier avec la machine arretée que les urgences ( etoile, guichets...) sont fonctionnantes, il faut que sur le tableau les voyants rouges soient allumés\n- Vérifier avec la machine arretée, que les photocellules sont fonctionnantes; il faut que sur le tableau le voyant clignotant s'allume"]
["MP","Tireuse","Préventif",null,"2013-08-23",null,null,null,"Contrôler la mise en phase de tout les outillages"]
["MP","Tireuse","Préventif",null,"2013-08-23",null,null,null,"Contrôler l'état d'usure des joints du cylindre et l'efficacité du circuit pneumatique."]
["MP","Tireuse","Préventif",null,"2013-08-23",null,null,null,"- Glissement tige cylindre  élévateur bouteilles.\n - Vérifier que le glissement de la tige du cylindre élévateur de bouteilles glisse correctement."]
["MP","Linx","Préventif",null,"2013-08-23",null,null,null,"- Têtes d'impression\n- filtre à air\n- armoire de l'imprimante"]
["MP","Pasteurisateur","Préventif",null,"2013-08-26",null,null,null,"Filtres à airs (x2) : Démonter la cloche (noire) de protection et nettoyer le filtre : a) carton à l'air comprimé b) à mailles métalliques à l'eau chaude + dégraissant"]
["MP","Etiqueteuse","Préventif",null,"2013-08-26",null,null,null,"Graisser par graisseur la butée de l'arbre central (dans le chassis) avec de la graisse minérale pour roulements"]
["MP","Etiqueteuse","Préventif",null,"2013-08-26",null,null,null,"- Graisser l'étoile plie bande en \"U\" avec de la graisse minerale"]
["MP","Etiqueteuse","Préventif",null,"2013-08-26",null,null,null,"Graisser le supports rouleau pinces et rouleau collage avec de la graisse minérale pour roulement"]
["MP","Etiqueteuse","Préventif",null,"2013-08-26",null,null,null,"Graisser par graisseur avec graisse minéral le support carrousel tetes étiquteuse"]
["MP","Etiqueteuse","Préventif",null,"2013-08-26",null,null,null,"Graisser avec graisseur les supports plats carrousel étiqueteuse avec de la graisse minérale pour roulement"]
["MP","Etiqueteuse","Préventif",null,"2013-08-26",null,null,null,"Graisser par grassieur les supports plat carrousel avec de la graisse minéral pour coussinets"]
["MP","Etiqueteuse","Préventif",null,"2013-08-26",null,null,null,"- Graisser les supports rouleaux à colle en utilisant de la graisse minérale pour roulement"]
["MP","Etiqueteuse","Préventif",null,"2013-08-26",null,null,null,"- Graisser avec graisseur les engrenages VIS (graisse graphitée)"]
["MP","TRIO","Préventif",null,"2013-08-26",null,null,null,"Contrôler la présence de condensant dans le filtre régulateur R1 et s'il le faut le démonter"]
["MP","Dépaletiseur","Préventif",null,"2013-08-26",null,null,null,"Nettoyage et contrôle  des cellules photoélectriques et cataphotes"]
["MP","Dépaletiseur","Préventif",null,"2013-08-26",null,null,null,"Graissage tapis"]
["MP","Rinceuse","Préventif",null,"2013-08-26",null,null,null,"2 points de graissage sur l'axe central\n1 point graissage sur vis d'entrée"]
["MP","TRIO","Préventif",null,"2013-08-26",null,null,null,"- Enlever la poussière des cellules photoélectriques et des cataphotes avec un chiffon doux et sec en prenant soin de ne pas modifier leur orientation."]
["MP","Flash pasteurisateur","Préventif",null,"2013-08-27",null,null,null,"Contrôle des dispositifs de sécurité"]
["MP","Presse AMOS","Préventif",null,"2013-08-27",null,null,null,"Contrôle des dispositifs de sécurité"]
["MP","Bucher","Préventif",null,"2013-08-27",null,null,null,"Contrôle des dispositifs de sécurité"]
["MP","Laveuse","Préventif",null,"2013-08-27",null,null,null,"Contrôle des dispositifs de sécurité"]
["MP","Macérateur","Préventif",null,"2013-08-27",null,null,null,"Contrôle des dispositifs de sécurité"]
["MP","Entrée pilerie","Préventif",null,"2013-08-27",null,null,null,"Contrôle des dispositifs de sécurité"]
["MP","Parc à pommes","Préventif",null,"2013-08-27",null,null,null,"Contrôle des dispositifs de sécurité"]
["MP","Automate SIEMENS","Préventif",null,"2013-08-27",null,null,null,"Contrôle des dispositifs de sécurité"]
["MP","Macérateur","Préventif",null,"2013-08-27",null,null,null,"Contrôle des dispositifs de sécurité (Verifier que quand la porte de la rappe est ouverte -> arret)"]
["MP","Tire-palette Jung","Préventif",null,"2013-08-27",null,null,null,"Vérifer le niveau d'eau de la batterie"]
["MP","Centrifugeuse","Préventif",null,"2013-08-27",null,null,null,"Contrôle visuel et niveau d'huile"]
["MP","Etiqueteuse","Préventif",null,"2013-08-27",null,null,null,"Graisser avec un pinceaula vis de réglage des inclinaisons avec de la graisse graphitée"]
["MP","Etiqueteuse","Préventif",null,"2013-08-27",null,null,null,"Graisser par graisseurs avec graisse minérale pour roulement l'engrenage central (dans le cassis)"]
["MP","Etiqueteuse","Préventif",null,"2013-08-27",null,null,null,"Lubrifier avec un pinceau les engrenages situés à l'intérieur du chassis"]
["MP","Etiqueteuse","Préventif",null,"2013-08-27",null,null,null,"- Graisser le plat de rotation croix de malte pour carroussel avec de la graisse graphitee"]
["MP","Etiqueteuse","Préventif",null,"2013-08-27",null,null,null,"- Graisser le disque came soulevement têtes avec de la graisse graphitee"]
["MP","Convoyeurs","Préventif",null,"2013-08-27",null,null,null,"36 points de graissage"]
["MP","Dépaletiseur","Préventif",null,"2013-08-27",null,null,null,"Cf documentation table 6-B pos.8"]
["MP","Dépaletiseur","Préventif",null,"2013-08-27",null,null,null,"Cf documentation Table 6-A pos. 3"]
["MP","Tireuse","Préventif",null,"2013-08-27",null,null,null,"Contrôle des urgences :\n- Verifier qu'en appuyant sur le poussoir d'urgence la machine s'arrete\n- Si la machine ne s'arrete pas il faut l'arreter en coupant l'alimentation et tout de suite chercher la cause du défaut.\n- Verifier avec la machine arretée que les urgences ( etoile, guichets...) sont fonctionnantes, il faut que sur le tableau les voyants rouges soient allumés\n- Vérifier avec la machine arretée, que les photocellules sont fonctionnantes; il faut que sur le tableau le voyant clignotant s'allume"]
["MP -JJ","Tireuse","Curatif","Bec 7","2013-08-28",null,null,null,"Demontage  bec 7 -  vérification  fourche suite a défaut de remplissage -  essai - redémarrage ligne"]
["MP","MEAD","Préventif",null,"2013-08-29",null,null,null,"Contrôler l'éfficacité des dispositifs de sécurité (portes, arrêts d'urgence) "]
["MP","MEAD","Préventif",null,"2013-08-29",null,null,null,"Contrôler l'état du moteur (visuel)"]
["MP","Alimentation Bouchon","Préventif",null,"2013-08-29",null,null,null,"Lubrification des points 261 - 281 - 262"]
["MP","Pompe DEPA","Préventif",null,"2013-08-29",null,null,null,"Contrôle visuel"]
["MP","Linx","Préventif",null,"2013-08-29",null,null,null,"- Têtes d'impression\n- filtre à air\n- armoire de l'imprimante"]
["MP","TRIO","Préventif",null,"2013-08-29",null,null,null," Contrôler le niveau d'huile dans le filtre graisseur du système pneumatique."]
["MP","Tireuse","Préventif",null,"2013-08-29",null,null,null,"Contrôle des urgences :\n- Verifier qu'en appuyant sur le poussoir d'urgence la machine s'arrete\n- Si la machine ne s'arrete pas il faut l'arreter en coupant l'alimentation et tout de suite chercher la cause du défaut.\n- Verifier avec la machine arretée que les urgences ( etoile, guichets...) sont fonctionnantes, il faut que sur le tableau les voyants rouges soient allumés\n- Vérifier avec la machine arretée, que les photocellules sont fonctionnantes; il faut que sur le tableau le voyant clignotant s'allume"]
["MP","Boucheuse / Museleuse","Préventif",null,"2013-08-29",null,null,null," Vérifier la tension des chaînes d'entraînement,  elles doivent-être bien tendues.                                                                - Vérifier le niveau d'huile dans le réservoir de la pompe, puis pomper quelques coups afin de lubrifier les axes de guidage, chaînes, couronnes.    \n- Remplir les huileurs afin de chasser l'huile précedente    \n- Graisser tout les point de graissage sur le haut de la machine (1  derrière piston boucheuse et 3 à droite du museulage)"]
["MP","Tireuse","Préventif",null,"2013-08-29",null,null,null,"1 point graissage dessus cloche\n12 sur les rouleaux dans carter\n4 sur arbre de rotation en quart de tour                                                                                                                                         "]
["MP","Tireuse","Préventif",null,"2013-08-29",null,null,null,"Contrôler l'état d'usure des joints du cylindre et l'efficacité du circuit pneumatique."]
["MP","Tireuse","Préventif",null,"2013-08-29",null,null,null,"- Glissement tige cylindre  élévateur bouteilles.\n - Vérifier que le glissement de la tige du cylindre élévateur de bouteilles glisse correctement."]
["MP","Tireuse","Préventif",null,"2013-08-29",null,null,null,"Contrôler en démarrant et en arrêtant la machine plusieurs fois sans bouteilles, l'éventuelle présence de bruits anormaux, jeux et vibration des composants de la motorisation"]
["MP","Tireuse","Préventif",null,"2013-08-29",null,null,null,"Nettoyer et lubrifier tout les convoyeurs"]
["MP","Tireuse","Préventif",null,"2013-08-29",null,null,null,"contrôler et nettoyer tout les branchements et si nécessaire remplacer les parties usées"]
["MP","Tireuse","Préventif",null,"2013-08-29",null,null,null,"Vérifier qu'il n'y ai pas d'infiltration d'eau"]
["MP","Tireuse","Préventif",null,"2013-08-29",null,null,null,"Contrôle du serrage des canules"]
["Ouest Atlantique","Tire-palette elec","Curatif","Poignée","2013-08-30",null,null,null,"Remplacement de la poignée",null,null,null,null,null,null,null,null,null,null,null,38.590000000000003]
["MP","TRIO","Préventif",null,"2013-09-02",null,null,null,"Contrôler la présence de condensant dans le filtre régulateur R1 et s'il le faut le démonter"]
["MP","Etiqueteuse","Préventif",null,"2013-09-02",null,null,null,"- Lubrifier les têtes par les trous. (en début de prod en utlisant de l'huile pour guide de coulissement)"]
["MP","Tireuse","Préventif",null,"2013-09-02",null,null,null,"Contrôle des urgences :\n- Verifier qu'en appuyant sur le poussoir d'urgence la machine s'arrete\n- Si la machine ne s'arrete pas il faut l'arreter en coupant l'alimentation et tout de suite chercher la cause du défaut.\n- Verifier avec la machine arretée que les urgences ( etoile, guichets...) sont fonctionnantes, il faut que sur le tableau les voyants rouges soient allumés\n- Vérifier avec la machine arretée, que les photocellules sont fonctionnantes; il faut que sur le tableau le voyant clignotant s'allume"]
["MP","Dépaletiseur","Préventif",null,"2013-09-02",null,null,null,"Graissage des engrenages en AIRA"]
["MP","Dépaletiseur","Préventif",null,"2013-09-02",null,null,null,"Cf documentation table 6-B pos.4-5-6-7"]
["MP","Compresseur","Préventif",null,"2013-09-02",null,null,null,"- Verifier la clarté de l'eau avec le dispositif en photo jointe , si plus trouble que la partie basse, changer le filtre  'Enregistrements interventions'!344:344"]
["MP","Tire-palette Jung","Préventif",null,"2013-09-02",null,null,null,"Vérifer le niveau d'eau de la batterie"]
["MP","Pasteurisateur","Préventif",null,"2013-09-02",null,null,null," Filtre gaz : Démonter les 6 vis du couvercle et nettoyer le tamis circulaire en feutrine à l'air comprimé"]
["MP","Etiqueteuse adhésive","Préventif",null,"2013-09-04",null,null,null,"Contrôle du réseau pneumatique vérifier qu'il n'y ai pas de fuites. ( tubes, raccords, cylindres et valves)"]
["Ouest Atlantique","Chariot élevateur Jung","Préventif",null,"2013-09-03",null,null,null,"Entretien par OUEST Atlantique",null,null,null,null,null,"Devis en cours pour fourches et boulons mât"]
["MP","MEAD","Préventif",null,"2013-09-05",null,null,null,"Contrôler l'état général du magasin (pas endommagées ou cassées) "]
["MP","MEAD","Préventif",null,"2013-09-05",null,null,null,"Contrôler létat général du dépileur"]
["MP","MEAD","Préventif",null,"2013-09-05",null,null,null,"Contrôler le régalge du dépileur et des chaînes carton"]
["MP","MEAD","Préventif",null,"2013-09-05",{"$f":"H411-G411","v":0},null,null,"Contrôler létat général des ventouses du dépileur "]
["MP","MEAD","Préventif",null,"2013-09-05",null,null,null,"Contrôler l'éfficacité des dispositifs de sécurité (portes, arrêts d'urgence) "]
["MP","MEAD","Préventif",null,"2013-09-05",null,null,null,"Contrôler l'état du moteur (visuel)"]
["MP","MEAD","Préventif",null,"2013-09-05",null,null,null,"Lubrification coté opérateur"]
["MP","MEAD","Préventif",null,"2013-09-05",null,null,null,"Lubrification coté non opérateur"]
["MP","MEAD","Préventif",null,"2013-09-05",null,null,null,"Nettoyer les tôles de protection inférieures"]
["MP","Etiqueteuse adhésive","Préventif",null,"2013-09-05",null,null,null,"Effectuer la vidange de la condensation du filtre d'air pneumatique"]
["MP","Etiqueteuse adhésive","Préventif",null,"2013-09-05",null,null,null,"Contrôle visuel afin de relever d'éventuel endommagements , usures, altérations ou relachement de vis."]
["MP","Pompe DEPA","Préventif",null,"2013-09-05",null,null,null,"Contrôle visuel"]
["MP","Etiqueteuse","Préventif",null,"2013-09-05",null,null,null,"Graisser avec un pinceaula vis de réglage des inclinaisons avec de la graisse graphitée"]
["MP","Etiqueteuse","Préventif",null,"2013-09-05",null,null,null,"Graisser par graisseurs avec graisse minérale pour roulement l'engrenage central (dans le cassis)"]
["MP","Etiqueteuse","Préventif",null,"2013-09-05",null,null,null,"Lubrifier avec un pinceau les engrenages situés à l'intérieur du chassis"]
["MP","Etiqueteuse","Préventif",null,"2013-09-05",null,null,null,"- Graisser le plat de rotation croix de malte pour carroussel avec de la graisse graphitee"]
["MP","Etiqueteuse","Préventif",null,"2013-09-05",null,null,null,"- Graisser le disque came soulevement têtes avec de la graisse graphitee"]
["MP","Linx","Préventif",null,"2013-09-05",null,null,null,"- Têtes d'impression\n- filtre à air\n- armoire de l'imprimante"]
["MP","TRIO","Préventif",null,"2013-09-05",null,null,null," Contrôler le niveau d'huile dans le filtre graisseur du système pneumatique."]
["MP","Tireuse","Préventif",null,"2013-09-05",null,null,null,"Contrôle des urgences :\n- Verifier qu'en appuyant sur le poussoir d'urgence la machine s'arrete\n- Si la machine ne s'arrete pas il faut l'arreter en coupant l'alimentation et tout de suite chercher la cause du défaut.\n- Verifier avec la machine arretée que les urgences ( etoile, guichets...) sont fonctionnantes, il faut que sur le tableau les voyants rouges soient allumés\n- Vérifier avec la machine arretée, que les photocellules sont fonctionnantes; il faut que sur le tableau le voyant clignotant s'allume"]
["MP","Boucheuse / Museleuse","Préventif",null,"2013-09-05",null,null,null,"Sortir le bloc machoire\n Passer un coup de jet d'air pour enlever la poussière de bouchon                                              \nDémonter les machoires  \nLes tremper dans de l'eau chaude, afin quelles soient bien propres. \nLes remonter\nLes graisser avec de la graisse alimentaire           "]
["MP","Boucheuse / Museleuse","Préventif",null,"2013-09-05",null,null,null," Vérifier la tension des chaînes d'entraînement,  elles doivent-être bien tendues.                                                                - Vérifier le niveau d'huile dans le réservoir de la pompe, puis pomper quelques coups afin de lubrifier les axes de guidage, chaînes, couronnes.    \n- Remplir les huileurs afin de chasser l'huile précedente    \n- Graisser tout les point de graissage sur le haut de la machine (1  derrière piston boucheuse et 3 à droite du museulage)"]
["MP","Tireuse","Préventif",null,"2013-09-05",null,null,null,"Contrôler l'état d'usure des joints du cylindre et l'efficacité du circuit pneumatique."]
["MP","Tireuse","Préventif",null,"2013-09-05",null,null,null,"- Glissement tige cylindre  élévateur bouteilles.\n - Vérifier que le glissement de la tige du cylindre élévateur de bouteilles glisse correctement."]
["Ouest Atlantique","Chariot mitsubishi","Curatif",null,"2013-09-03",null,null,null,"Vérification du chariot",null,null,null,null,null,"Devis pour réparation"]
["Ouest Atlantique","Tire-palette elec","Curatif",null,"2013-09-02",null,null,null,"Réparation du timon",null,null,null,null,null,null,null,null,null,null,null,374.42]
["MP","Tire-palette à bras","Préventif",null,"2013-09-05",null,null,null,"Contrôler l'état général"]
["MP","Presse AMOS","Préventif",null,"2013-09-05",null,null,null,"Vérification du circuit pneumatique et différents éléments pneumatiques ( fuites)"]
["MP","Tire-palette Jung","Préventif",null,"2013-09-06",null,null,null,"Vérifer le niveau d'eau de la batterie"]
["MP","TRIO","Préventif",null,"2013-09-11",null,null,null,"Contrôler la présence de condensant dans le filtre régulateur R1 et s'il le faut le démonter"]
["MP","TRIO","Préventif",null,"2013-09-11",null,null,null," Contrôler le niveau d'huile dans le filtre graisseur du système pneumatique."]
["MP","Boucheuse / Museleuse","Préventif",null,"2013-09-11",null,null,null,"Sortir le bloc machoire\n Passer un coup de jet d'air pour enlever la poussière de bouchon                                              \nDémonter les machoires  \nLes tremper dans de l'eau chaude, afin quelles soient bien propres. \nLes remonter\nLes graisser avec de la graisse alimentaire           "]
["MP","Boucheuse / Museleuse","Préventif",null,"2013-09-11",null,null,null," Vérifier la tension des chaînes d'entraînement,  elles doivent-être bien tendues.                                                                - Vérifier le niveau d'huile dans le réservoir de la pompe, puis pomper quelques coups afin de lubrifier les axes de guidage, chaînes, couronnes.    \n- Remplir les huileurs afin de chasser l'huile précedente    \n- Graisser tout les point de graissage sur le haut de la machine (1  derrière piston boucheuse et 3 à droite du museulage)"]
["MP","Etiqueteuse","Préventif",null,"2013-09-11",null,null,null,"- Lubrifier les têtes par les trous. (en début de prod en utlisant de l'huile pour guide de coulissement)"]
["MP","Etiqueteuse adhésive","Préventif",null,"2013-09-11",null,null,null,"Contrôle du réseau pneumatique vérifier qu'il n'y ai pas de fuites. ( tubes, raccords, cylindres et valves)"]
["MP","Pasteurisateur","Préventif",null,"2013-09-11",null,null,null,"Filtres à airs (x2) : Démonter la cloche (noire) de protection et nettoyer le filtre : a) carton à l'air comprimé b) à mailles métalliques à l'eau chaude + dégraissant"]
["MP","Compresseur","Préventif",null,"2013-09-11",null,null,null,"- Verifier la clarté de l'eau avec le dispositif en photo jointe , si plus trouble que la partie basse, changer le filtre  'Enregistrements interventions'!344:344"]
["MP","Tireuse","Préventif",null,"2013-09-11",null,null,null,"Contrôle des urgences :\n- Verifier qu'en appuyant sur le poussoir d'urgence la machine s'arrete\n- Si la machine ne s'arrete pas il faut l'arreter en coupant l'alimentation et tout de suite chercher la cause du défaut.\n- Verifier avec la machine arretée que les urgences ( etoile, guichets...) sont fonctionnantes, il faut que sur le tableau les voyants rouges soient allumés\n- Vérifier avec la machine arretée, que les photocellules sont fonctionnantes; il faut que sur le tableau le voyant clignotant s'allume"]
["MP","Convoyeurs","Préventif",null,"2013-09-11",null,null,null,"36 points de graissage"]
["MP","Tire-palette Jung","Préventif",null,"2013-09-12",null,null,null,"Vérifer le niveau d'eau de la batterie"]
["CHAPLAIN","Presse BUCHER","Curatif","Circuit hydraulique","2013-09-12",null,null,null,"filtrage huile hydraulique - remplacement filtre à huile - remplacement tuyau hydraulique haute pression"]
["MP","Compresseur","Préventif",null,"2013-09-16",null,null,null,"-Nettoyage général"]
["MP","Compresseur","Préventif",null,"2013-09-16",null,null,null,"- Verifier la clarté de l'eau avec le dispositif en photo jointe , si plus trouble que la partie basse, changer le filtre  'Enregistrements interventions'!344:344"]
["MP","MEAD","Préventif",null,"2013-09-16",null,null,null,"Contrôler l'état général du magasin (pas endommagées ou cassées) "]
["MP","Pompe DEPA","Préventif",null,"2013-09-16",null,null,null,"Contrôle visuel"]
["MP","Pompe DEPA","Préventif",null,"2013-09-16",null,null,null,"Contrôle des pièces d'usure et remplacement si besoin."]
["MP","Pompe DEPA","Préventif",null,"2013-09-16",null,null,null," Collecteur / chambre de pompe type DH-PT/-TL "]
["MP","Pompe DEPA","Préventif",null,"2013-09-16",null,null,null,"Contrôle Tirant, Collier de serrage type DL-PT/-TL "]
["MP","Pompe DEPA","Préventif",null,"2013-09-16",null,null,null,"Contrôle des Tirant et collier de serrage type PM avec sièges PTFE"]
["MP","Etiqueteuse","Préventif",null,"2013-09-16",null,null,null,"- Graisser le plat de rotation croix de malte pour carroussel avec de la graisse graphitee"]
["MP","Etiqueteuse","Préventif",null,"2013-09-16",null,null,null,"- Graisser le disque came soulevement têtes avec de la graisse graphitee"]
["MP","Etiqueteuse","Préventif",null,"2013-09-16",null,null,null,"- Graisser avec graisseur les engrenages VIS (graisse graphitée)"]
["MP","TRIO","Préventif",null,"2013-09-16",null,null,null," Contrôler le niveau d'huile dans le filtre graisseur du système pneumatique."]
["MP","Tireuse","Préventif",null,"2013-09-16",null,null,null,"- Glissement tige cylindre  élévateur bouteilles.\n - Vérifier que le glissement de la tige du cylindre élévateur de bouteilles glisse correctement."]
["MP","Tireuse","Préventif",null,"2013-09-16",null,null,null,"Contrôler l'état d'usure des joints du cylindre et l'efficacité du circuit pneumatique."]
["MP","Tireuse","Préventif",null,"2013-09-16",null,null,null,"Contrôle des urgences :\n- Verifier qu'en appuyant sur le poussoir d'urgence la machine s'arrete\n- Si la machine ne s'arrete pas il faut l'arreter en coupant l'alimentation et tout de suite chercher la cause du défaut.\n- Verifier avec la machine arretée que les urgences ( etoile, guichets...) sont fonctionnantes, il faut que sur le tableau les voyants rouges soient allumés\n- Vérifier avec la machine arretée, que les photocellules sont fonctionnantes; il faut que sur le tableau le voyant clignotant s'allume"]
["MP","Etiqueteuse","Préventif",null,"2013-09-16",null,null,null,"Graisser avec un pinceaula vis de réglage des inclinaisons avec de la graisse graphitée"]
["MP","MEAD","Préventif",null,"2013-09-16",null,null,null,"Contrôler l'éfficacité des dispositifs de sécurité (portes, arrêts d'urgence) "]
["MP","MEAD","Préventif",null,"2013-09-16",null,null,null,"Contrôler l'état du moteur (visuel)"]
["MP","MEAD","Préventif",null,"2013-09-16",null,null,null,"Nettoyer l'afficheur avec une éponge humide et savonneuse, un liquide vaisselle, une lessive liquide, des produits à vitres du commerce"]
["MP","MEAD","Préventif",null,"2013-09-16",null,null,null,"Contrôler létat général du dépileur"]
["MP","MEAD","Préventif",null,"2013-09-16",null,null,null,"Contrôler le régalge du dépileur et des chaînes carton"]
["MP","MEAD","Préventif",null,"2013-09-16",null,null,null,"Contrôler létat général des ventouses du dépileur "]
["MP","Tire-palette Jung","Préventif",null,"2013-09-16",null,null,null,"Vérifer le niveau d'eau de la batterie"]
["MP","Presse BUCHER","Curatif","Circuit hydraulique","2013-09-16",null,null,null,"complément d'huile hydraulique 50 litres NUTO H68",null,null,null,null,null,"manque huile complément insufisant"]
["MP","Filtre PALL","Préventif",null,"2013-09-16",null,null,null,"vérification cablage alimentation et état général"]
["MP","Tapis sortie TRIO","Préventif",null,"2013-09-16",null,null,null,"4 points de graissage"]
["MP","Tireuse","Préventif",null,"2013-09-20",null,null,null,"Contrôle des urgences :\n- Verifier qu'en appuyant sur le poussoir d'urgence la machine s'arrete\n- Si la machine ne s'arrete pas il faut l'arreter en coupant l'alimentation et tout de suite chercher la cause du défaut.\n- Verifier avec la machine arretée que les urgences ( etoile, guichets...) sont fonctionnantes, il faut que sur le tableau les voyants rouges soient allumés\n- Vérifier avec la machine arretée, que les photocellules sont fonctionnantes; il faut que sur le tableau le voyant clignotant s'allume"]
["MP","Boucheuse / Museleuse","Préventif",null,"2013-09-20",null,null,null,"Sortir le bloc machoire\n Passer un coup de jet d'air pour enlever la poussière de bouchon                                              \nDémonter les machoires  \nLes tremper dans de l'eau chaude, afin quelles soient bien propres. \nLes remonter\nLes graisser avec de la graisse alimentaire           "]
["MP","Boucheuse / Museleuse","Préventif",null,"2013-09-20",null,null,null," Vérifier la tension des chaînes d'entraînement,  elles doivent-être bien tendues.                                                                - Vérifier le niveau d'huile dans le réservoir de la pompe, puis pomper quelques coups afin de lubrifier les axes de guidage, chaînes, couronnes.    \n- Remplir les huileurs afin de chasser l'huile précedente    \n- Graisser tout les point de graissage sur le haut de la machine (1  derrière piston boucheuse et 3 à droite du muselage)                           Graisse LUZOL AL"]
["MP","Linx","Préventif",null,"2013-09-20",null,null,null,"- Têtes d'impression\n- filtre à air\n- armoire de l'imprimante"]
["MP","Etiqueteuse","Préventif",null,"2013-09-20",null,null,null,"- Lubrifier les têtes par les trous. (en début de prod en utlisant de l'huile pour guide de coulissement)"]
["MP","Etiqueteuse","Préventif",null,"2013-09-20",null,null,null,"Lubrifier avec un pinceau les engrenages situés à l'intérieur du chassis / / Graisse KF KP 2 K-30"]
["MP","Etiqueteuse","Préventif",null,"2013-09-20",null,null,null,"Graisser par graisseurs avec graisse minérale pour roulement l'engrenage central (dans le cassis) / Graisse KF KP 2 K-30"]
["MP","Pasteurisateur","Préventif",null,"2013-09-20",null,null,null,"Filtres à airs (x2) : Démonter la cloche (noire) de protection et nettoyer le filtre : a) carton à l'air comprimé b) à mailles métalliques à l'eau chaude + dégraissant"]
["MP","Etiqueteuse adhésive","Préventif",null,"2013-09-20",null,null,null,"Contrôle du réseau pneumatique vérifier qu'il n'y ai pas de fuites. ( tubes, raccords, cylindres et valves)"]
["MP","TRIO","Préventif",null,"2013-09-20",null,null,null,"Contrôler la présence de condensant dans le filtre régulateur R1 et s'il le faut le démonter"]
["MP","Tireuse","Préventif",null,"2013-09-23",null,null,null,"Contrôler la mise en phase de tout les outillages"]
["MP","Tireuse","Préventif",null,"2013-09-23",null,null,null,"Contrôle des urgences :\n- Verifier qu'en appuyant sur le poussoir d'urgence la machine s'arrete\n- Si la machine ne s'arrete pas il faut l'arreter en coupant l'alimentation et tout de suite chercher la cause du défaut.\n- Verifier avec la machine arretée que les urgences ( etoile, guichets...) sont fonctionnantes, il faut que sur le tableau les voyants rouges soient allumés\n- Vérifier avec la machine arretée, que les photocellules sont fonctionnantes; il faut que sur le tableau le voyant clignotant s'allume"]
["MP","Tireuse","Préventif",null,"2013-09-23",null,null,null,"Contrôler l'état d'usure des joints du cylindre et l'efficacité du circuit pneumatique."]
["MP","Tireuse","Préventif",null,"2013-09-23",null,null,null,"- Glissement tige cylindre  élévateur bouteilles.\n - Vérifier que le glissement de la tige du cylindre élévateur de bouteilles glisse correctement."]
["MP","Dépaletiseur","Préventif",null,"2013-09-23",null,null,null,"Cf documentation table 6-B pos.8"]
["MP","Tiflex","Préventif",null,"2013-09-23",null,null,null,"Contrôler le filtre à air changer si nécessaire :\n- Déclipsez la grille d'aération située sur le côté de l'unité centrale\n- Enlevez la grille et le filtre usagé\n- Remplacez ce dernier par un filtre neuf\n- Replacez la grille en la clipsant"]
["MP MC","Pasteurisateur","Préventif",null,"2013-09-23",null,null,null,"Nettoyage du Pasteurisateur                                                              \n           Serpentin : Contrôle visuel de sa surface et du fond de la cuve. Si nécessaire, le nettoyer. Si dépôts en fond de cuve le nettoyer? Il doit toujours y avoir une circulation de liquide entre sa surface et le liquide à chauffer                                                                                                                                           -  Filtre à verre : Les démonter afin d'éliminer le verre"]
["MP","Compresseur","Préventif",null,"2013-09-23",null,null,null,"- Verifier la clarté de l'eau avec le dispositif en photo jointe , si plus trouble que la partie basse, changer le filtre  'Enregistrements interventions'!344:344"]
["JJ","Filtre PALL","Préventif",null,"2013-09-23",null,null,null,"Changement fitre Ultipor GF Plus AB3GFHZ7WJ"]
["MP","Filtre padovan","Préventif",null,"2013-09-23",null,null,null," point de graissage Graisse LUZOL AL                                                                             et contrôle de l'état général"]
["MP JJ","Laveuse","Curatif",null,"2013-09-23",null,null,null,"Changement tapis tri bac"]
["MP JJ","Structure","Curatif",null,"2013-09-23",null,null,null,"Pose gouttières évacuation marc"]
["CRT","Pasteurisateur","Préventif","Sonde PT100","2013-09-23",null,null,null,"Vérification sondes de température"]
["SOCOTEC","Conformité électrique","Préventif",null,"2013-09-23",null,null,null,"SOCOTEC - Conformité électrique"]
["MP","Tire-palette Jung","Préventif",null,"2013-09-23",null,null,null,"Vérifer le niveau d'eau de la batterie"]
["MP","MEAD","Préventif",null,"2013-09-23",null,null,null,"Contrôler l'éfficacité des dispositifs de sécurité (portes, arrêts d'urgence) "]
["MP","MEAD","Préventif",null,"2013-09-23",null,null,null,"Contrôler l'état général du magasin (pas endommagées ou cassées) "]
["MP","MEAD","Préventif",null,"2013-09-23",null,null,null,"Contrôler létat général du dépileur"]
["MP","MEAD","Préventif",null,"2013-09-23",null,null,null,"Contrôler le régalge du dépileur et des chaînes carton"]
["MP","MEAD","Préventif",null,"2013-09-23",null,null,null,"Contrôler létat général des ventouses du dépileur "]
["MP","MEAD","Préventif",null,"2013-09-23",null,null,null,"Nettoyer l'afficheur avec une éponge humide et savonneuse, un liquide vaisselle, une lessive liquide, des produits à vitres du commerce"]
["MP","Pompe DEPA","Préventif",null,"2013-09-23",null,null,null,"Contrôle visuel"]
["MP JJ","Boucheuse / museleuse","Curatif","Etoiles","2013-09-25",null,null,null,"Re-synchronisation étoiles"]
["MP","Presse AMOS","Curatif","Air comprimé","2013-09-26",null,null,null,"Echange vanne manuelle serrage tapis"]
["MP","Tireuse","Préventif",null,"2013-09-26",null,null,null,"Contrôle des urgences :\n- Verifier qu'en appuyant sur le poussoir d'urgence la machine s'arrete\n- Si la machine ne s'arrete pas il faut l'arreter en coupant l'alimentation et tout de suite chercher la cause du défaut.\n- Verifier avec la machine arretée que les urgences ( etoile, guichets...) sont fonctionnantes, il faut que sur le tableau les voyants rouges soient allumés\n- Vérifier avec la machine arretée, que les photocellules sont fonctionnantes; il faut que sur le tableau le voyant clignotant s'allume"]
["MP","Boucheuse / Museleuse","Préventif",null,"2013-09-26",null,null,null,"Sortir le bloc machoire\n Passer un coup de jet d'air pour enlever la poussière de bouchon                                              \nDémonter les machoires  \nLes tremper dans de l'eau chaude, afin quelles soient bien propres. \nLes remonter\nLes graisser avec de la graisse alimentaire           "]
["MP","Boucheuse / Museleuse","Préventif",null,"2013-09-26",null,null,null," Vérifier la tension des chaînes d'entraînement,  elles doivent-être bien tendues.                                                                - Vérifier le niveau d'huile dans le réservoir de la pompe, puis pomper quelques coups afin de lubrifier les axes de guidage, chaînes, couronnes.    \n- Remplir les huileurs afin de chasser l'huile précedente    \n- Graisser tout les point de graissage sur le haut de la machine (1  derrière piston boucheuse et 3 à droite du muselage)                           Graisse LUZOL AL"]
["MP","Dépaletiseur","Préventif",null,"2013-09-26",null,null,null,"Cf documentation Table 6-A pos. 3"]
["MP","TRIO","Préventif",null,"2013-09-26",null,null,null,"- Enlever la poussière des cellules photoélectriques et des cataphotes avec un chiffon doux et sec en prenant soin de ne pas modifier leur orientation."]
["MP","Dépaletiseur","Préventif",null,"2013-09-26",null,null,null,"Nettoyage et contrôle  des cellules photoélectriques et cataphotes"]
["MP","Dépaletiseur","Préventif",null,"2013-09-26",null,null,null,"Graissage tapis / Graisse LUZOL AL"]
["MP","Rinceuse","Préventif",null,"2013-09-26",null,null,null,"2 points de graissage sur l'axe central\n1  point graissage sur vis d'entrée                                                                                Graisse LUZOL AL"]
["MP","TRIO","Préventif",null,"2013-09-26",null,null,null," Contrôler le niveau d'huile dans le filtre graisseur du système pneumatique."]
["MP","TRIO","Préventif",null,"2013-09-26",null,null,null,"Contrôler la présence de condensant dans le filtre régulateur R1 et s'il le faut le démonter"]
["MP","Convoyeurs","Préventif",null,"2013-09-26",null,null,null,"36 points de graissage / Graisse LUZOL AL"]
["MP","Linx","Préventif",null,"2013-09-26",null,null,null,"- Têtes d'impression\n- filtre à air\n- armoire de l'imprimante"]
["MP","Etiqueteuse","Préventif",null,"2013-09-26",null,null,null,"- Lubrifier les têtes par les trous. (en début de prod en utlisant de l'huile pour guide de coulissement)"]
["MP","Etiqueteuse","Préventif",null,"2013-09-26",null,null,null,"- Graisser le plat de rotation croix de malte pour carroussel avec de la graisse graphitee"]
["MP","Etiqueteuse","Préventif",null,"2013-09-26",null,null,null,"- Graisser le disque came soulevement têtes avec de la graisse graphitee"]
["MP","Etiqueteuse","Préventif",null,"2013-09-26",null,null,null,"Graisser avec un pinceaula vis de réglage des inclinaisons avec de la graisse graphitée"]
["MP","Etiqueteuse","Préventif",null,"2013-09-26",null,null,null,"Graisser par graisseur la butée de l'arbre central (dans le chassis) avec de la graisse minérale pour roulements / Graisse KF KP 2 K-30"]
["MP","Etiqueteuse adhésive","Préventif",null,"2013-09-26",null,null,null,"Contrôle du réseau pneumatique vérifier qu'il n'y ai pas de fuites. ( tubes, raccords, cylindres et valves)"]
["MP","MEAD","Préventif",null,"2013-09-26",null,null,null,"Contrôler l'état du moteur (visuel)"]
["MP","Presse AMOS","Préventif",null,"2013-09-26",null,null,null,"Vérification du circuit pneumatique et différents éléments pneumatiques ( fuites)"]
["MP","Centrifugeuse","Préventif",null,"2013-09-26",null,null,null,"Contrôle visuel et niveau d'huile"]
["MP","Tireuse","Préventif",null,"2013-09-30",null,null,null,"- Glissement tige cylindre  élévateur bouteilles.\n - Vérifier que le glissement de la tige du cylindre élévateur de bouteilles glisse correctement."]
["MP","Tireuse","Préventif",null,"2013-09-30",null,null,null,"Contrôler l'état d'usure des joints du cylindre et l'efficacité du circuit pneumatique."]
["MP","Tireuse","Préventif",null,"2013-09-30",null,null,null,"Contrôler en démarrant et en arrêtant la machine plusieurs fois sans bouteilles, l'éventuelle présence de bruits anormaux, jeux et vibration des composants de la motorisation"]
["MP","Tireuse","Préventif",null,"2013-09-30",null,null,null,"Contrôle des urgences :\n- Verifier qu'en appuyant sur le poussoir d'urgence la machine s'arrete\n- Si la machine ne s'arrete pas il faut l'arreter en coupant l'alimentation et tout de suite chercher la cause du défaut.\n- Verifier avec la machine arretée que les urgences ( etoile, guichets...) sont fonctionnantes, il faut que sur le tableau les voyants rouges soient allumés\n- Vérifier avec la machine arretée, que les photocellules sont fonctionnantes; il faut que sur le tableau le voyant clignotant s'allume"]
["MP","Boucheuse / museleuse","Curatif","Muselage","2013-10-01",15,null,null,"casse roulement muselage",null,null,null,null,null,"15Mn"]
["MP","Tireuse","Préventif",null,"2013-09-30",null,null,null,"1 point graissage dessus cloche\n12 sur les rouleaux dans carter\n4 sur arbre de rotation en quart de tour                                                                 Graisse LUZOL AL                                                                                                                              "]
["MP","Macérateur","Préventif",null,"2013-10-02",null,null,null,"vérifier la rapeuse ( couteaux et grilles )avant et après la saison"]
["MP","Presse AMOS","Préventif",null,"2013-10-02",null,null,null,"Graisseurs / Graisse LUZOL AL"]
["MP","Bucher","Préventif",null,"2013-10-02",null,null,null,"Nettoyer le filre à huile dans du pétrole et souffler à l'air comprimé"]
["MP","Bucher","Préventif",null,"2013-10-02",null,null,null,"Interrupteur de fin de course : 2-3 gouttes"]
["MP","Bucher","Préventif",null,"2013-10-02",null,null,null,"Cf schéma : point 9 : Chaine pour coussiners à friction"]
["MP","Bucher","Préventif",null,"2013-10-02",null,null,null,"Cf schéma : point 8 : 2 graisseurs Graisse pour coussinet a friction / Graisse LUZOL AL"]
["MP","Laveuse","Préventif",null,"2013-10-02",null,null,null,"Graisseurs / Graisse LUZOL AL"]
["MP","Bucher","Préventif",null,"2013-10-02",null,null,null,"Cf schéma : point 6 :  Pulveriser couronne Klüber-Spray"]
["MP","Bucher","Préventif",null,"2013-10-02",null,null,null,"Cf schéma : point 7 : Carter de la rotation 41. d'huile Esso Spartan EP 320"]
["MP","Bucher","Préventif",null,"2013-10-02",null,null,null,"Cf schéma : point 4 :2 graisseurs Chevron FM grease II"]
["MP","Bucher","Préventif",null,"2013-10-02",null,null,null,"Cf schéma : point 3 :Graisseur stauffer graisse pour roulement à billes Graisse LUZOL AL"]
["MP","Bucher","Préventif",null,"2013-10-02",null,null,null,"Cf schéma : point 1 :  2 graisseurs Graisse pour coussinet a friction Graisse LUZOL AL"]
["MP","Compresseur","Préventif",null,"2013-10-02",null,null,null,"- Verifier la clarté de l'eau avec le dispositif en photo jointe , si plus trouble que la partie basse, changer le filtre  'Enregistrements interventions'!344:344"]
["MP","Tire-palette Jung","Préventif",null,"2013-10-02",null,null,null,"Vérifer le niveau d'eau de la batterie"]
["MP","Compresseur","Préventif",null,"2013-10-02",null,null,null,"-Nettoyage général"]
["MP","MEAD","Préventif",null,"2013-10-02",null,null,null,"Nettoyer l'afficheur avec une éponge humide et savonneuse, un liquide vaisselle, une lessive liquide, des produits à vitres du commerce"]
["MP","Etiqueteuse adhésive","Préventif",null,"2013-10-02",null,null,null,"Verifier le niveau d'huile dans le lubrificateur du  régleur de pression"]
["MP","Etiqueteuse adhésive","Préventif",null,"2013-10-02",null,null,null,"Effectuer la vidange de la condensation du filtre d'air pneumatique"]
["MP","Etiqueteuse adhésive","Préventif",null,"2013-10-02",null,null,null,"Contrôle du réseau pneumatique vérifier qu'il n'y ai pas de fuites. ( tubes, raccords, cylindres et valves)"]
["MP","Pompe DEPA","Préventif",null,"2013-10-02",null,null,null,"Contrôle visuel"]
["MP","Etiqueteuse","Préventif",null,"2013-10-02",null,null,null,"Lubrifier le support pour étoile d'entrée et étoile de sortie / Graisse LUZOL AL"]
["MP","Etiqueteuse","Préventif",null,"2013-10-02",null,null,null,"- Lubrifier les têtes par les trous. (en début de prod en utlisant de l'huile pour guide de coulissement)"]
["MP","Linx","Préventif",null,"2013-10-02",null,null,null,"- Têtes d'impression\n- filtre à air\n- armoire de l'imprimante"]
["MP","TRIO","Préventif",null,"2013-10-02",null,null,null," Contrôler le niveau d'huile dans le filtre graisseur du système pneumatique."]
["MP","TRIO","Préventif",null,"2013-10-02",null,null,null,"Contrôler la présence de condensant dans le filtre régulateur R1 et s'il le faut le démonter"]
["MP","Boucheuse / Museleuse","Préventif",null,"2013-10-02",null,null,null," Vérifier la tension des chaînes d'entraînement,  elles doivent-être bien tendues.                                                                - Vérifier le niveau d'huile dans le réservoir de la pompe, puis pomper quelques coups afin de lubrifier les axes de guidage, chaînes, couronnes.    \n- Remplir les huileurs afin de chasser l'huile précedente    \n- Graisser tout les point de graissage sur le haut de la machine (1  derrière piston boucheuse et 3 à droite du muselage)                           Graisse LUZOL AL"]
["MP","Presse BUCHER","Curatif","Tuyau entrée","2013-10-01",null,null,null,"Changement regulateur d'air entrée pulpe",null,null,null,null,null,null,null,null,null,null,null,67.92]
["MP","Presse BUCHER","Curatif","Guillotine","2013-10-02",null,null,null,"Changement distributeur d'air guillotine",null,null,null,null,null,null,null,null,null,null,null,209.22]
["MP","Tireuse","Préventif",null,"2013-10-03",null,null,null,"Contrôle des urgences :\n- Verifier qu'en appuyant sur le poussoir d'urgence la machine s'arrete\n- Si la machine ne s'arrete pas il faut l'arreter en coupant l'alimentation et tout de suite chercher la cause du défaut.\n- Verifier avec la machine arretée que les urgences ( etoile, guichets...) sont fonctionnantes, il faut que sur le tableau les voyants rouges soient allumés\n- Vérifier avec la machine arretée, que les photocellules sont fonctionnantes; il faut que sur le tableau le voyant clignotant s'allume"]
["MP","Boucheuse / Museleuse","Préventif",null,"2013-10-03",null,null,null,"Sortir le bloc machoire\n Passer un coup de jet d'air pour enlever la poussière de bouchon                                              \nDémonter les machoires  \nLes tremper dans de l'eau chaude, afin quelles soient bien propres. \nLes remonter\nLes graisser avec de la graisse alimentaire           "]
["MP","MEAD","Préventif",null,"2013-10-03",null,null,null,"Contrôler l'éfficacité des dispositifs de sécurité (portes, arrêts d'urgence) "]
["MP","Etiqueteuse","Préventif",null,"2013-10-03",null,null,null,"Lubrifier avec un pinceau les engrenages situés à l'intérieur du chassis / / Graisse KF KP 2 K-30"]
["MP","Etiqueteuse","Préventif",null,"2013-10-03",null,null,null,"Graisser par graisseurs avec graisse minérale pour roulement l'engrenage central (dans le cassis) / Graisse KF KP 2 K-30"]
["MP","Pasteurisateur","Préventif",null,"2013-10-03",null,null,null,"Filtres à airs (x2) : Démonter la cloche (noire) de protection et nettoyer le filtre : a) carton à l'air comprimé b) à mailles métalliques à l'eau chaude + dégraissant"]
["MP","Tireuse","Préventif",null,"2013-10-09",null,null,null,"- Glissement tige cylindre  élévateur bouteilles.\n - Vérifier que le glissement de la tige du cylindre élévateur de bouteilles glisse correctement."]
["MP","Tireuse","Préventif",null,"2013-10-09",null,null,null,"Contrôler l'état d'usure des joints du cylindre et l'efficacité du circuit pneumatique."]
["MP","Tireuse","Préventif",null,"2013-10-09",null,null,null,"Contrôle des urgences :\n- Verifier qu'en appuyant sur le poussoir d'urgence la machine s'arrete\n- Si la machine ne s'arrete pas il faut l'arreter en coupant l'alimentation et tout de suite chercher la cause du défaut.\n- Verifier avec la machine arretée que les urgences ( etoile, guichets...) sont fonctionnantes, il faut que sur le tableau les voyants rouges soient allumés\n- Vérifier avec la machine arretée, que les photocellules sont fonctionnantes; il faut que sur le tableau le voyant clignotant s'allume"]
["MP","Boucheuse / Museleuse","Préventif",null,"2013-10-09",null,null,null," Vérifier la tension des chaînes d'entraînement,  elles doivent-être bien tendues.                                                                - Vérifier le niveau d'huile dans le réservoir de la pompe, puis pomper quelques coups afin de lubrifier les axes de guidage, chaînes, couronnes.    \n- Remplir les huileurs afin de chasser l'huile précedente    \n- Graisser tout les point de graissage sur le haut de la machine (1  derrière piston boucheuse et 3 à droite du muselage)                           Graisse LUZOL AL"]
["MP","Etiqueteuse","Préventif",null,"2013-10-09",null,null,null,"- Graisser les supports rouleaux à colle en utilisant de la graisse minérale pour roulement D47 / Graisse KF KP 2 K-30"]
["MP","Etiqueteuse","Préventif",null,"2013-10-09",null,null,null,"Graisser par graisseur les supports plat carrousel avec de la graisse minéral pour coussinets / Graisse KF KP 2 K-30"]
["MP","Etiqueteuse","Préventif",null,"2013-10-09",null,null,null,"Graisser avec graisseur les supports plats carrousel étiqueteuse avec de la graisse minérale pour roulement / Graisse KF KP 2 K-30"]
["MP","Etiqueteuse","Préventif",null,"2013-10-09",null,null,null,"Graisser par graisseur avec graisse minéral le support carrousel tetes étiquteuse / Graisse KF KP 2 K-30"]
["MP","Etiqueteuse","Préventif",null,"2013-10-09",null,null,null,"Graisser le supports rouleau pinces et rouleau collage avec de la graisse minérale pour roulement / Graisse KF KP 2 K-30"]
["MP","Etiqueteuse","Préventif",null,"2013-10-09",null,null,null,"- Graisser l'étoile plie bande en \"U\" avec de la graisse minerale / Graisse KF KP 2 K-30"]
["MP","Etiqueteuse","Préventif",null,"2013-10-09",null,null,null,"- Graisser le disque came soulevement têtes avec de la graisse graphitee"]
["MP","Etiqueteuse","Préventif",null,"2013-10-09",null,null,null,"- Graisser le plat de rotation croix de malte pour carroussel avec de la graisse graphitee"]
["MP","Etiqueteuse","Préventif",null,"2013-10-09",null,null,null,"Graisser avec un pinceaula vis de réglage des inclinaisons avec de la graisse graphitée"]
["MP","Alimentation Bouchon","Préventif",null,"2013-10-09",null,null,null,"- Contrôler la jauge d'huile dans la coupe du régulateur de pression."]
["MP","Pompe DEPA","Préventif",null,"2013-10-09",null,null,null,"Contrôle visuel"]
["MP","Etiqueteuse adhésive","Préventif",null,"2013-10-09",null,null,null,"Contrôle visuel afin de relever d'éventuel endommagements , usures, altérations ou relachement de vis."]
["MP","Etiqueteuse adhésive","Préventif",null,"2013-10-09",null,null,null,"Contrôle du réseau pneumatique vérifier qu'il n'y ai pas de fuites. ( tubes, raccords, cylindres et valves)"]
["MP","Presse AMOS","Préventif",null,"2013-10-09",null,null,null,"Graisseurs / Graisse LUZOL AL"]
["MP","Laveuse","Préventif",null,"2013-10-09",null,null,null,"Graisseurs / Graisse LUZOL AL"]
["MP","Compresseur","Préventif",null,"2013-10-09",null,null,null,"- Verifier la clarté de l'eau avec le dispositif en photo jointe , si plus trouble que la partie basse, changer le filtre  'Enregistrements interventions'!344:344"]
["MP","Tire-palette à bras","Préventif",null,"2013-10-09",null,null,null,"Contrôler l'état général"]
["MP","Tire-palette Jung","Préventif",null,"2013-10-09",null,null,null,"Vérifer le niveau d'eau de la batterie"]
["MP","TRIO","Préventif",null,"2013-10-09",null,null,null," Contrôler le niveau d'huile dans le filtre graisseur du système pneumatique."]
["JJ","Filtre PALL","Préventif",null,"2013-10-09",null,null,null,"Nettoyage crépine"]
["MP","TRIO","Préventif",null,"2013-10-10",null,null,null,"Contrôler la présence de condensant dans le filtre régulateur R1 et s'il le faut le démonter"]
["MP","Tireuse","Préventif",null,"2013-10-10",null,null,null,"Contrôle des urgences :\n- Verifier qu'en appuyant sur le poussoir d'urgence la machine s'arrete\n- Si la machine ne s'arrete pas il faut l'arreter en coupant l'alimentation et tout de suite chercher la cause du défaut.\n- Verifier avec la machine arretée que les urgences ( etoile, guichets...) sont fonctionnantes, il faut que sur le tableau les voyants rouges soient allumés\n- Vérifier avec la machine arretée, que les photocellules sont fonctionnantes; il faut que sur le tableau le voyant clignotant s'allume"]
["MP","MEAD","Préventif",null,"2013-10-10",null,null,null,"Contrôler l'état du moteur (visuel)"]
["MP","Presse AMOS","Préventif",null,"2013-10-10",null,null,null,"Vérification du circuit pneumatique et différents éléments pneumatiques ( fuites)"]
["MP","Tireuse","Préventif",null,"2013-10-14",{"$f":"H598-G598","v":0},null,null,"Contrôle des urgences :\n- Verifier qu'en appuyant sur le poussoir d'urgence la machine s'arrete\n- Si la machine ne s'arrete pas il faut l'arreter en coupant l'alimentation et tout de suite chercher la cause du défaut.\n- Verifier avec la machine arretée que les urgences ( etoile, guichets...) sont fonctionnantes, il faut que sur le tableau les voyants rouges soient allumés\n- Vérifier avec la machine arretée, que les photocellules sont fonctionnantes; il faut que sur le tableau le voyant clignotant s'allume"]
["JJ","Bucher","Préventif",null,"2013-10-14",{"$f":"H599-G599","v":0},null,null,"Cf schéma : point 1 :  2 graisseurs Graisse pour coussinet a friction Graisse LUZOL AL"]
["JJ","Bucher","Préventif",null,"2013-10-14",0,null,null,"Cf schéma : point 3 :Graisseur stauffer graisse pour roulement à billes Graisse LUZOL AL"]
["JJ","Bucher","Préventif",null,"2013-10-14",0,null,null,"Cf schéma : point 4 :2 graisseurs Chevron FM grease II"]
["JJ","Bucher","Préventif",null,"2013-10-14",0,null,null,"Cf schéma : point 6 :  Pulveriser couronne Klüber-Spray"]
["JJ","Bucher","Préventif",null,"2013-10-14",0,null,null,"Cf schéma : point 8 : 2 graisseurs Graisse pour coussinet a friction / Graisse LUZOL AL"]
["JJ","Bucher","Préventif",null,"2013-10-14",0,null,null,"Cf schéma : point 9 : Chaine pour coussiners à friction"]
["MP","Karcher","Préventif",null,"2013-10-14",0,null,null,"Verification des joints pistolet"]
["MP","Tire-palette Jung","Préventif",null,"2013-10-14",0,null,null,"Vérifer le niveau d'eau de la batterie"]
["MP JJ","Boucheuse / museleuse","Curatif","Muselage","2013-10-10",145,"07:45:00","10:10:00","Remplacement Goupille cassée",null,null,null,null,null,"7h45 ->10h10"]
["MP JJ","Boucheuse / museleuse","Curatif","Muselage","2013-10-10",85,"10:25:00","11:50:00","Contact rotation distributeur muselets Hs en commande",null,null,null,null,null,"10h25 ->11h50"]
["MP JJ","Boucheuse / Museleuse","Curatif","Muselage","2013-10-10",30,"14:30:00","15:00:00","Désynchronisation etoiles",null,null,null,null,null,"14h30 ->15h00"]
["MP JJ","Boucheuse / Museleuse","Curatif","Muselage","2013-10-14",{"$f":"MOD(H610-G610,1)","v":0},null,null,"Remplacement Goupille cassée et repose contact"]
["MP","Etiqueteuse","Préventif",null,"2013-10-15",0,null,null,"- Lubrifier les têtes par les trous. (en début de prod en utlisant de l'huile pour guide de coulissement)"]
["MP","Etiqueteuse","Préventif",null,"2013-10-15",0,null,null,"- Graisser avec graisseur les engrenages VIS (graisse graphitée)"]
["MP","Linx","Préventif",null,"2013-10-15",0,null,null,"- Têtes d'impression\n- filtre à air\n- armoire de l'imprimante"]
["MP","Boucheuse / Museleuse","Préventif",null,"2013-10-15",0,null,null,"Sortir le bloc machoire\n Passer un coup de jet d'air pour enlever la poussière de bouchon                                              \nDémonter les machoires  \nLes tremper dans de l'eau chaude, afin quelles soient bien propres. \nLes remonter\nLes graisser avec de la graisse alimentaire           "]
["MP","Tireuse","Préventif",null,"2013-10-15",0,null,null,"Contrôle des urgences :\n- Verifier qu'en appuyant sur le poussoir d'urgence la machine s'arrete\n- Si la machine ne s'arrete pas il faut l'arreter en coupant l'alimentation et tout de suite chercher la cause du défaut.\n- Verifier avec la machine arretée que les urgences ( etoile, guichets...) sont fonctionnantes, il faut que sur le tableau les voyants rouges soient allumés\n- Vérifier avec la machine arretée, que les photocellules sont fonctionnantes; il faut que sur le tableau le voyant clignotant s'allume"]
["MP","Boucheuse / Museleuse","Préventif",null,"2013-10-15",0,null,null," Vérifier la tension des chaînes d'entraînement,  elles doivent-être bien tendues.                                                                - Vérifier le niveau d'huile dans le réservoir de la pompe, puis pomper quelques coups afin de lubrifier les axes de guidage, chaînes, couronnes.    \n- Remplir les huileurs afin de chasser l'huile précedente    \n- Graisser tout les point de graissage sur le haut de la machine (1  derrière piston boucheuse et 3 à droite du muselage)                           Graisse LUZOL AL"]
["MP","Tireuse","Préventif",null,"2013-10-15",0,null,null,"Contrôler l'état d'usure des joints du cylindre et l'efficacité du circuit pneumatique."]
["MP","Tireuse","Préventif",null,"2013-10-15",0,null,null,"- Glissement tige cylindre  élévateur bouteilles.\n - Vérifier que le glissement de la tige du cylindre élévateur de bouteilles glisse correctement."]
["MP","Pompe DEPA","Préventif",null,"2013-10-16",0,null,null,"Contrôle visuel"]
["MP","Alimentation Bouchon","Préventif",null,"2013-10-16",0,null,null,"Lubrification des points 261 - 281 - 262"]
["MP","TRIO","Préventif",null,"2013-10-16",0,null,null," Contrôler le niveau d'huile dans le filtre graisseur du système pneumatique."]
["MP","TRIO","Préventif",null,"2013-10-16",0,null,null,"Contrôler la présence de condensant dans le filtre régulateur R1 et s'il le faut le démonter"]
["MP","Tireuse","Préventif",null,"2013-10-16",0,null,null,"Contrôle des urgences :\n- Verifier qu'en appuyant sur le poussoir d'urgence la machine s'arrete\n- Si la machine ne s'arrete pas il faut l'arreter en coupant l'alimentation et tout de suite chercher la cause du défaut.\n- Verifier avec la machine arretée que les urgences ( etoile, guichets...) sont fonctionnantes, il faut que sur le tableau les voyants rouges soient allumés\n- Vérifier avec la machine arretée, que les photocellules sont fonctionnantes; il faut que sur le tableau le voyant clignotant s'allume"]
["MP","Etiqueteuse adhésive","Préventif",null,"2013-10-16",0,null,null,"Contrôle du réseau pneumatique vérifier qu'il n'y ai pas de fuites. ( tubes, raccords, cylindres et valves)"]
["MP","MEAD","Préventif",null,"2013-10-16",0,null,null,"Nettoyer l'afficheur avec une éponge humide et savonneuse, un liquide vaisselle, une lessive liquide, des produits à vitres du commerce"]
["MP","MEAD","Préventif",null,"2013-10-16",0,null,null,"Contrôler l'éfficacité des dispositifs de sécurité (portes, arrêts d'urgence) "]
["MP","Presse AMOS","Préventif",null,"2013-10-16",0,null,null,"Graisseurs / Graisse LUZOL AL"]
["MP","Filtre PALL","Préventif",null,"2013-10-16",0,null,null,"vérification cablage alimentation et état général"]
["MP","Compresseur","Préventif",null,"2013-10-16",0,null,null,"- Verifier la clarté de l'eau avec le dispositif en photo jointe , si plus trouble que la partie basse, changer le filtre  'Enregistrements interventions'!344:344"]
["MP JJ","Boucheuse / museleuse","Curatif","Etoiles","2013-10-16",29,"14:15:00","14:44:00","Resynchronisation etoiles",null,null,null,null,null,"14h15 -> 14h44"]
["MP","Etiqueteuse conpart","Curatif",null,"2013-10-17",null,null,null,"guide etoile sortie casse suite bouteille cassée",null,null,null,null,null,"25mn"]
["MP","Tireuse","Préventif",null,"2013-10-18",0,null,null,"Contrôle des urgences :\n- Verifier qu'en appuyant sur le poussoir d'urgence la machine s'arrete\n- Si la machine ne s'arrete pas il faut l'arreter en coupant l'alimentation et tout de suite chercher la cause du défaut.\n- Verifier avec la machine arretée que les urgences ( etoile, guichets...) sont fonctionnantes, il faut que sur le tableau les voyants rouges soient allumés\n- Vérifier avec la machine arretée, que les photocellules sont fonctionnantes; il faut que sur le tableau le voyant clignotant s'allume"]
["MP","Etiqueteuse","Préventif",null,"2013-10-18",0,null,null,"Graisser par graisseurs avec graisse minérale pour roulement l'engrenage central (dans le cassis) / Graisse KF KP 2 K-30"]
["MP","Pompe DEPA","Préventif",null,"2013-10-18",0,null,null,"Contrôle des pièces d'usure et remplacement si besoin."]
["MP","Pompe DEPA","Préventif",null,"2013-10-18",0,null,null," Collecteur / chambre de pompe type DH-PT/-TL "]
["MP","Pompe DEPA","Préventif",null,"2013-10-18",0,null,null,"Contrôle Tirant, Collier de serrage type DL-PT/-TL "]
["MP","Pompe DEPA","Préventif",null,"2013-10-18",0,null,null,"Contrôle des Tirant et collier de serrage type PM avec sièges PTFE"]
["MP","Pasteurisateur","Préventif",null,"2013-10-18",0,null,null,"Filtres à airs (x2) : Démonter la cloche (noire) de protection et nettoyer le filtre : a) carton à l'air comprimé b) à mailles métalliques à l'eau chaude + dégraissant"]
["MP","Tapis sortie TRIO","Préventif",null,"2013-10-18",0,null,null,"4 points de graissage / Graisse LUZOL AL"]
["JJ","Bucher","Préventif",null,"2013-10-18",0,null,null,"Cf schéma : point 1 :  2 graisseurs Graisse pour coussinet a friction Graisse LUZOL AL"]
["JJ","Bucher","Préventif",null,"2013-10-18",0,null,null,"Cf schéma : point 3 :Graisseur stauffer graisse pour roulement à billes Graisse LUZOL AL"]
["JJ","Bucher","Préventif",null,"2013-10-18",0,null,null,"Cf schéma : point 4 :2 graisseurs Chevron FM grease II"]
["JJ","Bucher","Préventif",null,"2013-10-18",0,null,null,"Cf schéma : point 6 :  Pulveriser couronne Klüber-Spray"]
["JJ","Bucher","Préventif",null,"2013-10-18",0,null,null,"Cf schéma : point 8 : 2 graisseurs Graisse pour coussinet a friction / Graisse LUZOL AL"]
["JJ","Bucher","Préventif",null,"2013-10-18",0,null,null,"Interrupteur de fin de course : 2-3 gouttes"]
["JJ","Bucher","Préventif",null,"2013-10-18",0,null,null,"Nettoyer le filre à huile dans du pétrole et souffler à l'air comprimé"]
["MP","Compresseur","Préventif",null,"2013-10-18",0,null,null,"-Nettoyage général"]
["MP","Tireuse","Préventif",null,"2013-10-21",0,null,null,"- Glissement tige cylindre  élévateur bouteilles.\n - Vérifier que le glissement de la tige du cylindre élévateur de bouteilles glisse correctement."]
["MP","Tireuse","Préventif",null,"2013-10-21",0,null,null,"Contrôler l'état d'usure des joints du cylindre et l'efficacité du circuit pneumatique."]
["MP","Tireuse","Préventif",null,"2013-10-21",0,null,null,"Contrôle des urgences :\n- Verifier qu'en appuyant sur le poussoir d'urgence la machine s'arrete\n- Si la machine ne s'arrete pas il faut l'arreter en coupant l'alimentation et tout de suite chercher la cause du défaut.\n- Verifier avec la machine arretée que les urgences ( etoile, guichets...) sont fonctionnantes, il faut que sur le tableau les voyants rouges soient allumés\n- Vérifier avec la machine arretée, que les photocellules sont fonctionnantes; il faut que sur le tableau le voyant clignotant s'allume"]
["MP","Boucheuse / Museleuse","Préventif",null,"2013-10-21",0,null,null," Vérifier la tension des chaînes d'entraînement,  elles doivent-être bien tendues.                                                                - Vérifier le niveau d'huile dans le réservoir de la pompe, puis pomper quelques coups afin de lubrifier les axes de guidage, chaînes, couronnes.    \n- Remplir les huileurs afin de chasser l'huile précedente    \n- Graisser tout les point de graissage sur le haut de la machine (1  derrière piston boucheuse et 3 à droite du muselage)                           Graisse LUZOL AL"]
["MP","Dépaletiseur","Préventif",null,"2013-10-21",0,null,null,"Cf documentation table 6-B pos.8"]
["MP","TRIO","Préventif",null,"2013-10-21",0,null,null," Contrôler le niveau d'huile dans le filtre graisseur du système pneumatique."]
["MP","TRIO","Préventif",null,"2013-10-21",0,null,null,"Contrôler la présence de condensant dans le filtre régulateur R1 et s'il le faut le démonter"]
["MP","MEAD","Préventif",null,"2013-10-21",0,null,null,"Nettoyer les tôles de protection inférieures"]
["MP","MEAD","Préventif",null,"2013-10-21",0,null,null,"Lubrification coté non opérateur / Graisse LUZOL AL"]
["MP","MEAD","Préventif",null,"2013-10-21",0,null,null,"Lubrification coté opérateur / Graisse LUZOL AL"]
["MP","Tire-palette Jung","Préventif",null,"2013-10-21",0,null,null,"Vérifer le niveau d'eau de la batterie"]
["MP","Etiqueteuse","Préventif",null,"2013-10-21",0,null,null,"Lubrifier avec un pinceau les engrenages situés à l'intérieur du chassis / / Graisse KF KP 2 K-30"]
["MP","Boucheuse / Museleuse","Curatif",null,"2013-10-23",null,null,null,"Clavette",null,null,null,null,null,"60mn"]
["MP","Tireuse","Curatif",null,"2013-10-24",null,null,null,"Reparation bec et preventif joints becs",null,null,null,null,null,"1170mn "]
["MP","Tireuse","Préventif",null,"2013-10-28",0,null,null,"- Glissement tige cylindre  élévateur bouteilles.\n - Vérifier que le glissement de la tige du cylindre élévateur de bouteilles glisse correctement."]
["MP","Tireuse","Préventif",null,"2013-10-28",0,null,null,"Contrôler l'état d'usure des joints du cylindre et l'efficacité du circuit pneumatique."]
["MP","Tireuse","Préventif",null,"2013-10-28",0,null,null,"Contrôler la mise en phase de tout les outillages"]
["MP","Tireuse","Préventif",null,"2013-10-28",0,null,null,"En cas de bruit ou d'usure il est nécessaire de remplacer les joints"]
["MP","Tireuse","Préventif",null,"2013-10-28",0,null,null,"Contrôler en démarrant et en arrêtant la machine plusieurs fois sans bouteilles, l'éventuelle présence de bruits anormaux, jeux et vibration des composants de la motorisation"]
["MP","Tireuse","Préventif",null,"2013-10-28",0,null,null,"Contrôle du serrage des canules"]
["MP","Tireuse","Préventif",null,"2013-10-28",0,null,null,"Contrôle des urgences :\n- Verifier qu'en appuyant sur le poussoir d'urgence la machine s'arrete\n- Si la machine ne s'arrete pas il faut l'arreter en coupant l'alimentation et tout de suite chercher la cause du défaut.\n- Verifier avec la machine arretée que les urgences ( etoile, guichets...) sont fonctionnantes, il faut que sur le tableau les voyants rouges soient allumés\n- Vérifier avec la machine arretée, que les photocellules sont fonctionnantes; il faut que sur le tableau le voyant clignotant s'allume"]
["MP","Tireuse","Préventif",null,"2013-10-28",0,null,null,"1 point graissage dessus cloche\n12 sur les rouleaux dans carter\n4 sur arbre de rotation en quart de tour                                                                 Graisse LUZOL AL                                                                                                                              "]
["MP","Boucheuse / Museleuse","Préventif",null,"2013-10-28",0,null,null," Vérifier la tension des chaînes d'entraînement,  elles doivent-être bien tendues.                                                                - Vérifier le niveau d'huile dans le réservoir de la pompe, puis pomper quelques coups afin de lubrifier les axes de guidage, chaînes, couronnes.    \n- Remplir les huileurs afin de chasser l'huile précedente    \n- Graisser tout les point de graissage sur le haut de la machine (1  derrière piston boucheuse et 3 à droite du muselage)                           Graisse LUZOL AL"]
["MP","Boucheuse / Museleuse","Préventif",null,"2013-10-28",0,null,null,"Sortir le bloc machoire\n Passer un coup de jet d'air pour enlever la poussière de bouchon                                              \nDémonter les machoires  \nLes tremper dans de l'eau chaude, afin quelles soient bien propres. \nLes remonter\nLes graisser avec de la graisse alimentaire           "]
["MP","Dépaletiseur","Préventif",null,"2013-10-28",0,null,null,"Cf documentation Table 6-A pos. 3"]
["MP","TRIO","Préventif",null,"2013-10-28",0,null,null,"- Enlever la poussière des cellules photoélectriques et des cataphotes avec un chiffon doux et sec en prenant soin de ne pas modifier leur orientation."]
["MP","Rinceuse","Préventif",null,"2013-10-28",{"$f":"MOD(H674-G674,1)","v":0},null,null,"2 points de graissage sur l'axe central\n1  point graissage sur vis d'entrée                                                                                Graisse LUZOL AL"]
["MP","Dépaletiseur","Préventif",null,"2013-10-28",0,null,null,"Graissage tapis / Graisse LUZOL AL"]
["MP","Dépaletiseur","Préventif",null,"2013-10-28",0,null,null,"Nettoyage et contrôle  des cellules photoélectriques et cataphotes"]
["MP","TRIO","Préventif",null,"2013-10-28",0,null,null,"Contrôler la présence de condensant dans le filtre régulateur R1 et s'il le faut le démonter"]
["MP","Etiqueteuse","Préventif",null,"2013-10-28",0,null,null,"- Lubrifier les têtes par les trous. (en début de prod en utlisant de l'huile pour guide de coulissement)"]
["MP","Etiqueteuse","Préventif",null,"2013-10-28",0,null,null,"- Graisser le disque came soulevement têtes avec de la graisse graphitee"]
["MP","Etiqueteuse","Préventif",null,"2013-10-28",0,null,null,"- Graisser le plat de rotation croix de malte pour carroussel avec de la graisse graphitee"]
["MP","Etiqueteuse","Préventif",null,"2013-10-28",0,null,null,"Graisser avec un pinceaula vis de réglage des inclinaisons avec de la graisse graphitée"]
["MP","Etiqueteuse adhésive","Préventif",null,"2013-10-28",0,null,null,"Contrôle du réseau pneumatique vérifier qu'il n'y ai pas de fuites. ( tubes, raccords, cylindres et valves)"]
["MP","MEAD","Préventif",null,"2013-10-28",0,null,null,"Contrôler l'éfficacité des dispositifs de sécurité (portes, arrêts d'urgence) "]
["MP","Laveuse","Préventif",null,"2013-10-28",0,null,null,"Graisseurs / Graisse LUZOL AL"]
["MP","Compresseur","Préventif",null,"2013-10-28",0,null,null,"- Verifier la clarté de l'eau avec le dispositif en photo jointe , si plus trouble que la partie basse, changer le filtre  'Enregistrements interventions'!344:344"]
["MP","Tire-palette Jung","Préventif",null,"2013-10-28",0,null,null,"Vérifer le niveau d'eau de la batterie"]
["MP","Centrifugeuse","Préventif",null,"2013-10-28",0,null,null,"Contrôle visuel et niveau d'huile"]
["MP","Filtre padovan","Préventif",null,"2013-10-28",0,null,null," point de graissage Graisse LUZOL AL                                                                             et contrôle de l'état général"]
["MP","Convoyeurs","Préventif",null,"2013-10-28",0,null,null,"36 points de graissage / Graisse LUZOL AL"]
["MP","Linx","Préventif",null,"2013-10-28",0,null,null,"- Têtes d'impression\n- filtre à air\n- armoire de l'imprimante"]
["MP","TRIO","Préventif",null,"2013-10-28",0,null,null," Contrôler le niveau d'huile dans le filtre graisseur du système pneumatique."]
["MP","MEAD","Préventif",null,"2013-10-28",0,null,null,"Nettoyer l'afficheur avec une éponge humide et savonneuse, un liquide vaisselle, une lessive liquide, des produits à vitres du commerce"]
["MP","MEAD","Préventif",null,"2013-10-28",0,null,null,"Contrôler l'état du moteur (visuel)"]
["MP","Presse AMOS","Préventif",null,"2013-10-28",null,null,null,"Graisseurs / Graisse LUZOL AL"]
["MP","Tireuse","Curatif",null,"2013-10-29",null,null,null,"bec 6 interverti avec bec 5 RAS"]
["MP","Tireuse","Préventif",null,"2013-10-29",0,null,null,"Contrôle des urgences :\n- Verifier qu'en appuyant sur le poussoir d'urgence la machine s'arrete\n- Si la machine ne s'arrete pas il faut l'arreter en coupant l'alimentation et tout de suite chercher la cause du défaut.\n- Verifier avec la machine arretée que les urgences ( etoile, guichets...) sont fonctionnantes, il faut que sur le tableau les voyants rouges soient allumés\n- Vérifier avec la machine arretée, que les photocellules sont fonctionnantes; il faut que sur le tableau le voyant clignotant s'allume"]
["MP","Pompe DEPA","Préventif",null,"2013-10-29",0,null,null,"Contrôle visuel"]
["MP","Bucher","Préventif",null,"2013-10-29",0,null,null,"Cf schéma : point 1 :  2 graisseurs Graisse pour coussinet a friction Graisse LUZOL AL"]
["MP","Bucher","Préventif",null,"2013-10-29",0,null,null,"Cf schéma : point 3 :Graisseur stauffer graisse pour roulement à billes Graisse LUZOL AL"]
["MP","Bucher","Préventif",null,"2013-10-29",0,null,null,"Cf schéma : point 4 :2 graisseurs Chevron FM grease II"]
["MP","Bucher","Préventif",null,"2013-10-29",0,null,null,"Cf schéma : point 6 :  Pulveriser couronne Klüber-Spray"]
["MP","Bucher","Préventif",null,"2013-10-29",0,null,null,"Cf schéma : point 8 : 2 graisseurs Graisse pour coussinet a friction / Graisse LUZOL AL"]
["MP","Bucher","Préventif",null,"2013-10-29",0,null,null,"Cf schéma : point 9 : Chaine pour coussiners à friction Graisse LUZOL AL"]
["MP","Boucheuse / museleuse","Curatif",null,"2013-10-31",null,null,null,"Clavette",null,null,null,null,null,"40mn"]
["MP","Boucheuse / Museleuse","Curatif",null,"2013-10-31"]
["MP","Tireuse","Préventif",null,"2013-11-04",0,null,null,"- Glissement tige cylindre  élévateur bouteilles.\n - Vérifier que le glissement de la tige du cylindre élévateur de bouteilles glisse correctement."]
["MP","Tireuse","Préventif",null,"2013-11-04",0,null,null,"Contrôler l'état d'usure des joints du cylindre et l'efficacité du circuit pneumatique."]
["MP","Tireuse","Préventif",null,"2013-11-04",0,null,null,"Contrôle des urgences :\n- Verifier qu'en appuyant sur le poussoir d'urgence la machine s'arrete\n- Si la machine ne s'arrete pas il faut l'arreter en coupant l'alimentation et tout de suite chercher la cause du défaut.\n- Verifier avec la machine arretée que les urgences ( etoile, guichets...) sont fonctionnantes, il faut que sur le tableau les voyants rouges soient allumés\n- Vérifier avec la machine arretée, que les photocellules sont fonctionnantes; il faut que sur le tableau le voyant clignotant s'allume"]
["MP","Boucheuse / Museleuse","Préventif",null,"2013-11-04",0,null,null,"Sortir le bloc machoire\n Passer un coup de jet d'air pour enlever la poussière de bouchon                                              \nDémonter les machoires  \nLes tremper dans de l'eau chaude, afin quelles soient bien propres. \nLes remonter\nLes graisser avec de la graisse alimentaire           "]
["MP","Boucheuse / Museleuse","Préventif",null,"2013-11-04",0,null,null," Vérifier la tension des chaînes d'entraînement,  elles doivent-être bien tendues.                                                                - Vérifier le niveau d'huile dans le réservoir de la pompe, puis pomper quelques coups afin de lubrifier les axes de guidage, chaînes, couronnes.    \n- Remplir les huileurs afin de chasser l'huile précedente    \n- Graisser tout les point de graissage sur le haut de la machine (1  derrière piston boucheuse et 3 à droite du muselage)                           Graisse LUZOL AL"]
["MP","TRIO","Préventif",null,"2013-11-04",0,null,null," Contrôler le niveau d'huile dans le filtre graisseur du système pneumatique."]
["MP","Linx","Préventif",null,"2013-11-04",0,null,null,"- Têtes d'impression\n- filtre à air\n- armoire de l'imprimante"]
["MP","Etiqueteuse","Préventif",null,"2013-11-04",0,null,null,"- Lubrifier les têtes par les trous. (en début de prod en utlisant de l'huile pour guide de coulissement) Préventif"]
["MP","Pompe DEPA","Préventif",null,"2013-11-04",0,null,null,"Contrôle visuel"]
["MP","Pasteurisateur","Préventif",null,"2013-11-04",0,null,null,"Filtres à airs (x2) : Démonter la cloche (noire) de protection et nettoyer le filtre : a) carton à l'air comprimé b) à mailles métalliques à l'eau chaude + dégraissant"]
["MP","Bucher","Préventif",null,"2013-11-04",0,null,null,"Interrupteur de fin de course : 2-3 gouttes"]
["MP","Bucher","Préventif",null,"2013-11-04",0,null,null,"Nettoyer le filre à huile dans du pétrole et souffler à l'air comprimé"]
["MP","Compresseur","Préventif",null,"2013-11-04",0,null,null,"-Nettoyage général"]
["MP","Tire-palette Jung","Préventif",null,"2013-11-04",0,null,null,"Vérifer le niveau d'eau de la batterie"]
["MP JJ","Laveuse","Curatif",null,"2013-11-05",null,null,null,"Palier x2 tapis dechet bac",null,null,null,null,null,"240mn"]
["MP","Bucher","Préventif",null,"2013-11-06",0,null,null,"Cf schéma : point 1 :  2 graisseurs Graisse pour coussinet a friction Graisse LUZOL AL"]
["MP","Bucher","Préventif",null,"2013-11-06",0,null,null,"Cf schéma : point 3 :Graisseur stauffer graisse pour roulement à billes Graisse LUZOL AL"]
["MP","Bucher","Préventif",null,"2013-11-06",0,null,null,"Cf schéma : point 4 :2 graisseurs Chevron FM grease II"]
["MP","Bucher","Préventif",null,"2013-11-06",0,null,null,"Cf schéma : point 6 :  Pulveriser couronne Klüber-Spray"]
["MP","Bucher","Préventif",null,"2013-11-06",0,null,null,"Cf schéma : point 8 : 2 graisseurs Graisse pour coussinet a friction / Graisse LUZOL AL"]
["MP","Bucher","Préventif",null,"2013-11-06",0,null,null,"Cf schéma : point 9 : Chaine pour coussiners à friction Graisse LUZOL AL"]
["MP","Presse AMOS","Préventif",null,"2013-11-06",0,null,null,"Graisseurs / Graisse LUZOL AL"]
["MP","Tiflex","Préventif",null,"2013-11-07",0,null,null,"Contrôler le filtre à air changer si nécessaire :\n- Déclipsez la grille d'aération située sur le côté de l'unité centrale\n- Enlevez la grille et le filtre usagé\n- Remplacez ce dernier par un filtre neuf\n- Replacez la grille en la clipsant  Nettoyage t^te d'impression"]
["MP","TRIO","Préventif",null,"2013-11-07",0,null,null,"Contrôler la présence de condensant dans le filtre régulateur R1 et s'il le faut le démonter"]
["JJ","Presse BUCHER","Curatif",null,"2013-11-07",null,null,null,"reparation tapis marc",null,null,null,null,null,"420mn"]
["MP JJ","Presse BUCHER","Curatif",null,"2013-11-12",null,null,null,"Echange palier tapis marc",null,null,null,null,null,"120mn"]
["MP","Tireuse","Préventif",null,"2013-11-12",0,null,null,"Contrôle des urgences :\n- Verifier qu'en appuyant sur le poussoir d'urgence la machine s'arrete\n- Si la machine ne s'arrete pas il faut l'arreter en coupant l'alimentation et tout de suite chercher la cause du défaut.\n- Verifier avec la machine arretée que les urgences ( etoile, guichets...) sont fonctionnantes, il faut que sur le tableau les voyants rouges soient allumés\n- Vérifier avec la machine arretée, que les photocellules sont fonctionnantes; il faut que sur le tableau le voyant clignotant s'allume"]
["MP","Boucheuse / Museleuse","Préventif",null,"2013-11-12",0,null,null," Vérifier la tension des chaînes d'entraînement,  elles doivent-être bien tendues.                                                                - Vérifier le niveau d'huile dans le réservoir de la pompe, puis pomper quelques coups afin de lubrifier les axes de guidage, chaînes, couronnes.    \n- Remplir les huileurs afin de chasser l'huile précedente    \n- Graisser tout les point de graissage sur le haut de la machine (1  derrière piston boucheuse et 3 à droite du muselage)                           Graisse LUZOL AL"]
["MP","TRIO","Préventif",null,"2013-11-12",0,null,null," Contrôler le niveau d'huile dans le filtre graisseur du système pneumatique."]
["MP","Etiqueteuse","Préventif",null,"2013-11-12",0,null,null,"- Lubrifier les têtes par les trous. (en début de prod en utlisant de l'huile pour guide de coulissement) Préventif"]
["MP","Etiqueteuse","Préventif",null,"2013-11-12",0,null,null,"Graisser par graisseur la butée de l'arbre central (dans le chassis) avec de la graisse minérale pour roulements / Graisse KF KP 2 K-30"]
["MP","Etiqueteuse","Préventif",null,"2013-11-12",0,null,null,"Graisser par graisseurs avec graisse minérale pour roulement l'engrenage central (dans le cassis) / Graisse KF KP 2 K-30"]
["MP","Etiqueteuse","Préventif",null,"2013-11-12",0,null,null,"Lubrifier avec un pinceau les engrenages situés à l'intérieur du chassis / / Graisse KF KP 2 K-30"]
["MP","Etiqueteuse","Préventif",null,"2013-11-12",0,null,null,"Lubrifier le support pour étoile d'entrée et étoile de sortie / Graisse LUZOL AL"]
["MP","Etiqueteuse","Préventif",null,"2013-11-12",0,null,null,"- Graisser le plat de rotation croix de malte pour carroussel avec de la graisse graphitee - Graisse Minerva Type G2"]
["MP","Etiqueteuse","Préventif",null,"2013-11-12",0,null,null,"- Graisser le disque came soulevement têtes avec de la graisse graphitee Indicateurs - Graisse Minerva Type G2"]
["MP","Etiqueteuse","Préventif",null,"2013-11-12",0,null,null,"Graisser avec un pinceaula vis de réglage des inclinaisons avec de la graisse graphitée - Graisse Minerva Type G2"]
["MP","Pompe DEPA","Préventif",null,"2013-11-12",0,null,null,"Contrôle visuel"]
["MP","Etiqueteuse adhésive","Préventif",null,"2013-11-12",{"$f":"MOD(H744-G744,1)","v":0},null,null,"Contrôle visuel afin de relever d'éventuel endommagements , usures, altérations ou relachement de vis."]
["MP","Etiqueteuse adhésive","Préventif",null,"2013-11-12",0,null,null,"Contrôle du réseau pneumatique vérifier qu'il n'y ai pas de fuites. ( tubes, raccords, cylindres et valves)"]
["MP","Etiqueteuse adhésive","Préventif",null,"2013-11-12",0,null,null,"Effectuer la vidange de la condensation du filtre d'air pneumatique"]
["MP","MEAD","Préventif",null,"2013-11-12",0,null,null,"Contrôler l'état du moteur (visuel)"]
["MP","MEAD","Préventif",null,"2013-11-12",0,null,null,"Contrôler l'éfficacité des dispositifs de sécurité (portes, arrêts d'urgence) "]
["MP","Presse AMOS","Préventif",null,"2013-11-12",0,null,null,"Vérification du circuit pneumatique et différents éléments pneumatiques ( fuites)"]
["MP","Laveuse","Préventif",null,"2013-11-12",0,null,null,"Graisseurs / Graisse LUZOL AL"]
["MP","Tire-palette à bras","Préventif",null,"2013-11-12",0,null,null,"Contrôler l'état général"]
["MP","Tire-palette Jung","Préventif",null,"2013-11-12",0,null,null,"Vérifer le niveau d'eau de la batterie"]
["MP","Compresseur","Préventif",null,"2013-11-12",{"$f":"MOD(H753-G753,1)","v":0},null,null,"- Verifier la clarté de l'eau avec le dispositif en photo jointe , si plus trouble que la partie basse, changer le filtre  'Enregistrements interventions'!344:344"]
["MP","Boucheuse / museleuse","Curatif",null,"2013-11-13",null,null,null,"pb bouchon",null,null,null,null,null,"30mn"]
["MP","Tireuse","Préventif",null,"2013-11-15",{"$f":"MOD(H755-G755,1)","v":0},null,null,"- Glissement tige cylindre  élévateur bouteilles.\n - Vérifier que le glissement de la tige du cylindre élévateur de bouteilles glisse correctement."]
["MP","Tireuse","Préventif",null,"2013-11-15",0,null,null,"Contrôler l'état d'usure des joints du cylindre et l'efficacité du circuit pneumatique."]
["MP","Tireuse","Préventif",null,"2013-11-15",0,null,null,"Contrôle des urgences :\n- Verifier qu'en appuyant sur le poussoir d'urgence la machine s'arrete\n- Si la machine ne s'arrete pas il faut l'arreter en coupant l'alimentation et tout de suite chercher la cause du défaut.\n- Verifier avec la machine arretée que les urgences ( etoile, guichets...) sont fonctionnantes, il faut que sur le tableau les voyants rouges soient allumés\n- Vérifier avec la machine arretée, que les photocellules sont fonctionnantes; il faut que sur le tableau le voyant clignotant s'allume"]
["MP","Linx","Préventif",null,"2013-11-15",0,null,null,"- Têtes d'impression\n- filtre à air\n- armoire de l'imprimante"]
["MP","Etiqueteuse","Préventif",null,"2013-11-15",0,null,null,"- Graisser avec graisseur les engrenages VIS (graisse graphitée) Graisse Minerva Type G2"]
["MP","MEAD","Préventif",null,"2013-11-15",0,null,null,"Nettoyer l'afficheur avec une éponge humide et savonneuse, un liquide vaisselle, une lessive liquide, des produits à vitres du commerce"]
["JJ","Presse AMOS","Préventif",null,"2013-11-15",0,null,null,"Graisseurs / Graisse LUZOL AL"]
["MP","Filtre PALL","Préventif",null,"2013-11-15",0,null,null,"vérification cablage alimentation et état général"]
["MP","Boucheuse / Museleuse","Curatif",null,"2013-11-15",null,null,null,"resynchronisation etoiles",null,null,null,null,null,"100mn"]
["MP","Boucheuse / Museleuse","Curatif",null,"2013-11-19",null,null,null,"Clavette",null,null,null,null,null,"10mn"]
["MP","Tireuse","Préventif",null,"2013-11-20",0,null,null,"Contrôle des urgences :\n- Verifier qu'en appuyant sur le poussoir d'urgence la machine s'arrete\n- Si la machine ne s'arrete pas il faut l'arreter en coupant l'alimentation et tout de suite chercher la cause du défaut.\n- Verifier avec la machine arretée que les urgences ( etoile, guichets...) sont fonctionnantes, il faut que sur le tableau les voyants rouges soient allumés\n- Vérifier avec la machine arretée, que les photocellules sont fonctionnantes; il faut que sur le tableau le voyant clignotant s'allume"]
["MP","Boucheuse / Museleuse","Préventif",null,"2013-11-20",0,null,null," Vérifier la tension des chaînes d'entraînement,  elles doivent-être bien tendues.                                                                - Vérifier le niveau d'huile dans le réservoir de la pompe, puis pomper quelques coups afin de lubrifier les axes de guidage, chaînes, couronnes.    \n- Remplir les huileurs afin de chasser l'huile précedente    \n- Graisser tout les point de graissage sur le haut de la machine (1  derrière piston boucheuse et 3 à droite du muselage)                           Graisse LUZOL AL"]
["MP","Dépaletiseur","Préventif",null,"2013-11-20",0,null,null,"Cf documentation table 6-B pos.8"]
["MP","TRIO","Préventif",null,"2013-11-20",0,null,null," Contrôler le niveau d'huile dans le filtre graisseur du système pneumatique."]
["MP","TRIO","Préventif",null,"2013-11-20",0,null,null,"Contrôler la présence de condensant dans le filtre régulateur R1 et s'il le faut le démonter"]
["MP","Etiqueteuse","Préventif",null,"2013-11-20",0,null,null,"- Lubrifier les têtes par les trous. (en début de prod en utlisant de l'huile pour guide de coulissement) Préventif"]
["MP","Pompe DEPA","Préventif",null,"2013-11-20",0,null,null,"Contrôle visuel"]
["MP","Etiqueteuse adhésive","Préventif",null,"2013-11-20",0,null,null,"Contrôle du réseau pneumatique vérifier qu'il n'y ai pas de fuites. ( tubes, raccords, cylindres et valves)"]
["MP","MEAD","Préventif",null,"2013-11-20",0,null,null,"Contrôler l'éfficacité des dispositifs de sécurité (portes, arrêts d'urgence) "]
["MP","Pasteurisateur","Préventif",null,"2013-11-20",0,null,null,"Filtres à airs (x2) : Démonter la cloche (noire) de protection et nettoyer le filtre : a) carton à l'air comprimé b) à mailles métalliques à l'eau chaude + dégraissant"]
["MP","Boucheuse / Museleuse","Curatif",null,"2013-11-21",null,null,null,"Etoile et courroie",null,null,null,null,null,"120mn"]
["MP","Tireuse","Préventif",null,"2013-11-25",0,null,null,"- Glissement tige cylindre  élévateur bouteilles.\n - Vérifier que le glissement de la tige du cylindre élévateur de bouteilles glisse correctement."]
["MP","Tireuse","Préventif",null,"2013-11-25",0,null,null,"Contrôler l'état d'usure des joints du cylindre et l'efficacité du circuit pneumatique."]
["MP","Tireuse","Préventif",null,"2013-11-25",0,null,null,"Contrôler la mise en phase de tout les outillages"]
["MP","Tireuse","Préventif",null,"2013-11-25",0,null,null,"Contrôler en démarrant et en arrêtant la machine plusieurs fois sans bouteilles, l'éventuelle présence de bruits anormaux, jeux et vibration des composants de la motorisation"]
["MP","Tireuse","Préventif",null,"2013-11-25",0,null,null,"contrôler et nettoyer tout les branchements et si nécessaire remplacer les parties usées"]
["MP","Tireuse","Préventif",null,"2013-11-25",0,null,null,"Vérifier qu'il n'y ai pas d'infiltration d'eau"]
["MP","Tireuse","Préventif",null,"2013-11-25",0,null,null,"Démonter complètement les soupapes de remplissage (en toutes leurs parties), en vérifier l'état d'usure et éventuellement les remplacer ( Cf chap 10.8) . Verifier l'état d'usure des joints et vérifier l'efficacité des ressorts"]
["MP","Tireuse","Préventif",null,"2013-11-25",0,null,null,"Contrôle des urgences :\n- Verifier qu'en appuyant sur le poussoir d'urgence la machine s'arrete\n- Si la machine ne s'arrete pas il faut l'arreter en coupant l'alimentation et tout de suite chercher la cause du défaut.\n- Verifier avec la machine arretée que les urgences ( etoile, guichets...) sont fonctionnantes, il faut que sur le tableau les voyants rouges soient allumés\n- Vérifier avec la machine arretée, que les photocellules sont fonctionnantes; il faut que sur le tableau le voyant clignotant s'allume"]
["MP","Boucheuse / Museleuse","Préventif",null,"2013-11-25",0,null,null,"Sortir le bloc machoire\n Passer un coup de jet d'air pour enlever la poussière de bouchon                                              \nDémonter les machoires  \nLes tremper dans de l'eau chaude, afin quelles soient bien propres. \nLes remonter\nLes graisser avec de la graisse alimentaire           "]
["MP","Boucheuse / Museleuse","Préventif",null,"2013-11-25",0,null,null," Vérifier la tension des chaînes d'entraînement,  elles doivent-être bien tendues.                                                                - Vérifier le niveau d'huile dans le réservoir de la pompe, puis pomper quelques coups afin de lubrifier les axes de guidage, chaînes, couronnes.    \n- Remplir les huileurs afin de chasser l'huile précedente    \n- Graisser tout les point de graissage sur le haut de la machine (1  derrière piston boucheuse et 3 à droite du muselage)                           Graisse LUZOL AL"]
["MP","TRIO","Préventif",null,"2013-11-25",0,null,null,"Lubrification des points ( 2 par lettre) A B C D  F ,Graisse LUZOL AL  + 4 points de graissage guide repère F"]
["MP","Etiqueteuse","Préventif",null,"2013-11-25",0,null,null,"- Graisser l'étoile plie bande en \"U\" avec de la graisse minerale / Graisse KF KP 2 K-30"]
["MP","Etiqueteuse","Préventif",null,"2013-11-25",0,null,null,"Graisser le supports rouleau pinces et rouleau collage avec de la graisse minérale pour roulement / Graisse KF KP 2 K-30"]
["MP","Etiqueteuse","Préventif",null,"2013-11-25",0,null,null,"Graisser par graisseur avec graisse minéral le support carrousel tetes étiquteuse / Graisse KF KP 2 K-30"]
["MP","Etiqueteuse","Préventif",null,"2013-11-25",0,null,null,"Graisser avec graisseur les supports plats carrousel étiqueteuse avec de la graisse minérale pour roulement / Graisse KF KP 2 K-30"]
["MP","Etiqueteuse","Préventif",null,"2013-11-25",0,null,null,"- Graisser les supports rouleaux à colle en utilisant de la graisse minérale pour roulement D47 / Graisse KF KP 2 K-30"]
["MP","Etiqueteuse","Préventif",null,"2013-11-25",0,null,null,"Graisser par graisseur les supports plat carrousel avec de la graisse minéral pour coussinets / Graisse KF KP 2 K-30"]
["MP","MEAD","Préventif",null,"2013-11-25",0,null,null,"Contrôler l'état général du magasin (pas endommagées ou cassées) "]
["MP","MEAD","Préventif",null,"2013-11-25",0,null,null,"Contrôler létat général du dépileur"]
["MP","MEAD","Préventif",null,"2013-11-25",0,null,null,"Contrôler le régalge du dépileur et des chaînes carton"]
["MP","MEAD","Préventif",null,"2013-11-25",0,null,null,"Contrôler létat général des ventouses du dépileur "]
["MP","Tapis sortie TRIO","Préventif",null,"2013-11-25",0,null,null,"4 points de graissage / Graisse LUZOL AL"]
["JJ","Bucher","Préventif",null,"2013-11-25",0,null,null,"Cf schéma : point 1 :  2 graisseurs Graisse pour coussinet a friction Graisse LUZOL AL"]
["JJ","Bucher","Préventif",null,"2013-11-25",0,null,null,"Cf schéma : point 3 :Graisseur stauffer graisse pour roulement à billes Graisse LUZOL AL"]
["JJ","Bucher","Préventif",null,"2013-11-25",0,null,null,"Cf schéma : point 4 :2 graisseurs Chevron FM grease II"]
["JJ","Bucher","Préventif",null,"2013-11-25",0,null,null,"Cf schéma : point 6 :  Pulveriser couronne Klüber-Spray"]
["MP","Bucher","Préventif",null,"2013-11-25",0,null,null,"Cf schéma : point 8 : 2 graisseurs Graisse pour coussinet a friction / Graisse LUZOL AL"]
["JJ","Bucher","Préventif",null,"2013-11-25",0,null,null,"Cf schéma : point 9 : Chaine pour coussiners à friction Graisse LUZOL AL"]
["MP","Bucher","Préventif",null,"2013-11-25",0,null,null,"Interrupteur de fin de course : 2-3 gouttes"]
["MP","Bucher","Préventif",null,"2013-11-25",0,null,null,"Nettoyer le filre à huile dans du pétrole et souffler à l'air comprimé"]
["JJ","Presse AMOS","Préventif",null,"2013-11-25",0,null,null,"Graisseurs / Graisse LUZOL AL"]
["JJ","Laveuse","Préventif",null,"2013-11-25",0,null,null,"Graisseurs / Graisse LUZOL AL"]
["MP","Compresseur","Préventif",null,"2013-11-25",0,null,null,"- Verifier la clarté de l'eau avec le dispositif en photo jointe , si plus trouble que la partie basse, changer le filtre  'Enregistrements interventions'!344:344"]
["MP","Tire-palette Jung","Préventif",null,"2013-11-25",0,null,null,"Vérifer le niveau d'eau de la batterie"]
["MP","Compresseur","Préventif",null,"2013-11-25",0,null,null,"-Nettoyage général"]
["MP","Boucheuse / Museleuse","Curatif",null,"2013-11-25",null,null,null,"Clavette",null,null,null,null,null,"25mn"]
["MP","Tireuse","Préventif",null,"2013-11-26",0,null,null,"Contrôle des urgences :\n- Verifier qu'en appuyant sur le poussoir d'urgence la machine s'arrete\n- Si la machine ne s'arrete pas il faut l'arreter en coupant l'alimentation et tout de suite chercher la cause du défaut.\n- Verifier avec la machine arretée que les urgences ( etoile, guichets...) sont fonctionnantes, il faut que sur le tableau les voyants rouges soient allumés\n- Vérifier avec la machine arretée, que les photocellules sont fonctionnantes; il faut que sur le tableau le voyant clignotant s'allume"]
["MP","Dépaletiseur","Préventif",null,"2013-11-26",0,null,null,"Cf documentation Table 6-A pos. 3"]
["MP","TRIO","Préventif",null,"2013-11-26",0,null,null,"Contrôler la présence de condensant dans le filtre régulateur R1 et s'il le faut le démonter"]
["MP","TRIO","Préventif",null,"2013-11-26",0,null,null,"- Enlever la poussière des cellules photoélectriques et des cataphotes avec un chiffon doux et sec en prenant soin de ne pas modifier leur orientation."]
["MP","TRIO","Préventif",null,"2013-11-26",0,null,null," Contrôler le niveau d'huile dans le filtre graisseur du système pneumatique."]
["MP","Etiqueteuse","Préventif",null,"2013-11-26",0,null,null,"- Lubrifier les têtes par les trous. (en début de prod en utlisant de l'huile pour guide de coulissement) Préventif"]
["MP","Etiqueteuse","Préventif",null,"2013-11-26",0,null,null,"Graisser avec un pinceaula vis de réglage des inclinaisons avec de la graisse graphitée - Graisse Minerva Type G2"]
["MP","Etiqueteuse","Préventif",null,"2013-11-26",0,null,null,"- Graisser le plat de rotation croix de malte pour carroussel avec de la graisse graphitee - Graisse Minerva Type G2"]
["MP","Etiqueteuse","Préventif",null,"2013-11-26",0,null,null,"- Graisser le disque came soulevement têtes avec de la graisse graphitee Indicateurs - Graisse Minerva Type G2"]
["MP","Etiqueteuse adhésive","Préventif",null,"2013-11-26",0,null,null,"Contrôle du réseau pneumatique vérifier qu'il n'y ai pas de fuites. ( tubes, raccords, cylindres et valves)"]
["MP","MEAD","Préventif",null,"2013-11-26",0,null,null,"Contrôler l'état du moteur (visuel)"]
["MP","MEAD","Préventif",null,"2013-11-26",{"$f":"MOD(H823-G823,1)","v":0},null,null,"Contrôler l'éfficacité des dispositifs de sécurité (portes, arrêts d'urgence) "]
["MP","Boucheuse / Museleuse","Curatif",null,"2013-11-26",null,null,null,"Clavette",null,null,null,null,null,"10mn"]
["MP","Insectocuteurs","Structure",null,"2013-11-27",0,null,null,"Changement lampe"]
["MP","Insectocuteurs","Structure",null,"2013-11-27",0,null,null,"Changement lampe"]
["JJ","Filtre PALL","Préventif",null,"2013-11-28",0,null,null,"Nettoyage crépine"]
["MP","Etiqueteuse","Préventif",null,"2013-11-27",0,null,null,"Graisser par graisseurs avec graisse minérale pour roulement l'engrenage central (dans le cassis) / Graisse KF KP 2 K-30"]
["MP","Etiqueteuse","Préventif",null,"2013-11-27",0,null,null,"Lubrifier avec un pinceau les engrenages situés à l'intérieur du chassis / / Graisse KF KP 2 K-30"]
["MP","Insectocuteurs","Structure",null,"2013-11-27",0,null,null,"Installation de 4 insectocutors",null,null,null,null,null,"810mn"]
["MP","Boucheuse / Museleuse","Préventif",null,"2013-12-02",0,null,null," Vérifier la tension des chaînes d'entraînement,  elles doivent-être bien tendues.                                                                - Vérifier le niveau d'huile dans le réservoir de la pompe, puis pomper quelques coups afin de lubrifier les axes de guidage, chaînes, couronnes.    \n- Remplir les huileurs afin de chasser l'huile précedente    \n- Graisser tout les point de graissage sur le haut de la machine (1  derrière piston boucheuse et 3 à droite du muselage)                           Graisse LUZOL AL"]
["MP","Dépaletiseur","Préventif",null,"2013-12-02",0,null,null,"Graissage des engrenages en AIRA / Graisse LUZOL AL"]
["MP","Dépaletiseur","Préventif",null,"2013-12-02",0,null,null,"Cf documentation table 6-B pos.4-5-6-7 / Graisse LUZOL AL"]
["MP","Dépaletiseur","Préventif",null,"2013-12-02",0,null,null,"Nettoyage et niveau sonore du moteur asynchrone"]
["MP","TRIO","Préventif",null,"2013-12-02",0,null,null," Contrôler le niveau d'huile dans le filtre graisseur du système pneumatique."]
["MP","Dépaletiseur","Préventif",null,"2013-12-02",0,null,null," Nettoyage et niveau sonore du moteur frein"]
["MP","Dépaletiseur","Préventif",null,"2013-12-02",0,null,null,"Contrôle  d'espace d'arrêt"]
["MP","TRIO","Préventif",null,"2013-12-02",0,null,null,"Contrôler la présence de condensant dans le filtre régulateur R1 et s'il le faut le démonter"]
["MP","Linx","Préventif",null,"2013-12-02",0,null,null,"- Têtes d'impression\n- filtre à air\n- armoire de l'imprimante"]
["MP","Alimentation Bouchon","Préventif",null,"2013-12-02",0,null,null,"Lubrification des points 261 - 281 - 262"]
["MP","Etiqueteuse adhésive","Préventif",null,"2013-12-02",0,null,null,"Contrôle du réseau pneumatique vérifier qu'il n'y ai pas de fuites. ( tubes, raccords, cylindres et valves)"]
["MP","Etiqueteuse adhésive","Préventif",null,"2013-12-02",0,null,null,"Nettoyage du rouleau du blocage bouteille"]
["MP","Compresseur","Préventif",null,"2013-12-02",0,null,null,"- Verifier la clarté de l'eau avec le dispositif en photo jointe , si plus trouble que la partie basse, changer le filtre  'Enregistrements interventions"]
["MP","Tire-palette Jung","Préventif",null,"2013-12-02",0,null,null,"Vérifer le niveau d'eau de la batterie"]
["MP","MEAD","Préventif",null,"2013-12-02",0,null,null,"Contrôler l'éfficacité des dispositifs de sécurité (portes, arrêts d'urgence) "]
["MP","MEAD","Préventif",null,"2013-12-02",0,null,null,"Nettoyer l'afficheur avec une éponge humide et savonneuse, un liquide vaisselle, une lessive liquide, des produits à vitres du commerce"]
["MP","Tireuse","Préventif",null,"2013-12-02",0,null,null,"Contrôle des urgences :\n- Verifier qu'en appuyant sur le poussoir d'urgence la machine s'arrete\n- Si la machine ne s'arrete pas il faut l'arreter en coupant l'alimentation et tout de suite chercher la cause du défaut.\n- Verifier avec la machine arretée que les urgences ( etoile, guichets...) sont fonctionnantes, il faut que sur le tableau les voyants rouges soient allumés\n- Vérifier avec la machine arretée, que les photocellules sont fonctionnantes; il faut que sur le tableau le voyant clignotant s'allume"]
["MP","Tireuse","Préventif",null,"2013-12-02",0,null,null,"Contrôler l'état d'usure des joints du cylindre et l'efficacité du circuit pneumatique."]
["MP","Tireuse","Préventif",null,"2013-12-02",0,null,null,"- Glissement tige cylindre  élévateur bouteilles.\n - Vérifier que le glissement de la tige du cylindre élévateur de bouteilles glisse correctement."]
["MP","Pasteurisateur","Préventif",null,"2013-12-05",0,null,null,"Filtres à airs (x2) : Démonter la cloche (noire) de protection et nettoyer le filtre : a) carton à l'air comprimé b) à mailles métalliques à l'eau chaude + dégraissant"]
["JJ","Bucher","Préventif",null,"2013-12-05",0,null,null,"Cf schéma : point 1 :  2 graisseurs Graisse pour coussinet a friction Graisse LUZOL AL"]
["JJ","Bucher","Préventif",null,"2013-12-05",0,null,null,"Cf schéma : point 3 :Graisseur stauffer graisse pour roulement à billes Graisse LUZOL AL"]
["JJ","Bucher","Préventif",null,"2013-12-05",0,null,null,"Cf schéma : point 4 :2 graisseurs Chevron FM grease II"]
["JJ","Bucher","Préventif",null,"2013-12-05",0,null,null,"Cf schéma : point 6 :  Pulveriser couronne Klüber-Spray"]
["JJ","Bucher","Préventif",null,"2013-12-05",0,null,null,"Cf schéma : point 8 : 2 graisseurs Graisse pour coussinet a friction / Graisse LUZOL AL"]
["JJ","Bucher","Préventif",null,"2013-12-05",0,null,null,"Cf schéma : point 9 : Chaine pour coussiners à friction Graisse LUZOL AL"]
["JJ","Laveuse","Préventif",null,"2013-12-05",0,null,null,"Graisseurs / Graisse LUZOL AL"]
["JJ","Filtre PALL","Préventif",null,"2013-12-05",0,null,null,"Nettoyage crépine"]
["JJ","Presse AMOS","Préventif",null,"2013-12-05",0,null,null,"Graisseurs / Graisse LUZOL AL"]
["MP","MEAD","Préventif",null,"2013-12-05",0,null,null,"Lubrification coté non opérateur / Graisse LUZOL AL"]
["MP","MEAD","Préventif",null,"2013-12-05",0,null,null,"Lubrification coté opérateur / Graisse LUZOL AL"]
["MP","Pompe DEPA","Préventif",null,"2013-12-05",0,null,null,"Contrôle visuel"]
["MP","Pompe DEPA","Préventif",null,"2013-12-05",0,null,null,"Contrôle Tirant, Collier de serrage type DL-PT/-TL "]
["MP","Pompe DEPA","Préventif",null,"2013-12-05",0,null,null," Collecteur / chambre de pompe type DH-PT/-TL "]
["MP","Pompe DEPA","Préventif",null,"2013-12-05",0,null,null,"Contrôle des pièces d'usure et remplacement si besoin."]
["MP","Pompe DEPA","Préventif",null,"2013-12-05",0,null,null,"Contrôle des Tirant et collier de serrage type PM avec sièges PTFE"]
["mp","Tireuse","Préventif",null,"2013-12-13",0,null,null,"- Glissement tige cylindre  élévateur bouteilles.\n - Vérifier que le glissement de la tige du cylindre élévateur de bouteilles glisse correctement."]
["MP","Tireuse","Préventif",null,"2013-12-13",0,null,null,"Contrôler l'état d'usure des joints du cylindre et l'efficacité du circuit pneumatique."]
["MP","Tireuse","Préventif",null,"2013-12-13",0,null,null,"Contrôle des urgences :\n- Verifier qu'en appuyant sur le poussoir d'urgence la machine s'arrete\n- Si la machine ne s'arrete pas il faut l'arreter en coupant l'alimentation et tout de suite chercher la cause du défaut.\n- Verifier avec la machine arretée que les urgences ( etoile, guichets...) sont fonctionnantes, il faut que sur le tableau les voyants rouges soient allumés\n- Vérifier avec la machine arretée, que les photocellules sont fonctionnantes; il faut que sur le tableau le voyant clignotant s'allume"]
["MP","Boucheuse / Museleuse","Préventif",null,"2013-12-13",0,null,null," Vérifier la tension des chaînes d'entraînement,  elles doivent-être bien tendues.                                                                - Vérifier le niveau d'huile dans le réservoir de la pompe, puis pomper quelques coups afin de lubrifier les axes de guidage, chaînes, couronnes.    \n- Remplir les huileurs afin de chasser l'huile précedente    \n- Graisser tout les point de graissage sur le haut de la machine (1  derrière piston boucheuse et 3 à droite du muselage)                           Graisse LUZOL AL"]
["MP","Tiflex","Préventif",null,"2013-12-13",0,null,null,"Contrôler le filtre à air changer si nécessaire :\n- Déclipsez la grille d'aération située sur le côté de l'unité centrale\n- Enlevez la grille et le filtre usagé\n- Remplacez ce dernier par un filtre neuf\n- Replacez la grille en la clipsant  \n- Nettoyage tête d'impression"]
["MP","TRIO","Préventif",null,"2013-12-13",0,null,null," Contrôler le niveau d'huile dans le filtre graisseur du système pneumatique."]
["MP","TRIO","Préventif",null,"2013-12-13",0,null,null,"Contrôler la présence de condensant dans le filtre régulateur R1 et s'il le faut le démonter"]
["MP","Etiqueteuse","Préventif",null,"2013-12-13",null,null,null,"- Lubrifier les têtes par les trous. (en début de prod en utlisant de l'huile pour guide de coulissement) Préventif"]
["MP","Etiqueteuse","Préventif",null,"2013-12-13",0,null,null,"Lubrifier avec un pinceau les engrenages situés à l'intérieur du chassis / / Graisse KF KP 2 K-30"]
["MP","Etiqueteuse","Préventif",null,"2013-12-13",0,null,null,"Graisser par graisseurs avec graisse minérale pour roulement l'engrenage central (dans le cassis) / Graisse KF KP 2 K-30"]
["MP","Etiqueteuse","Préventif",null,"2013-12-13",0,null,null,"- Graisser le plat de rotation croix de malte pour carroussel avec de la graisse graphitee - Graisse Minerva Type G2"]
["MP","Etiqueteuse","Préventif",null,"2013-12-13",0,null,null,"- Graisser le disque came soulevement têtes avec de la graisse graphitee Indicateurs - Graisse Minerva Type G2"]
["MP","Etiqueteuse","Préventif",null,"2013-12-13",0,null,null,"Graisser avec un pinceaula vis de réglage des inclinaisons avec de la graisse graphitée - Graisse Minerva Type G2"]
["MP","Alimentation Bouchon","Préventif",null,"2013-12-13",0,null,null,"- Contrôler la jauge d'huile dans la coupe du régulateur de pression."]
["MP","Pompe DEPA","Préventif",null,"2013-12-13",0,null,null,"Contrôle visuel"]
["MP","Etiqueteuse","Préventif",null,"2013-12-13",0,null,null,"Support arbres couteaux controler le temoin de niveau d'huile coté du tambour l'huile doit être remplacer tout les 6 mois"]
["MP","Etiqueteuse adhésive","Préventif",null,"2013-12-13",0,null,null,"Contrôle visuel afin de relever d'éventuel endommagements , usures, altérations ou relachement de vis."]
["MP","Etiqueteuse adhésive","Préventif",null,"2013-12-13",0,null,null,"Contrôle du réseau pneumatique vérifier qu'il n'y ai pas de fuites. ( tubes, raccords, cylindres et valves)"]
["MP","Etiqueteuse adhésive","Préventif",null,"2013-12-13",0,null,null,"Effectuer la vidange de la condensation du filtre d'air pneumatique"]
["JJ","Presse AMOS","Préventif",null,"2013-12-13",0,null,null,"Graisseurs / Graisse LUZOL AL"]
["MP","Presse AMOS","Préventif",null,"2013-12-13",{"$f":"MOD(H887-G887,1)","v":0},null,null,"Vérification du circuit pneumatique et différents éléments pneumatiques ( fuites)"]
["JJ","Bucher","Préventif",null,"2013-12-13",0,null,null,"Nettoyer le filre à huile dans du pétrole et souffler à l'air comprimé"]
["JJ","Bucher","Préventif",null,"2013-12-13",0,null,null,"Interrupteur de fin de course : 2-3 gouttes"]
["JJ","Bucher","Préventif",null,"2013-12-13",0,null,null,"Cf schéma : point 9 : Chaine pour coussiners à friction Graisse LUZOL AL"]
["JJ","Bucher","Préventif",null,"2013-12-13",0,null,null,"Cf schéma : point 8 : 2 graisseurs Graisse pour coussinet a friction / Graisse LUZOL AL"]
["JJ","Bucher","Préventif",null,"2013-12-13",0,null,null,"Cf schéma : point 6 :  Pulveriser couronne Klüber-Spray"]
["JJ","Bucher","Préventif",null,"2013-12-13",0,null,null,"Cf schéma : point 4 :2 graisseurs Chevron FM grease II"]
["JJ","Bucher","Préventif",null,"2013-12-13",0,null,null,"Cf schéma : point 3 :Graisseur stauffer graisse pour roulement à billes Graisse LUZOL AL"]
["JJ","Bucher","Préventif",null,"2013-12-13",0,null,null,"Cf schéma : point 1 :  2 graisseurs Graisse pour coussinet a friction Graisse LUZOL AL"]
["JJ","Laveuse","Préventif",null,"2013-12-13",0,null,null,"Graisseurs / Graisse LUZOL AL"]
["MP","Compresseur","Préventif",null,"2013-12-13",0,null,null,"- Verifier la clarté de l'eau avec le dispositif en photo jointe , si plus trouble que la partie basse, changer le filtre  'Enregistrements interventions"]
["MP","Tire-palette à bras","Préventif",null,"2013-12-13",0,null,null,"Contrôler l'état général"]
["MP","Tire-palette Jung","Préventif",null,"2013-12-13",0,null,null,"Vérifer le niveau d'eau de la batterie"]
["MP","MEAD","Préventif",null,"2013-12-16",0,null,null,"Contrôler l'état du moteur (visuel)"]
["MP","Tireuse","Préventif",null,"2014-01-13",0,null,null,"- Glissement tige cylindre  élévateur bouteilles.\n - Vérifier que le glissement de la tige du cylindre élévateur de bouteilles glisse correctement."]
["MP","Tireuse","Préventif",null,"2014-01-13",0,null,null,"Contrôler l'état d'usure des joints du cylindre et l'efficacité du circuit pneumatique."]
["MP","Tireuse","Préventif",null,"2014-01-13",0,null,null,"Contrôle du serrage des canules"]
["MP","Tireuse","Préventif",null,"2014-01-13",0,null,null,"Contrôle des urgences :\n- Verifier qu'en appuyant sur le poussoir d'urgence la machine s'arrete\n- Si la machine ne s'arrete pas il faut l'arreter en coupant l'alimentation et tout de suite chercher la cause du défaut.\n- Verifier avec la machine arretée que les urgences ( etoile, guichets...) sont fonctionnantes, il faut que sur le tableau les voyants rouges soient allumés\n- Vérifier avec la machine arretée, que les photocellules sont fonctionnantes; il faut que sur le tableau le voyant clignotant s'allume"]
["MP","Tireuse","Préventif",null,"2014-01-13",0,null,null,"1 point graissage dessus cloche\n12 sur les rouleaux dans carter\n4 sur arbre de rotation en quart de tour                                                         \n        Graisse LUZOL AL                                                                                                                              "]
["MP","Boucheuse / Museleuse","Préventif",null,"2014-01-13",0,null,null," Vérifier la tension des chaînes d'entraînement,  elles doivent-être bien tendues.                                                                - Vérifier le niveau d'huile dans le réservoir de la pompe, puis pomper quelques coups afin de lubrifier les axes de guidage, chaînes, couronnes.    \n- Remplir les huileurs afin de chasser l'huile précedente    \n- Graisser tout les point de graissage sur le haut de la machine (1  derrière piston boucheuse et 3 à droite du muselage)                           Graisse LUZOL AL"]
["MP","Dépaletiseur","Préventif",null,"2014-01-13",0,null,null,"Cf documentation Table 6-A pos. 3"]
["MP","Dépaletiseur","Préventif",null,"2014-01-13",0,null,null,"Cf documentation table 6-B pos.8"]
["MP","Dépaletiseur","Préventif",null,"2014-01-13",0,null,null,"Nettoyage et contrôle  des cellules photoélectriques et cataphotes"]
["MP","Dépaletiseur","Préventif",null,"2014-01-13",0,null,null,"Graissage tapis / Graisse LUZOL AL"]
["MP","Rinceuse","Préventif",null,"2014-01-13",0,null,null,"2 points de graissage sur l'axe central\n1  point graissage sur vis d'entrée                                                                                Graisse LUZOL AL"]
["MP","TRIO","Préventif",null,"2014-01-13",0,null,null,"- Enlever la poussière des cellules photoélectriques et des cataphotes avec un chiffon doux et sec en prenant soin de ne pas modifier leur orientation."]
["MP","TRIO","Préventif",null,"2014-01-13",0,null,null," Contrôler le niveau d'huile dans le filtre graisseur du système pneumatique."]
["MP","TRIO","Préventif",null,"2014-01-13",0,null,null,"Contrôler la présence de condensant dans le filtre régulateur R1 et s'il le faut le démonter"]
["MP","Tiflex","Préventif",null,"2014-01-13",0,null,null,"Contrôler le filtre à air changer si nécessaire :\n- Déclipsez la grille d'aération située sur le côté de l'unité centrale\n- Enlevez la grille et le filtre usagé\n- Remplacez ce dernier par un filtre neuf\n- Replacez la grille en la clipsant  \n- Nettoyage tête d'impression"]
["MP","Convoyeurs","Préventif",null,"2014-01-13",0,null,null,"36 points de graissage / Graisse LUZOL AL"]
["MP","Linx","Préventif",null,"2014-01-13",0,null,null,"- Têtes d'impression\n- filtre à air\n- armoire de l'imprimante"]
["MP","Linx","Préventif",null,"2014-01-13",0,null,null,"-Vidange machine\n- Changement filtre à air si nécessaire ( non netoyable)"]
["MP","Etiqueteuse","Préventif",null,"2014-01-13",0,null,null,"- Lubrifier les têtes par les trous. (en début de prod en utlisant de l'huile pour guide de coulissement) "]
["MP","Etiqueteuse","Préventif",null,"2014-01-13",0,null,null,"- Graisser les supports rouleaux à colle en utilisant de la graisse minérale pour roulement D47 / Graisse KF KP 2 K-30"]
["MP","Etiqueteuse","Préventif",null,"2014-01-13",0,null,null,"Graisser par graisseur les supports plat carrousel avec de la graisse minéral pour coussinets / Graisse KF KP 2 K-30"]
["MP","Etiqueteuse","Préventif",null,"2014-01-13",0,null,null,"Graisser avec graisseur les supports plats carrousel étiqueteuse avec de la graisse minérale pour roulement / Graisse KF KP 2 K-30"]
["MP","Etiqueteuse","Préventif",null,"2014-01-13",0,null,null,"Graisser par graisseur avec graisse minéral le support carrousel tetes étiquteuse / Graisse KF KP 2 K-30"]
["MP","Etiqueteuse","Préventif",null,"2014-01-13",0,null,null,"Graisser le supports rouleau pinces et rouleau collage avec de la graisse minérale pour roulement / Graisse KF KP 2 K-30"]
["MP","Etiqueteuse","Préventif",null,"2014-01-13",0,null,null,"- Graisser l'étoile plie bande en \"U\" avec de la graisse minerale / Graisse KF KP 2 K-30"]
["MP","Etiqueteuse","Préventif",null,"2014-01-13",0,null,null,"- Graisser le disque came soulevement têtes avec de la graisse graphitee Indicateurs - Graisse Minerva Type G2"]
["MP","Etiqueteuse","Préventif",null,"2014-01-13",0,null,null,"- Graisser le plat de rotation croix de malte pour carroussel avec de la graisse graphitee - Graisse Minerva Type G2"]
["MP","Etiqueteuse","Préventif",null,"2014-01-13",0,null,null,"Lubrifier avec un pinceau les engrenages situés à l'intérieur du chassis / / Graisse KF KP 2 K-30"]
["MP","Etiqueteuse","Préventif",null,"2014-01-13",0,null,null,"Graisser par graisseurs avec graisse minérale pour roulement l'engrenage central (dans le cassis) / Graisse KF KP 2 K-30"]
["MP","Etiqueteuse","Préventif",null,"2014-01-13",0,null,null,"Graisser par graisseur la butée de l'arbre central (dans le chassis) avec de la graisse minérale pour roulements / Graisse KF KP 2 K-30"]
["MP","Etiqueteuse","Préventif",null,"2014-01-13",{"$f":"MOD(H931-G931,1)","v":0},null,null,"Graisser avec un pinceaula vis de réglage des inclinaisons avec de la graisse graphitée - Graisse Minerva Type G2"]
["MP","Pompe DEPA","Préventif",null,"2014-01-13",0,null,null,"Contrôle visuel"]
["MP","Etiqueteuse adhésive","Préventif",null,"2014-01-13",0,null,null,"Contrôle visuel afin de relever d'éventuel endommagements , usures, altérations ou relachement de vis."]
["MP","Etiqueteuse adhésive","Préventif",null,"2014-01-13",0,null,null,"Contrôle du réseau pneumatique vérifier qu'il n'y ai pas de fuites. ( tubes, raccords, cylindres et valves)"]
["MP","MEAD","Préventif",null,"2014-01-13",0,null,null,"Nettoyer l'afficheur avec une éponge humide et savonneuse, un liquide vaisselle, une lessive liquide, des produits à vitres du commerce"]
["MP","MEAD","Préventif",null,"2014-01-13",0,null,null,"Contrôler l'état du moteur (visuel)"]
["MP","MEAD","Préventif",null,"2014-01-13",0,null,null,"Contrôler l'éfficacité des dispositifs de sécurité (portes, arrêts d'urgence) "]
["MP","Pasteurisateur","Préventif",null,"2014-01-13",0,null,null,"Filtres à airs (x2) : Démonter la cloche (noire) de protection et nettoyer le filtre : a) carton à l'air comprimé b) à mailles métalliques à l'eau chaude + dégraissant"]
["MP","Bucher","Préventif",null,"2014-01-13",0,null,null,"Cf schéma : point 1 :  2 graisseurs Graisse pour coussinet a friction Graisse LUZOL AL"]
["MP","Presse AMOS","Préventif",null,"2014-01-13",0,null,null,"Vérification du circuit pneumatique et différents éléments pneumatiques ( fuites)"]
["MP","Filtre PALL","Préventif",null,"2014-01-13",0,null,null,"vérification cablage alimentation et état général"]
["JJ","Filtre PALL","Préventif",null,"2014-01-13",0,null,null,"Nettoyage crépine"]
["MP","Centrifugeuse","Préventif",null,"2014-01-13",0,null,null,"Contrôle visuel et niveau d'huile"]
["MP","Filtre padovan","Préventif",null,"2014-01-13",0,null,null," point de graissage Graisse LUZOL AL                                                                             et contrôle de l'état général"]
["MP","Compresseur","Préventif",null,"2014-01-13",0,null,null,"- Verifier la clarté de l'eau avec le dispositif en photo jointe , si plus trouble que la partie basse, changer le filtre  'Enregistrements interventions"]
["MP","Compresseur","Préventif",null,"2014-01-13",0,null,null,"-Nettoyage général"]
["MP","Tire-palette à bras","Préventif",null,"2014-01-13",0,null,null,"Contrôler l'état général"]
["MP","Tire-palette Jung","Préventif",null,"2014-01-13",0,null,null,"Vérifer le niveau d'eau de la batterie"]
["MP","Tireuse","Préventif",null,"2014-01-22",0,null,null,"- Glissement tige cylindre  élévateur bouteilles.\n - Vérifier que le glissement de la tige du cylindre élévateur de bouteilles glisse correctement."]
["MP","Tireuse","Préventif",null,"2014-01-22",0,null,null,"Contrôler l'état d'usure des joints du cylindre et l'efficacité du circuit pneumatique."]
["MP","Tireuse","Préventif",null,"2014-01-22",0,null,null,"Contrôle des urgences :\n- Verifier qu'en appuyant sur le poussoir d'urgence la machine s'arrete\n- Si la machine ne s'arrete pas il faut l'arreter en coupant l'alimentation et tout de suite chercher la cause du défaut.\n- Verifier avec la machine arretée que les urgences ( etoile, guichets...) sont fonctionnantes, il faut que sur le tableau les voyants rouges soient allumés\n- Vérifier avec la machine arretée, que les photocellules sont fonctionnantes; il faut que sur le tableau le voyant clignotant s'allume"]
["MP","Boucheuse / Museleuse","Préventif",null,"2014-01-22",0,null,null," Vérifier la tension des chaînes d'entraînement,  elles doivent-être bien tendues.                                                                - Vérifier le niveau d'huile dans le réservoir de la pompe, puis pomper quelques coups afin de lubrifier les axes de guidage, chaînes, couronnes.    \n- Remplir les huileurs afin de chasser l'huile précedente    \n- Graisser tout les point de graissage sur le haut de la machine (1  derrière piston boucheuse et 3 à droite du muselage)                           Graisse LUZOL AL"]
["MP","TRIO","Préventif",null,"2014-01-22",0,null,null," Contrôler le niveau d'huile dans le filtre graisseur du système pneumatique."]
["MP","TRIO","Préventif",null,"2014-01-22",0,null,null,"Contrôler la présence de condensant dans le filtre régulateur R1 et s'il le faut le démonter"]
["MP","Alimentation Bouchon","Préventif",null,"2014-01-22",0,null,null,"Lubrification des points 261 - 281 - 262"]
["MP","Pompe DEPA","Préventif",null,"2014-01-22",0,null,null,"Contrôle visuel"]
["MP","Pompe DEPA","Préventif",null,"2014-01-22",0,null,null,"Contrôle des pièces d'usure et remplacement si besoin."]
["MP","Pompe DEPA","Préventif",null,"2014-01-22",0,null,null," Collecteur / chambre de pompe type DH-PT/-TL "]
["MP","Pompe DEPA","Préventif",null,"2014-01-22",0,null,null,"Contrôle Tirant, Collier de serrage type DL-PT/-TL "]
["MP","Pompe DEPA","Préventif",null,"2014-01-22",0,null,null,"Contrôle des Tirant et collier de serrage type PM avec sièges PTFE"]
["MP","Etiqueteuse adhésive","Préventif",null,"2014-01-22",0,null,null,"Contrôle du réseau pneumatique vérifier qu'il n'y ai pas de fuites. ( tubes, raccords, cylindres et valves)"]
["MP","Etiqueteuse adhésive","Préventif",null,"2014-01-22",0,null,null,"Effectuer la vidange de la condensation du filtre d'air pneumatique"]
["MP","MEAD","Préventif",null,"2014-01-22",0,null,null,"Lubrification coté non opérateur / Graisse LUZOL AL"]
["MP","MEAD","Préventif",null,"2014-01-22",0,null,null,"Lubrification coté opérateur / Graisse LUZOL AL"]
["MP","MEAD","Préventif",null,"2014-01-22",0,null,null,"Contrôler l'éfficacité des dispositifs de sécurité (portes, arrêts d'urgence) "]
["MP","Bucher","Préventif",null,"2014-01-22",0,null,null,"Hydraulique 500 l d'huile hydraulique 4-5° E- Nuto H 68 ESSO"]
["MP","Macérateur","Préventif",null,"2014-01-22",0,null,null,"vérifier la rapeuse ( couteaux et grilles )avant et après la saison"]
["MP","Compresseur","Préventif",null,"2014-01-22",0,null,null,"- Verifier la clarté de l'eau avec le dispositif en photo jointe , si plus trouble que la partie basse, changer le filtre  'Enregistrements interventions"]
["MP","Tire-palette Jung","Préventif",null,"2014-01-22",0,null,null,"Vérifer le niveau d'eau de la batterie"]
["MP","Tireuse","Préventif",null,"2014-02-03",0,null,null,"- Glissement tige cylindre  élévateur bouteilles.\n - Vérifier que le glissement de la tige du cylindre élévateur de bouteilles glisse correctement."]
["MP","Tireuse","Préventif",null,"2014-02-03",0,null,null,"Contrôler l'état d'usure des joints du cylindre et l'efficacité du circuit pneumatique."]
["MP","Tireuse","Préventif",null,"2014-02-03",0,null,null,"Contrôler la mise en phase de tout les outillages"]
["MP","Tireuse","Préventif",null,"2014-02-03",0,null,null,"Contrôler en démarrant et en arrêtant la machine plusieurs fois sans bouteilles, l'éventuelle présence de bruits anormaux, jeux et vibration des composants de la motorisation"]
["MP","Tireuse","Préventif",null,"2014-02-03",0,null,null,"En cas de bruit ou d'usure il est nécessaire de remplacer les joints"]
["MP","Tireuse","Préventif",null,"2014-02-03",0,null,null,"Contrôle des urgences :\n- Verifier qu'en appuyant sur le poussoir d'urgence la machine s'arrete\n- Si la machine ne s'arrete pas il faut l'arreter en coupant l'alimentation et tout de suite chercher la cause du défaut.\n- Verifier avec la machine arretée que les urgences ( etoile, guichets...) sont fonctionnantes, il faut que sur le tableau les voyants rouges soient allumés\n- Vérifier avec la machine arretée, que les photocellules sont fonctionnantes; il faut que sur le tableau le voyant clignotant s'allume"]
["MP","Boucheuse / Museleuse","Préventif",null,"2014-02-03",0,null,null,"Sortir le bloc machoire\n Passer un coup de jet d'air pour enlever la poussière de bouchon                                              \nDémonter les machoires  \nLes tremper dans de l'eau chaude, afin quelles soient bien propres. \nLes remonter\nLes graisser avec de la graisse alimentaire           "]
["MP","Boucheuse / Museleuse","Préventif",null,"2014-02-03",0,null,null," Vérifier la tension des chaînes d'entraînement,  elles doivent-être bien tendues.                                                                - Vérifier le niveau d'huile dans le réservoir de la pompe, puis pomper quelques coups afin de lubrifier les axes de guidage, chaînes, couronnes.    \n- Remplir les huileurs afin de chasser l'huile précedente    \n- Graisser tout les point de graissage sur le haut de la machine (1  derrière piston boucheuse et 3 à droite du muselage)                           Graisse LUZOL AL"]
["MP","TRIO","Préventif",null,"2014-02-03",0,null,null," Contrôler le niveau d'huile dans le filtre graisseur du système pneumatique."]
["MP","TRIO","Préventif",null,"2014-02-03",0,null,null,"Contrôler la présence de condensant dans le filtre régulateur R1 et s'il le faut le démonter"]
["MP","Linx","Préventif",null,"2014-02-03",0,null,null,"- Têtes d'impression\n- filtre à air\n- armoire de l'imprimante"]
["MP","Etiqueteuse","Préventif",null,"2014-02-03",0,null,null,"- Graisser avec graisseur les engrenages VIS (graisse graphitée) Graisse Minerva Type G2"]
["PF","Etiqueteuse","Préventif",null,"2014-02-03",0,null,null,"- Graisser le disque came soulevement têtes avec de la graisse graphitee Indicateurs - Graisse Minerva Type G2"]
["PF","Etiqueteuse","Préventif",null,"2014-02-03",0,null,null,"- Graisser le plat de rotation croix de malte pour carroussel avec de la graisse graphitee - Graisse Minerva Type G2"]
["PF","Etiqueteuse","Préventif",null,"2014-02-03",0,null,null,"Lubrifier avec un pinceau les engrenages situés à l'intérieur du chassis / / Graisse KF KP 2 K-30"]
["MP","Etiqueteuse","Préventif",null,"2014-02-03",0,null,null,"Lubrifier le support pour étoile d'entrée et étoile de sortie / Graisse LUZOL AL"]
["MP","Etiqueteuse","Préventif",null,"2014-02-03",0,null,null,"Graisser par graisseurs avec graisse minérale pour roulement l'engrenage central (dans le cassis) / Graisse KF KP 2 K-30"]
["MP","Etiqueteuse","Préventif",null,"2014-02-03",0,null,null,"Graisser avec un pinceaula vis de réglage des inclinaisons avec de la graisse graphitée - Graisse Minerva Type G2"]
["MP","Pompe DEPA","Préventif",null,"2014-02-03",0,null,null,"Contrôle visuel"]
["MP","MEAD","Préventif",null,"2014-02-03",0,null,null,"Contrôler l'état général du magasin (pas endommagées ou cassées) "]
["MP","MEAD","Préventif",null,"2014-02-03",0,null,null,"Contrôler létat général du dépileur"]
["MP","MEAD","Préventif",null,"2014-02-03",0,null,null,"Contrôler le régalge du dépileur et des chaînes carton"]
["MP","MEAD","Préventif",null,"2014-02-03",0,null,null,"Contrôler létat général des ventouses du dépileur "]
["MP","Pasteurisateur","Préventif",null,"2014-02-03",0,null,null,"Grille accroche flamme : Démonter la tête du bruleur, devisser les press-étoupes, sortir la grille, débrancher les connecteurs, vérifier l'écartement des électrodes ( Cf notice d'instruction p14) et la propreté de la grille. Si nécessaire la nettoyer à l'eau caude + dégraissant puis la souffler"]
["MC","Pasteurisateur","Préventif",null,"2014-02-03",0,null,null,"Nettoyage du Pasteurisateur                                                              \n           Serpentin : Contrôle visuel de sa surface et du fond de la cuve. Si nécessaire, le nettoyer. Si dépôts en fond de cuve le nettoyer? Il doit toujours y avoir une circulation de liquide entre sa surface et le liquide à chauffer                                                                                                                                           -  Filtre à verre : Les démonter afin d'éliminer le verre"]
["MP","Pasteurisateur","Préventif",null,"2014-02-03",{"$f":"MOD(H995-G995,1)","v":0},null,null,"Filtres à airs (x2) : Démonter la cloche (noire) de protection et nettoyer le filtre : a) carton à l'air comprimé b) à mailles métalliques à l'eau chaude + dégraissant"]
["MP","Tapis sortie TRIO","Préventif",null,"2014-02-03",0,null,null,"4 points de graissage / Graisse LUZOL AL"]
["MP","Compresseur","Préventif",null,"2014-02-03",0,null,null,"- Verifier la clarté de l'eau avec le dispositif en photo jointe , si plus trouble que la partie basse, changer le filtre  'Enregistrements interventions"]
["Ouest","Tire-palette Jung","Préventif",null,"2014-02-03",0,null,null,"Entretien par OUEST Atlantique"]
["Chaplain","Compresseur","Préventif",null,"2014-02-03",0,null,null,"-Nettoyage général"]
["MP","Tire-palette Jung","Préventif",null,"2014-02-03",0,null,null,"Vérifer le niveau d'eau de la batterie"]
["MP","Etiqueteuse adhésive","Préventif",null,"2014-02-04",0,null,null,"Contrôle du réseau pneumatique vérifier qu'il n'y ai pas de fuites. ( tubes, raccords, cylindres et valves)"]
["Chaplain","Compresseur","Préventif",null,"2014-02-06",0,null,null,"Lot C : Cartouche de filtre à huile cartouche de filtre à air"]
["Chaplain","Compresseur","Préventif",null,"2014-02-06",0,null,null,"Remplacement de la cartouche du filtre à air (Ref: kit CK2076-1)"]
["Chaplain","Compresseur","Préventif",null,"2014-02-06",0,null,null,"Remplacement de la cartouche filtre à huile (Ref: kit CK2076-1)"]
["Chaplain","Compresseur","Préventif",null,"2014-02-06",0,null,null,"Nettoyer / Remplacer le feutre de filtre d'entrée d'air de refroidissement"]
["MP","Etiqueteuse adhésive","Préventif",null,"2014-02-06",0,null,null,"Verifier le niveau d'huile dans le lubrificateur du  régleur de pression"]
["MP","MEAD","Préventif",null,"2014-02-06",0,null,null,"Nettoyer l'afficheur avec une éponge humide et savonneuse, un liquide vaisselle, une lessive liquide, des produits à vitres du commerce"]
["MP","MEAD","Préventif",null,"2014-02-06",0,null,null,"Contrôler l'état du moteur (visuel)"]
["MP","MEAD","Préventif",null,"2014-02-06",0,null,null,"Contrôler l'éfficacité des dispositifs de sécurité (portes, arrêts d'urgence) "]
["MP","Boucheuse / museleuse","Curatif",null,"2014-02-03",540,6.25,16.625,"Entretion verin de sellette ,reparation electrovanne"]
["MP","Tireuse","Préventif",null,"2014-02-13",{"$f":"MOD(H1011-G1011,1)","v":0},null,null,"- Glissement tige cylindre  élévateur bouteilles.\n - Vérifier que le glissement de la tige du cylindre élévateur de bouteilles glisse correctement."]
["MP","Tireuse","Préventif",null,"2014-02-13",0,null,null,"Contrôler l'état d'usure des joints du cylindre et l'efficacité du circuit pneumatique."]
["MP","Tireuse","Préventif",null,"2014-02-13",0,null,null,"Contrôle des urgences :\n- Verifier qu'en appuyant sur le poussoir d'urgence la machine s'arrete\n- Si la machine ne s'arrete pas il faut l'arreter en coupant l'alimentation et tout de suite chercher la cause du défaut.\n- Verifier avec la machine arretée que les urgences ( etoile, guichets...) sont fonctionnantes, il faut que sur le tableau les voyants rouges soient allumés\n- Vérifier avec la machine arretée, que les photocellules sont fonctionnantes; il faut que sur le tableau le voyant clignotant s'allume"]
["MP","Boucheuse / Museleuse","Préventif",null,"2014-02-13",0,null,null," Vérifier la tension des chaînes d'entraînement,  elles doivent-être bien tendues.                                                                - Vérifier le niveau d'huile dans le réservoir de la pompe, puis pomper quelques coups afin de lubrifier les axes de guidage, chaînes, couronnes.    \n- Remplir les huileurs afin de chasser l'huile précedente    \n- Graisser tout les point de graissage sur le haut de la machine (1  derrière piston boucheuse et 3 à droite du muselage)                           Graisse LUZOL AL"]
["MP","Dépaletiseur","Préventif",null,"2014-02-13",0,null,null,"Cf documentation Table 6-A pos. 3"]
["MP","Dépaletiseur","Préventif",null,"2014-02-13",0,null,null,"Cf documentation table 6-B pos.8"]
["MP","TRIO","Préventif",null,"2014-02-13",0,null,null,"Contrôler la présence de condensant dans le filtre régulateur R1 et s'il le faut le démonter"]
["MP","TRIO","Préventif",null,"2014-02-13",0,null,null," Contrôler le niveau d'huile dans le filtre graisseur du système pneumatique."]
["MP","TRIO","Préventif",null,"2014-02-13",0,null,null,"- Enlever la poussière des cellules photoélectriques et des cataphotes avec un chiffon doux et sec en prenant soin de ne pas modifier leur orientation."]
["MP","Rinceuse","Préventif",null,"2014-02-13",0,null,null,"2 points de graissage sur l'axe central\n1  point graissage sur vis d'entrée                                                                                Graisse LUZOL AL"]
["MP","Dépaletiseur","Préventif",null,"2014-02-13",0,null,null,"Graissage tapis / Graisse LUZOL AL"]
["MP","Dépaletiseur","Préventif",null,"2014-02-13",0,null,null,"Nettoyage et contrôle  des cellules photoélectriques et cataphotes"]
["MP","Convoyeurs","Préventif",null,"2014-02-13",0,null,null,"36 points de graissage / Graisse LUZOL AL"]
["MP","Etiqueteuse adhésive","Préventif",null,"2014-02-13",0,null,null,"Contrôle visuel afin de relever d'éventuel endommagements , usures, altérations ou relachement de vis."]
["MP","Etiqueteuse adhésive","Préventif",null,"2014-02-13",0,null,null,"Contrôle du réseau pneumatique vérifier qu'il n'y ai pas de fuites. ( tubes, raccords, cylindres et valves)"]
["MP","MEAD","Préventif",null,"2014-02-13",0,null,null,"Contrôler l'éfficacité des dispositifs de sécurité (portes, arrêts d'urgence) "]
["MP","Presse AMOS","Préventif",null,"2014-02-13",0,null,null,"Vérification du circuit pneumatique et différents éléments pneumatiques ( fuites)"]
["MP","Filtre PALL","Préventif",null,"2014-02-13",0,null,null,"vérification cablage alimentation et état général"]
["MP","Centrifugeuse","Préventif",null,"2014-02-13",0,null,null,"Contrôle visuel et niveau d'huile"]
["MP","Compresseur","Préventif",null,"2014-02-13",0,null,null,"- Verifier la clarté de l'eau avec le dispositif en photo jointe , si plus trouble que la partie basse, changer le filtre  'Enregistrements interventions"]
["MP","Tire-palette à bras","Préventif",null,"2014-02-13",0,null,null,"Contrôler l'état général"]
["MP","Tire-palette Jung","Préventif",null,"2014-02-13",0,null,null,"Vérifer le niveau d'eau de la batterie"]
["JJ","Filtre PALL","Préventif",null,"2014-02-13",0,null,null,"Nettoyage crépine"]
["MP","Tireuse","Préventif",null,"2014-02-14",0,null,null,"1 point graissage dessus cloche\n12 sur les rouleaux dans carter\n4 sur arbre de rotation en quart de tour                                                         \n        Graisse LUZOL AL                                                                                                                              "]
["JQ","MEAD","Préventif",null,"2014-02-14",0,null,null,"Nettoyer les tôles de protection inférieures"]
["MP","Filtre padovan","Préventif",null,"2014-02-14",0,null,null," point de graissage Graisse LUZOL AL                                                                             et contrôle de l'état général"]
["MP","Pompe DEPA","Préventif",null,"2014-02-14",0,null,null,"Contrôle visuel"]
["MP","Alimentation Bouchon","Préventif",null,"2014-02-14",0,null,null,"- Contrôler la jauge d'huile dans la coupe du régulateur de pression."]
[null,null,null,null,null,0]
[null,null,null,null,null,0]
[null,null,null,null,null,0]
[null,null,null,null,null,0]
[null,null,null,null,null,0]
[null,null,null,null,null,0]
[null,null,null,null,null,0]
[null,null,null,null,null,0]
[null,null,null,null,null,0]
[null,null,null,null,null,0]
[null,null,null,null,null,0]
[null,null,null,null,null,0]
[null,null,null,null,null,0]
[null,null,null,null,null,0]
[null,null,null,null,null,0]
[null,null,null,null,null,0]
[null,null,null,null,null,0]
[null,null,null,null,null,0]
[null,null,null,null,null,0]
[null,null,null,null,null,0]
[null,null,null,null,null,{"$f":"MOD(H1059-G1059,1)","v":0}]
[null,null,null,null,null,0]
[null,null,null,null,null,0]
[null,null,null,null,null,0]
[null,null,null,null,null,0]
[null,null,null,null,null,0]
[null,null,null,null,null,0]
[null,null,null,null,null,0]
[null,null,null,null,null,0]
[null,null,null,null,null,0]
[null,null,null,null,null,0]
[null,null,null,null,null,0]
[null,null,null,null,null,0]
[null,null,null,null,null,0]
[null,null,null,null,null,0]
[null,null,null,null,null,0]
[null,null,null,null,null,0]
[null,null,null,null,null,0]
[null,null,null,null,null,0]
[null,null,null,null,null,0]
[null,null,null,null,null,0]
[null,null,null,null,null,0]
[null,null,null,null,null,0]
[null,null,null,null,null,0]
[null,null,null,null,null,0]
[null,null,null,null,null,0]
[null,null,null,null,null,0]
[null,null,null,null,null,0]
[null,null,null,null,null,0]
[null,null,null,null,null,0]
[null,null,null,null,null,0]
[null,null,null,null,null,0]
[null,null,null,null,null,0]
[null,null,null,null,null,0]
[null,null,null,null,null,0]
[null,null,null,null,null,0]
[null,null,null,null,null,0]
[null,null,null,null,null,0]
[null,null,null,null,null,0]
[null,null,null,null,null,0]
[null,null,null,null,null,0]
[null,null,null,null,null,0]
[null,null,null,null,null,0]
[null,null,null,null,null,0]
[null,null,null,null,null,0]
[null,null,null,null,null,0]
[null,null,null,null,null,0]
[null,null,null,null,null,0]
[null,null,null,null,null,0]
[null,null,null,null,null,0]
[null,null,null,null,null,0]
[null,null,null,null,null,0]
[null,null,null,null,null,0]
[null,null,null,null,null,0]
[null,null,null,null,null,0]
[null,null,null,null,null,0]
[null,null,null,null,null,0]
[null,null,null,null,null,0]
[null,null,null,null,null,0]
[null,null,null,null,null,0]
[null,null,null,null,null,0]
[null,null,null,null,null,0]
[null,null,null,null,null,0]
[null,null,null,null,null,0]
[null,null,null,null,null,{"$f":"MOD(H1123-G1123,1)","v":0}]
[null,null,null,null,null,0]
[null,null,null,null,null,0]
[null,null,null,null,null,0]
[null,null,null,null,null,0]
[null,null,null,null,null,0]
[null,null,null,null,null,0]
[null,null,null,null,null,0]
[null,null,null,null,null,0]
[null,null,null,null,null,0]
[null,null,null,null,null,0]
[null,null,null,null,null,0]
[null,null,null,null,null,0]
[null,null,null,null,null,0]
[null,null,null,null,null,0]
[null,null,null,null,null,0]
[null,null,null,null,null,0]
[null,null,null,null,null,0]
[null,null,null,null,null,0]
[null,null,null,null,null,0]
[null,null,null,null,null,0]
[null,null,null,null,null,0]
[null,null,null,null,null,0]
[null,null,null,null,null,0]
[null,null,null,null,null,0]
[null,null,null,null,null,0]
[null,null,null,null,null,0]
[null,null,null,null,null,0]
[null,null,null,null,null,0]
[null,null,null,null,null,0]
[null,null,null,null,null,0]
[null,null,null,null,null,0]
[null,null,null,null,null,0]
[null,null,null,null,null,0]
[null,null,null,null,null,0]
[null,null,null,null,null,0]
[null,null,null,null,null,0]
[null,null,null,null,null,0]
[null,null,null,null,null,0]
[null,null,null,null,null,0]
[null,null,null,null,null,0]
[null,null,null,null,null,0]
[null,null,null,null,null,0]
[null,null,null,null,null,0]
[null,null,null,null,null,0]
[null,null,null,null,null,0]
[null,null,null,null,null,0]
[null,null,null,null,null,0]
[null,null,null,null,null,0]
[null,null,null,null,null,0]
[null,null,null,null,null,0]
[null,null,null,null,null,0]
[null,null,null,null,null,0]
[null,null,null,null,null,0]
[null,null,null,null,null,0]
[null,null,null,null,null,0]
[null,null,null,null,null,0]
[null,null,null,null,null,0]
[null,null,null,null,null,0]
[null,null,null,null,null,0]
[null,null,null,null,null,0]
[null,null,null,null,null,0]
[null,null,null,null,null,0]
[null,null,null,null,null,0]
[null,null,null,null,null,{"$f":"MOD(H1187-G1187,1)","v":0}]
[null,null,null,null,null,0]
[null,null,null,null,null,0]
[null,null,null,null,null,0]
[null,null,null,null,null,0]
[null,null,null,null,null,0]
[null,null,null,null,null,0]
[null,null,null,null,null,0]
[null,null,null,null,null,0]
[null,null,null,null,null,0]
[null,null,null,null,null,0]
[null,null,null,null,null,0]
[null,null,null,null,null,0]
[null,null,null,null,null,0]
[null,null,null,null,null,0]
[null,null,null,null,null,0]
[null,null,null,null,null,0]
[null,null,null,null,null,0]
[null,null,null,null,null,0]
[null,null,null,null,null,0]
[null,null,null,null,null,0]
[null,null,null,null,null,0]
[null,null,null,null,null,0]
[null,null,null,null,null,0]
[null,null,null,null,null,0]
[null,null,null,null,null,0]
[null,null,null,null,null,0]
[null,null,null,null,null,0]
[null,null,null,null,null,0]
[null,null,null,null,null,0]
[null,null,null,null,null,0]
[null,null,null,null,null,0]
[null,null,null,null,null,0]
[null,null,null,null,null,0]
[null,null,null,null,null,0]
[null,null,null,null,null,0]
[null,null,null,null,null,0]
[null,null,null,null,null,0]
[null,null,null,null,null,0]
[null,null,null,null,null,0]
[null,null,null,null,null,0]
[null,null,null,null,null,0]
[null,null,null,null,null,0]
[null,null,null,null,null,0]
[null,null,null,null,null,0]
[null,null,null,null,null,0]
[null,null,null,null,null,0]
[null,null,null,null,null,0]
[null,null,null,null,null,0]
[null,null,null,null,null,0]
[null,null,null,null,null,0]
[null,null,null,null,null,0]
[null,null,null,null,null,0]
[null,null,null,null,null,0]
[null,null,null,null,null,0]
[null,null,null,null,null,0]
[null,null,null,null,null,0]
[null,null,null,null,null,0]
[null,null,null,null,null,0]
[null,null,null,null,null,0]
[null,null,null,null,null,0]
[null,null,null,null,null,0]
[null,null,null,null,null,0]
[null,null,null,null,null,0]
[null,null,null,null,null,{"$f":"MOD(H1251-G1251,1)","v":0}]
[null,null,null,null,null,0]
[null,null,null,null,null,0]
[null,null,null,null,null,0]
[null,null,null,null,null,0]
[null,null,null,null,null,0]
[null,null,null,null,null,0]
[null,null,null,null,null,0]
[null,null,null,null,null,0]
[null,null,null,null,null,0]
[null,null,null,null,null,0]
[null,null,null,null,null,0]
[null,null,null,null,null,0]
[null,null,null,null,null,0]
[null,null,null,null,null,0]
[null,null,null,null,null,0]
[null,null,null,null,null,0]
[null,null,null,null,null,0]
[null,null,null,null,null,0]
[null,null,null,null,null,0]
[null,null,null,null,null,0]
[null,null,null,null,null,0]
[null,null,null,null,null,0]
[null,null,null,null,null,0]
[null,null,null,null,null,0]
[null,null,null,null,null,0]
[null,null,null,null,null,0]
[null,null,null,null,null,0]
[null,null,null,null,null,0]
[null,null,null,null,null,0]
[null,null,null,null,null,0]
[null,null,null,null,null,0]
[null,null,null,null,null,0]
[null,null,null,null,null,0]
[null,null,null,null,null,0]
[null,null,null,null,null,0]
[null,null,null,null,null,0]
[null,null,null,null,null,0]
[null,null,null,null,null,0]
[null,null,null,null,null,0]
[null,null,null,null,null,0]
[null,null,null,null,null,0]
[null,null,null,null,null,0]
[null,null,null,null,null,0]
[null,null,null,null,null,0]
[null,null,null,null,null,0]
[null,null,null,null,null,0]
[null,null,null,null,null,0]
[null,null,null,null,null,0]
[null,null,null,null,null,0]
[null,null,null,null,null,0]
[null,null,null,null,null,0]
[null,null,null,null,null,0]
[null,null,null,null,null,0]
[null,null,null,null,null,0]
[null,null,null,null,null,0]
[null,null,null,null,null,0]
[null,null,null,null,null,0]
[null,null,null,null,null,0]
[null,null,null,null,null,0]
[null,null,null,null,null,0]
[null,null,null,null,null,0]
[null,null,null,null,null,0]
[null,null,null,null,null,0]
[null,null,null,null,null,{"$f":"MOD(H1315-G1315,1)","v":0}]
[null,null,null,null,null,0]
[null,null,null,null,null,0]
[null,null,null,null,null,0]
[null,null,null,null,null,0]
[null,null,null,null,null,0]
[null,null,null,null,null,0]
[null,null,null,null,null,0]
[null,null,null,null,null,0]
[null,null,null,null,null,0]
[null,null,null,null,null,0]
[null,null,null,null,null,0]
[null,null,null,null,null,0]
[null,null,null,null,null,0]
[null,null,null,null,null,0]
[null,null,null,null,null,0]
[null,null,null,null,null,0]
[null,null,null,null,null,0]
[null,null,null,null,null,0]
[null,null,null,null,null,0]
[null,null,null,null,null,0]
[null,null,null,null,null,0]
[null,null,null,null,null,0]
[null,null,null,null,null,0]
[null,null,null,null,null,0]
[null,null,null,null,null,0]
[null,null,null,null,null,0]
[null,null,null,null,null,0]
[null,null,null,null,null,0]
[null,null,null,null,null,0]
[null,null,null,null,null,0]
[null,null,null,null,null,0]
[null,null,null,null,null,0]
[null,null,null,null,null,0]
[null,null,null,null,null,0]
[null,null,null,null,null,0]
[null,null,null,null,null,0]
[null,null,null,null,null,0]
[null,null,null,null,null,0]
[null,null,null,null,null,0]
[null,null,null,null,null,0]
[null,null,null,null,null,0]
[null,null,null,null,null,0]
[null,null,null,null,null,0]
[null,null,null,null,null,0]
[null,null,null,null,null,0]
[null,null,null,null,null,0]
[null,null,null,null,null,0]
[null,null,null,null,null,0]
[null,null,null,null,null,0]
[null,null,null,null,null,0]
[null,null,null,null,null,0]
[null,null,null,null,null,0]
[null,null,null,null,null,0]
[null,null,null,null,null,0]
[null,null,null,null,null,0]
[null,null,null,null,null,0]
[null,null,null,null,null,0]
[null,null,null,null,null,0]
[null,null,null,null,null,0]
[null,null,null,null,null,0]
[null,null,null,null,null,0]
[null,null,null,null,null,0]
[null,null,null,null,null,0]
[null,null,null,null,null,{"$f":"MOD(H1379-G1379,1)","v":0}]
[null,null,null,null,null,0]
[null,null,null,null,null,0]
[null,null,null,null,null,0]
[null,null,null,null,null,0]
[null,null,null,null,null,0]
[null,null,null,null,null,0]
[null,null,null,null,null,0]
[null,null,null,null,null,0]
[null,null,null,null,null,0]
[null,null,null,null,null,0]
[null,null,null,null,null,0]
[null,null,null,null,null,0]
[null,null,null,null,null,0]
[null,null,null,null,null,0]
[null,null,null,null,null,0]
[null,null,null,null,null,0]
[null,null,null,null,null,0]
[null,null,null,null,null,0]
[null,null,null,null,null,0]
[null,null,null,null,null,0]
[null,null,null,null,null,0]
[null,null,null,null,null,0]
[null,null,null,null,null,0]
[null,null,null,null,null,0]
[null,null,null,null,null,0]
[null,null,null,null,null,0]
[null,null,null,null,null,0]
[null,null,null,null,null,0]
[null,null,null,null,null,0]
[null,null,null,null,null,0]
[null,null,null,null,null,0]
[null,null,null,null,null,0]
[null,null,null,null,null,0]
[null,null,null,null,null,0]
[null,null,null,null,null,0]
[null,null,null,null,null,0]
[null,null,null,null,null,0]
[null,null,null,null,null,0]
[null,null,null,null,null,0]
[null,null,null,null,null,0]
[null,null,null,null,null,0]
[null,null,null,null,null,0]
[null,null,null,null,null,0]
[null,null,null,null,null,0]
[null,null,null,null,null,0]
[null,null,null,null,null,0]
[null,null,null,null,null,0]
[null,null,null,null,null,0]
[null,null,null,null,null,0]
[null,null,null,null,null,0]
[null,null,null,null,null,0]
[null,null,null,null,null,0]
[null,null,null,null,null,0]
[null,null,null,null,null,0]
[null,null,null,null,null,0]
[null,null,null,null,null,0]
[null,null,null,null,null,0]
[null,null,null,null,null,0]
[null,null,null,null,null,0]
[null,null,null,null,null,0]
[null,null,null,null,null,0]
[null,null,null,null,null,0]
[null,null,null,null,null,0]
[null,null,null,null,null,{"$f":"MOD(H1443-G1443,1)","v":0}]
[null,null,null,null,null,0]
[null,null,null,null,null,0]
[null,null,null,null,null,0]
[null,null,null,null,null,0]
[null,null,null,null,null,0]
[null,null,null,null,null,0]
[null,null,null,null,null,0]
[null,null,null,null,null,0]
[null,null,null,null,null,0]
[null,null,null,null,null,0]
[null,null,null,null,null,0]
[null,null,null,null,null,0]
[null,null,null,null,null,0]
[null,null,null,null,null,0]
[null,null,null,null,null,0]
[null,null,null,null,null,0]
[null,null,null,null,null,0]
[null,null,null,null,null,0]
[null,null,null,null,null,0]
[null,null,null,null,null,0]
[null,null,null,null,null,0]
[null,null,null,null,null,0]
[null,null,null,null,null,0]
[null,null,null,null,null,0]
[null,null,null,null,null,0]
[null,null,null,null,null,0]
[null,null,null,null,null,0]
[null,null,null,null,null,0]
[null,null,null,null,null,0]
[null,null,null,null,null,0]
[null,null,null,null,null,0]
[null,null,null,null,null,0]
[null,null,null,null,null,0]
[null,null,null,null,null,0]
[null,null,null,null,null,0]
[null,null,null,null,null,0]
[null,null,null,null,null,0]
[null,null,null,null,null,0]
[null,null,null,null,null,0]
[null,null,null,null,null,0]
[null,null,null,null,null,0]
[null,null,null,null,null,0]
[null,null,null,null,null,0]
[null,null,null,null,null,0]
[null,null,null,null,null,0]
[null,null,null,null,null,0]
[null,null,null,null,null,0]
[null,null,null,null,null,0]
[null,null,null,null,null,0]
[null,null,null,null,null,0]
[null,null,null,null,null,0]
[null,null,null,null,null,0]
[null,null,null,null,null,0]
[null,null,null,null,null,0]
[null,null,null,null,null,0]
[null,null,null,null,null,0]
[null,null,null,null,null,0]
[null,null,null,null,null,0]
[null,null,null,null,null,0]
[null,null,null,null,null,0]
[null,null,null,null,null,0]
[null,null,null,null,null,0]
[null,null,null,null,null,0]
[null,null,null,null,null,{"$f":"MOD(H1507-G1507,1)","v":0}]
[null,null,null,null,null,0]
[null,null,null,null,null,0]
[null,null,null,null,null,0]
[null,null,null,null,null,0]
[null,null,null,null,null,0]
[null,null,null,null,null,0]
[null,null,null,null,null,0]
[null,null,null,null,null,0]
[null,null,null,null,null,0]
[null,null,null,null,null,0]
[null,null,null,null,null,0]
[null,null,null,null,null,0]
[null,null,null,null,null,0]
[null,null,null,null,null,0]
[null,null,null,null,null,0]
[null,null,null,null,null,0]
[null,null,null,null,null,0]
[null,null,null,null,null,0]
[null,null,null,null,null,0]
[null,null,null,null,null,0]
[null,null,null,null,null,0]
[null,null,null,null,null,0]
[null,null,null,null,null,0]
[null,null,null,null,null,0]
[null,null,null,null,null,0]
[null,null,null,null,null,0]
[null,null,null,null,null,0]
[null,null,null,null,null,0]
[null,null,null,null,null,0]
[null,null,null,null,null,0]
[null,null,null,null,null,0]
[null,null,null,null,null,0]
[null,null,null,null,null,0]
[null,null,null,null,null,0]
[null,null,null,null,null,0]
[null,null,null,null,null,0]
[null,null,null,null,null,0]
[null,null,null,null,null,0]
[null,null,null,null,null,0]
[null,null,null,null,null,0]
[null,null,null,null,null,0]
[null,null,null,null,null,0]
[null,null,null,null,null,0]
[null,null,null,null,null,0]
[null,null,null,null,null,0]
[null,null,null,null,null,0]
[null,null,null,null,null,0]
[null,null,null,null,null,0]
[null,null,null,null,null,0]
[null,null,null,null,null,0]
[null,null,null,null,null,0]
[null,null,null,null,null,0]
[null,null,null,null,null,0]
[null,null,null,null,null,0]
[null,null,null,null,null,0]
[null,null,null,null,null,0]
[null,null,null,null,null,0]
[null,null,null,null,null,0]
[null,null,null,null,null,0]
[null,null,null,null,null,0]
[null,null,null,null,null,0]
[null,null,null,null,null,0]
[null,null,null,null,null,0]
[null,null,null,null,null,{"$f":"MOD(H1571-G1571,1)","v":0}]
[null,null,null,null,null,0]
[null,null,null,null,null,0]
[null,null,null,null,null,0]
[null,null,null,null,null,0]
[null,null,null,null,null,0]
[null,null,null,null,null,0]
[null,null,null,null,null,0]
[null,null,null,null,null,0]
[null,null,null,null,null,0]
[null,null,null,null,null,0]
[null,null,null,null,null,0]
[null,null,null,null,null,0]
[null,null,null,null,null,0]
[null,null,null,null,null,0]
[null,null,null,null,null,0]
[null,null,null,null,null,0]
[null,null,null,null,null,0]
[null,null,null,null,null,0]
[null,null,null,null,null,0]
[null,null,null,null,null,0]
[null,null,null,null,null,0]
[null,null,null,null,null,0]
[null,null,null,null,null,0]
[null,null,null,null,null,0]
[null,null,null,null,null,0]
[null,null,null,null,null,0]
[null,null,null,null,null,0]
[null,null,null,null,null,0]
[null,null,null,null,null,0]
[null,null,null,null,null,0]
[null,null,null,null,null,0]
[null,null,null,null,null,0]
[null,null,null,null,null,0]
[null,null,null,null,null,0]
[null,null,null,null,null,0]
[null,null,null,null,null,0]
[null,null,null,null,null,0]
[null,null,null,null,null,0]
[null,null,null,null,null,0]
[null,null,null,null,null,0]
[null,null,null,null,null,0]
[null,null,null,null,null,0]
[null,null,null,null,null,0]
[null,null,null,null,null,0]
[null,null,null,null,null,0]
[null,null,null,null,null,0]
[null,null,null,null,null,0]
[null,null,null,null,null,0]
[null,null,null,null,null,0]
[null,null,null,null,null,0]
[null,null,null,null,null,0]
[null,null,null,null,null,0]
[null,null,null,null,null,0]
[null,null,null,null,null,0]
[null,null,null,null,null,0]
[null,null,null,null,null,0]
[null,null,null,null,null,0]
[null,null,null,null,null,0]
[null,null,null,null,null,0]
[null,null,null,null,null,0]
[null,null,null,null,null,0]
[null,null,null,null,null,0]
[null,null,null,null,null,0]
[null,null,null,null,null,{"$f":"MOD(H1635-G1635,1)","v":0}]
[null,null,null,null,null,0]
[null,null,null,null,null,0]
[null,null,null,null,null,0]
[null,null,null,null,null,0]
[null,null,null,null,null,0]
[null,null,null,null,null,0]
[null,null,null,null,null,0]
[null,null,null,null,null,0]
[null,null,null,null,null,0]
[null,null,null,null,null,0]
[null,null,null,null,null,0]
[null,null,null,null,null,0]
[null,null,null,null,null,0]
[null,null,null,null,null,0]
[null,null,null,null,null,0]
[null,null,null,null,null,0]
[null,null,null,null,null,0]
[null,null,null,null,null,0]
[null,null,null,null,null,0]
[null,null,null,null,null,0]
[null,null,null,null,null,0]
[null,null,null,null,null,0]
[null,null,null,null,null,0]
[null,null,null,null,null,0]
[null,null,null,null,null,0]
[null,null,null,null,null,0]
[null,null,null,null,null,0]
[null,null,null,null,null,0]
[null,null,null,null,null,0]
[null,null,null,null,null,0]
[null,null,null,null,null,0]
[null,null,null,null,null,0]
[null,null,null,null,null,0]
[null,null,null,null,null,0]
[null,null,null,null,null,0]
[null,null,null,null,null,0]
[null,null,null,null,null,0]
[null,null,null,null,null,0]
[null,null,null,null,null,0]
[null,null,null,null,null,0]
[null,null,null,null,null,0]
[null,null,null,null,null,0]
[null,null,null,null,null,0]
[null,null,null,null,null,0]
[null,null,null,null,null,0]
[null,null,null,null,null,0]
[null,null,null,null,null,0]
[null,null,null,null,null,0]
[null,null,null,null,null,0]
[null,null,null,null,null,0]
[null,null,null,null,null,0]
[null,null,null,null,null,0]
[null,null,null,null,null,0]
[null,null,null,null,null,0]
[null,null,null,null,null,0]
[null,null,null,null,null,0]
[null,null,null,null,null,0]
[null,null,null,null,null,0]
[null,null,null,null,null,0]
[null,null,null,null,null,0]
[null,null,null,null,null,0]
[null,null,null,null,null,0]
[null,null,null,null,null,0]
[null,null,null,null,null,{"$f":"MOD(H1699-G1699,1)","v":0}]
[null,null,null,null,null,0]
[null,null,null,null,null,0]
[null,null,null,null,null,0]
[null,null,null,null,null,0]
[null,null,null,null,null,0]
[null,null,null,null,null,0]
[null,null,null,null,null,0]
[null,null,null,null,null,0]
[null,null,null,null,null,0]
[null,null,null,null,null,0]
[null,null,null,null,null,0]
[null,null,null,null,null,0]
[null,null,null,null,null,0]
[null,null,null,null,null,0]
[null,null,null,null,null,0]
[null,null,null,null,null,0]
[null,null,null,null,null,0]
[null,null,null,null,null,0]
[null,null,null,null,null,0]
[null,null,null,null,null,0]
[null,null,null,null,null,0]
[null,null,null,null,null,0]
[null,null,null,null,null,0]
[null,null,null,null,null,0]
[null,null,null,null,null,0]
[null,null,null,null,null,0]
[null,null,null,null,null,0]
[null,null,null,null,null,0]
[null,null,null,null,null,0]
[null,null,null,null,null,0]
[null,null,null,null,null,0]
[null,null,null,null,null,0]
[null,null,null,null,null,0]
[null,null,null,null,null,0]
[null,null,null,null,null,0]
[null,null,null,null,null,0]
[null,null,null,null,null,0]
[null,null,null,null,null,0]
[null,null,null,null,null,0]
[null,null,null,null,null,0]
[null,null,null,null,null,0]
[null,null,null,null,null,0]
[null,null,null,null,null,0]
[null,null,null,null,null,0]
[null,null,null,null,null,0]
[null,null,null,null,null,0]
[null,null,null,null,null,0]
[null,null,null,null,null,0]
[null,null,null,null,null,0]
[null,null,null,null,null,0]
[null,null,null,null,null,0]
[null,null,null,null,null,0]
[null,null,null,null,null,0]
[null,null,null,null,null,0]
[null,null,null,null,null,0]
[null,null,null,null,null,0]
[null,null,null,null,null,0]
[null,null,null,null,null,0]
[null,null,null,null,null,0]
[null,null,null,null,null,0]
[null,null,null,null,null,0]
[null,null,null,null,null,0]
[null,null,null,null,null,0]
[null,null,null,null,null,{"$f":"MOD(H1763-G1763,1)","v":0}]
[null,null,null,null,null,0]
[null,null,null,null,null,0]
[null,null,null,null,null,0]
[null,null,null,null,null,0]
[null,null,null,null,null,0]
[null,null,null,null,null,0]
[null,null,null,null,null,0]
[null,null,null,null,null,0]
[null,null,null,null,null,0]
[null,null,null,null,null,0]
[null,null,null,null,null,0]
[null,null,null,null,null,0]
[null,null,null,null,null,0]
[null,null,null,null,null,0]
[null,null,null,null,null,0]
[null,null,null,null,null,0]
[null,null,null,null,null,0]
[null,null,null,null,null,0]
[null,null,null,null,null,0]
[null,null,null,null,null,0]
[null,null,null,null,null,0]
[null,null,null,null,null,0]
[null,null,null,null,null,0]
[null,null,null,null,null,0]
[null,null,null,null,null,0]
[null,null,null,null,null,0]
[null,null,null,null,null,0]
[null,null,null,null,null,0]
[null,null,null,null,null,0]
[null,null,null,null,null,0]
[null,null,null,null,null,0]
[null,null,null,null,null,0]
[null,null,null,null,null,0]
[null,null,null,null,null,0]
[null,null,null,null,null,0]
[null,null,null,null,null,0]
[null,null,null,null,null,0]
[null,null,null,null,null,0]
[null,null,null,null,null,0]
[null,null,null,null,null,0]
[null,null,null,null,null,0]
[null,null,null,null,null,0]
[null,null,null,null,null,0]
[null,null,null,null,null,0]
[null,null,null,null,null,0]
[null,null,null,null,null,0]
[null,null,null,null,null,0]
[null,null,null,null,null,0]
[null,null,null,null,null,0]
[null,null,null,null,null,0]
[null,null,null,null,null,0]
[null,null,null,null,null,0]
[null,null,null,null,null,0]
[null,null,null,null,null,0]
[null,null,null,null,null,0]
[null,null,null,null,null,0]
[null,null,null,null,null,0]
[null,null,null,null,null,0]
[null,null,null,null,null,0]
[null,null,null,null,null,0]
[null,null,null,null,null,0]
[null,null,null,null,null,0]
[null,null,null,null,null,0]
[null,null,null,null,null,{"$f":"MOD(H1827-G1827,1)","v":0}]
[null,null,null,null,null,0]
[null,null,null,null,null,0]
[null,null,null,null,null,0]
[null,null,null,null,null,0]
[null,null,null,null,null,0]
[null,null,null,null,null,0]
[null,null,null,null,null,0]
[null,null,null,null,null,0]
[null,null,null,null,null,0]
[null,null,null,null,null,0]
[null,null,null,null,null,0]
[null,null,null,null,null,0]
[null,null,null,null,null,0]
[null,null,null,null,null,0]
[null,null,null,null,null,0]
[null,null,null,null,null,0]
[null,null,null,null,null,0]
[null,null,null,null,null,0]
[null,null,null,null,null,0]
[null,null,null,null,null,0]
[null,null,null,null,null,0]
[null,null,null,null,null,0]
[null,null,null,null,null,0]
[null,null,null,null,null,0]
[null,null,null,null,null,0]
[null,null,null,null,null,0]
[null,null,null,null,null,0]
[null,null,null,null,null,0]
[null,null,null,null,null,0]
[null,null,null,null,null,0]
[null,null,null,null,null,0]
[null,null,null,null,null,0]
[null,null,null,null,null,0]
[null,null,null,null,null,0]
[null,null,null,null,null,0]
[null,null,null,null,null,0]
[null,null,null,null,null,0]
[null,null,null,null,null,0]
[null,null,null,null,null,0]
[null,null,null,null,null,0]
[null,null,null,null,null,0]
[null,null,null,null,null,0]
[null,null,null,null,null,0]
[null,null,null,null,null,0]
[null,null,null,null,null,0]
[null,null,null,null,null,0]
[null,null,null,null,null,0]
[null,null,null,null,null,0]
[null,null,null,null,null,0]
[null,null,null,null,null,0]
[null,null,null,null,null,0]
[null,null,null,null,null,0]
[null,null,null,null,null,0]
[null,null,null,null,null,0]
[null,null,null,null,null,0]
[null,null,null,null,null,0]
[null,null,null,null,null,0]
[null,null,null,null,null,0]
[null,null,null,null,null,0]
[null,null,null,null,null,0]
[null,null,null,null,null,0]
[null,null,null,null,null,0]
[null,null,null,null,null,0]
[null,null,null,null,null,{"$f":"MOD(H1891-G1891,1)","v":0}]
[null,null,null,null,null,0]
[null,null,null,null,null,0]
[null,null,null,null,null,0]
[null,null,null,null,null,0]
[null,null,null,null,null,0]
[null,null,null,null,null,0]
[null,null,null,null,null,0]
[null,null,null,null,null,0]
[null,null,null,null,null,0]
[null,null,null,null,null,0]
[null,null,null,null,null,0]
[null,null,null,null,null,0]
[null,null,null,null,null,0]
[null,null,null,null,null,0]
[null,null,null,null,null,0]
[null,null,null,null,null,0]
[null,null,null,null,null,0]
[null,null,null,null,null,0]
[null,null,null,null,null,0]
[null,null,null,null,null,0]
[null,null,null,null,null,0]
[null,null,null,null,null,0]
[null,null,null,null,null,0]
[null,null,null,null,null,0]
[null,null,null,null,null,0]
[null,null,null,null,null,0]
[null,null,null,null,null,0]
[null,null,null,null,null,0]
[null,null,null,null,null,0]
[null,null,null,null,null,0]
[null,null,null,null,null,0]
[null,null,null,null,null,0]
[null,null,null,null,null,0]
[null,null,null,null,null,0]
[null,null,null,null,null,0]
[null,null,null,null,null,0]
[null,null,null,null,null,0]
[null,null,null,null,null,0]
[null,null,null,null,null,0]
[null,null,null,null,null,0]
[null,null,null,null,null,0]
[null,null,null,null,null,0]
[null,null,null,null,null,0]
[null,null,null,null,null,0]
[null,null,null,null,null,0]
[null,null,null,null,null,0]
[null,null,null,null,null,0]
[null,null,null,null,null,0]
[null,null,null,null,null,0]
[null,null,null,null,null,0]
[null,null,null,null,null,0]
[null,null,null,null,null,0]
[null,null,null,null,null,0]
[null,null,null,null,null,0]
[null,null,null,null,null,0]
[null,null,null,null,null,0]
[null,null,null,null,null,0]
[null,null,null,null,null,0]
[null,null,null,null,null,0]
[null,null,null,null,null,0]
[null,null,null,null,null,0]
[null,null,null,null,null,0]
[null,null,null,null,null,0]
[null,null,null,null,null,{"$f":"MOD(H1955-G1955,1)","v":0}]
[null,null,null,null,null,0]
[null,null,null,null,null,0]
[null,null,null,null,null,0]
[null,null,null,null,null,0]
[null,null,null,null,null,0]
[null,null,null,null,null,0]
[null,null,null,null,null,0]
[null,null,null,null,null,0]
[null,null,null,null,null,0]
[null,null,null,null,null,0]
[null,null,null,null,null,0]
[null,null,null,null,null,0]
[null,null,null,null,null,0]
[null,null,null,null,null,0]
[null,null,null,null,null,0]
[null,null,null,null,null,0]
[null,null,null,null,null,0]
[null,null,null,null,null,0]
[null,null,null,null,null,0]
[null,null,null,null,null,0]
[null,null,null,null,null,0]
[null,null,null,null,null,0]
[null,null,null,null,null,0]
[null,null,null,null,null,0]
[null,null,null,null,null,0]
[null,null,null,null,null,0]
[null,null,null,null,null,0]
[null,null,null,null,null,0]
[null,null,null,null,null,0]
[null,null,null,null,null,0]
[null,null,null,null,null,0]
[null,null,null,null,null,0]
[null,null,null,null,null,0]
[null,null,null,null,null,0]
[null,null,null,null,null,0]
[null,null,null,null,null,0]
[null,null,null,null,null,0]
[null,null,null,null,null,0]
[null,null,null,null,null,0]
[null,null,null,null,null,0]
[null,null,null,null,null,0]
[null,null,null,null,null,0]
[null,null,null,null,null,0]
[null,null,null,null,null,0]
[null,null,null,null,null,0]
[null,null,null,null,null,0]
[null,null,null,null,null,0]
[null,null,null,null,null,0]
[null,null,null,null,null,0]
[null,null,null,null,null,0]
[null,null,null,null,null,0]
[null,null,null,null,null,0]
[null,null,null,null,null,0]
[null,null,null,null,null,0]
[null,null,null,null,null,0]
[null,null,null,null,null,0]
[null,null,null,null,null,0]
[null,null,null,null,null,0]
[null,null,null,null,null,0]
[null,null,null,null,null,0]
[null,null,null,null,null,0]
[null,null,null,null,null,0]
[null,null,null,null,null,0]
[null,null,null,null,null,{"$f":"MOD(H2019-G2019,1)","v":0}]
[null,null,null,null,null,0]
[null,null,null,null,null,0]
[null,null,null,null,null,0]
[null,null,null,null,null,0]
[null,null,null,null,null,0]
[null,null,null,null,null,0]
[null,null,null,null,null,0]
[null,null,null,null,null,0]
[null,null,null,null,null,0]
[null,null,null,null,null,0]
[null,null,null,null,null,0]
[null,null,null,null,null,0]
[null,null,null,null,null,0]
[null,null,null,null,null,0]
[null,null,null,null,null,0]
[null,null,null,null,null,0]
[null,null,null,null,null,0]
[null,null,null,null,null,0]
[null,null,null,null,null,0]
[null,null,null,null,null,0]
[null,null,null,null,null,0]
[null,null,null,null,null,0]
[null,null,null,null,null,0]
[null,null,null,null,null,0]
[null,null,null,null,null,0]
[null,null,null,null,null,0]
[null,null,null,null,null,0]
[null,null,null,null,null,0]
[null,null,null,null,null,0]
[null,null,null,null,null,0]
[null,null,null,null,null,0]
[null,null,null,null,null,0]
[null,null,null,null,null,0]
[null,null,null,null,null,0]
[null,null,null,null,null,0]
[null,null,null,null,null,0]
[null,null,null,null,null,0]
[null,null,null,null,null,0]
[null,null,null,null,null,0]
[null,null,null,null,null,0]
[null,null,null,null,null,0]
[null,null,null,null,null,0]
[null,null,null,null,null,0]
[null,null,null,null,null,0]
[null,null,null,null,null,0]
[null,null,null,null,null,0]
[null,null,null,null,null,0]
[null,null,null,null,null,0]
[null,null,null,null,null,0]
[null,null,null,null,null,0]
[null,null,null,null,null,0]
[null,null,null,null,null,0]
[null,null,null,null,null,0]
[null,null,null,null,null,0]
[null,null,null,null,null,0]
[null,null,null,null,null,0]
[null,null,null,null,null,0]
[null,null,null,null,null,0]
[null,null,null,null,null,0]
[null,null,null,null,null,0]
[null,null,null,null,null,0]
[null,null,null,null,null,0]
[null,null,null,null,null,0]
[null,null,null,null,null,{"$f":"MOD(H2083-G2083,1)","v":0}]
[null,null,null,null,null,0]
[null,null,null,null,null,0]
[null,null,null,null,null,0]
[null,null,null,null,null,0]
[null,null,null,null,null,0]
[null,null,null,null,null,0]
[null,null,null,null,null,0]
[null,null,null,null,null,0]
[null,null,null,null,null,0]
[null,null,null,null,null,0]
[null,null,null,null,null,0]
[null,null,null,null,null,0]
[null,null,null,null,null,0]
[null,null,null,null,null,0]
[null,null,null,null,null,0]
[null,null,null,null,null,0]
[null,null,null,null,null,0]
[null,null,null,null,null,0]
[null,null,null,null,null,0]
[null,null,null,null,null,0]
[null,null,null,null,null,0]
[null,null,null,null,null,0]
[null,null,null,null,null,0]
[null,null,null,null,null,0]
[null,null,null,null,null,0]
[null,null,null,null,null,0]
[null,null,null,null,null,0]
[null,null,null,null,null,0]
[null,null,null,null,null,0]
[null,null,null,null,null,0]
[null,null,null,null,null,0]
[null,null,null,null,null,0]
[null,null,null,null,null,0]
[null,null,null,null,null,0]
[null,null,null,null,null,0]
[null,null,null,null,null,0]
[null,null,null,null,null,0]
[null,null,null,null,null,0]
[null,null,null,null,null,0]
[null,null,null,null,null,0]
[null,null,null,null,null,0]
[null,null,null,null,null,0]
[null,null,null,null,null,0]
[null,null,null,null,null,0]
[null,null,null,null,null,0]
[null,null,null,null,null,0]
[null,null,null,null,null,0]
[null,null,null,null,null,0]
[null,null,null,null,null,0]
[null,null,null,null,null,0]
[null,null,null,null,null,0]
[null,null,null,null,null,0]
[null,null,null,null,null,0]
[null,null,null,null,null,0]
[null,null,null,null,null,0]
[null,null,null,null,null,0]
[null,null,null,null,null,0]
[null,null,null,null,null,0]
[null,null,null,null,null,0]
[null,null,null,null,null,0]
[null,null,null,null,null,0]
[null,null,null,null,null,0]
[null,null,null,null,null,0]
[null,null,null,null,null,{"$f":"MOD(H2147-G2147,1)","v":0}]
[null,null,null,null,null,0]
[null,null,null,null,null,0]
[null,null,null,null,null,0]
[null,null,null,null,null,0]
[null,null,null,null,null,0]
[null,null,null,null,null,0]
[null,null,null,null,null,0]
[null,null,null,null,null,0]
[null,null,null,null,null,0]
[null,null,null,null,null,0]
[null,null,null,null,null,0]
[null,null,null,null,null,0]
[null,null,null,null,null,0]
[null,null,null,null,null,0]
[null,null,null,null,null,0]
[null,null,null,null,null,0]
[null,null,null,null,null,0]
[null,null,null,null,null,0]
[null,null,null,null,null,0]
[null,null,null,null,null,0]
[null,null,null,null,null,0]
[null,null,null,null,null,0]
[null,null,null,null,null,0]
[null,null,null,null,null,0]
[null,null,null,null,null,0]
[null,null,null,null,null,0]
[null,null,null,null,null,0]
[null,null,null,null,null,0]
[null,null,null,null,null,0]
[null,null,null,null,null,0]
[null,null,null,null,null,0]
[null,null,null,null,null,0]
[null,null,null,null,null,0]
[null,null,null,null,null,0]
[null,null,null,null,null,0]
[null,null,null,null,null,0]
[null,null,null,null,null,0]
[null,null,null,null,null,0]
[null,null,null,null,null,0]
[null,null,null,null,null,0]
[null,null,null,null,null,0]
[null,null,null,null,null,0]
[null,null,null,null,null,0]
[null,null,null,null,null,0]
[null,null,null,null,null,0]
[null,null,null,null,null,0]
[null,null,null,null,null,0]
[null,null,null,null,null,0]
[null,null,null,null,null,0]
[null,null,null,null,null,0]
[null,null,null,null,null,0]
[null,null,null,null,null,0]
[null,null,null,null,null,0]
[null,null,null,null,null,0]
[null,null,null,null,null,0]
[null,null,null,null,null,0]
[null,null,null,null,null,0]
[null,null,null,null,null,0]
[null,null,null,null,null,0]
[null,null,null,null,null,0]
[null,null,null,null,null,0]
[null,null,null,null,null,0]
[null,null,null,null,null,0]
[null,null,null,null,null,{"$f":"MOD(H2211-G2211,1)","v":0}]
[null,null,null,null,null,0]
[null,null,null,null,null,0]
[null,null,null,null,null,0]
[null,null,null,null,null,0]
[null,null,null,null,null,0]
[null,null,null,null,null,0]
[null,null,null,null,null,0]
[null,null,null,null,null,0]
[null,null,null,null,null,0]
[null,null,null,null,null,0]
[null,null,null,null,null,0]
[null,null,null,null,null,0]
[null,null,null,null,null,0]
[null,null,null,null,null,0]
[null,null,null,null,null,0]
[null,null,null,null,null,0]
[null,null,null,null,null,0]
[null,null,null,null,null,0]
[null,null,null,null,null,0]
[null,null,null,null,null,0]
[null,null,null,null,null,0]
[null,null,null,null,null,0]
[null,null,null,null,null,0]
[null,null,null,null,null,0]
[null,null,null,null,null,0]
[null,null,null,null,null,0]
[null,null,null,null,null,0]
[null,null,null,null,null,0]
[null,null,null,null,null,0]
[null,null,null,null,null,0]
[null,null,null,null,null,0]
[null,null,null,null,null,0]
[null,null,null,null,null,0]
[null,null,null,null,null,0]
[null,null,null,null,null,0]
[null,null,null,null,null,0]
[null,null,null,null,null,0]
[null,null,null,null,null,0]
[null,null,null,null,null,0]
[null,null,null,null,null,0]
[null,null,null,null,null,0]
[null,null,null,null,null,0]
[null,null,null,null,null,0]
[null,null,null,null,null,0]
[null,null,null,null,null,0]
[null,null,null,null,null,0]
[null,null,null,null,null,0]
[null,null,null,null,null,0]
[null,null,null,null,null,0]
[null,null,null,null,null,0]
[null,null,null,null,null,0]
[null,null,null,null,null,0]
[null,null,null,null,null,0]
[null,null,null,null,null,0]
[null,null,null,null,null,0]
[null,null,null,null,null,0]
[null,null,null,null,null,0]
[null,null,null,null,null,0]
[null,null,null,null,null,0]
[null,null,null,null,null,0]
[null,null,null,null,null,0]
[null,null,null,null,null,0]
[null,null,null,null,null,0]
[null,null,null,null,null,{"$f":"MOD(H2275-G2275,1)","v":0}]
[null,null,null,null,null,0]
[null,null,null,null,null,0]
[null,null,null,null,null,0]
[null,null,null,null,null,0]
[null,null,null,null,null,0]
[null,null,null,null,null,0]
[null,null,null,null,null,0]
[null,null,null,null,null,0]
[null,null,null,null,null,0]
[null,null,null,null,null,0]
[null,null,null,null,null,0]
[null,null,null,null,null,0]
[null,null,null,null,null,0]
[null,null,null,null,null,0]
[null,null,null,null,null,0]
[null,null,null,null,null,0]
[null,null,null,null,null,0]
[null,null,null,null,null,0]
[null,null,null,null,null,0]
[null,null,null,null,null,0]
[null,null,null,null,null,0]
[null,null,null,null,null,0]
[null,null,null,null,null,0]
[null,null,null,null,null,0]
[null,null,null,null,null,0]
[null,null,null,null,null,0]
[null,null,null,null,null,0]
[null,null,null,null,null,0]
[null,null,null,null,null,0]
[null,null,null,null,null,0]
[null,null,null,null,null,0]
[null,null,null,null,null,0]
[null,null,null,null,null,0]
[null,null,null,null,null,0]
[null,null,null,null,null,0]
[null,null,null,null,null,0]
[null,null,null,null,null,0]
[null,null,null,null,null,0]
[null,null,null,null,null,0]
[null,null,null,null,null,0]
[null,null,null,null,null,0]
[null,null,null,null,null,0]
[null,null,null,null,null,0]
[null,null,null,null,null,0]
[null,null,null,null,null,0]
[null,null,null,null,null,0]
[null,null,null,null,null,0]
[null,null,null,null,null,0]
[null,null,null,null,null,0]
[null,null,null,null,null,0]
[null,null,null,null,null,0]
[null,null,null,null,null,0]
[null,null,null,null,null,0]
[null,null,null,null,null,0]
[null,null,null,null,null,0]
[null,null,null,null,null,0]
[null,null,null,null,null,0]
[null,null,null,null,null,0]
[null,null,null,null,null,0]
[null,null,null,null,null,0]
[null,null,null,null,null,0]
[null,null,null,null,null,0]
[null,null,null,null,null,0]
[null,null,null,null,null,{"$f":"MOD(H2339-G2339,1)","v":0}]
[null,null,null,null,null,0]
[null,null,null,null,null,0]
[null,null,null,null,null,0]
[null,null,null,null,null,0]
[null,null,null,null,null,0]
[null,null,null,null,null,0]
[null,null,null,null,null,0]
[null,null,null,null,null,0]
[null,null,null,null,null,0]
[null,null,null,null,null,0]
[null,null,null,null,null,0]
[null,null,null,null,null,0]
[null,null,null,null,null,0]
[null,null,null,null,null,0]
[null,null,null,null,null,0]
[null,null,null,null,null,0]
[null,null,null,null,null,0]
[null,null,null,null,null,0]
[null,null,null,null,null,0]
[null,null,null,null,null,0]
[null,null,null,null,null,0]
[null,null,null,null,null,0]
[null,null,null,null,null,0]
[null,null,null,null,null,0]
[null,null,null,null,null,0]
[null,null,null,null,null,0]
[null,null,null,null,null,0]
[null,null,null,null,null,0]
[null,null,null,null,null,0]
[null,null,null,null,null,0]
[null,null,null,null,null,0]
[null,null,null,null,null,0]
[null,null,null,null,null,0]
[null,null,null,null,null,0]
[null,null,null,null,null,0]
[null,null,null,null,null,0]
[null,null,null,null,null,0]
[null,null,null,null,null,0]
[null,null,null,null,null,0]
[null,null,null,null,null,0]
[null,null,null,null,null,0]
[null,null,null,null,null,0]
[null,null,null,null,null,0]
[null,null,null,null,null,0]
[null,null,null,null,null,0]
[null,null,null,null,null,0]
[null,null,null,null,null,0]
[null,null,null,null,null,0]
[null,null,null,null,null,0]
[null,null,null,null,null,0]
[null,null,null,null,null,0]
[null,null,null,null,null,0]
[null,null,null,null,null,0]
[null,null,null,null,null,0]
[null,null,null,null,null,0]
[null,null,null,null,null,0]
[null,null,null,null,null,0]
[null,null,null,null,null,0]
[null,null,null,null,null,0]
[null,null,null,null,null,0]
[null,null,null,null,null,0]
[null,null,null,null,null,0]
[null,null,null,null,null,0]
[null,null,null,null,null,{"$f":"MOD(H2403-G2403,1)","v":0}]
[null,null,null,null,null,0]
[null,null,null,null,null,0]
[null,null,null,null,null,0]
[null,null,null,null,null,0]
[null,null,null,null,null,0]
[null,null,null,null,null,0]
[null,null,null,null,null,0]
[null,null,null,null,null,0]
[null,null,null,null,null,0]
[null,null,null,null,null,0]
[null,null,null,null,null,0]
[null,null,null,null,null,0]
[null,null,null,null,null,0]
[null,null,null,null,null,0]
[null,null,null,null,null,0]
[null,null,null,null,null,0]
[null,null,null,null,null,0]
[null,null,null,null,null,0]
[null,null,null,null,null,0]
[null,null,null,null,null,0]
[null,null,null,null,null,0]
[null,null,null,null,null,0]
[null,null,null,null,null,0]
[null,null,null,null,null,0]
[null,null,null,null,null,0]
[null,null,null,null,null,0]
[null,null,null,null,null,0]
[null,null,null,null,null,0]
[null,null,null,null,null,0]
[null,null,null,null,null,0]
[null,null,null,null,null,0]
[null,null,null,null,null,0]
[null,null,null,null,null,0]
[null,null,null,null,null,0]
[null,null,null,null,null,0]
[null,null,null,null,null,0]
[null,null,null,null,null,0]
[null,null,null,null,null,0]
[null,null,null,null,null,0]
[null,null,null,null,null,0]
[null,null,null,null,null,0]
[null,null,null,null,null,0]
[null,null,null,null,null,0]
[null,null,null,null,null,0]
[null,null,null,null,null,0]
[null,null,null,null,null,0]
[null,null,null,null,null,0]
[null,null,null,null,null,0]
[null,null,null,null,null,0]
[null,null,null,null,null,0]
[null,null,null,null,null,0]
[null,null,null,null,null,0]
[null,null,null,null,null,0]
[null,null,null,null,null,0]
[null,null,null,null,null,0]
[null,null,null,null,null,0]
[null,null,null,null,null,0]
[null,null,null,null,null,0]
[null,null,null,null,null,0]
[null,null,null,null,null,0]
[null,null,null,null,null,0]
[null,null,null,null,null,0]
[null,null,null,null,null,0]
[null,null,null,null,null,{"$f":"MOD(H2467-G2467,1)","v":0}]
[null,null,null,null,null,0]
[null,null,null,null,null,0]
[null,null,null,null,null,0]
[null,null,null,null,null,0]
[null,null,null,null,null,0]
[null,null,null,null,null,0]
[null,null,null,null,null,0]
[null,null,null,null,null,0]
[null,null,null,null,null,0]
[null,null,null,null,null,0]
[null,null,null,null,null,0]
[null,null,null,null,null,0]
[null,null,null,null,null,0]
[null,null,null,null,null,0]
[null,null,null,null,null,0]
[null,null,null,null,null,0]
[null,null,null,null,null,0]
[null,null,null,null,null,0]
[null,null,null,null,null,0]
[null,null,null,null,null,0]
[null,null,null,null,null,0]
[null,null,null,null,null,0]
[null,null,null,null,null,0]
[null,null,null,null,null,0]
[null,null,null,null,null,0]
[null,null,null,null,null,0]
[null,null,null,null,null,0]
[null,null,null,null,null,0]
[null,null,null,null,null,0]
[null,null,null,null,null,0]
[null,null,null,null,null,0]
[null,null,null,null,null,0]
[null,null,null,null,null,0]
[null,null,null,null,null,0]
[null,null,null,null,null,0]
[null,null,null,null,null,0]
[null,null,null,null,null,0]
[null,null,null,null,null,0]
[null,null,null,null,null,0]
[null,null,null,null,null,0]
[null,null,null,null,null,0]
[null,null,null,null,null,0]
[null,null,null,null,null,0]
[null,null,null,null,null,0]
[null,null,null,null,null,0]
[null,null,null,null,null,0]
[null,null,null,null,null,0]
[null,null,null,null,null,0]
[null,null,null,null,null,0]
[null,null,null,null,null,0]
[null,null,null,null,null,0]
[null,null,null,null,null,0]
[null,null,null,null,null,0]
[null,null,null,null,null,0]
[null,null,null,null,null,0]
[null,null,null,null,null,0]
[null,null,null,null,null,0]
[null,null,null,null,null,0]
[null,null,null,null,null,0]
[null,null,null,null,null,0]
[null,null,null,null,null,0]
[null,null,null,null,null,0]
[null,null,null,null,null,0]
[null,null,null,null,null,{"$f":"MOD(H2531-G2531,1)","v":0}]
[null,null,null,null,null,0]
[null,null,null,null,null,0]
[null,null,null,null,null,0]
[null,null,null,null,null,0]
[null,null,null,null,null,0]
[null,null,null,null,null,0]
[null,null,null,null,null,0]
[null,null,null,null,null,0]
[null,null,null,null,null,0]
[null,null,null,null,null,0]
[null,null,null,null,null,0]
[null,null,null,null,null,0]
[null,null,null,null,null,0]
[null,null,null,null,null,0]
[null,null,null,null,null,0]
[null,null,null,null,null,0]
[null,null,null,null,null,0]
[null,null,null,null,null,0]
[null,null,null,null,null,0]
[null,null,null,null,null,"00:00:00"]
[null,null,null,null,null,"00:00:00"]
[null,null,null,null,null,"00:00:00"]
[null,null,null,null,null,"00:00:00"]
[null,null,null,null,null,"00:00:00"]
[null,null,null,null,null,{"$f":"H2556-G2556","v":"00:00:00"}]

{"sheet":"Commandes","index":5,"n_rows":13,"n_cols":8,"rows_kept":13,"cut":false,"hidden":false,"merged":[]}
["Pièces","Ref","Société","Adresse","Téléphone","Email","Date de commande","Commande passée"]
[null,null,null,null,null,null,null,"Oui"]
[null,null,null,null,null,null,null,"Oui"]
[null,null,null,null,null,null,null,"Oui"]
[null,null,null,null,null,null,null,"Oui"]
[null,null,null,null,null,null,null,"Oui"]
[null,null,null,null,null,null,null,"Oui"]
[null,null,null,null,null,null,null,"Oui"]
[null,null,null,null,null,null,null,"Oui"]
[null,null,null,null,null,null,null,"Oui"]
[null,null,null,null,null,null,null,"Oui"]
[null,null,null,null,null,null,null,"Oui"]
[null,null,null,null,null,null,null,"Oui"]

{"sheet":"Achats","index":6,"n_rows":140,"n_cols":8,"rows_kept":140,"cut":false,"hidden":false,"merged":[]}
[]
["Date","Quoi","Nombre","Prix unité","Prix total ttc","Fournisseur","Ref","Commentaire"]
["2013-05-31","Lame cutter non sécable",25,"3.84€ / 5",{"$f":"3.84*5","v":19.2},"Hyper Buro","OLFA SKB2/5B BL.5"]
["2013-05-27","Etoile",1,null,null,"MeadWestvaco","F2242465M"]
["2013-05-27","Etoile",1,null,null,"MeadWestvaco","F2242465S"]
["2013-05-27","Etoile",1,null,null,"MeadWestvaco","F2242466S"]
["2013-05-27","Etoile",1,null,null,"MeadWestvaco","F2242466M"]
["2013-05-27","Entretoise D105 L30",1,null,null,"MeadWestvaco","F2242467M"]
["2013-06-21","Pompe à vide ",1,"870€ HT",1040.52,"Chaplain"]
["2013-07-26","Palier",1,30.09,{"$f":"SUM((D10*19.6/100)+D10)","v":35.987639999999999},"Orexad Hartereau","0294*SF30"]
["2013-07-26","Extracteur",1,150.19999999999999,{"$f":"SUM((D11*19.6/100)+D11)","v":179.63919999999999},"Orexad Hartereau","0139*U.306PB","Pour le palier, entre en outillage"]
["2013-07-02","Galets",2,98.04,{"$f":"SUM((D12*19.6/100)+D12)","v":117.25584000000001},"Sitec",null,"Bouchonneuse - museleuse"]
["2013-07-31","Pièces",14,164.82,197.12472,"Sitec",null,"Bouchonneuse - museleuse"]
["2013-08-13","divers",10,117.39,140.39843999999999,"Brico dépôt",null,"Materiel pour BM et produits divers pour entretien"]
["2013-07-02","Poignée",1,32.270000000000003,38.594920000000002,"Ouest Atlantique",null,"Changement poignée"]
["2013-07-02","Galet",1,23.87,28.548520000000003,"Ouest Atlantique",null,"Galet en stock"]
[null,null,null,null,0]
[null,null,null,null,0]
[null,null,null,null,0]
[null,null,null,null,0]
[null,null,null,null,0]
[null,null,null,null,0]
[null,null,null,null,0]
[null,null,null,null,0]
[null,null,null,null,0]
[null,null,null,null,0]
[null,null,null,null,0]
[null,null,null,null,0]
[null,null,null,null,0]
[null,null,null,null,0]
[null,null,null,null,0]
[null,null,null,null,0]
[null,null,null,null,0]
[null,null,null,null,0]
[null,null,null,null,0]
[null,null,null,null,0]
[null,null,null,null,0]
[null,null,null,null,0]
[null,null,null,null,0]
[null,null,null,null,0]
[null,null,null,null,0]
[null,null,null,null,0]
[null,null,null,null,0]
[null,null,null,null,0]
[null,null,null,null,0]
[null,null,null,null,0]
[null,null,null,null,0]
[null,null,null,null,0]
[null,null,null,null,0]
[null,null,null,null,0]
[null,null,null,null,0]
[null,null,null,null,0]
[null,null,null,null,0]
[null,null,null,null,0]
[null,null,null,null,0]
[null,null,null,null,0]
[null,null,null,null,0]
[null,null,null,null,0]
[null,null,null,null,0]
[null,null,null,null,0]
[null,null,null,null,0]
[null,null,null,null,0]
[null,null,null,null,0]
[null,null,null,null,0]
[null,null,null,null,0]
[null,null,null,null,0]
[null,null,null,null,0]
[null,null,null,null,0]
[null,null,null,null,0]
[null,null,null,null,0]
[null,null,null,null,0]
[null,null,null,null,0]
[null,null,null,null,0]
[null,null,null,null,0]
[null,null,null,null,0]
[null,null,null,null,{"$f":"SUM((D76*19.6/100)+D76)","v":0}]
[null,null,null,null,0]
[null,null,null,null,0]
[null,null,null,null,0]
[null,null,null,null,0]
[null,null,null,null,0]
[null,null,null,null,0]
[null,null,null,null,0]
[null,null,null,null,0]
[null,null,null,null,0]
[null,null,null,null,0]
[null,null,null,null,0]
[null,null,null,null,0]
[null,null,null,null,0]
[null,null,null,null,0]
[null,null,null,null,0]
[null,null,null,null,0]
[null,null,null,null,0]
[null,null,null,null,0]
[null,null,null,null,0]
[null,null,null,null,0]
[null,null,null,null,0]
[null,null,null,null,0]
[null,null,null,null,0]
[null,null,null,null,0]
[null,null,null,null,0]
[null,null,null,null,0]
[null,null,null,null,0]
[null,null,null,null,0]
[null,null,null,null,0]
[null,null,null,null,0]
[null,null,null,null,0]
[null,null,null,null,0]
[null,null,null,null,0]
[null,null,null,null,0]
[null,null,null,null,0]
[null,null,null,null,0]
[null,null,null,null,0]
[null,null,null,null,0]
[null,null,null,null,0]
[null,null,null,null,0]
[null,null,null,null,0]
[null,null,null,null,0]
[null,null,null,null,0]
[null,null,null,null,0]
[null,null,null,null,0]
[null,null,null,null,0]
[null,null,null,null,0]
[null,null,null,null,0]
[null,null,null,null,0]
[null,null,null,null,0]
[null,null,null,null,0]
[null,null,null,null,0]
[null,null,null,null,0]
[null,null,null,null,0]
[null,null,null,null,0]
[null,null,null,null,0]
[null,null,null,null,0]
[null,null,null,null,0]
[null,null,null,null,0]
[null,null,null,null,0]
[null,null,null,null,0]
[null,null,null,null,0]
[null,null,null,null,0]
[null,null,null,null,{"$f":"SUM((D140*19.6/100)+D140)","v":0}]

{"sheet":"Contacts","index":7,"n_rows":4,"n_cols":6,"rows_kept":4,"cut":false,"hidden":false,"merged":[]}
["Entreprise","Activité / Machine liée","Adresse","Tel","Email","Site Web"]
[null,"",null,null,null,""]
[null,null,"Nom - Prénom contact","Fonction","Tel","Email"]
[null,null,"","","",""]

{"sheet":"Stock","index":8,"n_rows":567,"n_cols":11,"rows_kept":567,"cut":false,"hidden":false,"merged":[[564,4,564,5],[565,4,565,5],[566,4,566,5],[558,4,558,5],[559,4,559,5],[560,4,560,5],[561,4,561,5],[562,4,562,5],[563,4,563,5],[552,4,552,5],[553,4,553,5],[554,4,554,5],[555,4,555,5],[556,4,556,5],[557,4,557,5],[546,4,546,5],[547,4,547,5],[548,4,548,5],[549,4,549,5],[550,4,550,5],[551,4,551,5],[540,4,540,5],[541,4,541,5],[542,4,542,5],[543,4,543,5],[544,4,544,5],[545,4,545,5],[534,4,534,5],[535,4,535,5],[536,4,536,5],[537,4,537,5],[538,4,538,5],[539,4,539,5],[528,4,528,5],[529,4,529,5],[530,4,530,5],[531,4,531,5],[532,4,532,5],[533,4,533,5],[522,4,522,5],[523,4,523,5],[524,4,524,5],[525,4,525,5],[526,4,526,5],[527,4,527,5],[516,4,516,5],[517,4,517,5],[518,4,518,5],[519,4,519,5],[520,4,520,5],[521,4,521,5],[510,4,510,5],[511,4,511,5],[512,4,512,5],[513,4,513,5],[514,4,514,5],[515,4,515,5],[504,4,504,5],[505,4,505,5],[506,4,506,5],[507,4,507,5],[508,4,508,5],[509,4,509,5],[498,4,498,5],[499,4,499,5],[500,4,500,5],[501,4,501,5],[502,4,502,5],[503,4,503,5],[492,4,492,5],[493,4,493,5],[494,4,494,5],[495,4,495,5],[496,4,496,5],[497,4,497,5],[486,4,486,5],[487,4,487,5],[488,4,488,5],[489,4,489,5],[490,4,490,5],[491,4,491,5],[480,4,480,5],[481,4,481,5],[482,4,482,5],[483,4,483,5],[484,4,484,5],[485,4,485,5],[474,4,474,5],[475,4,475,5],[476,4,476,5],[477,4,477,5],[478,4,478,5],[479,4,479,5],[468,4,468,5],[469,4,469,5],[470,4,470,5],[471,4,471,5],[472,4,472,5],[473,4,473,5],[462,4,462,5],[463,4,463,5],[464,4,464,5],[465,4,465,5],[466,4,466,5],[467,4,467,5],[456,4,456,5],[457,4,457,5],[458,4,458,5],[459,4,459,5],[460,4,460,5],[461,4,461,5],[450,4,450,5],[451,4,451,5],[452,4,452,5],[453,4,453,5],[454,4,454,5],[455,4,455,5],[444,4,444,5],[445,4,445,5],[446,4,446,5],[447,4,447,5],[448,4,448,5],[449,4,449,5],[438,4,438,5],[439,4,439,5],[440,4,440,5],[441,4,441,5],[442,4,442,5],[443,4,443,5],[432,4,432,5],[433,4,433,5],[434,4,434,5],[435,4,435,5],[436,4,436,5],[437,4,437,5],[426,4,426,5],[427,4,427,5],[428,4,428,5],[429,4,429,5],[430,4,430,5],[431,4,431,5],[420,4,420,5],[421,4,421,5],[422,4,422,5],[423,4,423,5],[424,4,424,5],[425,4,425,5],[414,4,414,5],[415,4,415,5],[416,4,416,5],[417,4,417,5],[418,4,418,5],[419,4,419,5],[408,4,408,5],[409,4,409,5],[410,4,410,5],[411,4,411,5],[412,4,412,5],[413,4,413,5],[402,4,402,5],[403,4,403,5],[404,4,404,5],[405,4,405,5],[406,4,406,5],[407,4,407,5],[396,4,396,5],[397,4,397,5],[398,4,398,5],[399,4,399,5],[400,4,400,5],[401,4,401,5],[390,4,390,5],[391,4,391,5],[392,4,392,5],[393,4,393,5],[394,4,394,5],[395,4,395,5],[384,4,384,5],[385,4,385,5],[386,4,386,5],[387,4,387,5],[388,4,388,5],[389,4,389,5],[378,4,378,5],[379,4,379,5],[380,4,380,5],[381,4,381,5],[382,4,382,5],[383,4,383,5],[372,4,372,5],[373,4,373,5],[374,4,374,5],[375,4,375,5],[376,4,376,5],[377,4,377,5],[366,4,366,5],[367,4,367,5],[368,4,368,5],[369,4,369,5],[370,4,370,5],[371,4,371,5],[360,4,360,5],[361,4,361,5],[362,4,362,5],[363,4,363,5],[364,4,364,5],[365,4,365,5],[354,4,354,5],[355,4,355,5],[356,4,356,5],[357,4,357,5],[358,4,358,5],[359,4,359,5],[348,4,348,5],[349,4,349,5],[350,4,350,5],[351,4,351,5],[352,4,352,5],[353,4,353,5],[342,4,342,5],[343,4,343,5],[344,4,344,5],[345,4,345,5],[346,4,346,5],[347,4,347,5],[336,4,336,5],[337,4,337,5],[338,4,338,5],[339,4,339,5],[340,4,340,5],[341,4,341,5],[330,4,330,5],[331,4,331,5],[332,4,332,5],[333,4,333,5],[334,4,334,5],[335,4,335,5],[324,4,324,5],[325,4,325,5],[326,4,326,5],[327,4,327,5],[328,4,328,5],[329,4,329,5],[318,4,318,5],[319,4,319,5],[320,4,320,5],[321,4,321,5],[322,4,322,5],[323,4,323,5],[312,4,312,5],[313,4,313,5],[314,4,314,5],[315,4,315,5],[316,4,316,5],[317,4,317,5],[306,4,306,5],[307,4,307,5],[308,4,308,5],[309,4,309,5],[310,4,310,5],[311,4,311,5],[300,4,300,5],[301,4,301,5],[302,4,302,5],[303,4,303,5],[304,4,304,5],[305,4,305,5],[294,4,294,5],[295,4,295,5],[296,4,296,5],[297,4,297,5],[298,4,298,5],[299,4,299,5],[288,4,288,5],[289,4,289,5],[290,4,290,5],[291,4,291,5],[292,4,292,5],[293,4,293,5],[282,4,282,5],[283,4,283,5],[284,4,284,5],[285,4,285,5],[286,4,286,5],[287,4,287,5],[276,4,276,5],[277,4,277,5],[278,4,278,5],[279,4,279,5],[280,4,280,5],[281,4,281,5],[270,4,270,5],[271,4,271,5],[272,4,272,5],[273,4,273,5],[274,4,274,5],[275,4,275,5],[264,4,264,5],[265,4,265,5],[266,4,266,5],[267,4,267,5],[268,4,268,5],[269,4,269,5],[258,4,258,5],[259,4,259,5],[260,4,260,5],[261,4,261,5],[262,4,262,5],[263,4,263,5],[252,4,252,5],[253,4,253,5],[254,4,254,5],[255,4,255,5],[256,4,256,5],[257,4,257,5],[246,4,246,5],[247,4,247,5],[248,4,248,5],[249,4,249,5],[250,4,250,5],[251,4,251,5],[240,4,240,5],[241,4,241,5],[242,4,242,5],[243,4,243,5],[244,4,244,5],[245,4,245,5],[234,4,234,5],[235,4,235,5],[236,4,236,5],[237,4,237,5],[238,4,238,5],[239,4,239,5],[228,4,228,5],[229,4,229,5],[230,4,230,5],[231,4,231,5],[232,4,232,5],[233,4,233,5],[222,4,222,5],[223,4,223,5],[224,4,224,5],[225,4,225,5],[226,4,226,5],[227,4,227,5],[216,4,216,5],[217,4,217,5],[218,4,218,5],[219,4,219,5],[220,4,220,5],[221,4,221,5],[210,4,210,5],[211,4,211,5],[212,4,212,5],[213,4,213,5],[214,4,214,5],[215,4,215,5],[204,4,204,5],[205,4,205,5],[206,4,206,5],[207,4,207,5],[208,4,208,5],[209,4,209,5],[198,4,198,5],[199,4,199,5],[200,4,200,5],[201,4,201,5],[202,4,202,5],[203,4,203,5],[192,4,192,5],[193,4,193,5],[194,4,194,5],[195,4,195,5],[196,4,196,5],[197,4,197,5],[186,4,186,5],[187,4,187,5],[188,4,188,5],[189,4,189,5],[190,4,190,5],[191,4,191,5],[180,4,180,5],[181,4,181,5],[182,4,182,5],[183,4,183,5],[184,4,184,5],[185,4,185,5],[174,4,174,5],[175,4,175,5],[176,4,176,5],[177,4,177,5],[178,4,178,5],[179,4,179,5],[168,4,168,5],[169,4,169,5],[170,4,170,5],[171,4,171,5],[172,4,172,5],[173,4,173,5],[162,4,162,5],[163,4,163,5],[164,4,164,5],[165,4,165,5],[166,4,166,5],[167,4,167,5],[156,4,156,5],[157,4,157,5],[158,4,158,5],[159,4,159,5],[160,4,160,5],[161,4,161,5],[150,4,150,5],[151,4,151,5],[152,4,152,5],[153,4,153,5],[154,4,154,5],[155,4,155,5],[144,4,144,5],[145,4,145,5],[146,4,146,5],[147,4,147,5],[148,4,148,5],[149,4,149,5],[138,4,138,5],[139,4,139,5],[140,4,140,5],[141,4,141,5],[142,4,142,5],[143,4,143,5],[132,4,132,5],[133,4,133,5],[134,4,134,5],[135,4,135,5],[136,4,136,5],[137,4,137,5],[126,4,126,5],[127,4,127,5],[128,4,128,5],[129,4,129,5],[130,4,130,5],[131,4,131,5],[120,4,120,5],[121,4,121,5],[122,4,122,5],[123,4,123,5],[124,4,124,5],[125,4,125,5],[114,4,114,5],[115,4,115,5],[116,4,116,5],[117,4,117,5],[118,4,118,5],[119,4,119,5],[108,4,108,5],[109,4,109,5],[110,4,110,5],[111,4,111,5],[112,4,112,5],[113,4,113,5],[102,4,102,5],[103,4,103,5],[104,4,104,5],[105,4,105,5],[106,4,106,5],[107,4,107,5],[96,4,96,5],[97,4,97,5],[98,4,98,5],[99,4,99,5],[100,4,100,5],[101,4,101,5],[90,4,90,5],[91,4,91,5],[92,4,92,5],[93,4,93,5],[94,4,94,5],[95,4,95,5],[84,4,84,5],[85,4,85,5],[86,4,86,5],[87,4,87,5],[88,4,88,5],[89,4,89,5],[78,4,78,5],[79,4,79,5],[80,4,80,5],[81,4,81,5],[82,4,82,5],[83,4,83,5],[72,4,72,5],[73,4,73,5],[74,4,74,5],[75,4,75,5],[76,4,76,5],[77,4,77,5],[66,4,66,5],[67,4,67,5],[68,4,68,5],[69,4,69,5],[70,4,70,5],[71,4,71,5],[60,4,60,5],[61,4,61,5],[62,4,62,5],[63,4,63,5],[64,4,64,5],[65,4,65,5],[54,4,54,5],[55,4,55,5],[56,4,56,5],[57,4,57,5],[58,4,58,5],[59,4,59,5],[51,4,51,5],[52,4,52,5],[53,4,53,5],[42,4,42,5],[43,4,43,5],[44,4,44,5],[45,4,45,5],[46,4,46,5],[47,4,47,5],[6,4,6,5],[25,4,25,5],[26,4,26,5],[27,4,27,5],[48,4,48,5],[49,4,49,5],[50,4,50,5],[39,4,39,5],[40,4,40,5],[41,4,41,5],[30,4,30,5],[31,4,31,5],[32,4,32,5],[33,4,33,5],[34,4,34,5],[35,4,35,5],[36,4,36,5],[37,4,37,5],[38,4,38,5],[28,4,28,5],[29,4,29,5],[0,4,0,5],[19,4,19,5],[20,4,20,5],[21,4,21,5],[22,4,22,5],[23,4,23,5],[24,4,24,5],[13,4,13,5],[14,4,14,5],[15,4,15,5],[16,4,16,5],[17,4,17,5],[18,4,18,5],[7,4,7,5],[8,4,8,5],[9,4,9,5],[10,4,10,5],[11,4,11,5],[12,4,12,5],[1,4,1,5],[2,4,2,5],[3,4,3,5],[4,4,4,5],[5,4,5,5]]}
["Codification","Pièce","Stock à date","Stock critique","Fournisseur",null,"etat",null,null,"Codification","Machine"]
["AMOS.001","joints",6,5,"Butrot",null,{"$f":"IF(C2<D2,0,1)","v":1},null,null,"AMOS","Presse AMOS"]
["LAVE.001","pièce",10,2,"Butrot",null,{"$f":"IF(C3<D3,0,1)","v":1},null,null,"PALL","Filtre PALL"]
[null,null,null,null,null,null,1,null,null,"LAVE","Laveuse"]
[null,null,null,null,null,null,1,null,null,"BUCH","Presse BUCHER"]
[null,null,null,null,null,null,1,null,null,"CENT","Centrifugeuse"]
[null,"","","","",null,1,null,null,"USEE","Pompe evac eaux usées"]
[null,"","","","",null,1,null,null,"SCHN","Pompe Schneider"]
[null,"","","","",null,1,null,null,"LIV1","Pompe Liverani"]
[null,"","","","",null,1,null,null,"LIV2","Pompe Liverani avec panneau elec"]
[null,"","","","",null,1,null,null,"FLAS","Flash-Pasteurisateur"]
[null,"","","","",null,1,null,null,"LUCN","Pompe Lucne"]
[null,"","","","",null,1,null,null,"DEPA","Dépaletiseur"]
[null,null,null,null,null,null,1,null,null,"RINC","Rinceuse"]
[null,null,null,null,null,null,1,null,null,"SATU","Saturateur"]
[null,null,null,null,null,null,1,null,null,"ECIN","Echangeur intérieur"]
[null,null,null,null,null,null,1,null,null,"TIRE","Tireuse"]
[null,null,null,null,null,null,1,null,null,"BOUC","Boucheuse / museleuse"]
[null,null,null,null,null,null,1,null,null,"DIST","Distributeur bouchons"]
[null,null,null,null,null,null,1,null,null,"PAST","Pasteurisateur"]
[null,null,null,null,null,null,1,null,null,"ETCO","Etiqueteuse conpart"]
[null,null,null,null,null,null,1,null,null,"LINX","Imprimante Linx"]
[null,null,null,null,null,null,1,null,null,"ETAD","Etiqueteuse adhésive"]
[null,null,null,null,null,null,1,null,null,"ACCU","Table d'accumulation"]
[null,null,null,null,null,null,1,null,null,"TRIO","TRIO"]
[null,null,null,null,null,null,1,null,null,"SCOT","Scotcheuse à cartons"]
[null,null,null,null,null,null,1,null,null,"TIFL","Tiflex"]
[null,null,null,null,null,null,1,null,null,"FILM","Filmeuse"]
[null,null,null,null,null,null,1,null,null,"ECEX","Echangeur extérieur"]
[null,null,null,null,null,null,1,null,null,"CONV","Convoyeurs"]
[null,null,null,null,null,null,1,null,null,"MEAD","MEAD"]
[null,null,null,null,null,null,1,null,null,"CLAR","Chariot  Clark"]
[null,null,null,null,null,null,1,null,null,"TIPA","Tire-palette elec"]
[null,null,null,null,null,null,1,null,null,"KARC","Karcher"]
[null,null,null,null,null,null,1,null,null,"MIST","Chariot mitsubishi"]
[null,null,null,null,null,null,1,null,null,"COMP","Compresseur "]
[null,null,null,null,null,null,1,null,null,"STRU","Structure"]
[null,null,null,null,null,null,1,null,null,"IE1","Insectocuteur E1"]
[null,null,null,null,null,null,1,null,null,"IE2","Insectocuteur E2"]
[null,null,null,null,null,null,1,null,null,"IC1","Insectocuteur C1"]
[null,null,null,null,null,null,1,null,null,"IP1","Insectocuteur P1"]
[null,null,null,null,null,null,1,null,null,"GRAI","Graisse"]
[null,null,null,null,null,null,1,null,null,"HUIL","Huile"]
[null,null,null,null,null,null,1,null,null,"OUTI","Outillage"]
[null,null,null,null,null,null,1,null,null,"ELEC","Electrique"]
[null,null,null,null,null,null,1,null,null,"PNEU","Pneumatique"]
[null,null,null,null,null,null,1]
[null,null,null,null,null,null,1]
[null,null,null,null,null,null,1]
[null,null,null,null,null,null,1]
[null,null,null,null,null,null,1]
[null,null,null,null,null,null,1]
[null,null,null,null,null,null,1]
[null,null,null,null,null,null,1]
[null,null,null,null,null,null,1]
[null,null,null,null,null,null,1]
[null,null,null,null,null,null,1]
[null,null,null,null,null,null,1]
[null,null,null,null,null,null,1]
[null,null,null,null,null,null,1]
[null,null,null,null,null,null,1]
[null,null,null,null,null,null,1]
[null,null,null,null,null,null,1]
[null,null,null,null,null,null,1]
[null,null,null,null,null,null,1]
[null,null,null,null,null,null,1]
[null,null,null,null,null,null,{"$f":"IF(C67<D67,0,1)","v":1}]
[null,null,null,null,null,null,1]
[null,null,null,null,null,null,1]
[null,null,null,null,null,null,1]
[null,null,null,null,null,null,1]
[null,null,null,null,null,null,1]
[null,null,null,null,null,null,1]
[null,null,null,null,null,null,1]
[null,null,null,null,null,null,1]
[null,null,null,null,null,null,1]
[null,null,null,null,null,null,1]
[null,null,null,null,null,null,1]
[null,null,null,null,null,null,1]
[null,null,null,null,null,null,1]
[null,null,null,null,null,null,1]
[null,null,null,null,null,null,1]
[null,null,null,null,null,null,1]
[null,null,null,null,null,null,1]
[null,null,null,null,null,null,1]
[null,null,null,null,null,null,1]
[null,null,null,null,null,null,1]
[null,null,null,null,null,null,1]
[null,null,null,null,null,null,1]
[null,null,null,null,null,null,1]
[null,null,null,null,null,null,1]
[null,null,null,null,null,null,1]
[null,null,null,null,null,null,1]
[null,null,null,null,null,null,1]
[null,null,null,null,null,null,1]
[null,null,null,null,null,null,1]
[null,null,null,null,null,null,1]
[null,null,null,null,null,null,1]
[null,null,null,null,null,null,1]
[null,null,null,null,null,null,1]
[null,null,null,null,null,null,1]
[null,null,null,null,null,null,1]
[null,null,null,null,null,null,1]
[null,null,null,null,null,null,1]
[null,null,null,null,null,null,1]
[null,null,null,null,null,null,1]
[null,null,null,null,null,null,1]
[null,null,null,null,null,null,1]
[null,null,null,null,null,null,1]
[null,null,null,null,null,null,1]
[null,null,null,null,null,null,1]
[null,null,null,null,null,null,1]
[null,null,null,null,null,null,1]
[null,null,null,null,null,null,1]
[null,null,null,null,null,null,1]
[null,null,null,null,null,null,1]
[null,null,null,null,null,null,1]
[null,null,null,null,null,null,1]
[null,null,null,null,null,null,1]
[null,null,null,null,null,null,1]
[null,null,null,null,null,null,1]
[null,null,null,null,null,null,1]
[null,null,null,null,null,null,1]
[null,null,null,null,null,null,1]
[null,null,null,null,null,null,1]
[null,null,null,null,null,null,1]
[null,null,null,null,null,null,1]
[null,null,null,null,null,null,1]
[null,null,null,null,null,null,1]
[null,null,null,null,null,null,1]
[null,null,null,null,null,null,{"$f":"IF(C131<D131,0,1)","v":1}]
[null,null,null,null,null,null,1]
[null,null,null,null,null,null,1]
[null,null,null,null,null,null,1]
[null,null,null,null,null,null,1]
[null,null,null,null,null,null,1]
[null,null,null,null,null,null,1]
[null,null,null,null,null,null,1]
[null,null,null,null,null,null,1]
[null,null,null,null,null,null,1]
[null,null,null,null,null,null,1]
[null,null,null,null,null,null,1]
[null,null,null,null,null,null,1]
[null,null,null,null,null,null,1]
[null,null,null,null,null,null,1]
[null,null,null,null,null,null,1]
[null,null,null,null,null,null,1]
[null,null,null,null,null,null,1]
[null,null,null,null,null,null,1]
[null,null,null,null,null,null,1]
[null,null,null,null,null,null,1]
[null,null,null,null,null,null,1]
[null,null,null,null,null,null,1]
[null,null,null,null,null,null,1]
[null,null,null,null,null,null,1]
[null,null,null,null,null,null,1]
[null,null,null,null,null,null,1]
[null,null,null,null,null,null,1]
[null,null,null,null,null,null,1]
[null,null,null,null,null,null,1]
[null,null,null,null,null,null,1]
[null,null,null,null,null,null,1]
[null,null,null,null,null,null,1]
[null,null,null,null,null,null,1]
[null,null,null,null,null,null,1]
[null,null,null,null,null,null,1]
[null,null,null,null,null,null,1]
[null,null,null,null,null,null,1]
[null,null,null,null,null,null,1]
[null,null,null,null,null,null,1]
[null,null,null,null,null,null,1]
[null,null,null,null,null,null,1]
[null,null,null,null,null,null,1]
[null,null,null,null,null,null,1]
[null,null,null,null,null,null,1]
[null,null,null,null,null,null,1]
[null,null,null,null,null,null,1]
[null,null,null,null,null,null,1]
[null,null,null,null,null,null,1]
[null,null,null,null,null,null,1]
[null,null,null,null,null,null,1]
[null,null,null,null,null,null,1]
[null,null,null,null,null,null,1]
[null,null,null,null,null,null,1]
[null,null,null,null,null,null,1]
[null,null,null,null,null,null,1]
[null,null,null,null,null,null,1]
[null,null,null,null,null,null,1]
[null,null,null,null,null,null,1]
[null,null,null,null,null,null,1]
[null,null,null,null,null,null,1]
[null,null,null,null,null,null,1]
[null,null,null,null,null,null,1]
[null,null,null,null,null,null,1]
[null,null,null,null,null,null,{"$f":"IF(C195<D195,0,1)","v":1}]
[null,null,null,null,null,null,1]
[null,null,null,null,null,null,1]
[null,null,null,null,null,null,1]
[null,null,null,null,null,null,1]
[null,null,null,null,null,null,1]
[null,null,null,null,null,null,1]
[null,null,null,null,null,null,1]
[null,null,null,null,null,null,1]
[null,null,null,null,null,null,1]
[null,null,null,null,null,null,1]
[null,null,null,null,null,null,1]
[null,null,null,null,null,null,1]
[null,null,null,null,null,null,1]
[null,null,null,null,null,null,1]
[null,null,null,null,null,null,1]
[null,null,null,null,null,null,1]
[null,null,null,null,null,null,1]
[null,null,null,null,null,null,1]
[null,null,null,null,null,null,1]
[null,null,null,null,null,null,1]
[null,null,null,null,null,null,1]
[null,null,null,null,null,null,1]
[null,null,null,null,null,null,1]
[null,null,null,null,null,null,1]
[null,null,null,null,null,null,1]
[null,null,null,null,null,null,1]
[null,null,null,null,null,null,1]
[null,null,null,null,null,null,1]
[null,null,null,null,null,null,1]
[null,null,null,null,null,null,1]
[null,null,null,null,null,null,1]
[null,null,null,null,null,null,1]
[null,null,null,null,null,null,1]
[null,null,null,null,null,null,1]
[null,null,null,null,null,null,1]
[null,null,null,null,null,null,1]
[null,null,null,null,null,null,1]
[null,null,null,null,null,null,1]
[null,null,null,null,null,null,1]
[null,null,null,null,null,null,1]
[null,null,null,null,null,null,1]
[null,null,null,null,null,null,1]
[null,null,null,null,null,null,1]
[null,null,null,null,null,null,1]
[null,null,null,null,null,null,1]
[null,null,null,null,null,null,1]
[null,null,null,null,null,null,1]
[null,null,null,null,null,null,1]
[null,null,null,null,null,null,1]
[null,null,null,null,null,null,1]
[null,null,null,null,null,null,1]
[null,null,null,null,null,null,1]
[null,null,null,null,null,null,1]
[null,null,null,null,null,null,1]
[null,null,null,null,null,null,1]
[null,null,null,null,null,null,1]
[null,null,null,null,null,null,1]
[null,null,null,null,null,null,1]
[null,null,null,null,null,null,1]
[null,null,null,null,null,null,1]
[null,null,null,null,null,null,1]
[null,null,null,null,null,null,1]
[null,null,null,null,null,null,1]
[null,null,null,null,null,null,{"$f":"IF(C259<D259,0,1)","v":1}]
[null,null,null,null,null,null,1]
[null,null,null,null,null,null,1]
[null,null,null,null,null,null,1]
[null,null,null,null,null,null,1]
[null,null,null,null,null,null,1]
[null,null,null,null,null,null,1]
[null,null,null,null,null,null,1]
[null,null,null,null,null,null,1]
[null,null,null,null,null,null,1]
[null,null,null,null,null,null,1]
[null,null,null,null,null,null,1]
[null,null,null,null,null,null,1]
[null,null,null,null,null,null,1]
[null,null,null,null,null,null,1]
[null,null,null,null,null,null,1]
[null,null,null,null,null,null,1]
[null,null,null,null,null,null,1]
[null,null,null,null,null,null,1]
[null,null,null,null,null,null,1]
[null,null,null,null,null,null,1]
[null,null,null,null,null,null,1]
[null,null,null,null,null,null,1]
[null,null,null,null,null,null,1]
[null,null,null,null,null,null,1]
[null,null,null,null,null,null,1]
[null,null,null,null,null,null,1]
[null,null,null,null,null,null,1]
[null,null,null,null,null,null,1]
[null,null,null,null,null,null,1]
[null,null,null,null,null,null,1]
[null,null,null,null,null,null,1]
[null,null,null,null,null,null,1]
[null,null,null,null,null,null,1]
[null,null,null,null,null,null,1]
[null,null,null,null,null,null,1]
[null,null,null,null,null,null,1]
[null,null,null,null,null,null,1]
[null,null,null,null,null,null,1]
[null,null,null,null,null,null,1]
[null,null,null,null,null,null,1]
[null,null,null,null,null,null,1]
[null,null,null,null,null,null,1]
[null,null,null,null,null,null,1]
[null,null,null,null,null,null,1]
[null,null,null,null,null,null,1]
[null,null,null,null,null,null,1]
[null,null,null,null,null,null,1]
[null,null,null,null,null,null,1]
[null,null,null,null,null,null,1]
[null,null,null,null,null,null,1]
[null,null,null,null,null,null,1]
[null,null,null,null,null,null,1]
[null,null,null,null,null,null,1]
[null,null,null,null,null,null,1]
[null,null,null,null,null,null,1]
[null,null,null,null,null,null,1]
[null,null,null,null,null,null,1]
[null,null,null,null,null,null,1]
[null,null,null,null,null,null,1]
[null,null,null,null,null,null,1]
[null,null,null,null,null,null,1]
[null,null,null,null,null,null,1]
[null,null,null,null,null,null,1]
[null,null,null,null,null,null,{"$f":"IF(C323<D323,0,1)","v":1}]
[null,null,null,null,null,null,1]
[null,null,null,null,null,null,1]
[null,null,null,null,null,null,1]
[null,null,null,null,null,null,1]
[null,null,null,null,null,null,1]
[null,null,null,null,null,null,1]
[null,null,null,null,null,null,1]
[null,null,null,null,null,null,1]
[null,null,null,null,null,null,1]
[null,null,null,null,null,null,1]
[null,null,null,null,null,null,1]
[null,null,null,null,null,null,1]
[null,null,null,null,null,null,1]
[null,null,null,null,null,null,1]
[null,null,null,null,null,null,1]
[null,null,null,null,null,null,1]
[null,null,null,null,null,null,1]
[null,null,null,null,null,null,1]
[null,null,null,null,null,null,1]
[null,null,null,null,null,null,1]
[null,null,null,null,null,null,1]
[null,null,null,null,null,null,1]
[null,null,null,null,null,null,1]
[null,null,null,null,null,null,1]
[null,null,null,null,null,null,1]
[null,null,null,null,null,null,1]
[null,null,null,null,null,null,1]
[null,null,null,null,null,null,1]
[null,null,null,null,null,null,1]
[null,null,null,null,null,null,1]
[null,null,null,null,null,null,1]
[null,null,null,null,null,null,1]
[null,null,null,null,null,null,1]
[null,null,null,null,null,null,1]
[null,null,null,null,null,null,1]
[null,null,null,null,null,null,1]
[null,null,null,null,null,null,1]
[null,null,null,null,null,null,1]
[null,null,null,null,null,null,1]
[null,null,null,null,null,null,1]
[null,null,null,null,null,null,1]
[null,null,null,null,null,null,1]
[null,null,null,null,null,null,1]
[null,null,null,null,null,null,1]
[null,null,null,null,null,null,1]
[null,null,null,null,null,null,1]
[null,null,null,null,null,null,1]
[null,null,null,null,null,null,1]
[null,null,null,null,null,null,1]
[null,null,null,null,null,null,1]
[null,null,null,null,null,null,1]
[null,null,null,null,null,null,1]
[null,null,null,null,null,null,1]
[null,null,null,null,null,null,1]
[null,null,null,null,null,null,1]
[null,null,null,null,null,null,1]
[null,null,null,null,null,null,1]
[null,null,null,null,null,null,1]
[null,null,null,null,null,null,1]
[null,null,null,null,null,null,1]
[null,null,null,null,null,null,1]
[null,null,null,null,null,null,1]
[null,null,null,null,null,null,1]
[null,null,null,null,null,null,{"$f":"IF(C387<D387,0,1)","v":1}]
[null,null,null,null,null,null,1]
[null,null,null,null,null,null,1]
[null,null,null,null,null,null,1]
[null,null,null,null,null,null,1]
[null,null,null,null,null,null,1]
[null,null,null,null,null,null,1]
[null,null,null,null,null,null,1]
[null,null,null,null,null,null,1]
[null,null,null,null,null,null,1]
[null,null,null,null,null,null,1]
[null,null,null,null,null,null,1]
[null,null,null,null,null,null,1]
[null,null,null,null,null,null,1]
[null,null,null,null,null,null,1]
[null,null,null,null,null,null,1]
[null,null,null,null,null,null,1]
[null,null,null,null,null,null,1]
[null,null,null,null,null,null,1]
[null,null,null,null,null,null,1]
[null,null,null,null,null,null,1]
[null,null,null,null,null,null,1]
[null,null,null,null,null,null,1]
[null,null,null,null,null,null,1]
[null,null,null,null,null,null,1]
[null,null,null,null,null,null,1]
[null,null,null,null,null,null,1]
[null,null,null,null,null,null,1]
[null,null,null,null,null,null,1]
[null,null,null,null,null,null,1]
[null,null,null,null,null,null,1]
[null,null,null,null,null,null,1]
[null,null,null,null,null,null,1]
[null,null,null,null,null,null,1]
[null,null,null,null,null,null,1]
[null,null,null,null,null,null,1]
[null,null,null,null,null,null,1]
[null,null,null,null,null,null,1]
[null,null,null,null,null,null,1]
[null,null,null,null,null,null,1]
[null,null,null,null,null,null,1]
[null,null,null,null,null,null,1]
[null,null,null,null,null,null,1]
[null,null,null,null,null,null,1]
[null,null,null,null,null,null,1]
[null,null,null,null,null,null,1]
[null,null,null,null,null,null,1]
[null,null,null,null,null,null,1]
[null,null,null,null,null,null,1]
[null,null,null,null,null,null,1]
[null,null,null,null,null,null,1]
[null,null,null,null,null,null,1]
[null,null,null,null,null,null,1]
[null,null,null,null,null,null,1]
[null,null,null,null,null,null,1]
[null,null,null,null,null,null,1]
[null,null,null,null,null,null,1]
[null,null,null,null,null,null,1]
[null,null,null,null,null,null,1]
[null,null,null,null,null,null,1]
[null,null,null,null,null,null,1]
[null,null,null,null,null,null,1]
[null,null,null,null,null,null,1]
[null,null,null,null,null,null,1]
[null,null,null,null,null,null,{"$f":"IF(C451<D451,0,1)","v":1}]
[null,null,null,null,null,null,1]
[null,null,null,null,null,null,1]
[null,null,null,null,null,null,1]
[null,null,null,null,null,null,1]
[null,null,null,null,null,null,1]
[null,null,null,null,null,null,1]
[null,null,null,null,null,null,1]
[null,null,null,null,null,null,1]
[null,null,null,null,null,null,1]
[null,null,null,null,null,null,1]
[null,null,null,null,null,null,1]
[null,null,null,null,null,null,1]
[null,null,null,null,null,null,1]
[null,null,null,null,null,null,1]
[null,null,null,null,null,null,1]
[null,null,null,null,null,null,1]
[null,null,null,null,null,null,1]
[null,null,null,null,null,null,1]
[null,null,null,null,null,null,1]
[null,null,null,null,null,null,1]
[null,null,null,null,null,null,1]
[null,null,null,null,null,null,1]
[null,null,null,null,null,null,1]
[null,null,null,null,null,null,1]
[null,null,null,null,null,null,1]
[null,null,null,null,null,null,1]
[null,null,null,null,null,null,1]
[null,null,null,null,null,null,1]
[null,null,null,null,null,null,1]
[null,null,null,null,null,null,1]
[null,null,null,null,null,null,1]
[null,null,null,null,null,null,1]
[null,null,null,null,null,null,1]
[null,null,null,null,null,null,1]
[null,null,null,null,null,null,1]
[null,null,null,null,null,null,1]
[null,null,null,null,null,null,1]
[null,null,null,null,null,null,1]
[null,null,null,null,null,null,1]
[null,null,null,null,null,null,1]
[null,null,null,null,null,null,1]
[null,null,null,null,null,null,1]
[null,null,null,null,null,null,1]
[null,null,null,null,null,null,1]
[null,null,null,null,null,null,1]
[null,null,null,null,null,null,1]
[null,null,null,null,null,null,1]
[null,null,null,null,null,null,1]
[null,null,null,null,null,null,1]
[null,null,null,null,null,null,1]
[null,null,null,null,null,null,1]
[null,null,null,null,null,null,1]
[null,null,null,null,null,null,1]
[null,null,null,null,null,null,1]
[null,null,null,null,null,null,1]
[null,null,null,null,null,null,1]
[null,null,null,null,null,null,1]
[null,null,null,null,null,null,1]
[null,null,null,null,null,null,1]
[null,null,null,null,null,null,1]
[null,null,null,null,null,null,1]
[null,null,null,null,null,null,1]
[null,null,null,null,null,null,1]
[null,null,null,null,null,null,{"$f":"IF(C515<D515,0,1)","v":1}]
[null,null,null,null,null,null,1]
[null,null,null,null,null,null,1]
[null,null,null,null,null,null,1]
[null,null,null,null,null,null,1]
[null,null,null,null,null,null,1]
[null,null,null,null,null,null,1]
[null,null,null,null,null,null,1]
[null,null,null,null,null,null,1]
[null,null,null,null,null,null,1]
[null,null,null,null,null,null,1]
[null,null,null,null,null,null,1]
[null,null,null,null,null,null,1]
[null,null,null,null,null,null,1]
[null,null,null,null,null,null,1]
[null,null,null,null,null,null,1]
[null,null,null,null,null,null,1]
[null,null,null,null,null,null,1]
[null,null,null,null,null,null,1]
[null,null,null,null,null,null,1]
[null,null,null,null,null,null,1]
[null,null,null,null,null,null,1]
[null,null,null,null,null,null,1]
[null,null,null,null,null,null,1]
[null,null,null,null,null,null,1]
[null,null,null,null,null,null,1]
[null,null,null,null,null,null,1]
[null,null,null,null,null,null,1]
[null,null,null,null,null,null,1]
[null,null,null,null,null,null,1]
[null,null,null,null,null,null,1]
[null,null,null,null,null,null,1]
[null,null,null,null,null,null,1]
[null,null,null,null,null,null,1]
[null,null,null,null,null,null,1]
[null,null,null,null,null,null,1]
[null,null,null,null,null,null,1]
[null,null,null,null,null,null,1]
[null,null,null,null,null,null,1]
[null,null,null,null,null,null,1]
[null,null,null,null,null,null,1]
[null,null,null,null,null,null,1]
[null,null,null,null,null,null,1]
[null,null,null,null,null,null,1]
[null,null,null,null,null,null,1]
[null,null,null,null,null,null,1]
[null,null,null,null,null,null,1]
[null,null,null,null,null,null,1]
[null,null,null,null,null,null,1]
[null,null,null,null,null,null,1]
[null,null,null,null,null,null,1]
[null,null,null,null,null,null,1]
[null,null,null,null,null,null,1]

{"sheet":"Planning inter","index":9,"n_rows":33,"n_cols":53,"rows_kept":33,"cut":false,"hidden":false,"merged":[[1,42,1,44],[1,45,1,47],[1,48,1,50],[1,51,1,53],[0,18,0,53],[1,21,1,23],[1,24,1,26],[1,27,1,29],[1,30,1,32],[1,33,1,35],[1,36,1,38],[1,18,1,20],[1,39,1,41],[1,6,1,8],[1,9,1,11],[1,12,1,14],[1,15,1,17],[0,0,0,17],[1,0,1,2],[1,3,1,5]]}
[2013,null,null,null,null,null,null,null,null,null,null,null,null,null,null,null,null,null,2014]
["Juillet",null,null,"Août",null,null,"Septembre",null,null,"Octobre",null,null,"Novembre",null,null,"Décembre",null,null,"Janvier",null,null,"Février",null,null,"Mars",null,null,"Avril",null,null,"Mai",null,null,"Juin",null,null,"Juillet",null,null,"Août",null,null,"Septembre",null,null,"Octobre",null,null,"Novembre",null,null,"Décembre"]
[1,"L","2013-07-01",1,"J","2013-08-01",1,"D","2013-09-01",1,"M","2013-10-01",1,"V","2013-11-01",1,"D","2013-12-01",1,"M","2014-01-01",1,"S","2014-02-01",1,"S","2014-03-01",1,"M","2014-04-01",1,"J","2014-05-01",1,"D","2014-06-01",1,"M","2014-07-01",1,"V","2014-08-01",1,"L","2014-09-01","M",1,"2013-10-01","S",1,null,"L",1]
[2,"M","2013-07-02",2,"V","2013-08-02",2,"L","2013-09-02",2,"M","2013-10-02",2,"S","2013-11-02",2,"L","2013-12-02",2,"J","2014-01-02",2,"D","2014-02-02",2,"D","2014-03-02",2,"M","2014-04-02",2,"V","2014-05-02",2,"L","2014-06-02",2,"M","2014-07-02",2,"S","2014-08-02",2,"M","2014-09-02","J",2,"2013-10-02","D",2,null,"M",2]
[3,"M","2013-07-03",3,"S","2013-08-03",3,"M","2013-09-03",3,"J","2013-10-03",3,"D","2013-11-03",3,"M","2013-12-03",3,"V","2014-01-03",3,"L","2014-02-03",3,"L","2014-03-03",3,"J","2014-04-03",3,"S","2014-05-03",3,"M","2014-06-03",3,"J","2014-07-03",3,"D","2014-08-03",3,"M","2014-09-03","V",3,"2013-10-03","L",3,null,"M",3]
[4,"J","2013-07-04",4,"D","2013-08-04",4,"M","2013-09-04",4,"V","2013-10-04",4,"L","2013-11-04",4,"M","2013-12-04",4,"S","2014-01-04",4,"M","2014-02-04",4,"M","2014-03-04",4,"V","2014-04-04",4,"D","2014-05-04",4,"M","2014-06-04",4,"V","2014-07-04",4,"L","2014-08-04",4,"J","2014-09-04","S",4,"2013-10-04","M",4,null,"J",4]
[5,"V","2013-07-05",5,"L","2013-08-05",5,"J","2013-09-05",5,"S","2013-10-05",5,"M","2013-11-05",5,"J","2013-12-05",5,"D","2014-01-05",5,"M","2014-02-05",5,"M","2014-03-05",5,"S","2014-04-05",5,"L","2014-05-05",5,"J","2014-06-05",5,"S","2014-07-05",5,"M","2014-08-05",5,"V","2014-09-05","D",5,"2013-10-05","M",5,null,"V",5]
[6,"S","2013-07-06",6,"M","2013-08-06",6,"V","2013-09-06",6,"D","2013-10-06",6,"M","2013-11-06",6,"V","2013-12-06",6,"L","2014-01-06",6,"J","2014-02-06",6,"J","2014-03-06",6,"D","2014-04-06",6,"M","2014-05-06",6,"V","2014-06-06",6,"D","2014-07-06",6,"M","2014-08-06",6,"S","2014-09-06","L",6,"2013-10-06","J",6,null,"S",6]
[7,"D","2013-07-07",7,"M","2013-08-07",7,"S","2013-09-07",7,"L","2013-10-07",7,"J","2013-11-07",7,"S","2013-12-07",7,"M","2014-01-07",7,"V","2014-02-07",7,"V","2014-03-07",7,"L","2014-04-07",7,"M","2014-05-07",7,"S","2014-06-07",7,"L","2014-07-07",7,"J","2014-08-07",7,"D","2014-09-07","M",7,"2013-10-07","V",7,null,"D",7]
[8,"L","2013-07-08",8,"J","2013-08-08",8,"D","2013-09-08",8,"M","2013-10-08",8,"V","2013-11-08",8,"D","2013-12-08",8,"M","2014-01-08",8,"S","2014-02-08",8,"S","2014-03-08",8,"M","2014-04-08",8,"J","2014-05-08",8,"D","2014-06-08",8,"M","2014-07-08",8,"V","2014-08-08",8,"L","2014-09-08","M",8,"2013-10-08","S",8,null,"L",8]
[9,"M","2013-07-09",9,"V","2013-08-09",9,"L","2013-09-09",9,"M","2013-10-09",9,"S","2013-11-09",9,"L","2013-12-09",9,"J","2014-01-09",9,"D","2014-02-09",9,"D","2014-03-09",9,"M","2014-04-09",9,"V","2014-05-09",9,"L","2014-06-09",9,"M","2014-07-09",9,"S","2014-08-09",9,"M","2014-09-09","J",9,"2013-10-09","D",9,null,"M",9]
[10,"M","2013-07-10",10,"S","2013-08-10",10,"M","2013-09-10",10,"J","2013-10-10",10,"D","2013-11-10",10,"M","2013-12-10",10,"V","2014-01-10",10,"L","2014-02-10",10,"L","2014-03-10",10,"J","2014-04-10",10,"S","2014-05-10",10,"M","2014-06-10",10,"J","2014-07-10",10,"D","2014-08-10",10,"M","2014-09-10","V",10,"2013-10-10","L",10,null,"M",10]
[11,"J","2013-07-11",11,"D","2013-08-11",11,"M","2013-09-11",11,"V","2013-10-11",11,"L","2013-11-11",11,"M","2013-12-11",11,"S","2014-01-11",11,"M","2014-02-11",11,"M","2014-03-11",11,"V","2014-04-11",11,"D","2014-05-11",11,"M","2014-06-11",11,"V","2014-07-11",11,"L","2014-08-11",11,"J","2014-09-11","S",11,"2013-10-11","M",11,null,"J",11]
[12,"V","2013-07-12",12,"L","2013-08-12",12,"J","2013-09-12",12,"S","2013-10-12",12,"M","2013-11-12",12,"J","2013-12-12",12,"D","2014-01-12",12,"M","2014-02-12",12,"M","2014-03-12",12,"S","2014-04-12",12,"L","2014-05-12",12,"J","2014-06-12",12,"S","2014-07-12",12,"M","2014-08-12",12,"V","2014-09-12","D",12,"2013-10-12","M",12,null,"V",12]
[13,"S","2013-07-13",13,"M","2013-08-13",13,"V","2013-09-13",13,"D","2013-10-13",13,"M","2013-11-13",13,"V","2013-12-13",13,"L","2014-01-13",13,"J","2014-02-13",13,"J","2014-03-13",13,"D","2014-04-13",13,"M","2014-05-13",13,"V","2014-06-13",13,"D","2014-07-13",13,"M","2014-08-13",13,"S","2014-09-13","L",13,"2013-10-13","J",13,null,"S",13]
[14,"D","2013-07-14",14,"M","2013-08-14",14,"S","2013-09-14",14,"L","2013-10-14",14,"J","2013-11-14",14,"S","2013-12-14",14,"M","2014-01-14",14,"V","2014-02-14",14,"V","2014-03-14",14,"L","2014-04-14",14,"M","2014-05-14",14,"S","2014-06-14",14,"L","2014-07-14",14,"J","2014-08-14",14,"D","2014-09-14","M",14,"2013-10-14","V",14,null,"D",14]
[15,"L","2013-07-15",15,"J","2013-08-15",15,"D","2013-09-15",15,"M","2013-10-15",15,"V","2013-11-15",15,"D","2013-12-15",15,"M","2014-01-15",15,"S","2014-02-15",15,"S","2014-03-15",15,"M","2014-04-15",15,"J","2014-05-15",15,"D","2014-06-15",15,"M","2014-07-15",15,"V","2014-08-15",15,"L","2014-09-15","M",15,"2013-10-15","S",15,null,"L",15]
[16,"M","2013-07-16",16,"V","2013-08-16",16,"L","2013-09-16",16,"M","2013-10-16",16,"S","2013-11-16",16,"L","2013-12-16",16,"J","2014-01-16",16,"D","2014-02-16",16,"D","2014-03-16",16,"M","2014-04-16",16,"V","2014-05-16",16,"L","2014-06-16",16,"M","2014-07-16",16,"S","2014-08-16",16,"M","2014-09-16","J",16,"2013-10-16","D",16,null,"M",16]
[17,"M","2013-07-17",17,"S","2013-08-17",17,"M","2013-09-17",17,"J","2013-10-17",17,"D","2013-11-17",17,"M","2013-12-17",17,"V","2014-01-17",17,"L","2014-02-17",17,"L","2014-03-17",17,"J","2014-04-17",17,"S","2014-05-17",17,"M","2014-06-17",17,"J","2014-07-17",17,"D","2014-08-17",17,"M","2014-09-17","V",17,"2013-10-17","L",17,null,"M",17]
[18,"J","2013-07-18",18,"D","2013-08-18",18,"M","2013-09-18",18,"V","2013-10-18",18,"L","2013-11-18",18,"M","2013-12-18",18,"S","2014-01-18",18,"M","2014-02-18",18,"M","2014-03-18",18,"V","2014-04-18",18,"D","2014-05-18",18,"M","2014-06-18",18,"V","2014-07-18",18,"L","2014-08-18",18,"J","2014-09-18","S",18,"2013-10-18","M",18,null,"J",18]
[19,"V","2013-07-19",19,"L","2013-08-19",19,"J","2013-09-19",19,"S","2013-10-19",19,"M","2013-11-19",19,"J","2013-12-19",19,"D","2014-01-19",19,"M","2014-02-19",19,"M","2014-03-19",19,"S","2014-04-19",19,"L","2014-05-19",19,"J","2014-06-19",19,"S","2014-07-19",19,"M","2014-08-19",19,"V","2014-09-19","D",19,"2013-10-19","M",19,null,"V",19]
[20,"S","2013-07-20",20,"M","2013-08-20",20,"V","2013-09-20",20,"D","2013-10-20",20,"M","2013-11-20",20,"V","2013-12-20",20,"L","2014-01-20",20,"J","2014-02-20",20,"J","2014-03-20",20,"D","2014-04-20",20,"M","2014-05-20",20,"V","2014-06-20",20,"D","2014-07-20",20,"M","2014-08-20",20,"S","2014-09-20","L",20,"2013-10-20","J",20,null,"S",20]
[21,"D","2013-07-21",21,"M","2013-08-21",21,"S","2013-09-21",21,"L","2013-10-21",21,"J","2013-11-21",21,"S","2013-12-21",21,"M","2014-01-21",21,"V","2014-02-21",21,"V","2014-03-21",21,"L","2014-04-21",21,"M","2014-05-21",21,"S","2014-06-21",21,"L","2014-07-21",21,"J","2014-08-21",21,"D","2014-09-21","M",21,"2013-10-21","V",21,null,"D",21]
[22,"L","2013-07-22",22,"J","2013-08-22",22,"D","2013-09-22",22,"M","2013-10-22",22,"V","2013-11-22",22,"D","2013-12-22",22,"M","2014-01-22",22,"S","2014-02-22",22,"S","2014-03-22",22,"M","2014-04-22",22,"J","2014-05-22",22,"D","2014-06-22",22,"M","2014-07-22",22,"V","2014-08-22",22,"L","2014-09-22","M",22,"2013-10-22","S",22,null,"L",22]
[23,"M","2013-07-23",23,"V","2013-08-23",23,"L","2013-09-23",23,"M","2013-10-23",23,"S","2013-11-23",23,"L","2013-12-23",23,"J","2014-01-23",23,"D","2014-02-23",23,"D","2014-03-23",23,"M","2014-04-23",23,"V","2014-05-23",23,"L","2014-06-23",23,"M","2014-07-23",23,"S","2014-08-23",23,"M","2014-09-23","J",23,"2013-10-23","D",23,null,"M",23]
[24,"M","2013-07-24",24,"S","2013-08-24",24,"M","2013-09-24",24,"J","2013-10-24",24,"D","2013-11-24",24,"M","2013-12-24",24,"V","2014-01-24",24,"L","2014-02-24",24,"L","2014-03-24",24,"J","2014-04-24",24,"S","2014-05-24",24,"M","2014-06-24",24,"J","2014-07-24",24,"D","2014-08-24",24,"M","2014-09-24","V",24,"2013-10-24","L",24,null,"M",24]
[25,"J","2013-07-25",25,"D","2013-08-25",25,"M","2013-09-25",25,"V","2013-10-25",25,"L","2013-11-25",25,"M","2013-12-25",25,"S","2014-01-25",25,"M","2014-02-25",25,"M","2014-03-25",25,"V","2014-04-25",25,"D","2014-05-25",25,"M","2014-06-25",25,"V","2014-07-25",25,"L","2014-08-25",25,"J","2014-09-25","S",25,"2013-10-25","M",25,null,"J",25]
[26,"V","2013-07-26",26,"L","2013-08-26",26,"J","2013-09-26",26,"S","2013-10-26",26,"M","2013-11-26",26,"J","2013-12-26",26,"D","2014-01-26",26,"M","2014-02-26",26,"M","2014-03-26",26,"S","2014-04-26",26,"L","2014-05-26",26,"J","2014-06-26",26,"S","2014-07-26",26,"M","2014-08-26",26,"V","2014-09-26","D",26,"2013-10-26","M",26,null,"V",26]
[27,"S","2013-07-27",27,"M","2013-08-27",27,"V","2013-09-27",27,"D","2013-10-27",27,"M","2013-11-27",27,"V","2013-12-27",27,"L","2014-01-27",27,"J","2014-02-27",27,"J","2014-03-27",27,"D","2014-04-27",27,"M","2014-05-27",27,"V","2014-06-27",27,"D","2014-07-27",27,"M","2014-08-27",27,"S","2014-09-27","L",27,"2013-10-27","J",27,null,"S",27]
[28,"D","2013-07-28",28,"M","2013-08-28",28,"S","2013-09-28",28,"L","2013-10-28",28,"J","2013-11-28",28,"S","2013-12-28",28,"M","2014-01-28",28,"V","2014-02-28",28,"V","2014-03-28",28,"L","2014-04-28",28,"M","2014-05-28",28,"S","2014-06-28",28,"L","2014-07-28",28,"J","2014-08-28",28,"D","2014-09-28","M",28,"2013-10-28","V",28,null,"D",28]
[29,"L","2013-07-29",29,"J","2013-08-29",29,"D","2013-09-29",29,"M","2013-10-29",29,"V","2013-11-29",29,"D","2013-12-29",29,"M","2014-01-29",null,null,null,29,"S","2014-03-29",29,"M","2014-04-29",29,"J","2014-05-29",29,"D","2014-06-29",29,"M","2014-07-29",29,"V","2014-08-29",29,"L","2014-09-29","M",29,"2013-10-29","S",29,null,"L",29]
[30,"M","2013-07-30",30,"V","2013-08-30",30,"L","2013-09-30",30,"M","2013-10-30",30,"S","2013-11-30",30,"L","2013-12-30",30,"J","2014-01-30",null,null,null,30,"D","2014-03-30",30,"M","2014-04-30",30,"V","2014-05-30",30,"L","2014-06-30",30,"M","2014-07-30",30,"S","2014-08-30",30,"M","2014-09-30","J",30,"2013-10-30","D",30,null,"M",30]
[31,"M","2013-07-31",31,"S","2013-08-31",null,null,null,31,"J","2013-10-31",null,null,null,31,"M","2013-12-31",31,"V","2014-01-31",null,null,null,31,"L","2014-03-31",null,null,null,31,"S","2014-05-31",null,null,null,31,"J","2014-07-31",31,"D","2014-08-31",null,null,null,"V",31,"2013-10-31",null,null,null,"M",31]